Workbook

Sheet Catalog
A1: Supplementary data
A3: Cataloge
A5: Data 1 | B5: TFM of traded cell and module capacity in 2014
A6: Data 2 | B6: TFM of traded cell and module capacity in 2017
A7: Data 3 | B7: TFM of the global PV product trade total value in 2014
A8: Data 4 | B8: TFM of the global PV product trade total value in 2017
A9: Data 5 | B9: TFM of the global PV silicon trade in 2014
A10: Data 6 | B10: TFM of the global PV silicon trade in 2017
A11: Data 7 | B11: TFM of the global PV silicon wafer trade in 2014
A12: Data 8 | B12: TFM of the global PV silicon wafer trade in 2017
A13: Data 9 | B13: TFM of the global PV solar cell and module trade in 2014
A14: Data 10 | B14: TFM of the global PV solar cell and module trade in 2017
A15: Data 11 | B15: Carbon and pollutants embodied in the global PV product trade in 2014
A16: Data 12 | B16: Carbon and pollutants embodied in the global PV product trade in 2017
A17: Data 13 | B17: BEETc of the global PV product trade in 2014 and 2017
A18: Data 14 | B18: Carbon and pollutants embodied in the global silicon trade in 2014
A19: Data 15 | B19: Carbon and pollutants embodied in the global silicon trade in 2017
A20: Data 16 | B20: Carbon and pollutants embodied in the global silicon wafer trade in 2014
A21: Data 17 | B21: Carbon and pollutants embodied in the global silicon wafer trade in 2017
A22: Data 18 | B22: Carbon and pollutants embodied in the global solar cell and module trade in 2014
A23: Data 19 | B23: Carbon and pollutants embodied in the global solar cell and module trade in 2017
A24: Data 20 | B24: BEETPM10 of the global PV products trade in 2014 and 2017
A25: Data 21 | B25: BEETSO2 of the global PV products trade in 2014 and 2017
A26: Data 22 | B26: BEETNOx of the global PV products trade in 2014 and 2017
A27: Data 23 | B27: BEETCOD of the global PV products trade in 2014 and 2017
A28: Data 24 | B28: PV power generation potential of traded solar cell and module in 2014 and 2017
A29: Data 25 | B29: Carbon emission reduction potential of traded solar cell and module in 2014 and 2017
A30: Data 26 | B30: PM10 reduction potential of traded solar cell and module in 2014 and 2017
A31: Data 27 | B31: SO2 reduction potential of traded solar cell and module in 2014 and 2017
A32: Data 28 | B32: NOx reduction potential of traded solar cell and module in 2014 and 2017
A33: Data 29 | B33: Global PV installation, power generation and emission reduction potential from 2017-2050 under BAU
A34: Data 30 | B34: Economicl impacts of tariff on solar cell and module trade in TBS
A35: Data 31 | B35: Global PV installation, power generation and emission reduction potential from 2017-2050 under TBS
A36: Data 32 | B36: Emission factors of local power grid in SSG
A37: Data 33 | B37: Emission factors of local thermal power in SST
A38: Data 34 | B38: Tariff data in GSIM model

Sheet Data 1
A1: TFM of traded cell and module capacity in 2014
A2: Unit: kW
A3: Country/Economy | B3: Australia | C3: Austria | D3: Belgium | E3: Brazil | F3: Brunei | G3: Bulgaria | H3: Cambodia | I3: Canada | J3: China | K3: Hong Kong | L3: Croatia | M3: Cyprus | N3: Czechia | O3: Denmark | P3: Estonia | Q3: Finland | R3: France | S3: Germany | T3: Greece | U3: Hungary | V3: India | W3: Indonesia | X3: Ireland | Y3: Italy | Z3: Japan | AA3: Lao PDR | AB3: Latvia | AC3: Lithuania | AD3: Luxembourg | AE3: Malaysia | AF3: Malta | AG3: Mexico | AH3: Myanmar | AI3: Netherlands | AJ3: New Zealand | AK3: Norway | AL3: Taiwan | AM3: Philippines | AN3: Poland | AO3: Portugal | AP3: Korea | AQ3: Romania | AR3: Russian Federation | AS3: Singapore | AT3: Slovakia | AU3: Slovenia | AV3: Spain | AW3: Sweden | AX3: Thailand | AY3: Turkey | AZ3: United Kingdom | BA3: USA | BB3: Vietnam | BC3: ROW | BD3: total
A4: Australia | B4: 0.00 | C4: 9.14 | D4: 67.58 | E4: 813.82 | F4: 24.63 | G4: 0.23 | H4: 0.00 | I4: 97.33 | J4: 34,478.58 | K4: 2,214.12 | L4: 0.00 | M4: 0.00 | N4: 0.28 | O4: 0.81 | P4: 0.00 | Q4: 13.92 | R4: 329.86 | S4: 1,018.02 | T4: 0.00 | U4: 0.10 | V4: 65.81 | W4: 93.21 | X4: 0.21 | Y4: 3.91 | Z4: 1,645.19 | AA4: 0.00 | AB4: 0.19 | AC4: 0.22 | AD4: 0.01 | AE4: 475.62 | AF4: 0.00 | AG4: 625.75 | AH4: 0.00 | AI4: 250.55 | AJ4: 3,261.33 | AK4: 0.08 | AL4: 54.48 | AM4: 44.00 | AN4: 0.42 | AO4: 0.00 | AP4: 117.50 | AQ4: 0.14 | AR4: 0.62 | AS4: 415.74 | AT4: 0.01 | AU4: 0.00 | AV4: 107.72 | AW4: 0.51 | AX4: 926.94 | AY4: 1.84 | AZ4: 213.10 | BA4: 6,507.75 | BB4: 2.93 | BC4: 6,264.26 | BD4: 60,148.46
A5: Austria | B5: 709.23 | C5: 0.00 | D5: 461.59 | E5: 325.28 | F5: 0.00 | G5: 102.17 | H5: 0.00 | I5: 36.82 | J5: 8,361.50 | K5: 613.45 | L5: 2,427.48 | M5: 333.44 | N5: 925.14 | O5: 331.93 | P5: 17.96 | Q5: 161.59 | R5: 2,341.21 | S5: 25,839.31 | T5: 159.76 | U5: 6,398.81 | V5: 79.93 | W5: 69.92 | X5: 9.55 | Y5: 16,916.05 | Z5: 196.52 | AA5: 0.00 | AB5: 24.58 | AC5: 5.17 | AD5: 39.33 | AE5: 3,371.86 | AF5: 0.00 | AG5: 166.97 | AH5: 0.00 | AI5: 1,746.04 | AJ5: 2.79 | AK5: 1,240.26 | AL5: 90.21 | AM5: 2.12 | AN5: 6,918.52 | AO5: 362.45 | AP5: 15.15 | AQ5: 43,581.47 | AR5: 638.61 | AS5: 526.69 | AT5: 1,145.47 | AU5: 25,818.72 | AV5: 33.64 | AW5: 2,567.69 | AX5: 8.45 | AY5: 1,392.02 | AZ5: 1,342.37 | BA5: 2,395.10 | BB5: 1.00 | BC5: 14,585.14 | BD5: 174,840.46
A6: Belgium | B6: 3.22 | C6: 492.78 | D6: 0.00 | E6: 4.72 | F6: 0.00 | G6: 1,302.62 | H6: 0.00 | I6: 42.42 | J6: 589.54 | K6: 14.20 | L6: 2.13 | M6: 2.67 | N6: 117.67 | O6: 2,326.49 | P6: 114.34 | Q6: 90.38 | R6: 145,881.36 | S6: 90,420.37 | T6: 29.15 | U6: 1,802.62 | V6: 32.28 | W6: 0.35 | X6: 48.01 | Y6: 1,480.20 | Z6: 1,767.11 | AA6: 0.00 | AB6: 2.73 | AC6: 9.69 | AD6: 4,925.56 | AE6: 8.38 | AF6: 2.73 | AG6: 4.40 | AH6: 0.00 | AI6: 34,880.07 | AJ6: 0.01 | AK6: 3.47 | AL6: 12.14 | AM6: 5.27 | AN6: 285.50 | AO6: 5,360.71 | AP6: 0.53 | AQ6: 1,076.43 | AR6: 98.68 | AS6: 50.80 | AT6: 32.70 | AU6: 207.66 | AV6: 599.40 | AW6: 516.26 | AX6: 1,546.97 | AY6: 11,114.48 | AZ6: 133,989.50 | BA6: 1,095.19 | BB6: 8.71 | BC6: 8,221.86 | BD6: 450,624.44
A7: Brazil | B7: 0.00 | C7: 0.00 | D7: 0.00 | E7: 0.00 | F7: 0.00 | G7: 0.00 | H7: 0.00 | I7: 0.05 | J7: 18.70 | K7: 0.00 | L7: 0.00 | M7: 0.00 | N7: 0.00 | O7: 0.00 | P7: 0.00 | Q7: 0.00 | R7: 0.02 | S7: 26.05 | T7: 0.00 | U7: 0.00 | V7: 0.00 | W7: 0.00 | X7: 0.00 | Y7: 0.00 | Z7: 0.01 | AA7: 0.00 | AB7: 0.00 | AC7: 0.00 | AD7: 0.00 | AE7: 0.00 | AF7: 0.00 | AG7: 3.55 | AH7: 0.00 | AI7: 0.00 | AJ7: 0.00 | AK7: 0.00 | AL7: 0.00 | AM7: 0.00 | AN7: 0.00 | AO7: 0.00 | AP7: 0.00 | AQ7: 0.00 | AR7: 0.00 | AS7: 0.00 | AT7: 0.00 | AU7: 0.00 | AV7: 5.35 | AW7: 0.00 | AX7: 0.00 | AY7: 0.00 | AZ7: 0.01 | BA7: 15.40 | BB7: 0.00 | BC7: 113.71 | BD7: 182.86
A8: Brunei | B8: 0.00 | C8: 0.00 | D8: 0.00 | E8: 0.00 | F8: 0.00 | G8: 0.00 | H8: 0.00 | I8: 0.00 | J8: 0.00 | K8: 0.00 | L8: 0.00 | M8: 0.00 | N8: 0.00 | O8: 0.00 | P8: 0.00 | Q8: 0.00 | R8: 0.00 | S8: 0.00 | T8: 0.00 | U8: 0.00 | V8: 0.00 | W8: 0.00 | X8: 0.00 | Y8: 0.00 | Z8: 0.00 | AA8: 0.00 | AB8: 0.00 | AC8: 0.00 | AD8: 0.00 | AE8: 0.00 | AF8: 0.00 | AG8: 0.00 | AH8: 0.00 | AI8: 0.00 | AJ8: 0.00 | AK8: 0.00 | AL8: 0.00 | AM8: 0.00 | AN8: 0.00 | AO8: 0.00 | AP8: 0.00 | AQ8: 0.00 | AR8: 0.00 | AS8: 0.00 | AT8: 0.00 | AU8: 0.00 | AV8: 0.00 | AW8: 0.00 | AX8: 0.00 | AY8: 0.00 | AZ8: 0.00 | BA8: 0.00 | BB8: 0.00 | BC8: 0.00 | BD8: 0.00
A9: Bulgaria | B9: 0.00 | C9: 13.02 | D9: 18.24 | E9: 4.36 | F9: 0.00 | G9: 0.00 | H9: 0.00 | I9: 0.81 | J9: 4.50 | K9: 0.01 | L9: 0.00 | M9: 70.24 | N9: 0.00 | O9: 0.00 | P9: 0.00 | Q9: 1.04 | R9: 12.47 | S9: 725.30 | T9: 3,086.81 | U9: 0.00 | V9: 1.82 | W9: 2.78 | X9: 0.00 | Y9: 10.13 | Z9: 0.14 | AA9: 0.00 | AB9: 0.00 | AC9: 0.00 | AD9: 0.00 | AE9: 0.00 | AF9: 0.00 | AG9: 0.51 | AH9: 0.00 | AI9: 0.01 | AJ9: 0.00 | AK9: 0.00 | AL9: 0.00 | AM9: 0.00 | AN9: 0.00 | AO9: 0.00 | AP9: 0.03 | AQ9: 1,972.62 | AR9: 0.00 | AS9: 3.17 | AT9: 0.00 | AU9: 0.00 | AV9: 0.05 | AW9: 31.48 | AX9: 1.60 | AY9: 0.00 | AZ9: 0.60 | BA9: 230.84 | BB9: 0.00 | BC9: 145.52 | BD9: 6,338.10
A10: Cambodia | B10: 0.00 | C10: 0.00 | D10: 0.00 | E10: 0.00 | F10: 0.00 | G10: 0.00 | H10: 0.00 | I10: 0.00 | J10: 0.00 | K10: 0.00 | L10: 0.00 | M10: 0.00 | N10: 0.00 | O10: 0.00 | P10: 0.00 | Q10: 0.00 | R10: 0.00 | S10: 0.00 | T10: 0.00 | U10: 0.00 | V10: 0.00 | W10: 0.00 | X10: 0.00 | Y10: 0.00 | Z10: 0.00 | AA10: 0.00 | AB10: 0.00 | AC10: 0.00 | AD10: 0.00 | AE10: 0.00 | AF10: 0.00 | AG10: 0.00 | AH10: 0.00 | AI10: 0.00 | AJ10: 0.00 | AK10: 0.00 | AL10: 0.00 | AM10: 0.00 | AN10: 0.00 | AO10: 0.00 | AP10: 0.00 | AQ10: 0.00 | AR10: 0.00 | AS10: 0.00 | AT10: 0.00 | AU10: 0.00 | AV10: 0.00 | AW10: 0.00 | AX10: 0.00 | AY10: 0.00 | AZ10: 0.00 | BA10: 0.00 | BB10: 0.00 | BC10: 0.00 | BD10: 0.00
A11: Canada | B11: 173.30 | C11: 1,443.36 | D11: 56.47 | E11: 3.56 | F11: 0.00 | G11: 0.00 | H11: 0.00 | I11: 0.00 | J11: 3,814.57 | K11: 4,799.38 | L11: 0.00 | M11: 0.00 | N11: 5.94 | O11: 0.00 | P11: 12.71 | Q11: 220.38 | R11: 804.04 | S11: 11,921.39 | T11: 0.00 | U11: 11.94 | V11: 38.94 | W11: 268.17 | X11: 23.79 | Y11: 1,364.47 | Z11: 1,505.77 | AA11: 0.00 | AB11: 0.00 | AC11: 0.27 | AD11: 0.00 | AE11: 35.65 | AF11: 0.00 | AG11: 33.37 | AH11: 0.00 | AI11: 1,220.24 | AJ11: 46.38 | AK11: 27.45 | AL11: 74.75 | AM11: 6,542.82 | AN11: 14.47 | AO11: 28.33 | AP11: 410.17 | AQ11: 93.71 | AR11: 0.04 | AS11: 1,514.08 | AT11: 0.00 | AU11: 0.00 | AV11: 25.82 | AW11: 1,861.67 | AX11: 20.64 | AY11: 942.37 | AZ11: 8,162.13 | BA11: 83,942.87 | BB11: 0.00 | BC11: 7,823.19 | BD11: 139,288.62
A12: China | B12: 657,345.69 | C12: 24,398.32 | D12: 248,175.86 | E12: 52,590.81 | F12: 130.88 | G12: 1,080.11 | H12: 1,181.71 | I12: 159,078.82 | J12: 0.00 | K12: 731,521.94 | L12: 5,624.08 | M12: 2,852.07 | N12: 3,007.80 | O12: 9,018.21 | P12: 991.77 | Q12: 3,300.44 | R12: 209,382.70 | S12: 405,225.84 | T12: 25,640.64 | U12: 24,280.04 | V12: 818,215.46 | W12: 9,051.09 | X12: 2,028.09 | Y12: 125,346.71 | Z12: 7,640,711.38 | AA12: 1.36 | AB12: 331.08 | AC12: 5,195.57 | AD12: 258.58 | AE12: 74,644.16 | AF12: 4,052.80 | AG12: 41,169.65 | AH12: 19,335.54 | AI12: 1,715,725.33 | AJ12: 16,694.21 | AK12: 884.38 | AL12: 404,422.45 | AM12: 437,251.60 | AN12: 10,965.45 | AO12: 7,908.10 | AP12: 709,603.66 | AQ12: 22,159.96 | AR12: 42,658.46 | AS12: 112,487.96 | AT12: 1,692.75 | AU12: 1,256.70 | AV12: 40,345.69 | AW12: 13,939.51 | AX12: 90,660.29 | AY12: 159,971.91 | AZ12: 1,414,791.95 | BA12: 3,484,359.47 | BB12: 401,244.24 | BC12: 2,364,246.23 | BD12: 22,758,439.57
A13: Hong Kong | B13: 0.00 | C13: 0.00 | D13: 0.00 | E13: 0.00 | F13: 0.00 | G13: 0.00 | H13: 0.00 | I13: 0.00 | J13: 427.06 | K13: 0.00 | L13: 0.00 | M13: 0.00 | N13: 0.00 | O13: 0.00 | P13: 0.00 | Q13: 0.00 | R13: 0.00 | S13: 0.00 | T13: 0.00 | U13: 0.00 | V13: 0.00 | W13: 0.00 | X13: 0.00 | Y13: 0.00 | Z13: 0.00 | AA13: 0.00 | AB13: 0.00 | AC13: 0.00 | AD13: 0.00 | AE13: 0.00 | AF13: 0.00 | AG13: 0.00 | AH13: 0.00 | AI13: 0.00 | AJ13: 0.00 | AK13: 0.00 | AL13: 0.00 | AM13: 0.00 | AN13: 0.00 | AO13: 0.00 | AP13: 0.00 | AQ13: 0.00 | AR13: 0.00 | AS13: 0.00 | AT13: 0.00 | AU13: 0.00 | AV13: 0.00 | AW13: 0.00 | AX13: 0.00 | AY13: 0.00 | AZ13: 0.00 | BA13: 1.41 | BB13: 0.00 | BC13: 0.00 | BD13: 428.46
A14: Croatia | B14: 0.00 | C14: 11.54 | D14: 0.12 | E14: 0.00 | F14: 0.00 | G14: 0.00 | H14: 0.00 | I14: 0.00 | J14: 0.81 | K14: 0.04 | L14: 0.00 | M14: 0.00 | N14: 0.01 | O14: 244.33 | P14: 0.00 | Q14: 0.03 | R14: 8,092.51 | S14: 7,928.85 | T14: 0.00 | U14: 124.35 | V14: 9.28 | W14: 0.00 | X14: 0.25 | Y14: 5,877.72 | Z14: 0.00 | AA14: 0.00 | AB14: 0.00 | AC14: 0.00 | AD14: 0.00 | AE14: 0.00 | AF14: 0.00 | AG14: 0.00 | AH14: 0.00 | AI14: 2,406.87 | AJ14: 0.00 | AK14: 0.49 | AL14: 0.05 | AM14: 0.00 | AN14: 7.05 | AO14: 0.12 | AP14: 0.00 | AQ14: 0.00 | AR14: 0.00 | AS14: 0.00 | AT14: 7.24 | AU14: 15.69 | AV14: 272.93 | AW14: 0.00 | AX14: 0.00 | AY14: 0.00 | AZ14: 2,494.20 | BA14: 0.18 | BB14: 0.00 | BC14: 282.65 | BD14: 27,777.32
A15: Cyprus | B15: 0.00 | C15: 0.00 | D15: 0.00 | E15: 0.00 | F15: 0.00 | G15: 0.00 | H15: 0.00 | I15: 0.00 | J15: 0.00 | K15: 0.00 | L15: 0.00 | M15: 0.00 | N15: 0.00 | O15: 0.00 | P15: 0.00 | Q15: 0.00 | R15: 0.00 | S15: 0.00 | T15: 6.68 | U15: 0.00 | V15: 0.00 | W15: 0.00 | X15: 0.00 | Y15: 0.00 | Z15: 0.00 | AA15: 0.00 | AB15: 0.00 | AC15: 0.00 | AD15: 0.00 | AE15: 0.00 | AF15: 0.00 | AG15: 0.00 | AH15: 0.00 | AI15: 0.01 | AJ15: 0.00 | AK15: 0.00 | AL15: 0.00 | AM15: 0.00 | AN15: 0.00 | AO15: 0.00 | AP15: 0.00 | AQ15: 0.00 | AR15: 0.00 | AS15: 0.00 | AT15: 0.00 | AU15: 0.00 | AV15: 0.00 | AW15: 0.00 | AX15: 0.00 | AY15: 0.00 | AZ15: 0.00 | BA15: 0.00 | BB15: 0.00 | BC15: 0.00 | BD15: 6.69
A16: Czechia | B16: 53.70 | C16: 2,856.38 | D16: 420.41 | E16: 0.64 | F16: 0.00 | G16: 361.04 | H16: 0.00 | I16: 13.46 | J16: 5,622.01 | K16: 4.36 | L16: 187.87 | M16: 113.98 | N16: 0.00 | O16: 1,943.56 | P16: 125.52 | Q16: 185.26 | R16: 43,774.36 | S16: 76,569.12 | T16: 18.74 | U16: 8,232.53 | V16: 37.82 | W16: 0.00 | X16: 1,217.67 | Y16: 23,220.38 | Z16: 41,441.92 | AA16: 0.00 | AB16: 30.61 | AC16: 40.49 | AD16: 108.71 | AE16: 1.00 | AF16: 3,654.47 | AG16: 6.49 | AH16: 0.00 | AI16: 6,350.69 | AJ16: 0.01 | AK16: 38.58 | AL16: 310.71 | AM16: 0.01 | AN16: 40,104.98 | AO16: 1,849.42 | AP16: 17.27 | AQ16: 2,210.36 | AR16: 186.29 | AS16: 838.87 | AT16: 60,905.83 | AU16: 337.82 | AV16: 139.57 | AW16: 193.20 | AX16: 18.77 | AY16: 6,707.37 | AZ16: 5,694.75 | BA16: 2,652.51 | BB16: 0.01 | BC16: 3,329.43 | BD16: 342,128.94
A17: Denmark | B17: 216.57 | C17: 1,405.61 | D17: 20.96 | E17: 19.66 | F17: 0.00 | G17: 0.53 | H17: 0.00 | I17: 66.59 | J17: 18,350.65 | K17: 1,367.73 | L17: 0.06 | M17: 0.00 | N17: 963.01 | O17: 0.00 | P17: 136.94 | Q17: 418.56 | R17: 404.04 | S17: 12,521.04 | T17: 5.33 | U17: 106.06 | V17: 32.36 | W17: 1.18 | X17: 9.05 | Y17: 683.48 | Z17: 544.23 | AA17: 0.00 | AB17: 17.20 | AC17: 63.29 | AD17: 0.07 | AE17: 14.81 | AF17: 0.16 | AG17: 25.25 | AH17: 0.00 | AI17: 2,602.85 | AJ17: 18.27 | AK17: 755.31 | AL17: 19.08 | AM17: 26.63 | AN17: 654.16 | AO17: 13.91 | AP17: 167.06 | AQ17: 0.10 | AR17: 1.62 | AS17: 53.98 | AT17: 7.00 | AU17: 0.13 | AV17: 578.74 | AW17: 1,009.59 | AX17: 210.96 | AY17: 36.86 | AZ17: 1,513.20 | BA17: 4,608.84 | BB17: 1.81 | BC17: 3,473.26 | BD17: 53,147.79
A18: Estonia | B18: 0.00 | C18: 90.14 | D18: 0.00 | E18: 1.43 | F18: 0.00 | G18: 0.00 | H18: 0.00 | I18: 0.14 | J18: 16.11 | K18: 0.00 | L18: 0.00 | M18: 0.00 | N18: 0.00 | O18: 1.70 | P18: 0.00 | Q18: 768.01 | R18: 0.01 | S18: 685.61 | T18: 0.00 | U18: 4.27 | V18: 0.42 | W18: 0.00 | X18: 0.00 | Y18: 3.46 | Z18: 20.67 | AA18: 0.00 | AB18: 334.83 | AC18: 39.69 | AD18: 0.00 | AE18: 0.36 | AF18: 0.15 | AG18: 0.01 | AH18: 0.00 | AI18: 33.10 | AJ18: 0.00 | AK18: 0.00 | AL18: 0.00 | AM18: 0.00 | AN18: 0.00 | AO18: 0.00 | AP18: 0.00 | AQ18: 0.00 | AR18: 256.50 | AS18: 0.00 | AT18: 20.25 | AU18: 0.00 | AV18: 0.00 | AW18: 168.58 | AX18: 0.00 | AY18: 0.00 | AZ18: 0.00 | BA18: 3.32 | BB18: 12.61 | BC18: 303.28 | BD18: 2,764.66
A19: Finland | B19: 28.71 | C19: 85.28 | D19: 10.76 | E19: 21.34 | F19: 0.00 | G19: 0.00 | H19: 0.00 | I19: 378.43 | J19: 286.59 | K19: 8.52 | L19: 48.65 | M19: 0.00 | N19: 0.01 | O19: 7.45 | P19: 498.73 | Q19: 0.00 | R19: 269.19 | S19: 274.28 | T19: 0.04 | U19: 0.47 | V19: 12.91 | W19: 0.23 | X19: 0.00 | Y19: 19.48 | Z19: 28.96 | AA19: 0.00 | AB19: 39.74 | AC19: 115.24 | AD19: 0.03 | AE19: 0.57 | AF19: 0.00 | AG19: 114.61 | AH19: 0.00 | AI19: 31.54 | AJ19: 2.89 | AK19: 83.47 | AL19: 11.23 | AM19: 4.73 | AN19: 57.99 | AO19: 0.02 | AP19: 41.83 | AQ19: 1.19 | AR19: 1,144.98 | AS19: 231.12 | AT19: 3.89 | AU19: 0.00 | AV19: 10.20 | AW19: 26.65 | AX19: 6.76 | AY19: 50.27 | AZ19: 21.38 | BA19: 686.01 | BB19: 0.01 | BC19: 1,823.47 | BD19: 6,489.87
A20: France | B20: 113.60 | C20: 498.02 | D20: 8,944.52 | E20: 953.30 | F20: 68.22 | G20: 15.86 | H20: 0.06 | I20: 6,882.81 | J20: 191,147.73 | K20: 4,840.33 | L20: 1,352.21 | M20: 1.81 | N20: 500.94 | O20: 2,885.13 | P20: 33.29 | Q20: 3,237.83 | R20: 0.00 | S20: 3,098.42 | T20: 83.15 | U20: 1,243.18 | V20: 4,667.61 | W20: 170.58 | X20: 635.56 | Y20: 36,479.83 | Z20: 11,488.53 | AA20: 0.00 | AB20: 24.80 | AC20: 42.49 | AD20: 3,417.36 | AE20: 27.82 | AF20: 154.20 | AG20: 219.42 | AH20: 0.00 | AI20: 102,017.19 | AJ20: 10.94 | AK20: 13.37 | AL20: 537.77 | AM20: 157.74 | AN20: 2,090.93 | AO20: 1,886.42 | AP20: 13,381.82 | AQ20: 1,080.47 | AR20: 37,892.62 | AS20: 17,084.58 | AT20: 208.10 | AU20: 31.10 | AV20: 2,773.12 | AW20: 21,578.84 | AX20: 161.01 | AY20: 7,236.66 | AZ20: 25,052.04 | BA20: 28,608.31 | BB20: 38.24 | BC20: 119,016.85 | BD20: 664,086.73
A21: Germany | B21: 25,659.82 | C21: 107,502.65 | D21: 46,273.46 | E21: 2,612.38 | F21: 0.35 | G21: 1,944.84 | H21: 0.01 | I21: 2,462.86 | J21: 222,289.43 | K21: 13,399.88 | L21: 3,731.90 | M21: 9,140.77 | N21: 33,594.48 | O21: 31,031.10 | P21: 5,146.22 | Q21: 8,905.24 | R21: 528,631.72 | S21: 0.00 | T21: 7,322.27 | U21: 48,035.74 | V21: 8,716.97 | W21: 888.42 | X21: 10,918.57 | Y21: 214,500.44 | Z21: 269,929.64 | AA21: 36.48 | AB21: 1,122.11 | AC21: 3,200.04 | AD21: 17,138.53 | AE21: 13,778.13 | AF21: 5,647.53 | AG21: 8,341.78 | AH21: 30.25 | AI21: 230,242.94 | AJ21: 1,014.32 | AK21: 3,728.91 | AL21: 31,449.26 | AM21: 12,468.16 | AN21: 246,306.37 | AO21: 18,534.81 | AP21: 5,133.58 | AQ21: 25,747.31 | AR21: 11,195.30 | AS21: 5,344.32 | AT21: 12,053.72 | AU21: 3,360.29 | AV21: 55,188.14 | AW21: 36,106.68 | AX21: 22,974.65 | AY21: 31,317.89 | AZ21: 621,148.44 | BA21: 291,122.94 | BB21: 367.62 | BC21: 242,510.60 | BD21: 3,559,250.26
A22: Greece | B22: 0.00 | C22: 0.00 | D22: 665.81 | E22: 0.00 | F22: 0.00 | G22: 8,876.20 | H22: 0.00 | I22: 0.03 | J22: 0.92 | K22: 0.00 | L22: 85.17 | M22: 7,584.64 | N22: 8.29 | O22: 496.95 | P22: 0.00 | Q22: 83.07 | R22: 76.70 | S22: 6,095.27 | T22: 0.00 | U22: 3,051.50 | V22: 6.88 | W22: 0.00 | X22: 0.00 | Y22: 294.68 | Z22: 0.00 | AA22: 0.00 | AB22: 0.00 | AC22: 0.00 | AD22: 0.00 | AE22: 0.00 | AF22: 1,022.18 | AG22: 0.02 | AH22: 0.00 | AI22: 1,933.10 | AJ22: 0.00 | AK22: 0.00 | AL22: 0.00 | AM22: 0.00 | AN22: 2,349.24 | AO22: 198.64 | AP22: 1,223.86 | AQ22: 26,469.35 | AR22: 0.00 | AS22: 0.00 | AT22: 66.86 | AU22: 0.00 | AV22: 426.33 | AW22: 45.31 | AX22: 0.00 | AY22: 0.04 | AZ22: 1,244.86 | BA22: 7.89 | BB22: 0.00 | BC22: 670.30 | BD22: 62,984.11
A23: Hungary | B23: 0.24 | C23: 199.51 | D23: 5.33 | E23: 1.52 | F23: 0.00 | G23: 48.56 | H23: 0.00 | I23: 10.26 | J23: 686.95 | K23: 33.43 | L23: 0.91 | M23: 0.00 | N23: 31.60 | O23: 5.62 | P23: 0.00 | Q23: 3.68 | R23: 444.29 | S23: 9,922.25 | T23: 1.22 | U23: 0.00 | V23: 25.94 | W23: 0.03 | X23: 0.62 | Y23: 32.34 | Z23: 10.10 | AA23: 0.00 | AB23: 0.00 | AC23: 0.00 | AD23: 0.00 | AE23: 21.78 | AF23: 0.00 | AG23: 63.15 | AH23: 0.00 | AI23: 454.26 | AJ23: 0.01 | AK23: 8.07 | AL23: 0.53 | AM23: 2.56 | AN23: 493.61 | AO23: 0.23 | AP23: 14.80 | AQ23: 507.24 | AR23: 25.63 | AS23: 6.06 | AT23: 1,089.23 | AU23: 29.08 | AV23: 8.50 | AW23: 88.59 | AX23: 12.63 | AY23: 112.24 | AZ23: 3,180.60 | BA23: 1,940.76 | BB23: 0.04 | BC23: 315.53 | BD23: 19,839.56
A24: India | B24: 352.71 | C24: 0.78 | D24: 12,496.88 | E24: 24.04 | F24: 0.00 | G24: 358.20 | H24: 0.01 | I24: 1,301.90 | J24: 45,564.79 | K24: 3,024.03 | L24: 762.46 | M24: 0.00 | N24: 560.60 | O24: 374.57 | P24: 0.00 | Q24: 3.32 | R24: 224.40 | S24: 12,086.49 | T24: 1,929.48 | U24: 31.26 | V24: 0.00 | W24: 407.21 | X24: 187.02 | Y24: 6,259.44 | Z24: 18,228.88 | AA24: 0.00 | AB24: 0.53 | AC24: 0.30 | AD24: 0.08 | AE24: 274.28 | AF24: 140.04 | AG24: 235.72 | AH24: 62.24 | AI24: 10,146.80 | AJ24: 0.69 | AK24: 0.10 | AL24: 97.37 | AM24: 41.77 | AN24: 0.94 | AO24: 0.06 | AP24: 155.23 | AQ24: 1,229.46 | AR24: 1.20 | AS24: 52.01 | AT24: 0.15 | AU24: 1,882.81 | AV24: 2,729.97 | AW24: 1.84 | AX24: 43.65 | AY24: 80.30 | AZ24: 72,112.88 | BA24: 94,743.36 | BB24: 50.67 | BC24: 16,106.61 | BD24: 304,369.55
A25: Indonesia | B25: 1,377.78 | C25: 0.00 | D25: 0.00 | E25: 0.00 | F25: 0.00 | G25: 0.00 | H25: 0.00 | I25: 0.01 | J25: 0.00 | K25: 0.00 | L25: 0.00 | M25: 0.00 | N25: 0.00 | O25: 0.00 | P25: 0.00 | Q25: 0.00 | R25: 0.08 | S25: 42.76 | T25: 0.00 | U25: 0.00 | V25: 0.00 | W25: 0.00 | X25: 0.00 | Y25: 0.00 | Z25: 371.19 | AA25: 0.00 | AB25: 0.00 | AC25: 0.00 | AD25: 0.00 | AE25: 0.00 | AF25: 0.00 | AG25: 0.00 | AH25: 0.00 | AI25: 58.63 | AJ25: 0.00 | AK25: 0.00 | AL25: 0.00 | AM25: 0.00 | AN25: 0.00 | AO25: 0.00 | AP25: 0.00 | AQ25: 0.00 | AR25: 0.00 | AS25: 3,533.92 | AT25: 0.00 | AU25: 0.00 | AV25: 176.69 | AW25: 0.00 | AX25: 0.00 | AY25: 0.00 | AZ25: 0.00 | BA25: 1.96 | BB25: 0.00 | BC25: 78.41 | BD25: 5,641.43
A26: Ireland | B26: 48.59 | C26: 0.06 | D26: 0.11 | E26: 5.97 | F26: 0.00 | G26: 0.03 | H26: 0.00 | I26: 30.82 | J26: 4,868.64 | K26: 279.40 | L26: 0.00 | M26: 0.00 | N26: 0.04 | O26: 0.10 | P26: 0.00 | Q26: 0.21 | R26: 11.49 | S26: 518.34 | T26: 0.00 | U26: 0.02 | V26: 4.51 | W26: 0.24 | X26: 0.00 | Y26: 5,239.97 | Z26: 63.06 | AA26: 0.00 | AB26: 0.03 | AC26: 0.03 | AD26: 0.00 | AE26: 3.54 | AF26: 0.00 | AG26: 19.13 | AH26: 0.00 | AI26: 7.06 | AJ26: 0.95 | AK26: 0.02 | AL26: 124.58 | AM26: 0.97 | AN26: 0.09 | AO26: 0.01 | AP26: 106.31 | AQ26: 0.02 | AR26: 225.73 | AS26: 7.93 | AT26: 0.01 | AU26: 0.01 | AV26: 1.34 | AW26: 0.12 | AX26: 2.59 | AY26: 0.49 | AZ26: 84.18 | BA26: 5,321.02 | BB26: 0.37 | BC26: 393.79 | BD26: 17,371.93
A27: Italy | B27: 521.99 | C27: 7,080.93 | D27: 2,024.88 | E27: 2,650.13 | F27: 0.00 | G27: 1,084.91 | H27: 0.00 | I27: 182.74 | J27: 11,893.65 | K27: 638.53 | L27: 4,147.89 | M27: 1,966.79 | N27: 1,088.98 | O27: 319.50 | P27: 403.73 | Q27: 275.05 | R27: 12,446.47 | S27: 296.72 | T27: 472.81 | U27: 2,470.65 | V27: 1,022.25 | W27: 56.40 | X27: 289.44 | Y27: 0.00 | Z27: 702.29 | AA27: 0.00 | AB27: 28.88 | AC27: 29.73 | AD27: 64.37 | AE27: 32,003.92 | AF27: 2,731.95 | AG27: 191.22 | AH27: 15.23 | AI27: 5,532.59 | AJ27: 108.93 | AK27: 229.73 | AL27: 240.43 | AM27: 0.00 | AN27: 4,876.25 | AO27: 1,579.25 | AP27: 416.41 | AQ27: 30,146.36 | AR27: 3,946.60 | AS27: 38.57 | AT27: 2,139.23 | AU27: 396.97 | AV27: 5,157.16 | AW27: 970.98 | AX27: 38,614.39 | AY27: 926.29 | AZ27: 11,398.89 | BA27: 3,350.10 | BB27: 0.00 | BC27: 79,359.47 | BD27: 276,530.63
A28: Japan | B28: 20.08 | C28: 2.32 | D28: 117.54 | E28: 24.79 | F28: 0.00 | G28: 1.28 | H28: 98.09 | I28: 120.53 | J28: 840,391.13 | K28: 12,695.94 | L28: 3.04 | M28: 0.00 | N28: 55.06 | O28: 4.54 | P28: 0.00 | Q28: 75.57 | R28: 102.31 | S28: 1,065.72 | T28: 0.00 | U28: 31.41 | V28: 478.20 | W28: 115,912.05 | X28: 87.81 | Y28: 19.07 | Z28: 0.00 | AA28: 0.00 | AB28: 0.98 | AC28: 1.25 | AD28: 0.00 | AE28: 75,378.07 | AF28: 0.00 | AG28: 1,482.23 | AH28: 0.00 | AI28: 84.72 | AJ28: 1.07 | AK28: 0.42 | AL28: 206,096.05 | AM28: 6,357.46 | AN28: 2.20 | AO28: 0.00 | AP28: 43,229.22 | AQ28: 0.79 | AR28: 3.35 | AS28: 49,704.38 | AT28: 0.03 | AU28: 0.00 | AV28: 9.62 | AW28: 13.80 | AX28: 173,323.82 | AY28: 455.62 | AZ28: 604.95 | BA28: 21,128.56 | BB28: 7,300.88 | BC28: 3,228.25 | BD28: 1,559,714.21
A29: Lao PDR | B29: 0.00 | C29: 0.00 | D29: 0.00 | E29: 0.00 | F29: 0.00 | G29: 0.00 | H29: 0.00 | I29: 0.00 | J29: 0.00 | K29: 0.00 | L29: 0.00 | M29: 0.00 | N29: 0.00 | O29: 0.00 | P29: 0.00 | Q29: 0.00 | R29: 0.00 | S29: 0.00 | T29: 0.00 | U29: 0.00 | V29: 0.00 | W29: 0.00 | X29: 0.00 | Y29: 0.00 | Z29: 0.00 | AA29: 0.00 | AB29: 0.00 | AC29: 0.00 | AD29: 0.00 | AE29: 0.00 | AF29: 0.00 | AG29: 0.00 | AH29: 0.00 | AI29: 0.00 | AJ29: 0.00 | AK29: 0.00 | AL29: 0.00 | AM29: 0.00 | AN29: 0.00 | AO29: 0.00 | AP29: 0.00 | AQ29: 0.00 | AR29: 0.00 | AS29: 0.00 | AT29: 0.00 | AU29: 0.00 | AV29: 0.00 | AW29: 0.00 | AX29: 0.00 | AY29: 0.00 | AZ29: 0.00 | BA29: 0.00 | BB29: 0.00 | BC29: 0.00 | BD29: 0.00
A30: Latvia | B30: 0.00 | C30: 0.00 | D30: 0.00 | E30: 3.09 | F30: 0.00 | G30: 0.03 | H30: 0.00 | I30: 0.00 | J30: 0.00 | K30: 0.00 | L30: 0.00 | M30: 0.00 | N30: 0.00 | O30: 0.00 | P30: 14.44 | Q30: 0.00 | R30: 0.00 | S30: 0.00 | T30: 0.00 | U30: 0.00 | V30: 0.00 | W30: 0.00 | X30: 0.00 | Y30: 0.00 | Z30: 0.00 | AA30: 0.00 | AB30: 0.00 | AC30: 35.68 | AD30: 0.00 | AE30: 0.00 | AF30: 0.00 | AG30: 0.00 | AH30: 0.00 | AI30: 0.01 | AJ30: 0.00 | AK30: 0.39 | AL30: 0.00 | AM30: 0.00 | AN30: 0.01 | AO30: 0.00 | AP30: 0.00 | AQ30: 0.00 | AR30: 151.15 | AS30: 0.00 | AT30: 3.02 | AU30: 0.00 | AV30: 0.00 | AW30: 3.02 | AX30: 0.00 | AY30: 34.21 | AZ30: 0.00 | BA30: 1.24 | BB30: 0.00 | BC30: 79.09 | BD30: 325.39
A31: Lithuania | B31: 0.61 | C31: 0.02 | D31: 308.01 | E31: 0.14 | F31: 0.00 | G31: 0.01 | H31: 0.00 | I31: 108.32 | J31: 964.62 | K31: 71.38 | L31: 0.00 | M31: 0.00 | N31: 0.02 | O31: 0.03 | P31: 12.67 | Q31: 4.75 | R31: 1.74 | S31: 5,280.07 | T31: 0.00 | U31: 0.00 | V31: 43.37 | W31: 0.07 | X31: 0.01 | Y31: 1,688.48 | Z31: 4.85 | AA31: 0.00 | AB31: 2.63 | AC31: 0.00 | AD31: 0.01 | AE31: 2,449.97 | AF31: 0.00 | AG31: 2.22 | AH31: 0.00 | AI31: 1.29 | AJ31: 0.01 | AK31: 172.57 | AL31: 6.74 | AM31: 93.63 | AN31: 313.52 | AO31: 0.01 | AP31: 1.59 | AQ31: 0.00 | AR31: 261.99 | AS31: 0.85 | AT31: 0.01 | AU31: 9.27 | AV31: 10.16 | AW31: 1.71 | AX31: 0.66 | AY31: 7.86 | AZ31: 1.47 | BA31: 97.80 | BB31: 0.09 | BC31: 3,042.16 | BD31: 14,967.37
A32: Luxembourg | B32: 4.52 | C32: 1,083.85 | D32: 22,478.32 | E32: 0.00 | F32: 0.00 | G32: 443.90 | H32: 0.00 | I32: 11.65 | J32: 8.04 | K32: 0.00 | L32: 0.00 | M32: 0.00 | N32: 6.29 | O32: 0.00 | P32: 0.00 | Q32: 0.00 | R32: 3,470.54 | S32: 6,320.65 | T32: 0.99 | U32: 0.56 | V32: 2.84 | W32: 0.51 | X32: 8.34 | Y32: 194.17 | Z32: 0.00 | AA32: 0.00 | AB32: 0.00 | AC32: 6.93 | AD32: 0.00 | AE32: 0.00 | AF32: 0.00 | AG32: 0.00 | AH32: 0.00 | AI32: 1,720.21 | AJ32: 0.00 | AK32: 0.00 | AL32: 0.00 | AM32: 0.00 | AN32: 0.90 | AO32: 7.50 | AP32: 0.00 | AQ32: 0.00 | AR32: 0.00 | AS32: 1.89 | AT32: 0.00 | AU32: 0.00 | AV32: 0.84 | AW32: 2.47 | AX32: 0.00 | AY32: 0.00 | AZ32: 42.49 | BA32: 0.00 | BB32: 0.00 | BC32: 297.64 | BD32: 36,116.05
A33: Malaysia | B33: 0.00 | C33: 0.00 | D33: 0.00 | E33: 0.00 | F33: 0.00 | G33: 0.00 | H33: 0.00 | I33: 0.00 | J33: 0.00 | K33: 0.00 | L33: 0.00 | M33: 0.00 | N33: 0.00 | O33: 0.00 | P33: 0.00 | Q33: 0.00 | R33: 0.00 | S33: 0.00 | T33: 0.00 | U33: 0.00 | V33: 0.00 | W33: 76.84 | X33: 0.00 | Y33: 0.00 | Z33: 0.00 | AA33: 0.00 | AB33: 0.00 | AC33: 0.00 | AD33: 0.00 | AE33: 0.00 | AF33: 0.00 | AG33: 0.00 | AH33: 0.00 | AI33: 0.00 | AJ33: 0.00 | AK33: 0.00 | AL33: 0.00 | AM33: 0.00 | AN33: 0.00 | AO33: 0.00 | AP33: 0.00 | AQ33: 0.00 | AR33: 0.00 | AS33: 499.68 | AT33: 0.00 | AU33: 0.00 | AV33: 0.00 | AW33: 0.00 | AX33: 73.35 | AY33: 0.00 | AZ33: 0.00 | BA33: 0.00 | BB33: 539.37 | BC33: 0.00 | BD33: 1,189.24
A34: Malta | B34: 0.20 | C34: 0.14 | D34: 0.00 | E34: 0.00 | F34: 0.00 | G34: 0.00 | H34: 0.00 | I34: 0.27 | J34: 8.12 | K34: 0.49 | L34: 0.00 | M34: 0.00 | N34: 0.00 | O34: 0.00 | P34: 0.00 | Q34: 0.00 | R34: 0.00 | S34: 3.63 | T34: 0.00 | U34: 0.00 | V34: 0.14 | W34: 0.00 | X34: 0.00 | Y34: 2.14 | Z34: 0.03 | AA34: 0.00 | AB34: 0.00 | AC34: 0.00 | AD34: 0.00 | AE34: 0.00 | AF34: 0.00 | AG34: 0.01 | AH34: 0.00 | AI34: 0.02 | AJ34: 0.00 | AK34: 0.00 | AL34: 0.01 | AM34: 0.00 | AN34: 0.58 | AO34: 0.00 | AP34: 53.68 | AQ34: 0.00 | AR34: 0.00 | AS34: 0.01 | AT34: 0.00 | AU34: 0.00 | AV34: 0.00 | AW34: 1.98 | AX34: 0.00 | AY34: 0.00 | AZ34: 0.01 | BA34: 0.44 | BB34: 0.00 | BC34: 6.60 | BD34: 78.52
A35: Mexico | B35: 0.70 | C35: 0.12 | D35: 0.41 | E35: 10.46 | F35: 0.00 | G35: 0.00 | H35: 0.00 | I35: 193.16 | J35: 2,105.30 | K35: 1.79 | L35: 0.00 | M35: 0.00 | N35: 0.00 | O35: 0.00 | P35: 0.00 | Q35: 0.01 | R35: 69.39 | S35: 1,476.73 | T35: 0.00 | U35: 0.00 | V35: 0.48 | W35: 0.00 | X35: 0.00 | Y35: 247.30 | Z35: 40.36 | AA35: 0.00 | AB35: 0.00 | AC35: 0.00 | AD35: 0.00 | AE35: 6.46 | AF35: 0.00 | AG35: 0.00 | AH35: 0.00 | AI35: 1.31 | AJ35: 0.25 | AK35: 0.00 | AL35: 0.54 | AM35: 611.43 | AN35: 0.01 | AO35: 0.00 | AP35: 5.80 | AQ35: 0.00 | AR35: 0.00 | AS35: 1.04 | AT35: 0.08 | AU35: 0.00 | AV35: 11.66 | AW35: 0.61 | AX35: 0.00 | AY35: 0.00 | AZ35: 34.65 | BA35: 52,030.05 | BB35: 0.00 | BC35: 569.92 | BD35: 57,420.01
A36: Myanmar | B36: 0.00 | C36: 0.00 | D36: 0.00 | E36: 0.00 | F36: 0.00 | G36: 0.00 | H36: 0.00 | I36: 0.00 | J36: 0.00 | K36: 0.00 | L36: 0.00 | M36: 0.00 | N36: 0.00 | O36: 0.00 | P36: 0.00 | Q36: 0.00 | R36: 0.00 | S36: 0.00 | T36: 0.00 | U36: 0.00 | V36: 0.00 | W36: 0.00 | X36: 0.00 | Y36: 0.00 | Z36: 0.00 | AA36: 0.00 | AB36: 0.00 | AC36: 0.00 | AD36: 0.00 | AE36: 0.00 | AF36: 0.00 | AG36: 0.00 | AH36: 0.00 | AI36: 0.00 | AJ36: 0.00 | AK36: 0.00 | AL36: 0.00 | AM36: 0.00 | AN36: 0.00 | AO36: 0.00 | AP36: 0.00 | AQ36: 0.00 | AR36: 0.00 | AS36: 0.00 | AT36: 0.00 | AU36: 0.00 | AV36: 0.00 | AW36: 0.00 | AX36: 0.00 | AY36: 0.00 | AZ36: 0.00 | BA36: 0.00 | BB36: 0.00 | BC36: 0.00 | BD36: 0.00
A37: Netherlands | B37: 445.72 | C37: 32,389.17 | D37: 71,458.81 | E37: 781.17 | F37: 4.52 | G37: 5,214.58 | H37: 0.03 | I37: 4,052.75 | J37: 53,855.93 | K37: 3,601.80 | L37: 371.10 | M37: 7,703.10 | N37: 6,573.56 | O37: 24,252.44 | P37: 1,560.67 | Q37: 1,214.08 | R37: 129,071.88 | S37: 1,076,407.89 | T37: 13,121.08 | U37: 14,673.69 | V37: 54.66 | W37: 849.54 | X37: 1,694.19 | Y37: 58,932.97 | Z37: 909.44 | AA37: 0.00 | AB37: 2,070.73 | AC37: 3,232.48 | AD37: 9,644.48 | AE37: 248.10 | AF37: 5,248.54 | AG37: 316.54 | AH37: 0.00 | AI37: 0.00 | AJ37: 3.99 | AK37: 531.21 | AL37: 1,874.44 | AM37: 24.80 | AN37: 13,258.90 | AO37: 4,404.05 | AP37: 278.74 | AQ37: 64,624.95 | AR37: 1,380.60 | AS37: 464.42 | AT37: 7,320.53 | AU37: 762.70 | AV37: 40,170.99 | AW37: 8,791.29 | AX37: 602.64 | AY37: 2,194.93 | AZ37: 517,455.80 | BA37: 10,365.65 | BB37: 37.82 | BC37: 39,951.82 | BD37: 2,244,455.92
A38: New Zealand | B38: 229.58 | C38: 0.00 | D38: 0.00 | E38: 0.00 | F38: 0.00 | G38: 0.00 | H38: 0.00 | I38: 5.49 | J38: 0.00 | K38: 2.02 | L38: 0.00 | M38: 0.00 | N38: 0.00 | O38: 0.00 | P38: 0.00 | Q38: 0.00 | R38: 0.00 | S38: 0.42 | T38: 0.00 | U38: 0.00 | V38: 0.00 | W38: 0.00 | X38: 0.60 | Y38: 0.00 | Z38: 4.58 | AA38: 0.91 | AB38: 0.00 | AC38: 0.00 | AD38: 0.00 | AE38: 1.11 | AF38: 0.00 | AG38: 0.00 | AH38: 0.00 | AI38: 4.69 | AJ38: 0.00 | AK38: 0.00 | AL38: 0.33 | AM38: 4.00 | AN38: 0.00 | AO38: 0.00 | AP38: 0.00 | AQ38: 0.10 | AR38: 0.00 | AS38: 13.93 | AT38: 0.00 | AU38: 0.00 | AV38: 1.99 | AW38: 0.00 | AX38: 33.28 | AY38: 0.00 | AZ38: 0.12 | BA38: 36.41 | BB38: 0.00 | BC38: 1,053.05 | BD38: 1,392.62
A39: Norway | B39: 3.85 | C39: 0.08 | D39: 0.09 | E39: 0.73 | F39: 0.00 | G39: 0.05 | H39: 0.00 | I39: 1.03 | J39: 5,830.88 | K39: 440.02 | L39: 0.00 | M39: 16.01 | N39: 0.06 | O39: 0.16 | P39: 1.09 | Q39: 4.48 | R39: 2.54 | S39: 25.47 | T39: 0.04 | U39: 1.25 | V39: 1.51 | W39: 0.38 | X39: 0.04 | Y39: 0.41 | Z39: 28.19 | AA39: 11.48 | AB39: 0.03 | AC39: 0.04 | AD39: 0.00 | AE39: 1.23 | AF39: 0.00 | AG39: 1.58 | AH39: 0.00 | AI39: 0.69 | AJ39: 0.03 | AK39: 0.00 | AL39: 5.52 | AM39: 1.52 | AN39: 26.62 | AO39: 0.00 | AP39: 7.16 | AQ39: 0.03 | AR39: 0.12 | AS39: 5.18 | AT39: 0.00 | AU39: 0.00 | AV39: 0.18 | AW39: 26.76 | AX39: 4.09 | AY39: 0.35 | AZ39: 51.99 | BA39: 27.73 | BB39: 0.58 | BC39: 702.21 | BD39: 7,233.48
A40: Taiwan | B40: 10,351.73 | C40: 36,868.38 | D40: 11,857.36 | E40: 25.56 | F40: 0.00 | G40: 297.14 | H40: 1,387.26 | I40: 210,344.14 | J40: 2,153,969.10 | K40: 29,995.25 | L40: 777.53 | M40: 578.68 | N40: 105,804.93 | O40: 94.86 | P40: 204.34 | Q40: 255.21 | R40: 91,499.50 | S40: 409,479.41 | T40: 99.73 | U40: 981.77 | V40: 58,605.96 | W40: 1,846.24 | X40: 0.00 | Y40: 60,410.38 | Z40: 1,126,452.99 | AA40: 0.00 | AB40: 0.00 | AC40: 8.93 | AD40: 3,471.26 | AE40: 372,977.98 | AF40: 233.29 | AG40: 80,437.99 | AH40: 398.93 | AI40: 198,736.09 | AJ40: 469.61 | AK40: 17.86 | AL40: 0.00 | AM40: 150.50 | AN40: 3,702.09 | AO40: 10,013.78 | AP40: 155,522.29 | AQ40: 2,360.35 | AR40: 147.06 | AS40: 149,043.98 | AT40: 622.52 | AU40: 5,679.38 | AV40: 15,103.44 | AW40: 0.00 | AX40: 1,111.17 | AY40: 89,906.61 | AZ40: 92,854.58 | BA40: 133,371.41 | BB40: 13,937.66 | BC40: 95,697.06 | BD40: 5,738,163.24
A41: Philippines | B41: 358.25 | C41: 0.92 | D41: 9.54 | E41: 71.22 | F41: 0.49 | G41: 0.09 | H41: 301.34 | I41: 1,220.63 | J41: 55,930.11 | K41: 846.30 | L41: 0.00 | M41: 0.00 | N41: 0.11 | O41: 0.30 | P41: 0.00 | Q41: 0.60 | R41: 15,995.69 | S41: 1,088.98 | T41: 0.00 | U41: 0.13 | V41: 1,388.85 | W41: 0.72 | X41: 0.08 | Y41: 2.49 | Z41: 1,592,944.50 | AA41: 0.00 | AB41: 0.07 | AC41: 0.08 | AD41: 0.00 | AE41: 905.26 | AF41: 0.00 | AG41: 2,051.23 | AH41: 0.00 | AI41: 91,643.99 | AJ41: 1.72 | AK41: 0.03 | AL41: 15.61 | AM41: 0.00 | AN41: 1,441.45 | AO41: 0.00 | AP41: 11,538.90 | AQ41: 0.05 | AR41: 32.90 | AS41: 132.55 | AT41: 0.54 | AU41: 0.00 | AV41: 78.18 | AW41: 4.19 | AX41: 7.76 | AY41: 446.82 | AZ41: 246.11 | BA41: 347,392.41 | BB41: 1.10 | BC41: 6,706.07 | BD41: 2,132,808.32
A42: Poland | B42: 0.02 | C42: 7.80 | D42: 8.36 | E42: 0.03 | F42: 0.00 | G42: 21.23 | H42: 0.00 | I42: 0.32 | J42: 166.62 | K42: 12.33 | L42: 81.95 | M42: 3.66 | N42: 49,909.58 | O42: 17.91 | P42: 49.82 | Q42: 10,357.67 | R42: 78.75 | S42: 564,241.48 | T42: 17.42 | U42: 47.92 | V42: 8.75 | W42: 0.01 | X42: 0.37 | Y42: 564.22 | Z42: 25.53 | AA42: 0.00 | AB42: 34.12 | AC42: 9.76 | AD42: 0.05 | AE42: 1.56 | AF42: 0.03 | AG42: 4.66 | AH42: 0.00 | AI42: 18.43 | AJ42: 0.00 | AK42: 26.20 | AL42: 1.28 | AM42: 0.04 | AN42: 0.00 | AO42: 4.42 | AP42: 22.53 | AQ42: 37.81 | AR42: 303.71 | AS42: 0.48 | AT42: 55,840.48 | AU42: 19.28 | AV42: 18.18 | AW42: 34.63 | AX42: 0.84 | AY42: 65.92 | AZ42: 34.16 | BA42: 68.41 | BB42: 5.52 | BC42: 6,675.64 | BD42: 688,849.89
A43: Portugal | B43: 102.48 | C43: 0.00 | D43: 713.85 | E43: 1,810.81 | F43: 0.00 | G43: 17.58 | H43: 0.00 | I43: 1.24 | J43: 6.99 | K43: 0.01 | L43: 0.00 | M43: 50.58 | N43: 720.10 | O43: 815.08 | P43: 0.00 | Q43: 0.00 | R43: 3,576.06 | S43: 3,068.49 | T43: 2,620.97 | U43: 0.89 | V43: 3.94 | W43: 0.00 | X43: 39.94 | Y43: 554.77 | Z43: 35.49 | AA43: 0.00 | AB43: 0.00 | AC43: 0.00 | AD43: 217.78 | AE43: 0.00 | AF43: 0.00 | AG43: 0.78 | AH43: 0.00 | AI43: 854.93 | AJ43: 0.00 | AK43: 0.00 | AL43: 0.00 | AM43: 0.00 | AN43: 0.00 | AO43: 0.00 | AP43: 0.04 | AQ43: 212.02 | AR43: 0.00 | AS43: 0.33 | AT43: 0.00 | AU43: 11.89 | AV43: 3,212.74 | AW43: 0.00 | AX43: 0.00 | AY43: 0.00 | AZ43: 7,959.67 | BA43: 353.19 | BB43: 0.00 | BC43: 4,633.97 | BD43: 31,596.62
A44: Korea | B44: 23,604.35 | C44: 6,612.06 | D44: 18,499.68 | E44: 810.48 | F44: 0.00 | G44: 17.21 | H44: 45.19 | I44: 8,837.87 | J44: 449,142.14 | K44: 31,313.47 | L44: 98.03 | M44: 446.58 | N44: 18.24 | O44: 13.13 | P44: 893.18 | Q44: 31.40 | R44: 18,392.50 | S44: 77,763.69 | T44: 2,384.91 | U44: 647.15 | V44: 26,478.67 | W44: 186.04 | X44: 3.04 | Y44: 8,310.03 | Z44: 600,794.55 | AA44: 0.00 | AB44: 4.72 | AC44: 4.69 | AD44: 0.64 | AE44: 31,377.42 | AF44: 2,793.08 | AG44: 43,506.76 | AH44: 1.56 | AI44: 137,837.70 | AJ44: 4,571.23 | AK44: 1.08 | AL44: 4,092.70 | AM44: 1,242.55 | AN44: 8.38 | AO44: 565.20 | AP44: 0.00 | AQ44: 120.24 | AR44: 16.07 | AS44: 5,712.63 | AT44: 5.24 | AU44: 0.02 | AV44: 336.48 | AW44: 34.91 | AX44: 5,287.42 | AY44: 5,387.05 | AZ44: 36,831.27 | BA44: 376,675.12 | BB44: 2,822.04 | BC44: 13,598.47 | BD44: 1,948,178.27
A45: Romania | B45: 0.30 | C45: 0.03 | D45: 0.16 | E45: 0.32 | F45: 0.00 | G45: 32.68 | H45: 0.00 | I45: 0.88 | J45: 2,497.63 | K45: 188.25 | L45: 0.00 | M45: 0.00 | N45: 0.03 | O45: 0.07 | P45: 0.00 | Q45: 0.14 | R45: 11.96 | S45: 376.40 | T45: 1.76 | U45: 9.35 | V45: 0.69 | W45: 0.16 | X45: 2.45 | Y45: 1,152.27 | Z45: 14.47 | AA45: 0.00 | AB45: 0.01 | AC45: 0.02 | AD45: 0.00 | AE45: 0.53 | AF45: 0.00 | AG45: 2.28 | AH45: 0.00 | AI45: 62.36 | AJ45: 0.01 | AK45: 0.01 | AL45: 2.37 | AM45: 0.65 | AN45: 2.26 | AO45: 0.00 | AP45: 3.93 | AQ45: 0.00 | AR45: 0.05 | AS45: 9.43 | AT45: 1.86 | AU45: 0.00 | AV45: 4.23 | AW45: 0.04 | AX45: 1.75 | AY45: 3.72 | AZ45: 4.48 | BA45: 48.27 | BB45: 0.25 | BC45: 54.07 | BD45: 4,492.57
A46: Russian Federation | B46: 0.04 | C46: 1.94 | D46: 0.03 | E46: 0.06 | F46: 0.00 | G46: 4.92 | H46: 0.00 | I46: 0.12 | J46: 159.73 | K46: 4.01 | L46: 0.00 | M46: 0.00 | N46: 0.96 | O46: 0.04 | P46: 1.82 | Q46: 3.98 | R46: 7.18 | S46: 50.23 | T46: 0.00 | U46: 0.04 | V46: 89.20 | W46: 0.01 | X46: 270.29 | Y46: 0.31 | Z46: 3.25 | AA46: 0.00 | AB46: 11.30 | AC46: 2.45 | AD46: 0.00 | AE46: 2.52 | AF46: 0.09 | AG46: 0.08 | AH46: 0.25 | AI46: 2.37 | AJ46: 0.27 | AK46: 0.19 | AL46: 46.13 | AM46: 0.01 | AN46: 0.08 | AO46: 1.61 | AP46: 407.80 | AQ46: 0.03 | AR46: 0.00 | AS46: 0.05 | AT46: 0.00 | AU46: 0.08 | AV46: 0.45 | AW46: 0.26 | AX46: 0.06 | AY46: 1.44 | AZ46: 0.56 | BA46: 30.60 | BB46: 21.47 | BC46: 778.28 | BD46: 1,906.58
A47: Singapore | B47: 7.92 | C47: 139.59 | D47: 10.31 | E47: 4.67 | F47: 5.75 | G47: 0.10 | H47: 16.89 | I47: 7.43 | J47: 13,489.01 | K47: 935.69 | L47: 0.00 | M47: 0.00 | N47: 0.12 | O47: 0.34 | P47: 0.00 | Q47: 0.67 | R47: 7.37 | S47: 43.06 | T47: 0.00 | U47: 0.04 | V47: 1,070.79 | W47: 3,157.58 | X47: 34.14 | Y47: 0.89 | Z47: 467.49 | AA47: 0.00 | AB47: 0.07 | AC47: 0.09 | AD47: 0.00 | AE47: 12,067.64 | AF47: 0.00 | AG47: 6.67 | AH47: 1.44 | AI47: 704.56 | AJ47: 0.08 | AK47: 0.03 | AL47: 1,250.45 | AM47: 459.62 | AN47: 0.16 | AO47: 0.00 | AP47: 1,104.67 | AQ47: 0.06 | AR47: 0.25 | AS47: 0.00 | AT47: 0.00 | AU47: 0.00 | AV47: 0.71 | AW47: 0.20 | AX47: 1,001.27 | AY47: 3.43 | AZ47: 17.08 | BA47: 1,553.54 | BB47: 7.70 | BC47: 218.98 | BD47: 37,798.52
A48: Slovakia | B48: 0.01 | C48: 52.77 | D48: 0.95 | E48: 2.93 | F48: 0.00 | G48: 0.57 | H48: 0.00 | I48: 1.53 | J48: 5.01 | K48: 0.34 | L48: 0.55 | M48: 0.03 | N48: 62,744.39 | O48: 0.00 | P48: 0.00 | Q48: 0.00 | R48: 2.81 | S48: 2,424.60 | T48: 0.00 | U48: 1,825.05 | V48: 0.01 | W48: 0.00 | X48: 0.00 | Y48: 889.97 | Z48: 0.28 | AA48: 0.00 | AB48: 17.24 | AC48: 0.00 | AD48: 0.00 | AE48: 0.01 | AF48: 0.01 | AG48: 0.97 | AH48: 0.00 | AI48: 1.35 | AJ48: 0.00 | AK48: 0.00 | AL48: 0.01 | AM48: 0.00 | AN48: 1,770.62 | AO48: 0.00 | AP48: 14.29 | AQ48: 10,853.29 | AR48: 10.94 | AS48: 0.01 | AT48: 0.00 | AU48: 0.65 | AV48: 3.40 | AW48: 1.20 | AX48: 0.00 | AY48: 5.36 | AZ48: 0.42 | BA48: 437.15 | BB48: 0.28 | BC48: 169.42 | BD48: 81,238.41
A49: Slovenia | B49: 0.02 | C49: 1,237.47 | D49: 8,467.02 | E49: 0.03 | F49: 0.00 | G49: 5.89 | H49: 0.00 | I49: 0.21 | J49: 168.00 | K49: 9.03 | L49: 2,304.33 | M49: 295.29 | N49: 10.93 | O49: 1.75 | P49: 51.35 | Q49: 0.01 | R49: 7,065.61 | S49: 2,251.31 | T49: 17.07 | U49: 547.89 | V49: 0.06 | W49: 0.01 | X49: 0.09 | Y49: 13,111.86 | Z49: 0.57 | AA49: 0.00 | AB49: 0.87 | AC49: 4,812.96 | AD49: 1,033.28 | AE49: 0.03 | AF49: 0.00 | AG49: 0.15 | AH49: 0.00 | AI49: 10,678.56 | AJ49: 1.97 | AK49: 0.20 | AL49: 0.11 | AM49: 0.03 | AN49: 4.91 | AO49: 0.39 | AP49: 0.15 | AQ49: 0.69 | AR49: 419.98 | AS49: 11.61 | AT49: 19.77 | AU49: 0.00 | AV49: 128.80 | AW49: 10.55 | AX49: 0.08 | AY49: 94.54 | AZ49: 694.60 | BA49: 53.57 | BB49: 0.01 | BC49: 4,379.61 | BD49: 57,893.25
A50: Spain | B50: 0.19 | C50: 16.55 | D50: 614.27 | E50: 945.00 | F50: 0.00 | G50: 0.01 | H50: 0.00 | I50: 9.12 | J50: 1,622.28 | K50: 92.25 | L50: 0.00 | M50: 4.84 | N50: 38.57 | O50: 22.76 | P50: 0.00 | Q50: 72.72 | R50: 8,896.41 | S50: 3,602.59 | T50: 8.68 | U50: 0.01 | V50: 1,659.51 | W50: 0.40 | X50: 311.45 | Y50: 2,012.98 | Z50: 1,803.38 | AA50: 0.00 | AB50: 0.01 | AC50: 0.01 | AD50: 0.00 | AE50: 9.65 | AF50: 190.42 | AG50: 936.41 | AH50: 0.00 | AI50: 1,269.96 | AJ50: 0.01 | AK50: 52.12 | AL50: 1.92 | AM50: 0.32 | AN50: 1.84 | AO50: 27,151.77 | AP50: 6.92 | AQ50: 7,058.83 | AR50: 0.03 | AS50: 1.46 | AT50: 0.00 | AU50: 0.23 | AV50: 0.00 | AW50: 16.66 | AX50: 23.68 | AY50: 4.37 | AZ50: 1,198.22 | BA50: 253.22 | BB50: 0.42 | BC50: 26,710.91 | BD50: 86,623.36
A51: Sweden | B51: 56.40 | C51: 732.19 | D51: 28.96 | E51: 226.04 | F51: 0.00 | G51: 0.97 | H51: 0.00 | I51: 36.10 | J51: 10,281.55 | K51: 477.76 | L51: 9.97 | M51: 3.64 | N51: 22.44 | O51: 505.92 | P51: 444.32 | Q51: 4,682.47 | R51: 2,643.95 | S51: 18,064.61 | T51: 8.82 | U51: 15.84 | V51: 34.97 | W51: 0.41 | X51: 8.42 | Y51: 6,744.67 | Z51: 1,346.50 | AA51: 0.00 | AB51: 24.03 | AC51: 1,000.07 | AD51: 0.42 | AE51: 30.93 | AF51: 0.18 | AG51: 2,370.89 | AH51: 5.86 | AI51: 1,355.31 | AJ51: 0.46 | AK51: 7,304.08 | AL51: 49.02 | AM51: 2.26 | AN51: 1,126.31 | AO51: 28.36 | AP51: 517.51 | AQ51: 4.47 | AR51: 2,277.15 | AS51: 11.17 | AT51: 1,804.32 | AU51: 5.61 | AV51: 53.20 | AW51: 0.00 | AX51: 4,732.68 | AY51: 36.57 | AZ51: 1,788.00 | BA51: 1,140.97 | BB51: 1.06 | BC51: 1,381.84 | BD51: 73,429.67
A52: Thailand | B52: 0.00 | C52: 0.00 | D52: 0.00 | E52: 0.00 | F52: 0.00 | G52: 0.00 | H52: 40.14 | I52: 0.00 | J52: 0.33 | K52: 0.00 | L52: 0.00 | M52: 0.00 | N52: 0.00 | O52: 0.00 | P52: 0.00 | Q52: 0.00 | R52: 0.00 | S52: 0.00 | T52: 35.92 | U52: 0.00 | V52: 0.00 | W52: 82.80 | X52: 0.00 | Y52: 0.00 | Z52: 21.19 | AA52: 0.00 | AB52: 0.00 | AC52: 0.00 | AD52: 0.00 | AE52: 43.60 | AF52: 0.00 | AG52: 0.00 | AH52: 0.00 | AI52: 32.46 | AJ52: 0.00 | AK52: 0.00 | AL52: 0.00 | AM52: 34.15 | AN52: 0.00 | AO52: 0.00 | AP52: 0.00 | AQ52: 0.00 | AR52: 0.00 | AS52: 0.00 | AT52: 0.00 | AU52: 0.00 | AV52: 0.00 | AW52: 0.00 | AX52: 0.00 | AY52: 0.00 | AZ52: 0.00 | BA52: 0.00 | BB52: 0.00 | BC52: 0.00 | BD52: 290.59
A53: Turkey | B53: 0.00 | C53: 0.00 | D53: 0.00 | E53: 0.00 | F53: 0.00 | G53: 0.00 | H53: 0.00 | I53: 0.03 | J53: 0.31 | K53: 0.00 | L53: 0.00 | M53: 0.00 | N53: 0.00 | O53: 0.00 | P53: 0.00 | Q53: 0.00 | R53: 0.23 | S53: 5,666.72 | T53: 0.43 | U53: 0.00 | V53: 0.00 | W53: 0.00 | X53: 0.00 | Y53: 401.28 | Z53: 0.01 | AA53: 0.00 | AB53: 0.00 | AC53: 0.00 | AD53: 0.00 | AE53: 0.00 | AF53: 0.00 | AG53: 0.02 | AH53: 0.00 | AI53: 0.00 | AJ53: 0.00 | AK53: 0.00 | AL53: 0.00 | AM53: 91.83 | AN53: 0.00 | AO53: 0.26 | AP53: 0.00 | AQ53: 6.56 | AR53: 0.00 | AS53: 3.30 | AT53: 0.00 | AU53: 0.00 | AV53: 0.01 | AW53: 0.00 | AX53: 0.00 | AY53: 0.00 | AZ53: 0.01 | BA53: 9.14 | BB53: 4.24 | BC53: 6,271.71 | BD53: 12,456.11
A54: United Kingdom | B54: 414.12 | C54: 826.06 | D54: 1,595.95 | E54: 499.28 | F54: 0.00 | G54: 42.44 | H54: 282.75 | I54: 2,542.38 | J54: 68,206.03 | K54: 4,920.80 | L54: 11.02 | M54: 495.39 | N54: 338.70 | O54: 219.13 | P54: 111.04 | Q54: 1,433.01 | R54: 11,449.32 | S54: 25,441.71 | T54: 24.77 | U54: 485.07 | V54: 1,967.25 | W54: 4.34 | X54: 2,990.98 | Y54: 9,547.56 | Z54: 91,199.65 | AA54: 0.00 | AB54: 43.47 | AC54: 38.75 | AD54: 1.16 | AE54: 254.41 | AF54: 1,346.50 | AG54: 204.41 | AH54: 0.00 | AI54: 7,564.63 | AJ54: 19.09 | AK54: 128.31 | AL54: 890.48 | AM54: 53.72 | AN54: 5,606.83 | AO54: 154.88 | AP54: 135.15 | AQ54: 254.83 | AR54: 1,382.53 | AS54: 2,478.63 | AT54: 455.29 | AU54: 119.99 | AV54: 2,001.83 | AW54: 11,355.11 | AX54: 669.54 | AY54: 1,025.65 | AZ54: 0.00 | BA54: 32,750.30 | BB54: 29.80 | BC54: 7,220.80 | BD54: 301,234.85
A55: USA | B55: 1,317.09 | C55: 104.43 | D55: 283.74 | E55: 405.91 | F55: 0.00 | G55: 5.53 | H55: 0.00 | I55: 28,010.27 | J55: 53,396.02 | K55: 9,513.42 | L55: 618.80 | M55: 0.00 | N55: 0.00 | O55: 114.96 | P55: 14.00 | Q55: 24.81 | R55: 1,803.50 | S55: 45,753.45 | T55: 0.00 | U55: 5.71 | V55: 13,788.38 | W55: 19.87 | X55: 94.68 | Y55: 319.96 | Z55: 91,730.03 | AA55: 0.00 | AB55: 0.00 | AC55: 12.45 | AD55: 262.14 | AE55: 170.66 | AF55: 0.00 | AG55: 12,986.20 | AH55: 0.00 | AI55: 1,186.92 | AJ55: 1,378.66 | AK55: 144.17 | AL55: 694.84 | AM55: 269.41 | AN55: 102.36 | AO55: 25.12 | AP55: 848.19 | AQ55: 75.37 | AR55: 0.00 | AS55: 1,182.98 | AT55: 0.00 | AU55: 6.65 | AV55: 365.76 | AW55: 109.41 | AX55: 338.97 | AY55: 1,015.97 | AZ55: 2,004.27 | BA55: 0.00 | BB55: 154.02 | BC55: 46,709.30 | BD55: 317,368.36
A56: Vietnam | B56: 0.25 | C56: 0.04 | D56: 346.38 | E56: 3.95 | F56: 0.00 | G56: 0.00 | H56: 28.94 | I56: 68.89 | J56: 68.40 | K56: 0.67 | L56: 0.00 | M56: 0.00 | N56: 0.00 | O56: 0.00 | P56: 0.00 | Q56: 0.00 | R56: 457.33 | S56: 3.41 | T56: 0.00 | U56: 0.00 | V56: 0.18 | W56: 0.00 | X56: 0.00 | Y56: 65.70 | Z56: 21.57 | AA56: 0.00 | AB56: 0.00 | AC56: 0.00 | AD56: 0.00 | AE56: 0.19 | AF56: 0.00 | AG56: 43.43 | AH56: 0.00 | AI56: 29,437.21 | AJ56: 0.09 | AK56: 0.00 | AL56: 0.09 | AM56: 0.00 | AN56: 0.00 | AO56: 0.00 | AP56: 2.17 | AQ56: 0.00 | AR56: 0.00 | AS56: 1.26 | AT56: 0.03 | AU56: 0.00 | AV56: 4.40 | AW56: 39.72 | AX56: 0.00 | AY56: 0.00 | AZ56: 55.47 | BA56: 19,634.05 | BB56: 0.00 | BC56: 222.93 | BD56: 50,506.74
A57: ROW | B57: 1,556.55 | C57: 1,319.38 | D57: 304.57 | E57: 118.68 | F57: 0.00 | G57: 373.63 | H57: 0.02 | I57: 3,031.82 | J57: 17,966.58 | K57: 1,024.43 | L57: 155.44 | M57: 200.93 | N57: 697.55 | O57: 54.08 | P57: 0.01 | Q57: 59.28 | R57: 11,549.05 | S57: 5,924.78 | T57: 6.74 | U57: 53.41 | V57: 10,928.40 | W57: 1.14 | X57: 79.48 | Y57: 24,965.69 | Z57: 4,950.60 | AA57: 0.00 | AB57: 2.36 | AC57: 460.03 | AD57: 3.18 | AE57: 30.11 | AF57: 104.73 | AG57: 68.29 | AH57: 0.00 | AI57: 13,011.75 | AJ57: 137.25 | AK57: 969.40 | AL57: 16,038.75 | AM57: 6.59 | AN57: 134.47 | AO57: 5.64 | AP57: 697.26 | AQ57: 26.90 | AR57: 495.82 | AS57: 736.78 | AT57: 40.60 | AU57: 15.15 | AV57: 1,009.63 | AW57: 319.68 | AX57: 9.40 | AY57: 3,357.07 | AZ57: 46,454.15 | BA57: 1,621.98 | BB57: 15.37 | BC57: 0.00 | BD57: 171,094.58
A58: total | B58: 725,080.10 | C58: 227,482.85 | D58: 456,747.29 | E58: 65,778.33 | F58: 234.84 | G58: 21,655.13 | H58: 3,382.45 | I58: 429,192.51 | J58: 4,278,662.60 | K58: 858,906.83 | L58: 22,802.58 | M58: 31,865.15 | N58: 267,746.42 | O58: 75,104.97 | P58: 10,839.98 | Q58: 35,888.86 | R58: 1,259,282.52 | S58: 2,921,040.94 | T58: 57,105.39 | U58: 115,120.73 | V58: 949,578.00 | W58: 133,148.96 | X58: 20,994.23 | Y58: 627,872.24 | Z58: 11,501,455.10 | AA58: 50.24 | AB58: 4,169.97 | AC58: 18,368.89 | AD58: 40,587.04 | AE58: 620,619.31 | AF58: 27,323.07 | AG58: 195,644.81 | AH58: 19,851.28 | AI58: 2,611,851.37 | AJ58: 27,747.53 | AK58: 16,361.98 | AL58: 668,512.47 | AM58: 465,952.91 | AN58: 342,630.46 | AO58: 80,085.48 | AP58: 945,203.18 | AQ58: 241,913.58 | AR58: 105,156.58 | AS58: 352,207.82 | AT58: 145,486.78 | AU58: 39,967.90 | AV58: 171,107.26 | AW58: 99,875.67 | AX58: 342,432.79 | AY58: 323,938.53 | AZ58: 3,010,779.59 | BA58: 5,010,676.44 | BB58: 426,607.95 | BC58: 3,139,423.34 | BD58: 44,591,503.21
A60: TFM of traded cell and module capacity by region groups in 2014
A61: Unit: kW
A62: Region groups | B62: Oceania | C62: Europe | D62: S Asia | E62: America | F62: East Asia | G62: ROW | H62: Total
A63: Oceania | B63: =B4+AJ4+B38+AJ38 -> 3,490.91 | C63: =SUM(C4,D4,G4,L4:U4,X4:Y4,AB4:AD4,AF4,AI4,AK4,AN4:AO4,AQ4,AT4:AW4,AZ4,AR4)+SUM(C38,D38,G38,L38:U38,X38:Y38,AB38:AD38,AF38,AI38,AK38,AN38:AO38,AQ38,AT38:AW38,AZ38,AR38) -> 2,025.56 | D63: =SUM(F4,H4,V4:W4,AA4,AE4,AH4,AM4,AS4,AX4,BB4,AY4)+SUM(F38,H38,V38:W38,AA38,AE38,AH38,AM38,AS38,AX38,BB38,AY38) -> 2,103.94 | E63: =SUM(E4,I4,AG4,BA4)+SUM(E38,I38,AG38,BA38) -> 8,086.55 | F63: =SUM(J4:K4,Z4,AL4,AP4)+SUM(J38:K38,Z38,AL38,AP38) -> 38,516.81 | G63: =BC4+BC38 -> 7,317.32 | H63: =SUM(B63:G63) -> 61,541.08
A64: Europe | B64: =B69-SUM(B65:B68,B63) -> 29,569.10 | C64: =C69-SUM(C65:C68,C63) -> 6,902,263.96 | D64: 245,759.36 | E64: 428,390.00 | F64: 1,118,125.83 | G64: 570,515.21 | H64: 9,294,623.44
A65: S Asia | B65: =B8+AJ8+B10+AJ10+B24+AJ24+B25+AJ25+B29+AJ29+B33+AJ33+B36+AJ36+B41+AJ41+B47+AJ47+B52+AJ52+B53+AJ53+B56+AJ56 -> 2,099.48 | C65: =SUM(C8,D8,G8,L8:U8,X8:Y8,AB8:AD8,AF8,AI8,AK8,AN8:AO8,AQ8,AT8:AW8,AZ8,AR8)+SUM(C10,D10,G10,L10:U10,X10:Y10,AB10:AD10,AF10,AI10,AK10,AN10:AO10,AQ10,AT10:AW10,AZ10,AR10)+SUM(C24,D24,G24,L24:U24,X24:Y24,AB24:AD24,AF24,AI24,AK24,AN24:AO24,AQ24,AT24:AW24,AZ24,AR24)+SUM(C25,D25,G25,L25:U25,X25:Y25,AB25:AD25,AF25,AI25,AK25,AN25:AO25,AQ25,AT25:AW25,AZ25,AR25)+SUM(C29,D29,G29,L29:U29,X29:Y29,AB29:AD29,AF29,AI29,AK29,AN29:AO29,AQ29,AT29:AW29,AZ29,AR29)+SUM(C33,D33,G33,L33:U33,X33:Y33,AB33:AD33,AF33,AI33,AK33,AN33:AO33,AQ33,AT33:AW33,AZ33,AR33)+SUM(C36,D36,G36,L36:U36,X36:Y36,AB36:AD36,AF36,AI36,AK36,AN36:AO36,AQ36,AT36:AW36,AZ36,AR36)+SUM(C41,D41,G41,L41:U41,X41:Y41,AB41:AD41,AF41,AI41,AK41,AN41:AO41,AQ41,AT41:AW41,AZ41,AR41)+SUM(C47,D47,G47,L47:U47,X47:Y47,AB47:AD47,AF47,AI47,AK47,AN47:AO47,AQ47,AT47:AW47,AZ47,AR47)+SUM(C52,D52,G52,L52:U52,X52:Y52,AB52:AD52,AF52,AI52,AK52,AN52:AO52,AQ52,AT52:AW52,AZ52,AR52)+SUM(C53,D53,G53,L53:U53,X53:Y53,AB53:AD53,AF53,AI53,AK53,AN53:AO53,AQ53,AT53:AW53,AZ53,AR53)+SUM(C56,D56,G56,L56:U56,X56:Y56,AB56:AD56,AF56,AI56,AK56,AN56:AO56,AQ56,AT56:AW56,AZ56,AR56) -> 271,860.14 | D65: =SUM(F8,H8,V8:W8,AA8,AE8,AH8,AM8,AS8,AX8,BB8,AY8)+SUM(F10,H10,V10:W10,AA10,AE10,AH10,AM10,AS10,AX10,BB10,AY10)+SUM(F24,H24,V24:W24,AA24,AE24,AH24,AM24,AS24,AX24,BB24,AY24)+SUM(F25,H25,V25:W25,AA25,AE25,AH25,AM25,AS25,AX25,BB25,AY25)+SUM(F29,H29,V29:W29,AA29,AE29,AH29,AM29,AS29,AX29,BB29,AY29)+SUM(F33,H33,V33:W33,AA33,AE33,AH33,AM33,AS33,AX33,BB33,AY33)+SUM(F36,H36,V36:W36,AA36,AE36,AH36,AM36,AS36,AX36,BB36,AY36)+SUM(F41,H41,V41:W41,AA41,AE41,AH41,AM41,AS41,AX41,BB41,AY41)+SUM(F47,H47,V47:W47,AA47,AE47,AH47,AM47,AS47,AX47,BB47,AY47)+SUM(F52,H52,V52:W52,AA52,AE52,AH52,AM52,AS52,AX52,BB52,AY52)+SUM(F53,H53,V53:W53,AA53,AE53,AH53,AM53,AS53,AX53,BB53,AY53)+SUM(F56,H56,V56:W56,AA56,AE56,AH56,AM56,AS56,AX56,BB56,AY56) -> 27,042.93 | E65: =SUM(E8,I8,AG8,BA8)+SUM(E10,I10,AG10,BA10)+SUM(E24,I24,AG24,BA24)+SUM(E25,I25,AG25,BA25)+SUM(E29,I29,AG29,BA29)+SUM(E33,I33,AG33,BA33)+SUM(E36,I36,AG36,BA36)+SUM(E41,I41,AG41,BA41)+SUM(E47,I47,AG47,BA47)+SUM(E52,I52,AG52,BA52)+SUM(E53,I53,AG53,BA53)+SUM(E56,I56,AG56,BA56) -> 468,374.30 | F65: =SUM(J8:K8,Z8,AL8,AP8)+SUM(J10:K10,Z10,AL10,AP10)+SUM(J24:K24,Z24,AL24,AP24)+SUM(J25:K25,Z25,AL25,AP25)+SUM(J29:K29,Z29,AL29,AP29)+SUM(J33:K33,Z33,AL33,AP33)+SUM(J36:K36,Z36,AL36,AP36)+SUM(J41:K41,Z41,AL41,AP41)+SUM(J47:K47,Z47,AL47,AP47)+SUM(J52:K52,Z52,AL52,AP52)+SUM(J53:K53,Z53,AL53,AP53)+SUM(J56:K56,Z56,AL56,AP56) -> 1,746,078.96 | G65: =BC8+BC10+BC24+BC25+BC29+BC33+BC36+BC41+BC47+BC52+BC53+BC56 -> 29,604.70 | H65: =SUM(B65:G65) -> 2,545,060.51
A66: America | B66: =B7+AJ7+B11+AJ11+B35+AJ35+B55+AJ55 -> 2,916.37 | C66: =SUM(C7,D7,G7,L7:U7,X7:Y7,AB7:AD7,AF7,AI7,AK7,AN7:AO7,AQ7,AT7:AW7,AZ7,AR7)+SUM(C11,D11,G11,L11:U11,X11:Y11,AB11:AD11,AF11,AI11,AK11,AN11:AO11,AQ11,AT11:AW11,AZ11,AR11)+SUM(C35,D35,G35,L35:U35,X35:Y35,AB35:AD35,AF35,AI35,AK35,AN35:AO35,AQ35,AT35:AW35,AZ35,AR35)+SUM(C55,D55,G55,L55:U55,X55:Y55,AB55:AD55,AF55,AI55,AK55,AN55:AO55,AQ55,AT55:AW55,AZ55,AR55) -> 82,610.53 | D66: =SUM(F7,H7,V7:W7,AA7,AE7,AH7,AM7,AS7,AX7,BB7,AY7)+SUM(F11,H11,V11:W11,AA11,AE11,AH11,AM11,AS11,AX11,BB11,AY11)+SUM(F35,H35,V35:W35,AA35,AE35,AH35,AM35,AS35,AX35,BB35,AY35)+SUM(F55,H55,V55:W55,AA55,AE55,AH55,AM55,AS55,AX55,BB55,AY55) -> 26,922.35 | E66: =SUM(E7,I7,AG7,BA7)+SUM(E11,I11,AG11,BA11)+SUM(E35,I35,AG35,BA35)+SUM(E55,I55,AG55,BA55) -> 177,634.86 | F66: =SUM(J7:K7,Z7,AL7,AP7)+SUM(J11:K11,Z11,AL11,AP11)+SUM(J35:K35,Z35,AL35,AP35)+SUM(J55:K55,Z55,AL55,AP55) -> 168,959.63 | G66: =BC7+BC11+BC35+BC55 -> 55,216.11 | H66: =SUM(B66:G66) -> 514,259.85
A67: East Asia | B67: =B12+AJ12+B13+AJ13+B28+AJ28+B40+AJ40+B44+AJ44 -> 713,057.98 | C67: =SUM(C12,D12,G12,L12:U12,X12:Y12,AB12:AD12,AF12,AI12,AK12,AN12:AO12,AQ12,AT12:AW12,AZ12,AR12)+SUM(C13,D13,G13,L13:U13,X13:Y13,AB13:AD13,AF13,AI13,AK13,AN13:AO13,AQ13,AT13:AW13,AZ13,AR13)+SUM(C28,D28,G28,L28:U28,X28:Y28,AB28:AD28,AF28,AI28,AK28,AN28:AO28,AQ28,AT28:AW28,AZ28,AR28)+SUM(C40,D40,G40,L40:U40,X40:Y40,AB40:AD40,AF40,AI40,AK40,AN40:AO40,AQ40,AT40:AW40,AZ40,AR40)+SUM(C44,D44,G44,L44:U44,X44:Y44,AB44:AD44,AF44,AI44,AK44,AN44:AO44,AQ44,AT44:AW44,AZ44,AR44) -> 5,739,657.20 | D67: =SUM(F12,H12,V12:W12,AA12,AE12,AH12,AM12,AS12,AX12,BB12,AY12)+SUM(F13,H13,V13:W13,AA13,AE13,AH13,AM13,AS13,AX13,BB13,AY13)+SUM(F28,H28,V28:W28,AA28,AE28,AH28,AM28,AS28,AX28,BB28,AY28)+SUM(F40,H40,V40:W40,AA40,AE40,AH40,AM40,AS40,AX40,BB40,AY40)+SUM(F44,H44,V44:W44,AA44,AE44,AH44,AM44,AS44,AX44,BB44,AY44) -> 3,321,091.63 | E67: =SUM(E12,I12,AG12,BA12)+SUM(E13,I13,AG13,BA13)+SUM(E28,I28,AG28,BA28)+SUM(E40,I40,AG40,BA40)+SUM(E44,I44,AG44,BA44) -> 4,613,965.61 | F67: =SUM(J12:K12,Z12,AL12,AP12)+SUM(J13:K13,Z13,AL13,AP13)+SUM(J28:K28,Z28,AL28,AP28)+SUM(J40:K40,Z40,AL40,AP40)+SUM(J44:K44,Z44,AL44,AP44) -> 15,140,381.33 | G67: =BC12+BC13+BC28+BC40+BC44 -> 2,476,770.00 | H67: =SUM(B67:G67) -> 32,004,923.74
A68: ROW | B68: =B57+AJ57 -> 1,693.80 | C68: =SUM(C57,D57,G57,L57:U57,X57:Y57,AB57:AD57,AF57,AI57,AK57,AN57:AO57,AQ57,AT57:AW57,AZ57,AR57) -> 108,797.51 | D68: =SUM(F57,H57,V57:W57,AA57,AE57,AH57,AM57,AS57,AX57,BB57,AY57) -> 15,084.87 | E68: =SUM(E57,I57,AG57,BA57) -> 4,840.77 | F68: =SUM(J57:K57,Z57,AL57,AP57) -> 40,677.63 | G68: =BC57 -> 0.00 | H68: =SUM(B68:G68) -> 171,094.58
A69: Total | B69: =B58+AJ58 -> 752,827.63 | C69: =SUM(C58,D58,G58,L58:U58,X58:Y58,AB58:AD58,AF58,AI58,AK58,AN58:AO58,AQ58,AT58:AW58,AZ58,AR58) -> 13,107,214.90 | D69: =SUM(F58,H58,V58:W58,AA58,AE58,AH58,AM58,AS58,AX58,BB58,AY58) -> 3,638,005.08 | E69: =SUM(E58,I58,AG58,BA58) -> 5,701,292.09 | F69: =SUM(J58:K58,Z58,AL58,AP58) -> 18,252,740.18 | G69: =BC58 -> 3,139,423.34 | H69: =SUM(B69:G69) -> 44,591,503.21

Sheet Data 2
A1: TFM of traded cell and module capacity in 2017
A2: Unit: kW
A3: Country/Economy | B3: Australia | C3: Austria | D3: Belgium | E3: Brazil | F3: Brunei | G3: Bulgaria | H3: Cambodia | I3: Canada | J3: China | K3: Hong Kong | L3: Croatia | M3: Cyprus | N3: Czechia | O3: Denmark | P3: Estonia | Q3: Finland | R3: France | S3: Germany | T3: Greece | U3: Hungary | V3: India | W3: Indonesia | X3: Ireland | Y3: Italy | Z3: Japan | AA3: Lao PDR | AB3: Latvia | AC3: Lithuania | AD3: Luxembourg | AE3: Malaysia | AF3: Malta | AG3: Mexico | AH3: Myanmar | AI3: Netherlands | AJ3: New Zealand | AK3: Norway | AL3: Taiwan | AM3: Philippines | AN3: Poland | AO3: Portugal | AP3: Korea | AQ3: Romania | AR3: Russian Federation | AS3: Singapore | AT3: Slovakia | AU3: Slovenia | AV3: Spain | AW3: Sweden | AX3: Thailand | AY3: Turkey | AZ3: United Kingdom | BA3: USA | BB3: Vietnam | BC3: ROW | BD3: total
A4: Australia | B4: 0.00 | C4: 10.36 | D4: 118.97 | E4: 11.02 | F4: 0.00 | G4: 0.96 | H4: 762.80 | I4: 585.40 | J4: 13,843.18 | K4: 1,652.54 | L4: 0.00 | M4: 0.00 | N4: 7.19 | O4: 7.86 | P4: 0.03 | Q4: 0.23 | R4: 144.33 | S4: 680.98 | T4: 0.05 | U4: 1.56 | V4: 676.24 | W4: 1,007.86 | X4: 334.47 | Y4: 376.43 | Z4: 638.27 | AA4: 21.58 | AB4: 0.05 | AC4: 1.00 | AD4: 0.00 | AE4: 425.39 | AF4: 0.00 | AG4: 92.63 | AH4: 0.00 | AI4: 182.61 | AJ4: 9,165.96 | AK4: 12.43 | AL4: 231.58 | AM4: 541.34 | AN4: 1.98 | AO4: 0.01 | AP4: 456.31 | AQ4: 0.06 | AR4: 260.95 | AS4: 1,758.66 | AT4: 0.00 | AU4: 0.00 | AV4: 757.84 | AW4: 109.11 | AX4: 3,432.22 | AY4: 41.74 | AZ4: 685.17 | BA4: 14,135.73 | BB4: 55.36 | BC4: 8,618.12 | BD4: 61,848.51
A5: Austria | B5: 52.35 | C5: 0.00 | D5: 73.80 | E5: 4.67 | F5: 0.00 | G5: 53.94 | H5: 0.00 | I5: 72.67 | J5: 335.18 | K5: 3.80 | L5: 488.46 | M5: 335.04 | N5: 15,730.57 | O5: 947.93 | P5: 0.00 | Q5: 0.67 | R5: 1,037.42 | S5: 40,992.84 | T5: 174.96 | U5: 22,189.21 | V5: 166.80 | W5: 11.25 | X5: 0.89 | Y5: 20,424.15 | Z5: 1,510.19 | AA5: 0.00 | AB5: 0.00 | AC5: 5.27 | AD5: 268.57 | AE5: 4,823.38 | AF5: 0.10 | AG5: 15.16 | AH5: 0.00 | AI5: 4,121.15 | AJ5: 13.27 | AK5: 214.19 | AL5: 83.39 | AM5: 4,499.16 | AN5: 13,609.33 | AO5: 2,117.05 | AP5: 66.81 | AQ5: 1,156.52 | AR5: 103.53 | AS5: 6,854.17 | AT5: 659.31 | AU5: 70,042.53 | AV5: 268.37 | AW5: 1,570.66 | AX5: 603.15 | AY5: 20,032.58 | AZ5: 1,794.42 | BA5: 270.98 | BB5: 0.09 | BC5: 54,631.29 | BD5: 292,431.21
A6: Belgium | B6: 49.84 | C6: 150.88 | D6: 0.00 | E6: 9.96 | F6: 0.00 | G6: 17.35 | H6: 0.00 | I6: 191.80 | J6: 2,087.35 | K6: 503.47 | L6: 1.51 | M6: 0.93 | N6: 275.95 | O6: 67.57 | P6: 34.24 | Q6: 2,170.07 | R6: 82,091.11 | S6: 77,105.81 | T6: 357.05 | U6: 1,357.61 | V6: 73.39 | W6: 0.62 | X6: 109.02 | Y6: 1,743.44 | Z6: 200.12 | AA6: 0.00 | AB6: 33.57 | AC6: 7.57 | AD6: 19,355.45 | AE6: 20.61 | AF6: 0.39 | AG6: 9.00 | AH6: 0.00 | AI6: 36,197.97 | AJ6: 0.29 | AK6: 15.45 | AL6: 20.22 | AM6: 86.98 | AN6: 1,544.02 | AO6: 16,105.93 | AP6: 82.54 | AQ6: 379.39 | AR6: 880.50 | AS6: 96.59 | AT6: 39.10 | AU6: 61.34 | AV6: 32,885.66 | AW6: 286.00 | AX6: 64.51 | AY6: 139.47 | AZ6: 1,870.04 | BA6: 1,122.19 | BB6: 12.27 | BC6: 9,980.97 | BD6: 289,897.13
A7: Brazil | B7: 0.41 | C7: 0.00 | D7: 0.00 | E7: 0.00 | F7: 0.00 | G7: 0.00 | H7: 0.00 | I7: 0.07 | J7: 2,824.78 | K7: 0.00 | L7: 0.00 | M7: 0.00 | N7: 0.00 | O7: 0.00 | P7: 0.00 | Q7: 0.00 | R7: 0.00 | S7: 0.00 | T7: 38.30 | U7: 0.00 | V7: 0.00 | W7: 0.00 | X7: 0.00 | Y7: 1.21 | Z7: 2.15 | AA7: 0.00 | AB7: 0.00 | AC7: 0.00 | AD7: 0.00 | AE7: 0.00 | AF7: 0.00 | AG7: 337.61 | AH7: 0.00 | AI7: 0.73 | AJ7: 0.00 | AK7: 0.00 | AL7: 617.09 | AM7: 0.00 | AN7: 0.00 | AO7: 0.00 | AP7: 0.00 | AQ7: 0.00 | AR7: 0.00 | AS7: 0.00 | AT7: 0.00 | AU7: 0.00 | AV7: 208.56 | AW7: 3.65 | AX7: 0.00 | AY7: 0.00 | AZ7: 0.00 | BA7: 16.92 | BB7: 0.00 | BC7: 217.89 | BD7: 4,269.37
A8: Brunei | B8: 0.00 | C8: 0.00 | D8: 0.00 | E8: 0.00 | F8: 0.00 | G8: 0.00 | H8: 0.00 | I8: 0.00 | J8: 0.00 | K8: 0.00 | L8: 0.00 | M8: 0.00 | N8: 0.00 | O8: 0.00 | P8: 0.00 | Q8: 0.00 | R8: 0.00 | S8: 0.00 | T8: 0.00 | U8: 0.00 | V8: 0.00 | W8: 0.00 | X8: 0.00 | Y8: 0.00 | Z8: 0.00 | AA8: 0.00 | AB8: 0.00 | AC8: 0.00 | AD8: 0.00 | AE8: 0.00 | AF8: 0.00 | AG8: 0.00 | AH8: 0.00 | AI8: 0.00 | AJ8: 0.00 | AK8: 0.00 | AL8: 0.00 | AM8: 0.00 | AN8: 0.00 | AO8: 0.00 | AP8: 0.00 | AQ8: 0.00 | AR8: 0.00 | AS8: 0.00 | AT8: 0.00 | AU8: 0.00 | AV8: 0.00 | AW8: 0.00 | AX8: 0.00 | AY8: 0.00 | AZ8: 0.00 | BA8: 0.00 | BB8: 0.00 | BC8: 0.00 | BD8: 0.00
A9: Bulgaria | B9: 0.26 | C9: 0.32 | D9: 3.33 | E9: 0.44 | F9: 0.00 | G9: 0.00 | H9: 0.00 | I9: 1.34 | J9: 319.28 | K9: 67.29 | L9: 0.00 | M9: 0.00 | N9: 0.05 | O9: 0.09 | P9: 0.00 | Q9: 0.01 | R9: 2.34 | S9: 26.72 | T9: 1,114.79 | U9: 0.06 | V9: 5.96 | W9: 8.03 | X9: 0.00 | Y9: 407.26 | Z9: 23.39 | AA9: 0.00 | AB9: 1.24 | AC9: 0.04 | AD9: 13.21 | AE9: 1.02 | AF9: 0.00 | AG9: 1.29 | AH9: 0.00 | AI9: 0.39 | AJ9: 0.04 | AK9: 0.00 | AL9: 31.28 | AM9: 10.88 | AN9: 0.08 | AO9: 0.00 | AP9: 11.00 | AQ9: 45.07 | AR9: 182.77 | AS9: 12.74 | AT9: 0.00 | AU9: 0.00 | AV9: 1.65 | AW9: 0.03 | AX9: 11.99 | AY9: 3.76 | AZ9: 11.04 | BA9: 339.40 | BB9: 1.64 | BC9: 159.80 | BD9: 2,821.32
A10: Cambodia | B10: 0.00 | C10: 0.00 | D10: 0.00 | E10: 0.00 | F10: 0.00 | G10: 0.00 | H10: 0.00 | I10: 0.00 | J10: 0.00 | K10: 0.00 | L10: 0.00 | M10: 0.00 | N10: 0.00 | O10: 0.00 | P10: 0.00 | Q10: 0.00 | R10: 0.00 | S10: 0.00 | T10: 0.00 | U10: 0.00 | V10: 0.00 | W10: 0.00 | X10: 0.00 | Y10: 0.00 | Z10: 0.00 | AA10: 0.00 | AB10: 0.00 | AC10: 0.00 | AD10: 0.00 | AE10: 0.00 | AF10: 0.00 | AG10: 0.00 | AH10: 0.00 | AI10: 0.00 | AJ10: 0.00 | AK10: 0.00 | AL10: 0.00 | AM10: 0.00 | AN10: 0.00 | AO10: 0.00 | AP10: 0.00 | AQ10: 0.00 | AR10: 0.00 | AS10: 0.00 | AT10: 0.00 | AU10: 0.00 | AV10: 0.00 | AW10: 0.00 | AX10: 0.00 | AY10: 0.00 | AZ10: 0.00 | BA10: 0.00 | BB10: 0.00 | BC10: 0.00 | BD10: 0.00
A11: Canada | B11: 771.92 | C11: 1,759.63 | D11: 81.32 | E11: 1.11 | F11: 0.00 | G11: 0.00 | H11: 0.00 | I11: 0.00 | J11: 4,894.78 | K11: 9,892.77 | L11: 0.00 | M11: 0.00 | N11: 14.41 | O11: 48.74 | P11: 0.00 | Q11: 1,463.56 | R11: 1,165.23 | S11: 24,229.70 | T11: 34.94 | U11: 1.00 | V11: 104.14 | W11: 545.85 | X11: 86.95 | Y11: 1,784.20 | Z11: 3,616.80 | AA11: 0.00 | AB11: 1.20 | AC11: 105.84 | AD11: 0.00 | AE11: 3,054.28 | AF11: 0.00 | AG11: 46.47 | AH11: 0.00 | AI11: 4,156.52 | AJ11: 71.63 | AK11: 21.75 | AL11: 3,045.34 | AM11: 8,676.19 | AN11: 22.98 | AO11: 17.69 | AP11: 15,014.88 | AQ11: 20.97 | AR11: 146.35 | AS11: 3,181.11 | AT11: 0.00 | AU11: 0.00 | AV11: 16.57 | AW11: 1,826.24 | AX11: 0.84 | AY11: 26,012.95 | AZ11: 12,153.42 | BA11: 507,636.11 | BB11: 0.00 | BC11: 30,493.55 | BD11: 666,219.91
A12: China | B12: 1,878,337.77 | C12: 58,801.77 | D12: 83,812.01 | E12: 1,279,751.60 | F12: 6.54 | G12: 201.92 | H12: 18,407.64 | I12: 250,595.88 | J12: 0.00 | K12: 155,239.31 | L12: 2,827.71 | M12: 826.47 | N12: 3,908.23 | O12: 2,384.03 | P12: 3,158.09 | Q12: 5,377.52 | R12: 110,665.95 | S12: 354,817.02 | T12: 1,215.07 | U12: 394.78 | V12: 8,871,095.49 | W12: 67,033.40 | X12: 1,498.58 | Y12: 152,084.45 | Z12: 3,357,521.71 | AA12: 7,258.14 | AB12: 7.87 | AC12: 13,025.57 | AD12: 13,559.76 | AE12: 231,129.62 | AF12: 285.84 | AG12: 1,612,646.88 | AH12: 77,301.50 | AI12: 732,308.66 | AJ12: 18,989.99 | AK12: 4,336.61 | AL12: 17,922.75 | AM12: 177,668.67 | AN12: 4,803.75 | AO12: 236.04 | AP12: 762,600.28 | AQ12: 1,244.81 | AR12: 162,863.30 | AS12: 63,550.29 | AT12: 17.02 | AU12: 108,551.37 | AV12: 29,536.38 | AW12: 14,531.60 | AX12: 208,815.96 | AY12: 274,992.94 | AZ12: 109,352.78 | BA12: 1,842,862.92 | BB12: 174,015.79 | BC12: 13,206,831.59 | BD12: 36,531,211.61
A13: Hong Kong | B13: 0.00 | C13: 0.00 | D13: 0.00 | E13: 0.00 | F13: 0.00 | G13: 0.00 | H13: 0.00 | I13: 0.00 | J13: 1,278.75 | K13: 0.00 | L13: 0.00 | M13: 0.00 | N13: 0.00 | O13: 0.00 | P13: 0.00 | Q13: 0.00 | R13: 0.00 | S13: 0.00 | T13: 0.00 | U13: 0.00 | V13: 0.00 | W13: 0.00 | X13: 0.00 | Y13: 0.00 | Z13: 0.00 | AA13: 0.00 | AB13: 0.00 | AC13: 0.00 | AD13: 0.00 | AE13: 0.00 | AF13: 0.00 | AG13: 0.00 | AH13: 0.00 | AI13: 0.00 | AJ13: 0.00 | AK13: 0.00 | AL13: 0.00 | AM13: 0.00 | AN13: 0.00 | AO13: 0.00 | AP13: 0.00 | AQ13: 0.00 | AR13: 0.00 | AS13: 0.00 | AT13: 0.00 | AU13: 0.00 | AV13: 0.00 | AW13: 0.00 | AX13: 0.00 | AY13: 0.00 | AZ13: 0.00 | BA13: 0.00 | BB13: 0.00 | BC13: 0.00 | BD13: 1,278.75
A14: Croatia | B14: 224.40 | C14: 3,570.71 | D14: 0.00 | E14: 0.00 | F14: 0.00 | G14: 0.75 | H14: 0.00 | I14: 0.00 | J14: 4.16 | K14: 0.00 | L14: 0.00 | M14: 0.00 | N14: 0.29 | O14: 1,185.28 | P14: 40.15 | Q14: 0.00 | R14: 25,875.59 | S14: 31,154.79 | T14: 632.12 | U14: 6,281.70 | V14: 2.13 | W14: 0.00 | X14: 0.00 | Y14: 12,887.31 | Z14: 7.29 | AA14: 0.00 | AB14: 0.31 | AC14: 0.00 | AD14: 6.16 | AE14: 0.00 | AF14: 0.00 | AG14: 0.00 | AH14: 0.00 | AI14: 9,819.19 | AJ14: 11.72 | AK14: 1,326.62 | AL14: 0.00 | AM14: 0.00 | AN14: 6.15 | AO14: 0.66 | AP14: 0.00 | AQ14: 7.25 | AR14: 1.62 | AS14: 0.00 | AT14: 558.31 | AU14: 1,308.31 | AV14: 54.99 | AW14: 0.47 | AX14: 0.53 | AY14: 166,760.77 | AZ14: 0.96 | BA14: 0.00 | BB14: 0.00 | BC14: 1,139.88 | BD14: 262,870.56
A15: Cyprus | B15: 0.00 | C15: 0.00 | D15: 0.00 | E15: 0.00 | F15: 0.00 | G15: 0.00 | H15: 0.00 | I15: 0.00 | J15: 0.00 | K15: 0.00 | L15: 0.00 | M15: 0.00 | N15: 0.00 | O15: 0.00 | P15: 0.00 | Q15: 0.00 | R15: 6.40 | S15: 0.00 | T15: 180.69 | U15: 0.00 | V15: 0.00 | W15: 0.00 | X15: 0.00 | Y15: 0.00 | Z15: 0.00 | AA15: 0.00 | AB15: 0.00 | AC15: 0.00 | AD15: 0.00 | AE15: 0.00 | AF15: 0.00 | AG15: 0.00 | AH15: 0.00 | AI15: 0.00 | AJ15: 0.00 | AK15: 0.00 | AL15: 0.00 | AM15: 0.00 | AN15: 0.00 | AO15: 0.00 | AP15: 0.00 | AQ15: 0.00 | AR15: 0.00 | AS15: 0.00 | AT15: 0.00 | AU15: 0.00 | AV15: 0.00 | AW15: 0.00 | AX15: 0.00 | AY15: 0.00 | AZ15: 0.00 | BA15: 0.00 | BB15: 0.00 | BC15: 422.99 | BD15: 610.08
A16: Czechia | B16: 274.08 | C16: 10,468.94 | D16: 4,909.33 | E16: 8.09 | F16: 0.00 | G16: 438.50 | H16: 0.00 | I16: 15.23 | J16: 307.63 | K16: 73.35 | L16: 100.39 | M16: 727.54 | N16: 0.00 | O16: 4,125.33 | P16: 18.65 | Q16: 163.59 | R16: 110,944.72 | S16: 123,200.67 | T16: 14.53 | U16: 21,288.80 | V16: 26.22 | W16: 0.08 | X16: 1,715.07 | Y16: 20,682.50 | Z16: 41.29 | AA16: 0.00 | AB16: 198.17 | AC16: 80.18 | AD16: 9,418.83 | AE16: 226.01 | AF16: 674.18 | AG16: 109.52 | AH16: 0.00 | AI16: 23,840.77 | AJ16: 0.82 | AK16: 89.36 | AL16: 905.69 | AM16: 52.25 | AN16: 10,970.32 | AO16: 223.00 | AP16: 53.74 | AQ16: 522.86 | AR16: 599.45 | AS16: 306.24 | AT16: 17,263.20 | AU16: 209.76 | AV16: 2,412.79 | AW16: 880.88 | AX16: 1.45 | AY16: 317.33 | AZ16: 2,890.97 | BA16: 252.75 | BB16: 1.79 | BC16: 13,457.81 | BD16: 385,504.64
A17: Denmark | B17: 367.10 | C17: 3,444.34 | D17: 746.86 | E17: 25.48 | F17: 0.00 | G17: 58.97 | H17: 0.00 | I17: 146.49 | J17: 7,723.81 | K17: 1,595.76 | L17: 5.35 | M17: 1.03 | N17: 2,130.26 | O17: 0.00 | P17: 0.80 | Q17: 2,613.04 | R17: 372.83 | S17: 23,283.53 | T17: 26.74 | U17: 2.54 | V17: 156.58 | W17: 25.79 | X17: 10.34 | Y17: 1,337.27 | Z17: 704.26 | AA17: 0.00 | AB17: 39.86 | AC17: 1.10 | AD17: 0.00 | AE17: 212.98 | AF17: 1.29 | AG17: 51.43 | AH17: 0.00 | AI17: 4,847.66 | AJ17: 71.76 | AK17: 1,434.01 | AL17: 57.89 | AM17: 262.67 | AN17: 1,432.42 | AO17: 226.50 | AP17: 377.83 | AQ17: 102.34 | AR17: 7.75 | AS17: 671.02 | AT17: 49.12 | AU17: 1.64 | AV17: 1,061.24 | AW17: 7,419.97 | AX17: 132.27 | AY17: 38.47 | AZ17: 1,939.74 | BA17: 18,115.86 | BB17: 50.42 | BC17: 13,827.97 | BD17: 97,214.35
A18: Estonia | B18: 0.00 | C18: 0.00 | D18: 0.00 | E18: 0.00 | F18: 0.00 | G18: 0.00 | H18: 0.00 | I18: 0.00 | J18: 0.04 | K18: 0.00 | L18: 0.00 | M18: 0.00 | N18: 0.00 | O18: 0.00 | P18: 0.00 | Q18: 8,648.65 | R18: 0.00 | S18: 0.00 | T18: 0.00 | U18: 0.00 | V18: 0.00 | W18: 0.00 | X18: 0.00 | Y18: 2.72 | Z18: 0.00 | AA18: 0.00 | AB18: 62.21 | AC18: 0.09 | AD18: 0.00 | AE18: 0.00 | AF18: 0.00 | AG18: 0.00 | AH18: 0.00 | AI18: 0.00 | AJ18: 0.00 | AK18: 1.78 | AL18: 0.00 | AM18: 0.00 | AN18: 0.00 | AO18: 0.00 | AP18: 0.00 | AQ18: 0.00 | AR18: 374.19 | AS18: 0.00 | AT18: 0.00 | AU18: 0.00 | AV18: 0.00 | AW18: 1.68 | AX18: 0.00 | AY18: 0.00 | AZ18: 4.52 | BA18: 1.02 | BB18: 0.00 | BC18: 61.65 | BD18: 9,158.56
A19: Finland | B19: 30.11 | C19: 343.93 | D19: 59.70 | E19: 25.10 | F19: 0.00 | G19: 0.08 | H19: 0.00 | I19: 1,060.09 | J19: 1,479.55 | K19: 57.84 | L19: 62.26 | M19: 0.00 | N19: 0.45 | O19: 45.05 | P19: 906.72 | Q19: 0.00 | R19: 478.01 | S19: 2,831.39 | T19: 3.41 | U19: 2.44 | V19: 43.83 | W19: 0.10 | X19: 9.56 | Y19: 206.89 | Z19: 281.92 | AA19: 0.00 | AB19: 125.66 | AC19: 391.60 | AD19: 0.00 | AE19: 6.24 | AF19: 0.00 | AG19: 32.14 | AH19: 0.00 | AI19: 178.10 | AJ19: 0.06 | AK19: 167.35 | AL19: 360.07 | AM19: 30.69 | AN19: 71.84 | AO19: 39.17 | AP19: 49.60 | AQ19: 125.00 | AR19: 2,778.00 | AS19: 59.32 | AT19: 2.44 | AU19: 0.00 | AV19: 64.16 | AW19: 147.33 | AX19: 29.91 | AY19: 31.30 | AZ19: 1,187.08 | BA19: 2,541.77 | BB19: 1.39 | BC19: 15,095.72 | BD19: 31,444.38
A20: France | B20: 6,752.03 | C20: 2,908.66 | D20: 33,796.28 | E20: 1,717.86 | F20: 0.37 | G20: 148.24 | H20: 0.00 | I20: 16,033.31 | J20: 134,320.78 | K20: 3,309.04 | L20: 11,909.32 | M20: 159.04 | N20: 711.90 | O20: 793.60 | P20: 67.23 | Q20: 8,296.18 | R20: 0.00 | S20: 91,659.12 | T20: 2,403.51 | U20: 1,484.66 | V20: 21,665.33 | W20: 1,339.08 | X20: 1,577.21 | Y20: 85,485.24 | Z20: 14,603.35 | AA20: 0.00 | AB20: 41.20 | AC20: 37,212.63 | AD20: 1,960.42 | AE20: 67.83 | AF20: 1,137.99 | AG20: 1,594.16 | AH20: 0.01 | AI20: 84,177.11 | AJ20: 6.93 | AK20: 24.20 | AL20: 4,788.39 | AM20: 543.70 | AN20: 8,316.07 | AO20: 1,316.40 | AP20: 13,823.40 | AQ20: 4,152.11 | AR20: 13,113.01 | AS20: 143,005.36 | AT20: 231.34 | AU20: 81.38 | AV20: 12,753.95 | AW20: 31,252.31 | AX20: 86.30 | AY20: 39,758.58 | AZ20: 52,250.69 | BA20: 50,946.57 | BB20: 392.58 | BC20: 103,365.09 | BD20: 1,047,541.02
A21: Germany | B21: 11,693.80 | C21: 165,702.49 | D21: 112,534.04 | E21: 5,243.79 | F21: 0.00 | G21: 10,154.56 | H21: 4.33 | I21: 10,736.91 | J21: 315,814.44 | K21: 35,426.05 | L21: 2,884.88 | M21: 5,836.05 | N21: 38,797.79 | O21: 65,452.75 | P21: 8,920.12 | Q21: 26,519.39 | R21: 262,691.62 | S21: 0.00 | T21: 12,725.69 | U21: 156,810.31 | V21: 19,447.20 | W21: 2,714.65 | X21: 32,764.32 | Y21: 248,455.21 | Z21: 59,594.82 | AA21: 10.95 | AB21: 1,921.77 | AC21: 11,629.04 | AD21: 19,395.69 | AE21: 17,018.18 | AF21: 10,127.14 | AG21: 9,042.80 | AH21: 23.99 | AI21: 619,197.91 | AJ21: 653.34 | AK21: 10,163.34 | AL21: 5,647.52 | AM21: 12,288.26 | AN21: 291,907.31 | AO21: 20,476.75 | AP21: 21,124.51 | AQ21: 68,995.52 | AR21: 24,872.85 | AS21: 17,614.62 | AT21: 22,494.27 | AU21: 8,369.36 | AV21: 68,863.02 | AW21: 63,411.08 | AX21: 58,136.54 | AY21: 328,328.52 | AZ21: 177,123.51 | BA21: 168,767.07 | BB21: 2,645.36 | BC21: 352,979.65 | BD21: 4,024,155.07
A22: Greece | B22: 0.00 | C22: 0.00 | D22: 0.00 | E22: 0.00 | F22: 0.00 | G22: 1,396.29 | H22: 0.00 | I22: 0.03 | J22: 2.42 | K22: 0.00 | L22: 0.00 | M22: 917.94 | N22: 0.00 | O22: 0.00 | P22: 0.00 | Q22: 0.00 | R22: 9.29 | S22: 152.75 | T22: 0.00 | U22: 0.00 | V22: 0.00 | W22: 0.00 | X22: 0.00 | Y22: 14.49 | Z22: 4.45 | AA22: 0.00 | AB22: 0.00 | AC22: 0.00 | AD22: 0.00 | AE22: 0.00 | AF22: 541.82 | AG22: 0.01 | AH22: 0.00 | AI22: 0.39 | AJ22: 0.00 | AK22: 0.00 | AL22: 0.00 | AM22: 0.00 | AN22: 0.00 | AO22: 0.00 | AP22: 0.00 | AQ22: 0.00 | AR22: 0.00 | AS22: 0.00 | AT22: 0.00 | AU22: 23.66 | AV22: 13.02 | AW22: 0.00 | AX22: 0.00 | AY22: 0.00 | AZ22: 11.68 | BA22: 6.92 | BB22: 0.00 | BC22: 771.38 | BD22: 3,866.55
A23: Hungary | B23: 1,515.97 | C23: 593.69 | D23: 39.86 | E23: 0.81 | F23: 0.00 | G23: 162.58 | H23: 0.00 | I23: 6.98 | J23: 1,329.13 | K23: 122.57 | L23: 2.04 | M23: 0.07 | N23: 20.70 | O23: 0.16 | P23: 57.89 | Q23: 0.01 | R23: 275.23 | S23: 19,202.43 | T23: 2.57 | U23: 0.00 | V23: 89.48 | W23: 0.13 | X23: 13.98 | Y23: 138.36 | Z23: 58.31 | AA23: 0.00 | AB23: 0.99 | AC23: 0.07 | AD23: 0.00 | AE23: 252.12 | AF23: 0.04 | AG23: 324.05 | AH23: 0.00 | AI23: 2,391.37 | AJ23: 0.07 | AK23: 0.00 | AL23: 4.79 | AM23: 19.82 | AN23: 1,082.56 | AO23: 0.47 | AP23: 46.14 | AQ23: 1,582.33 | AR23: 104.42 | AS23: 35.68 | AT23: 23,077.72 | AU23: 10.81 | AV23: 290.16 | AW23: 102.72 | AX23: 35.16 | AY23: 1,545.50 | AZ23: 8,197.79 | BA23: 951.18 | BB23: 15.01 | BC23: 2,383.64 | BD23: 66,087.57
A24: India | B24: 124.47 | C24: 1.61 | D24: 32,373.82 | E24: 123.13 | F24: 0.00 | G24: 0.18 | H24: 0.00 | I24: 1,730.64 | J24: 4,990.98 | K24: 214.69 | L24: 7,569.89 | M24: 0.00 | N24: 120.84 | O24: 42,012.06 | P24: 452.44 | Q24: 392.24 | R24: 738.40 | S24: 30,518.16 | T24: 1,628.59 | U24: 0.21 | V24: 0.00 | W24: 0.27 | X24: 814.31 | Y24: 10,526.27 | Z24: 6,120.17 | AA24: 0.00 | AB24: 0.02 | AC24: 815.01 | AD24: 0.00 | AE24: 37.79 | AF24: 0.00 | AG24: 114.91 | AH24: 1,055.56 | AI24: 341.40 | AJ24: 0.69 | AK24: 0.56 | AL24: 190.04 | AM24: 94.68 | AN24: 422.51 | AO24: 1,055.59 | AP24: 276.39 | AQ24: 0.01 | AR24: 1.68 | AS24: 41.20 | AT24: 30.16 | AU24: 965.09 | AV24: 3,408.13 | AW24: 60.52 | AX24: 5.28 | AY24: 88,246.10 | AZ24: 2,151.63 | BA24: 120,311.91 | BB24: 457.53 | BC24: 68,081.90 | BD24: 428,619.66
A25: Indonesia | B25: 663.48 | C25: 1.29 | D25: 1.92 | E25: 5.23 | F25: 0.00 | G25: 1.10 | H25: 0.00 | I25: 23,213.74 | J25: 1,201.69 | K25: 43.43 | L25: 0.00 | M25: 0.00 | N25: 0.78 | O25: 0.09 | P25: 1.10 | Q25: 402.38 | R25: 12.53 | S25: 7,457.00 | T25: 0.00 | U25: 0.23 | V25: 198.45 | W25: 0.00 | X25: 0.32 | Y25: 2.13 | Z25: 792.20 | AA25: 0.00 | AB25: 0.21 | AC25: 0.13 | AD25: 0.00 | AE25: 2.64 | AF25: 0.00 | AG25: 279.80 | AH25: 0.01 | AI25: 808.69 | AJ25: 213.98 | AK25: 1.33 | AL25: 16.45 | AM25: 8.01 | AN25: 0.67 | AO25: 279.88 | AP25: 68.96 | AQ25: 0.00 | AR25: 23.77 | AS25: 70.94 | AT25: 0.01 | AU25: 0.00 | AV25: 1.37 | AW25: 139.72 | AX25: 1.58 | AY25: 8,040.57 | AZ25: 28.86 | BA25: 19,312.12 | BB25: 343.45 | BC25: 4,816.21 | BD25: 68,458.45
A26: Ireland | B26: 215.22 | C26: 22.44 | D26: 48.14 | E26: 4.28 | F26: 0.00 | G26: 4,077.48 | H26: 0.00 | I26: 241.45 | J26: 4,746.69 | K26: 161.55 | L26: 0.00 | M26: 0.00 | N26: 38.05 | O26: 7.10 | P26: 3.94 | Q26: 67.98 | R26: 42.99 | S26: 2,367.39 | T26: 12.10 | U26: 14.00 | V26: 66.91 | W26: 0.18 | X26: 0.00 | Y26: 397.67 | Z26: 291.50 | AA26: 0.00 | AB26: 0.01 | AC26: 88.60 | AD26: 0.00 | AE26: 23.27 | AF26: 0.00 | AG26: 65.38 | AH26: 0.00 | AI26: 570.42 | AJ26: 0.14 | AK26: 14.19 | AL26: 120.93 | AM26: 26.11 | AN26: 83.49 | AO26: 3.05 | AP26: 384.28 | AQ26: 32.44 | AR26: 69.92 | AS26: 32.96 | AT26: 5.92 | AU26: 0.75 | AV26: 1,259.75 | AW26: 75.91 | AX26: 19.60 | AY26: 0.70 | AZ26: 1,281.35 | BA26: 9,376.85 | BB26: 3.93 | BC26: 745.82 | BD26: 27,112.83
A27: Italy | B27: 463.31 | C27: 5,189.18 | D27: 7,242.46 | E27: 3,149.29 | F27: 0.00 | G27: 1,755.07 | H27: 0.00 | I27: 2,831.26 | J27: 26,037.49 | K27: 1,293.69 | L27: 1,312.64 | M27: 1,318.19 | N27: 2,192.15 | O27: 539.93 | P27: 47.88 | Q27: 347.00 | R27: 23,047.94 | S27: 39,615.21 | T27: 802.53 | U27: 4,572.45 | V27: 7,464.29 | W27: 216.40 | X27: 1,135.74 | Y27: 0.00 | Z27: 2,021.86 | AA27: 5.73 | AB27: 70.37 | AC27: 133.32 | AD27: 41.48 | AE27: 44.96 | AF27: 5,136.89 | AG27: 842.93 | AH27: 0.00 | AI27: 6,112.54 | AJ27: 13.92 | AK27: 450.43 | AL27: 876.77 | AM27: 303.86 | AN27: 7,322.01 | AO27: 1,709.42 | AP27: 1,937.71 | AQ27: 6,748.86 | AR27: 7,642.48 | AS27: 444.86 | AT27: 4,932.57 | AU27: 1,589.82 | AV27: 6,185.76 | AW27: 8,841.61 | AX27: 775.40 | AY27: 4,745.43 | AZ27: 14,168.64 | BA27: 705,697.57 | BB27: 59.26 | BC27: 50,560.60 | BD27: 969,991.17
A28: Japan | B28: 469.48 | C28: 474.26 | D28: 5,739.81 | E28: 780.31 | F28: 0.00 | G28: 62.11 | H28: 0.00 | I28: 321.56 | J28: 1,286,457.03 | K28: 109,527.51 | L28: 0.00 | M28: 0.00 | N28: 528.57 | O28: 137.01 | P28: 0.00 | Q28: 10.95 | R28: 4,294.62 | S28: 22,710.38 | T28: 3.18 | U28: 102.90 | V28: 6,709.74 | W28: 73,669.65 | X28: 0.00 | Y28: 104.20 | Z28: 0.00 | AA28: 0.00 | AB28: 2.71 | AC28: 61.68 | AD28: 0.00 | AE28: 111,970.03 | AF28: 0.00 | AG28: 1,653.31 | AH28: 0.00 | AI28: 659.14 | AJ28: 61.83 | AK28: 760.99 | AL28: 219,115.53 | AM28: 36,071.68 | AN28: 130.13 | AO28: 8.09 | AP28: 39,255.57 | AQ28: 4.21 | AR28: 199.65 | AS28: 60,336.37 | AT28: 11.78 | AU28: 0.00 | AV28: 58.37 | AW28: 40.81 | AX28: 199,977.88 | AY28: 466.25 | AZ28: 18,604.67 | BA28: 53,359.32 | BB28: 30,052.13 | BC28: 18,531.13 | BD28: 2,303,496.54
A29: Lao PDR | B29: 0.00 | C29: 0.00 | D29: 0.00 | E29: 0.00 | F29: 0.00 | G29: 0.00 | H29: 0.00 | I29: 0.00 | J29: 0.00 | K29: 0.00 | L29: 0.00 | M29: 0.00 | N29: 0.00 | O29: 0.00 | P29: 0.00 | Q29: 0.00 | R29: 0.00 | S29: 0.00 | T29: 0.00 | U29: 0.00 | V29: 0.00 | W29: 0.00 | X29: 0.00 | Y29: 0.00 | Z29: 0.00 | AA29: 0.00 | AB29: 0.00 | AC29: 0.00 | AD29: 0.00 | AE29: 0.00 | AF29: 0.00 | AG29: 0.00 | AH29: 0.00 | AI29: 0.00 | AJ29: 0.00 | AK29: 0.00 | AL29: 0.00 | AM29: 0.00 | AN29: 0.00 | AO29: 0.00 | AP29: 0.00 | AQ29: 0.00 | AR29: 0.00 | AS29: 0.00 | AT29: 0.00 | AU29: 0.00 | AV29: 0.00 | AW29: 0.00 | AX29: 0.00 | AY29: 0.00 | AZ29: 0.00 | BA29: 0.00 | BB29: 0.00 | BC29: 0.00 | BD29: 0.00
A30: Latvia | B30: 0.45 | C30: 0.01 | D30: 0.17 | E30: 0.02 | F30: 0.00 | G30: 0.00 | H30: 0.00 | I30: 0.01 | J30: 15.35 | K30: 3.46 | L30: 0.00 | M30: 0.00 | N30: 0.55 | O30: 0.00 | P30: 7.36 | Q30: 0.00 | R30: 0.12 | S30: 1.39 | T30: 0.00 | U30: 0.00 | V30: 10.70 | W30: 0.00 | X30: 0.00 | Y30: 0.00 | Z30: 2.07 | AA30: 0.00 | AB30: 0.00 | AC30: 0.62 | AD30: 0.00 | AE30: 0.05 | AF30: 0.00 | AG30: 0.05 | AH30: 0.00 | AI30: 0.02 | AJ30: 0.00 | AK30: 0.00 | AL30: 0.13 | AM30: 0.56 | AN30: 0.00 | AO30: 0.00 | AP30: 0.57 | AQ30: 0.00 | AR30: 1,267.34 | AS30: 0.65 | AT30: 0.00 | AU30: 0.00 | AV30: 0.00 | AW30: 0.00 | AX30: 0.05 | AY30: 15.83 | AZ30: 57.87 | BA30: 0.99 | BB30: 0.08 | BC30: 46.41 | BD30: 1,432.92
A31: Lithuania | B31: 7.67 | C31: 175.16 | D31: 257.07 | E31: 11.05 | F31: 0.00 | G31: 0.98 | H31: 0.00 | I31: 895.73 | J31: 8,267.64 | K31: 1,654.97 | L31: 158.74 | M31: 0.00 | N31: 6.51 | O31: 250.57 | P31: 17.66 | Q31: 20.09 | R31: 60.43 | S31: 16,833.73 | T31: 0.05 | U31: 1.56 | V31: 112.07 | W31: 1.80 | X31: 0.14 | Y31: 1,376.23 | Z31: 829.88 | AA31: 0.00 | AB31: 13.09 | AC31: 0.00 | AD31: 0.00 | AE31: 25.06 | AF31: 0.00 | AG31: 2,903.62 | AH31: 0.00 | AI31: 832.92 | AJ31: 0.97 | AK31: 1,119.52 | AL31: 60.49 | AM31: 267.74 | AN31: 85.54 | AO31: 5.96 | AP31: 630.14 | AQ31: 0.06 | AR31: 1,088.84 | AS31: 314.73 | AT31: 333.65 | AU31: 0.00 | AV31: 736.93 | AW31: 3,149.13 | AX31: 24.93 | AY31: 7,838.71 | AZ31: 464.92 | BA31: 5,450.18 | BB31: 40.32 | BC31: 2,235.33 | BD31: 58,562.58
A32: Luxembourg | B32: 0.02 | C32: 9,154.63 | D32: 78,996.68 | E32: 0.00 | F32: 0.00 | G32: 0.00 | H32: 0.00 | I32: 13.69 | J32: 2.18 | K32: 0.01 | L32: 0.00 | M32: 1.69 | N32: 37.84 | O32: 15.28 | P32: 0.37 | Q32: 40.68 | R32: 25,773.83 | S32: 41,215.67 | T32: 0.02 | U32: 324.16 | V32: 21.83 | W32: 4.38 | X32: 0.00 | Y32: 115.59 | Z32: 0.16 | AA32: 0.00 | AB32: 0.00 | AC32: 0.00 | AD32: 0.00 | AE32: 0.00 | AF32: 0.00 | AG32: 4.57 | AH32: 0.00 | AI32: 59,811.43 | AJ32: 0.00 | AK32: 106.88 | AL32: 0.01 | AM32: 0.00 | AN32: 5.31 | AO32: 929.06 | AP32: 0.00 | AQ32: 30.95 | AR32: 13.11 | AS32: 0.01 | AT32: 0.00 | AU32: 0.00 | AV32: 3.08 | AW32: 137.37 | AX32: 0.00 | AY32: 53.60 | AZ32: 23.02 | BA32: 20.96 | BB32: 0.00 | BC32: 546.24 | BD32: 217,404.33
A33: Malaysia | B33: 26,723.29 | C33: 2.30 | D33: 49.70 | E33: 15.44 | F33: 0.00 | G33: 0.46 | H33: 0.00 | I33: 8,155.65 | J33: 7,481.03 | K33: 510.94 | L33: 0.00 | M33: 0.00 | N33: 0.51 | O33: 4.44 | P33: 0.19 | Q33: 0.52 | R33: 11,277.38 | S33: 152,807.49 | T33: 0.01 | U33: 0.49 | V33: 21,838.31 | W33: 2,848.07 | X33: 0.05 | Y33: 31.46 | Z33: 373,494.81 | AA33: 0.00 | AB33: 0.05 | AC33: 5.66 | AD33: 0.00 | AE33: 0.00 | AF33: 0.00 | AG33: 1,638.65 | AH33: 0.00 | AI33: 48,476.00 | AJ33: 28.06 | AK33: 4.64 | AL33: 3,272.00 | AM33: 1,517.67 | AN33: 0.69 | AO33: 0.09 | AP33: 204.80 | AQ33: 0.02 | AR33: 4.98 | AS33: 7,077.18 | AT33: 0.00 | AU33: 0.00 | AV33: 0.46 | AW33: 0.57 | AX33: 3,872.55 | AY33: 137,181.74 | AZ33: 190.03 | BA33: 1,075,859.92 | BB33: 10,493.27 | BC33: 50,024.69 | BD33: 1,945,096.31
A34: Malta | B34: 0.00 | C34: 0.00 | D34: 0.00 | E34: 0.00 | F34: 0.00 | G34: 0.00 | H34: 0.00 | I34: 0.00 | J34: 0.00 | K34: 0.00 | L34: 0.00 | M34: 0.00 | N34: 0.00 | O34: 0.00 | P34: 0.00 | Q34: 0.00 | R34: 0.00 | S34: 0.00 | T34: 0.00 | U34: 0.00 | V34: 0.00 | W34: 0.00 | X34: 0.00 | Y34: 0.38 | Z34: 0.00 | AA34: 0.00 | AB34: 0.00 | AC34: 0.00 | AD34: 0.00 | AE34: 0.00 | AF34: 0.00 | AG34: 0.00 | AH34: 0.00 | AI34: 0.00 | AJ34: 0.00 | AK34: 0.00 | AL34: 0.00 | AM34: 0.00 | AN34: 0.00 | AO34: 0.00 | AP34: 0.00 | AQ34: 0.00 | AR34: 0.00 | AS34: 0.00 | AT34: 0.00 | AU34: 0.00 | AV34: 0.00 | AW34: 0.00 | AX34: 0.00 | AY34: 0.00 | AZ34: 0.00 | BA34: 0.00 | BB34: 0.00 | BC34: 8.35 | BD34: 8.73
A35: Mexico | B35: 0.21 | C35: 0.02 | D35: 0.29 | E35: 0.08 | F35: 0.00 | G35: 0.01 | H35: 0.00 | I35: 119.53 | J35: 17.22 | K35: 4.03 | L35: 0.00 | M35: 0.00 | N35: 0.01 | O35: 0.02 | P35: 0.00 | Q35: 0.01 | R35: 26,735.85 | S35: 1.52 | T35: 0.00 | U35: 0.00 | V35: 0.39 | W35: 0.01 | X35: 0.00 | Y35: 0.03 | Z35: 2.10 | AA35: 0.00 | AB35: 0.00 | AC35: 0.02 | AD35: 0.00 | AE35: 57.25 | AF35: 0.00 | AG35: 0.00 | AH35: 0.00 | AI35: 0.41 | AJ35: 0.02 | AK35: 0.02 | AL35: 1.64 | AM35: 6.38 | AN35: 0.01 | AO35: 0.00 | AP35: 0.66 | AQ35: 0.00 | AR35: 0.11 | AS35: 0.81 | AT35: 0.00 | AU35: 0.00 | AV35: 6.87 | AW35: 0.01 | AX35: 0.13 | AY35: 0.02 | AZ35: 0.90 | BA35: 4,117.44 | BB35: 0.09 | BC35: 239.00 | BD35: 31,313.15
A36: Myanmar | B36: 0.00 | C36: 0.00 | D36: 0.00 | E36: 0.00 | F36: 0.00 | G36: 0.00 | H36: 0.00 | I36: 0.00 | J36: 0.00 | K36: 0.00 | L36: 0.00 | M36: 0.00 | N36: 0.00 | O36: 0.00 | P36: 0.00 | Q36: 0.00 | R36: 0.00 | S36: 0.00 | T36: 0.00 | U36: 0.00 | V36: 0.00 | W36: 0.00 | X36: 0.00 | Y36: 0.00 | Z36: 0.00 | AA36: 0.00 | AB36: 0.00 | AC36: 0.00 | AD36: 0.00 | AE36: 0.00 | AF36: 0.00 | AG36: 0.00 | AH36: 0.00 | AI36: 0.00 | AJ36: 0.00 | AK36: 0.00 | AL36: 0.00 | AM36: 0.00 | AN36: 0.00 | AO36: 0.00 | AP36: 0.00 | AQ36: 0.00 | AR36: 0.00 | AS36: 0.00 | AT36: 0.00 | AU36: 0.00 | AV36: 0.00 | AW36: 0.00 | AX36: 0.00 | AY36: 0.00 | AZ36: 0.00 | BA36: 0.00 | BB36: 0.00 | BC36: 0.00 | BD36: 0.00
A37: Netherlands | B37: 300.31 | C37: 83,245.01 | D37: 320,517.06 | E37: 318.06 | F37: 0.00 | G37: 1,781.12 | H37: 0.00 | I37: 2,859.48 | J37: 31,581.95 | K37: 4,831.24 | L37: 5,551.16 | M37: 13,166.44 | N37: 35,074.53 | O37: 14,016.63 | P37: 9,112.62 | Q37: 13,080.26 | R37: 826,233.18 | S37: 2,144,388.76 | T37: 6,140.93 | U37: 80,829.09 | V37: 677.51 | W37: 1,434.78 | X37: 4,541.07 | Y37: 242,182.73 | Z37: 9,959.07 | AA37: 0.00 | AB37: 338.49 | AC37: 3,074.96 | AD37: 114,990.23 | AE37: 199.82 | AF37: 6,924.10 | AG37: 174.34 | AH37: 0.00 | AI37: 0.00 | AJ37: 19.04 | AK37: 2,646.82 | AL37: 7,165.17 | AM37: 905.30 | AN37: 40,025.31 | AO37: 43,909.21 | AP37: 2,113.46 | AQ37: 5,537.42 | AR37: 3,045.52 | AS37: 2,232.59 | AT37: 7,029.85 | AU37: 0.00 | AV37: 101,759.69 | AW37: 61,039.80 | AX37: 5,782.30 | AY37: 133,963.52 | AZ37: 688,410.86 | BA37: 14,976.69 | BB37: 746.90 | BC37: 74,800.32 | BD37: 5,173,634.71
A38: New Zealand | B38: 1,038.69 | C38: 0.00 | D38: 0.00 | E38: 0.00 | F38: 0.00 | G38: 0.00 | H38: 0.00 | I38: 0.00 | J38: 0.00 | K38: 0.00 | L38: 0.00 | M38: 0.00 | N38: 0.00 | O38: 0.00 | P38: 0.00 | Q38: 0.00 | R38: 0.00 | S38: 0.00 | T38: 0.00 | U38: 0.00 | V38: 0.00 | W38: 10.54 | X38: 0.00 | Y38: 0.00 | Z38: 0.00 | AA38: 0.60 | AB38: 0.00 | AC38: 0.00 | AD38: 0.00 | AE38: 0.00 | AF38: 0.00 | AG38: 0.00 | AH38: 0.00 | AI38: 0.00 | AJ38: 0.00 | AK38: 0.00 | AL38: 0.00 | AM38: 0.00 | AN38: 0.00 | AO38: 0.00 | AP38: 0.00 | AQ38: 0.00 | AR38: 0.00 | AS38: 0.00 | AT38: 0.00 | AU38: 0.00 | AV38: 240.22 | AW38: 0.00 | AX38: 17.43 | AY38: 0.00 | AZ38: 5.09 | BA38: 28.66 | BB38: 16.73 | BC38: 701.84 | BD38: 2,059.80
A39: Norway | B39: 0.00 | C39: 4.14 | D39: 0.00 | E39: 0.00 | F39: 0.00 | G39: 0.00 | H39: 0.00 | I39: 0.10 | J39: 0.00 | K39: 0.00 | L39: 0.00 | M39: 0.00 | N39: 10.47 | O39: 114.79 | P39: 84.60 | Q39: 8.79 | R39: 0.00 | S39: 127.73 | T39: 93.36 | U39: 0.00 | V39: 334.41 | W39: 0.00 | X39: 0.00 | Y39: 6.81 | Z39: 49.39 | AA39: 0.00 | AB39: 10.84 | AC39: 13.09 | AD39: 0.00 | AE39: 0.00 | AF39: 0.00 | AG39: 0.02 | AH39: 0.00 | AI39: 21.40 | AJ39: 0.00 | AK39: 0.00 | AL39: 0.00 | AM39: 0.00 | AN39: 153.43 | AO39: 0.00 | AP39: 2.49 | AQ39: 0.00 | AR39: 2.61 | AS39: 0.00 | AT39: 0.00 | AU39: 0.00 | AV39: 9.49 | AW39: 369.00 | AX39: 0.00 | AY39: 5.52 | AZ39: 10.50 | BA39: 26.76 | BB39: 0.00 | BC39: 1,280.76 | BD39: 2,740.50
A40: Taiwan | B40: 27,628.64 | C40: 97,160.91 | D40: 10,241.90 | E40: 1,697.85 | F40: 0.00 | G40: 48.86 | H40: 0.00 | I40: 35,179.07 | J40: 2,506,857.80 | K40: 83,308.00 | L40: 8,057.84 | M40: 0.00 | N40: 175,292.81 | O40: 166.43 | P40: 1,424.90 | Q40: 416.31 | R40: 82,948.03 | S40: 422,431.83 | T40: 194.83 | U40: 2,156.36 | V40: 261,052.91 | W40: 29,678.71 | X40: 0.48 | Y40: 81,385.28 | Z40: 373,945.83 | AA40: 0.00 | AB40: 2.38 | AC40: 10,499.76 | AD40: 20,663.26 | AE40: 22,313.81 | AF40: 767.48 | AG40: 19,263.30 | AH40: 0.01 | AI40: 267,187.98 | AJ40: 245.62 | AK40: 2.08 | AL40: 0.00 | AM40: 69,052.10 | AN40: 32,899.20 | AO40: 23,298.89 | AP40: 109,836.61 | AQ40: 3,915.44 | AR40: 822.93 | AS40: 193,287.11 | AT40: 0.01 | AU40: 10,260.36 | AV40: 4,160.48 | AW40: 46.95 | AX40: 121,502.60 | AY40: 657,978.81 | AZ40: 15,366.22 | BA40: 71,580.70 | BB40: 1,116,876.54 | BC40: 82,874.12 | BD40: 7,055,980.35
A41: Philippines | B41: 1,548.49 | C41: 50.88 | D41: 3,049.82 | E41: 63.02 | F41: 0.00 | G41: 5.54 | H41: 0.00 | I41: 3,674.68 | J41: 47,285.15 | K41: 9,474.18 | L41: 0.00 | M41: 0.00 | N41: 7.44 | O41: 11.97 | P41: 0.17 | Q41: 6.13 | R41: 6,763.91 | S41: 4,150.52 | T41: 0.28 | U41: 8.93 | V41: 540.51 | W41: 10.27 | X41: 154.64 | Y41: 2,194.89 | Z41: 928,301.42 | AA41: 0.00 | AB41: 0.27 | AC41: 5.52 | AD41: 0.00 | AE41: 330.52 | AF41: 0.00 | AG41: 105,698.04 | AH41: 0.00 | AI41: 374.99 | AJ41: 5.58 | AK41: 0.35 | AL41: 521.66 | AM41: 0.00 | AN41: 58.85 | AO41: 0.08 | AP41: 2,173.18 | AQ41: 0.36 | AR41: 119.66 | AS41: 2,131.00 | AT41: 0.00 | AU41: 0.00 | AV41: 3,080.83 | AW41: 29.91 | AX41: 2,588.76 | AY41: 219.46 | AZ41: 7,872.00 | BA41: 40,435.26 | BB41: 231.84 | BC41: 4,035.02 | BD41: 1,177,215.97
A42: Poland | B42: 20.75 | C42: 386.63 | D42: 1,590.06 | E42: 46.28 | F42: 0.00 | G42: 477.73 | H42: 0.00 | I42: 22.60 | J42: 1,382.09 | K42: 117.40 | L42: 27.32 | M42: 14,679.37 | N42: 1,475.22 | O42: 143.34 | P42: 2,097.62 | Q42: 1,132.30 | R42: 2,603.49 | S42: 28,319.09 | T42: 641.77 | U42: 2,490.91 | V42: 337.90 | W42: 0.13 | X42: 3.58 | Y42: 4,094.82 | Z42: 94.15 | AA42: 0.00 | AB42: 40.49 | AC42: 43.49 | AD42: 287.07 | AE42: 9.09 | AF42: 0.17 | AG42: 5.97 | AH42: 0.00 | AI42: 12,482.77 | AJ42: 0.29 | AK42: 380.98 | AL42: 22.17 | AM42: 18.98 | AN42: 0.00 | AO42: 210.20 | AP42: 39.14 | AQ42: 134.33 | AR42: 640.89 | AS42: 36.26 | AT42: 150.29 | AU42: 117.09 | AV42: 1,058.29 | AW42: 3,238.13 | AX42: 2.84 | AY42: 22,874.00 | AZ42: 6,766.51 | BA42: 4,673.16 | BB42: 12.49 | BC42: 9,111.62 | BD42: 124,541.29
A43: Portugal | B43: 7.98 | C43: 652.42 | D43: 16,002.12 | E43: 287.62 | F43: 0.00 | G43: 1.18 | H43: 0.00 | I43: 10.45 | J43: 9,373.59 | K43: 2,075.27 | L43: 0.00 | M43: 0.00 | N43: 1.61 | O43: 325.47 | P43: 0.00 | Q43: 0.21 | R43: 1,726.71 | S43: 8,075.96 | T43: 211.65 | U43: 735.88 | V43: 105.42 | W43: 2.22 | X43: 51.37 | Y43: 10.17 | Z43: 714.28 | AA43: 0.00 | AB43: 0.05 | AC43: 1.18 | AD43: 501.90 | AE43: 31.22 | AF43: 0.00 | AG43: 52.42 | AH43: 0.00 | AI43: 10,277.85 | AJ43: 1.18 | AK43: 0.01 | AL43: 75.14 | AM43: 335.70 | AN43: 2.47 | AO43: 0.00 | AP43: 339.23 | AQ43: 195.60 | AR43: 3.78 | AS43: 392.85 | AT43: 0.00 | AU43: 1.46 | AV43: 1,918.67 | AW43: 1,151.01 | AX43: 31.15 | AY43: 8.84 | AZ43: 604.68 | BA43: 2,450.09 | BB43: 50.59 | BC43: 4,365.82 | BD43: 63,164.49
A44: Korea | B44: 127,879.80 | C44: 17.45 | D44: 56,377.42 | E44: 85.05 | F44: 0.00 | G44: 2,000.11 | H44: 0.00 | I44: 120,114.43 | J44: 61,062.89 | K44: 2,920.28 | L44: 0.00 | M44: 205.08 | N44: 5.68 | O44: 21.06 | P44: 409.25 | Q44: 12.99 | R44: 459.99 | S44: 202,526.28 | T44: 8,947.09 | U44: 57.85 | V44: 1,555.82 | W44: 37.61 | X44: 1.47 | Y44: 137.12 | Z44: 808,094.13 | AA44: 0.00 | AB44: 1.05 | AC44: 17.98 | AD44: 0.00 | AE44: 24,622.58 | AF44: 509.69 | AG44: 3,713.03 | AH44: 0.04 | AI44: 544,803.98 | AJ44: 2,835.49 | AK44: 19.21 | AL44: 1,720.31 | AM44: 2,145.60 | AN44: 1,281.98 | AO44: 95.94 | AP44: 0.00 | AQ44: 0.11 | AR44: 115.27 | AS44: 746.56 | AT44: 0.03 | AU44: 1,749.23 | AV44: 13.64 | AW44: 11.62 | AX44: 49,329.98 | AY44: 48,284.00 | AZ44: 1,178.14 | BA44: 3,259,268.69 | BB44: 116,131.05 | BC44: 152,283.25 | BD44: 5,603,807.31
A45: Romania | B45: 0.06 | C45: 32.39 | D45: 1.62 | E45: 0.10 | F45: 0.00 | G45: 61.35 | H45: 0.00 | I45: 0.28 | J45: 133.35 | K45: 15.85 | L45: 0.00 | M45: 0.00 | N45: 11.48 | O45: 0.02 | P45: 0.00 | Q45: 0.00 | R45: 7,169.38 | S45: 349.77 | T45: 0.05 | U45: 7.53 | V45: 0.81 | W45: 0.02 | X45: 1.49 | Y45: 1,326.98 | Z45: 28.66 | AA45: 0.00 | AB45: 0.00 | AC45: 0.01 | AD45: 0.00 | AE45: 0.24 | AF45: 0.00 | AG45: 3.69 | AH45: 0.00 | AI45: 269.86 | AJ45: 0.01 | AK45: 24.00 | AL45: 0.57 | AM45: 3.20 | AN45: 2.25 | AO45: 6.79 | AP45: 2.59 | AQ45: 0.00 | AR45: 0.03 | AS45: 3.00 | AT45: 3.04 | AU45: 0.00 | AV45: 0.01 | AW45: 40.52 | AX45: 0.24 | AY45: 14,058.76 | AZ45: 6.50 | BA45: 70.58 | BB45: 0.39 | BC45: 2,031.09 | BD45: 25,668.54
A46: Russian Federation | B46: 0.78 | C46: 4.76 | D46: 8.21 | E46: 0.03 | F46: 0.00 | G46: 3.70 | H46: 0.00 | I46: 3.22 | J46: 1,105.36 | K46: 3.29 | L46: 0.00 | M46: 0.00 | N46: 7.40 | O46: 0.01 | P46: 1.07 | Q46: 0.00 | R46: 10.83 | S46: 109.47 | T46: 0.00 | U46: 0.91 | V46: 4,091.03 | W46: 0.00 | X46: 0.82 | Y46: 21.97 | Z46: 12.98 | AA46: 0.00 | AB46: 0.00 | AC46: 89.13 | AD46: 0.00 | AE46: 529.53 | AF46: 0.00 | AG46: 0.80 | AH46: 0.00 | AI46: 6.63 | AJ46: 1.52 | AK46: 0.00 | AL46: 2,499.45 | AM46: 0.53 | AN46: 171.77 | AO46: 0.00 | AP46: 337.34 | AQ46: 0.00 | AR46: 0.00 | AS46: 0.62 | AT46: 0.00 | AU46: 0.00 | AV46: 0.75 | AW46: 2.01 | AX46: 617.00 | AY46: 1.82 | AZ46: 0.57 | BA46: 832.58 | BB46: 0.76 | BC46: 5,505.47 | BD46: 15,984.14
A47: Singapore | B47: 117,107.29 | C47: 54.37 | D47: 491.07 | E47: 68.70 | F47: 67.37 | G47: 5.85 | H47: 351.83 | I47: 9,300.77 | J47: 56,718.43 | K47: 9,729.02 | L47: 0.00 | M47: 0.00 | N47: 7.76 | O47: 31.33 | P47: 0.35 | Q47: 1.84 | R47: 377.57 | S47: 2,138.83 | T47: 0.28 | U47: 9.19 | V47: 119,285.18 | W47: 4,681.03 | X47: 0.10 | Y47: 11.96 | Z47: 102,392.62 | AA47: 0.00 | AB47: 0.31 | AC47: 7.99 | AD47: 0.00 | AE47: 18,622.07 | AF47: 0.00 | AG47: 645.18 | AH47: 401.12 | AI47: 469,097.83 | AJ47: 1,104.15 | AK47: 2.47 | AL47: 39,176.92 | AM47: 4,690.96 | AN47: 11.74 | AO47: 0.17 | AP47: 2,144.46 | AQ47: 0.37 | AR47: 26,616.20 | AS47: 0.00 | AT47: 0.00 | AU47: 0.00 | AV47: 4.97 | AW47: 4.34 | AX47: 31,732.36 | AY47: 67,226.74 | AZ47: 1,662.10 | BA47: 507,550.28 | BB47: 62,432.30 | BC47: 25,892.89 | BD47: 1,681,860.65
A48: Slovakia | B48: 178.94 | C48: 308.69 | D48: 0.62 | E48: 17.92 | F48: 0.00 | G48: 0.08 | H48: 0.00 | I48: 1,613.26 | J48: 66.38 | K48: 9.63 | L48: 1.27 | M48: 0.00 | N48: 662.51 | O48: 0.06 | P48: 0.08 | Q48: 0.19 | R48: 13.93 | S48: 9,796.40 | T48: 0.00 | U48: 21,985.28 | V48: 4.42 | W48: 0.07 | X48: 0.02 | Y48: 0.18 | Z48: 714.16 | AA48: 0.00 | AB48: 0.01 | AC48: 214.64 | AD48: 0.00 | AE48: 0.51 | AF48: 0.00 | AG48: 127.00 | AH48: 0.00 | AI48: 3.04 | AJ48: 0.07 | AK48: 0.12 | AL48: 1.39 | AM48: 1.60 | AN48: 33.92 | AO48: 0.04 | AP48: 3.60 | AQ48: 33.61 | AR48: 1.64 | AS48: 125.54 | AT48: 0.00 | AU48: 0.96 | AV48: 9.49 | AW48: 0.45 | AX48: 0.55 | AY48: 0.05 | AZ48: 4.25 | BA48: 8,141.49 | BB48: 0.20 | BC48: 1,063.44 | BD48: 45,141.69
A49: Slovenia | B49: 2.69 | C49: 2,553.29 | D49: 28,651.41 | E49: 10.12 | F49: 0.00 | G49: 253.26 | H49: 0.00 | I49: 5.06 | J49: 485.60 | K49: 111.89 | L49: 170,943.27 | M49: 183.82 | N49: 7.31 | O49: 774.71 | P49: 2,443.84 | Q49: 1.76 | R49: 17,030.04 | S49: 1,685.74 | T49: 2,650.56 | U49: 2,225.54 | V49: 5.73 | W49: 0.12 | X49: 34.35 | Y49: 33,541.02 | Z49: 64.70 | AA49: 0.00 | AB49: 0.00 | AC49: 180.26 | AD49: 2,600.92 | AE49: 1.73 | AF49: 295.19 | AG49: 4.79 | AH49: 0.00 | AI49: 14,896.43 | AJ49: 8.22 | AK49: 4.19 | AL49: 4.39 | AM49: 18.10 | AN49: 1,570.95 | AO49: 0.00 | AP49: 18.29 | AQ49: 461.30 | AR49: 204.43 | AS49: 37.92 | AT49: 21.09 | AU49: 0.00 | AV49: 161.77 | AW49: 809.49 | AX49: 19.01 | AY49: 1.02 | AZ49: 3,020.44 | BA49: 1,298.67 | BB49: 4.59 | BC49: 9,136.61 | BD49: 298,445.64
A50: Spain | B50: 629.15 | C50: 1.34 | D50: 75.62 | E50: 471.65 | F50: 0.00 | G50: 40.30 | H50: 0.00 | I50: 25.55 | J50: 91.23 | K50: 22.02 | L50: 0.00 | M50: 2.00 | N50: 585.10 | O50: 22.49 | P50: 0.00 | Q50: 4.43 | R50: 1,699.21 | S50: 2,735.68 | T50: 13.96 | U50: 1.24 | V50: 1,230.90 | W50: 486.57 | X50: 112.25 | Y50: 724.02 | Z50: 44.84 | AA50: 0.00 | AB50: 13.64 | AC50: 0.04 | AD50: 0.13 | AE50: 13.20 | AF50: 17.33 | AG50: 1,221.22 | AH50: 0.00 | AI50: 670.21 | AJ50: 0.11 | AK50: 475.22 | AL50: 5.85 | AM50: 3.54 | AN50: 277.76 | AO50: 32,059.41 | AP50: 7.86 | AQ50: 4.38 | AR50: 0.65 | AS50: 167.91 | AT50: 15.76 | AU50: 1.00 | AV50: 0.00 | AW50: 5.73 | AX50: 3.45 | AY50: 31,989.99 | AZ50: 9,721.18 | BA50: 6,062.28 | BB50: 41.09 | BC50: 39,213.73 | BD50: 131,012.25
A51: Sweden | B51: 71.48 | C51: 185.18 | D51: 83.97 | E51: 363.75 | F51: 0.00 | G51: 19.64 | H51: 0.00 | I51: 60.42 | J51: 11,635.19 | K51: 312.57 | L51: 11.75 | M51: 10.39 | N51: 21.67 | O51: 535.85 | P51: 408.53 | Q51: 2,122.71 | R51: 4,498.55 | S51: 1,519.99 | T51: 33.48 | U51: 53.11 | V51: 248.68 | W51: 0.34 | X51: 23.30 | Y51: 402.30 | Z51: 223.41 | AA51: 0.00 | AB51: 49.36 | AC51: 2,485.55 | AD51: 0.97 | AE51: 17.86 | AF51: 0.00 | AG51: 927.82 | AH51: 0.00 | AI51: 2,634.61 | AJ51: 1.59 | AK51: 8,441.26 | AL51: 128.93 | AM51: 54.38 | AN51: 1,549.63 | AO51: 38.51 | AP51: 949.84 | AQ51: 1,549.27 | AR51: 39.14 | AS51: 122.31 | AT51: 5.52 | AU51: 14.93 | AV51: 164.07 | AW51: 0.00 | AX51: 1,182.49 | AY51: 73.93 | AZ51: 1,365.79 | BA51: 1,271.97 | BB51: 7.62 | BC51: 3,605.70 | BD51: 49,529.29
A52: Thailand | B52: 4.77 | C52: 506.40 | D52: 14.58 | E52: 20.16 | F52: 0.00 | G52: 0.28 | H52: 0.00 | I52: 2,487.97 | J52: 54,310.22 | K52: 293.59 | L52: 0.00 | M52: 0.00 | N52: 0.31 | O52: 0.39 | P52: 0.12 | Q52: 0.32 | R52: 11.56 | S52: 39,016.55 | T52: 0.01 | U52: 0.30 | V52: 26,164.13 | W52: 162.12 | X52: 0.03 | Y52: 617.62 | Z52: 120.59 | AA52: 0.00 | AB52: 0.03 | AC52: 0.20 | AD52: 0.00 | AE52: 15,061.66 | AF52: 0.00 | AG52: 155,525.04 | AH52: 4.03 | AI52: 201.13 | AJ52: 0.25 | AK52: 0.16 | AL52: 7,456.64 | AM52: 47.58 | AN52: 21,370.63 | AO52: 141.98 | AP52: 3,894.67 | AQ52: 0.01 | AR52: 3.05 | AS52: 308.87 | AT52: 0.00 | AU52: 171.91 | AV52: 0.28 | AW52: 0.35 | AX52: 0.00 | AY52: 12,909.31 | AZ52: 50.61 | BA52: 7,742.98 | BB52: 537,967.77 | BC52: 20,151.42 | BD52: 906,742.59
A53: Turkey | B53: 0.00 | C53: 0.02 | D53: 0.00 | E53: 0.00 | F53: 0.00 | G53: 274.78 | H53: 0.00 | I53: 0.00 | J53: 652.24 | K53: 0.00 | L53: 0.00 | M53: 0.00 | N53: 0.00 | O53: 0.00 | P53: 0.00 | Q53: 0.00 | R53: 47.28 | S53: 73.71 | T53: 2.78 | U53: 0.00 | V53: 0.00 | W53: 0.00 | X53: 0.00 | Y53: 390.45 | Z53: 0.22 | AA53: 0.00 | AB53: 0.00 | AC53: 0.00 | AD53: 0.00 | AE53: 0.00 | AF53: 0.00 | AG53: 72.38 | AH53: 0.00 | AI53: 13.01 | AJ53: 0.00 | AK53: 0.00 | AL53: 31.87 | AM53: 0.00 | AN53: 0.00 | AO53: 0.00 | AP53: 0.00 | AQ53: 13.99 | AR53: 0.00 | AS53: 0.00 | AT53: 0.00 | AU53: 0.00 | AV53: 0.00 | AW53: 0.00 | AX53: 2,732.90 | AY53: 0.00 | AZ53: 2.34 | BA53: 0.00 | BB53: 0.00 | BC53: 8,639.84 | BD53: 12,947.84
A54: United Kingdom | B54: 1,362.78 | C54: 1,731.41 | D54: 3,216.46 | E54: 319.26 | F54: 0.00 | G54: 412.54 | H54: 0.00 | I54: 2,892.34 | J54: 81,820.11 | K54: 18,188.73 | L54: 3,070.23 | M54: 16.95 | N54: 732.30 | O54: 498.58 | P54: 6,032.78 | Q54: 930.35 | R54: 11,885.65 | S54: 78,346.86 | T54: 92.63 | U54: 1,076.61 | V54: 6,603.19 | W54: 27.60 | X54: 6,473.34 | Y54: 14,989.20 | Z54: 10,896.67 | AA54: 0.00 | AB54: 41.81 | AC54: 83.41 | AD54: 923.67 | AE54: 1,804.47 | AF54: 71.32 | AG54: 4,069.53 | AH54: 5.47 | AI54: 11,055.34 | AJ54: 14.61 | AK54: 360.44 | AL54: 1,975.38 | AM54: 3,296.27 | AN54: 9,593.58 | AO54: 215.02 | AP54: 3,209.95 | AQ54: 1,164.46 | AR54: 3,086.17 | AS54: 12,083.13 | AT54: 822.89 | AU54: 174.41 | AV54: 20,002.32 | AW54: 19,109.84 | AX54: 843.36 | AY54: 2,530.29 | AZ54: 0.00 | BA54: 83,112.17 | BB54: 517.25 | BC54: 18,836.32 | BD54: 450,619.43
A55: USA | B55: 1,482.76 | C55: 113.97 | D55: 55.63 | E55: 153.23 | F55: 0.00 | G55: 0.00 | H55: 9.57 | I55: 26,595.69 | J55: 12,709.21 | K55: 5,233.91 | L55: 0.00 | M55: 0.00 | N55: 374.48 | O55: 121.00 | P55: 0.00 | Q55: 314.86 | R55: 66,618.75 | S55: 33,671.61 | T55: 0.00 | U55: 0.00 | V55: 2,299.88 | W55: 59.71 | X55: 113.52 | Y55: 3,696.93 | Z55: 48,068.81 | AA55: 0.00 | AB55: 0.00 | AC55: 64.60 | AD55: 0.00 | AE55: 326.41 | AF55: 0.00 | AG55: 9,871.54 | AH55: 0.00 | AI55: 737.53 | AJ55: 72.38 | AK55: 31.83 | AL55: 1,302.55 | AM55: 514.33 | AN55: 30.39 | AO55: 35.67 | AP55: 688.98 | AQ55: 15.57 | AR55: 92.27 | AS55: 703.59 | AT55: 0.00 | AU55: 0.00 | AV55: 115.28 | AW55: 203.84 | AX55: 344.96 | AY55: 664.27 | AZ55: 13,153.88 | BA55: 0.00 | BB55: 248.82 | BC55: 27,570.60 | BD55: 258,482.83
A56: Vietnam | B56: 3,489.22 | C56: 134.30 | D56: 43,675.54 | E56: 15,981.85 | F56: 0.00 | G56: 1,596.60 | H56: 70.37 | I56: 21,980.99 | J56: 149,856.17 | K56: 7,761.07 | L56: 0.00 | M56: 0.00 | N56: 6.36 | O56: 18.51 | P56: 0.59 | Q56: 589.75 | R56: 717.94 | S56: 272,686.56 | T56: 1,262.83 | U56: 7.34 | V56: 77,200.79 | W56: 231.85 | X56: 851.09 | Y56: 13,279.49 | Z56: 92,226.97 | AA56: 46.42 | AB56: 0.30 | AC56: 16.82 | AD56: 1.51 | AE56: 40,963.11 | AF56: 342.00 | AG56: 7,553.17 | AH56: 36.62 | AI56: 2,235,132.69 | AJ56: 16.00 | AK56: 10.91 | AL56: 23,437.70 | AM56: 1,251.27 | AN56: 1,008.26 | AO56: 6,534.70 | AP56: 16,335.05 | AQ56: 450.29 | AR56: 26.68 | AS56: 70,128.97 | AT56: 0.00 | AU56: 8,110.77 | AV56: 8,272.04 | AW56: 6,204.51 | AX56: 29,587.23 | AY56: 585,608.61 | AZ56: 83,759.36 | BA56: 2,495,082.41 | BB56: 0.00 | BC56: 42,089.90 | BD56: 6,365,633.46
A57: ROW | B57: 238.88 | C57: 118.67 | D57: 222.80 | E57: 44.39 | F57: 0.00 | G57: 68.29 | H57: 0.00 | I57: 1,720.20 | J57: 287,034.71 | K57: 579.14 | L57: 50.96 | M57: 18.19 | N57: 124.77 | O57: 7.44 | P57: 1.03 | Q57: 16.94 | R57: 2,202.23 | S57: 3,722.31 | T57: 2.24 | U57: 299.92 | V57: 402.24 | W57: 4.00 | X57: 5.29 | Y57: 282.74 | Z57: 1,225.17 | AA57: 0.00 | AB57: 1.48 | AC57: 6.40 | AD57: 0.60 | AE57: 51.46 | AF57: 17.92 | AG57: 151.44 | AH57: 0.00 | AI57: 3,711.06 | AJ57: 55.75 | AK57: 246.72 | AL57: 1,208.72 | AM57: 849.95 | AN57: 171.52 | AO57: 0.97 | AP57: 554.39 | AQ57: 10.19 | AR57: 676.73 | AS57: 640.16 | AT57: 4.37 | AU57: 50.11 | AV57: 283.80 | AW57: 18.70 | AX57: 51.01 | AY57: 65,351.49 | AZ57: 1,318.28 | BA57: 5,178.80 | BB57: 96.46 | BC57: 0.00 | BD57: 379,101.03
A58: total | B58: 2,211,731.11 | C58: 450,038.88 | D58: 845,161.47 | E58: 1,310,837.79 | F58: 74.28 | G58: 25,582.74 | H58: 19,606.54 | I58: 545,516.01 | J58: 5,139,944.24 | K58: 466,345.14 | L58: 215,036.99 | M58: 38,406.22 | N58: 278,932.81 | O58: 134,834.97 | P58: 35,752.40 | Q58: 75,174.91 | R58: 1,720,762.36 | S58: 4,358,739.37 | T58: 41,659.61 | U58: 326,776.70 | V58: 9,452,116.94 | W58: 186,255.30 | X58: 52,439.16 | Y58: 957,881.80 | Z58: 6,199,541.14 | AA58: 7,343.42 | AB58: 3,021.08 | AC58: 80,370.10 | AD58: 203,989.82 | AE58: 494,298.02 | AF58: 26,850.88 | AG58: 1,940,887.11 | AH58: 78,828.37 | AI58: 5,212,611.84 | AJ58: 33,687.38 | AK58: 32,912.45 | AL58: 344,104.80 | AM58: 326,166.70 | AN58: 452,032.77 | AO58: 151,298.40 | AP58: 999,117.25 | AQ58: 98,637.52 | AR58: 252,098.21 | AS58: 588,613.91 | AT58: 77,758.79 | AU58: 211,868.03 | AV58: 302,105.16 | AW58: 226,275.57 | AX58: 722,397.87 | AY58: 2,748,343.27 | AZ58: 1,240,724.99 | BA58: 11,111,258.89 | BB58: 2,054,025.18 | BC58: 14,543,464.41 | BD58: 79,654,241.06
A60: TFM of traded cell and module capacity by region groups in 2017
A61: Unit: kW
A62: Region groups | B62: Oceania | C62: Europe | D62: S Asia | E62: America | F62: East Asia | G62: ROW | H62: Total
A63: Oceania | B63: =B4+AJ4+B38+AJ38 -> 10,204.65 | C63: =SUM(C4,D4,G4,L4:U4,X4:Y4,AB4:AD4,AF4,AI4,AK4,AN4:AO4,AQ4,AT4:AW4,AZ4,AR4)+SUM(C38,D38,G38,L38:U38,X38:Y38,AB38:AD38,AF38,AI38,AK38,AN38:AO38,AQ38,AT38:AW38,AZ38,AR38) -> 3,939.91 | D63: =SUM(F4,H4,V4:W4,AA4,AE4,AH4,AM4,AS4,AX4,BB4,AY4)+SUM(F38,H38,V38:W38,AA38,AE38,AH38,AM38,AS38,AX38,BB38,AY38) -> 8,768.48 | E63: =SUM(E4,I4,AG4,BA4)+SUM(E38,I38,AG38,BA38) -> 14,853.44 | F63: =SUM(J4:K4,Z4,AL4,AP4)+SUM(J38:K38,Z38,AL38,AP38) -> 16,821.88 | G63: =BC4+BC38 -> 9,319.96 | H63: =SUM(B63:G63) -> 63,908.31
A64: Europe | B64: =B69-SUM(B65:B68,B63) -> 25,041.53 | C64: =C69-SUM(C65:C68,C63) -> 10,157,735.03 | D64: 1,150,457.18 | E64: 1,160,137.84 | F64: 883,853.95 | G64: 791,371.46 | H64: 14,168,596.97
A65: S Asia | B65: =B8+AJ8+B10+AJ10+B24+AJ24+B25+AJ25+B29+AJ29+B33+AJ33+B36+AJ36+B41+AJ41+B47+AJ47+B52+AJ52+B53+AJ53+B56+AJ56 -> 151,029.72 | C65: =SUM(C8,D8,G8,L8:U8,X8:Y8,AB8:AD8,AF8,AI8,AK8,AN8:AO8,AQ8,AT8:AW8,AZ8,AR8)+SUM(C10,D10,G10,L10:U10,X10:Y10,AB10:AD10,AF10,AI10,AK10,AN10:AO10,AQ10,AT10:AW10,AZ10,AR10)+SUM(C24,D24,G24,L24:U24,X24:Y24,AB24:AD24,AF24,AI24,AK24,AN24:AO24,AQ24,AT24:AW24,AZ24,AR24)+SUM(C25,D25,G25,L25:U25,X25:Y25,AB25:AD25,AF25,AI25,AK25,AN25:AO25,AQ25,AT25:AW25,AZ25,AR25)+SUM(C29,D29,G29,L29:U29,X29:Y29,AB29:AD29,AF29,AI29,AK29,AN29:AO29,AQ29,AT29:AW29,AZ29,AR29)+SUM(C33,D33,G33,L33:U33,X33:Y33,AB33:AD33,AF33,AI33,AK33,AN33:AO33,AQ33,AT33:AW33,AZ33,AR33)+SUM(C36,D36,G36,L36:U36,X36:Y36,AB36:AD36,AF36,AI36,AK36,AN36:AO36,AQ36,AT36:AW36,AZ36,AR36)+SUM(C41,D41,G41,L41:U41,X41:Y41,AB41:AD41,AF41,AI41,AK41,AN41:AO41,AQ41,AT41:AW41,AZ41,AR41)+SUM(C47,D47,G47,L47:U47,X47:Y47,AB47:AD47,AF47,AI47,AK47,AN47:AO47,AQ47,AT47:AW47,AZ47,AR47)+SUM(C52,D52,G52,L52:U52,X52:Y52,AB52:AD52,AF52,AI52,AK52,AN52:AO52,AQ52,AT52:AW52,AZ52,AR52)+SUM(C53,D53,G53,L53:U53,X53:Y53,AB53:AD53,AF53,AI53,AK53,AN53:AO53,AQ53,AT53:AW53,AZ53,AR53)+SUM(C56,D56,G56,L56:U56,X56:Y56,AB56:AD56,AF56,AI56,AK56,AN56:AO56,AQ56,AT56:AW56,AZ56,AR56) -> 3,634,536.93 | D65: =SUM(F8,H8,V8:W8,AA8,AE8,AH8,AM8,AS8,AX8,BB8,AY8)+SUM(F10,H10,V10:W10,AA10,AE10,AH10,AM10,AS10,AX10,BB10,AY10)+SUM(F24,H24,V24:W24,AA24,AE24,AH24,AM24,AS24,AX24,BB24,AY24)+SUM(F25,H25,V25:W25,AA25,AE25,AH25,AM25,AS25,AX25,BB25,AY25)+SUM(F29,H29,V29:W29,AA29,AE29,AH29,AM29,AS29,AX29,BB29,AY29)+SUM(F33,H33,V33:W33,AA33,AE33,AH33,AM33,AS33,AX33,BB33,AY33)+SUM(F36,H36,V36:W36,AA36,AE36,AH36,AM36,AS36,AX36,BB36,AY36)+SUM(F41,H41,V41:W41,AA41,AE41,AH41,AM41,AS41,AX41,BB41,AY41)+SUM(F47,H47,V47:W47,AA47,AE47,AH47,AM47,AS47,AX47,BB47,AY47)+SUM(F52,H52,V52:W52,AA52,AE52,AH52,AM52,AS52,AX52,BB52,AY52)+SUM(F53,H53,V53:W53,AA53,AE53,AH53,AM53,AS53,AX53,BB53,AY53)+SUM(F56,H56,V56:W56,AA56,AE56,AH56,AM56,AS56,AX56,BB56,AY56) -> 1,999,459.79 | E65: =SUM(E8,I8,AG8,BA8)+SUM(E10,I10,AG10,BA10)+SUM(E24,I24,AG24,BA24)+SUM(E25,I25,AG25,BA25)+SUM(E29,I29,AG29,BA29)+SUM(E33,I33,AG33,BA33)+SUM(E36,I36,AG36,BA36)+SUM(E41,I41,AG41,BA41)+SUM(E47,I47,AG47,BA47)+SUM(E52,I52,AG52,BA52)+SUM(E53,I53,AG53,BA53)+SUM(E56,I56,AG56,BA56) -> 4,624,643.99 | F65: =SUM(J8:K8,Z8,AL8,AP8)+SUM(J10:K10,Z10,AL10,AP10)+SUM(J24:K24,Z24,AL24,AP24)+SUM(J25:K25,Z25,AL25,AP25)+SUM(J29:K29,Z29,AL29,AP29)+SUM(J33:K33,Z33,AL33,AP33)+SUM(J36:K36,Z36,AL36,AP36)+SUM(J41:K41,Z41,AL41,AP41)+SUM(J47:K47,Z47,AL47,AP47)+SUM(J52:K52,Z52,AL52,AP52)+SUM(J53:K53,Z53,AL53,AP53)+SUM(J56:K56,Z56,AL56,AP56) -> 1,953,172.62 | G65: =BC8+BC10+BC24+BC25+BC29+BC33+BC36+BC41+BC47+BC52+BC53+BC56 -> 223,731.88 | H65: =SUM(B65:G65) -> 12,586,574.92
A66: America | B66: =B7+AJ7+B11+AJ11+B35+AJ35+B55+AJ55 -> 2,399.34 | C66: =SUM(C7,D7,G7,L7:U7,X7:Y7,AB7:AD7,AF7,AI7,AK7,AN7:AO7,AQ7,AT7:AW7,AZ7,AR7)+SUM(C11,D11,G11,L11:U11,X11:Y11,AB11:AD11,AF11,AI11,AK11,AN11:AO11,AQ11,AT11:AW11,AZ11,AR11)+SUM(C35,D35,G35,L35:U35,X35:Y35,AB35:AD35,AF35,AI35,AK35,AN35:AO35,AQ35,AT35:AW35,AZ35,AR35)+SUM(C55,D55,G55,L55:U55,X55:Y55,AB55:AD55,AF55,AI55,AK55,AN55:AO55,AQ55,AT55:AW55,AZ55,AR55) -> 195,719.38 | D66: =SUM(F7,H7,V7:W7,AA7,AE7,AH7,AM7,AS7,AX7,BB7,AY7)+SUM(F11,H11,V11:W11,AA11,AE11,AH11,AM11,AS11,AX11,BB11,AY11)+SUM(F35,H35,V35:W35,AA35,AE35,AH35,AM35,AS35,AX35,BB35,AY35)+SUM(F55,H55,V55:W55,AA55,AE55,AH55,AM55,AS55,AX55,BB55,AY55) -> 46,812.01 | E66: =SUM(E7,I7,AG7,BA7)+SUM(E11,I11,AG11,BA11)+SUM(E35,I35,AG35,BA35)+SUM(E55,I55,AG55,BA55) -> 548,895.80 | F66: =SUM(J7:K7,Z7,AL7,AP7)+SUM(J11:K11,Z11,AL11,AP11)+SUM(J35:K35,Z35,AL35,AP35)+SUM(J55:K55,Z55,AL55,AP55) -> 107,937.70 | G66: =BC7+BC11+BC35+BC55 -> 58,521.03 | H66: =SUM(B66:G66) -> 960,285.26
A67: East Asia | B67: =B12+AJ12+B13+AJ13+B28+AJ28+B40+AJ40+B44+AJ44 -> 2,056,448.62 | C67: =SUM(C12,D12,G12,L12:U12,X12:Y12,AB12:AD12,AF12,AI12,AK12,AN12:AO12,AQ12,AT12:AW12,AZ12,AR12)+SUM(C13,D13,G13,L13:U13,X13:Y13,AB13:AD13,AF13,AI13,AK13,AN13:AO13,AQ13,AT13:AW13,AZ13,AR13)+SUM(C28,D28,G28,L28:U28,X28:Y28,AB28:AD28,AF28,AI28,AK28,AN28:AO28,AQ28,AT28:AW28,AZ28,AR28)+SUM(C40,D40,G40,L40:U40,X40:Y40,AB40:AD40,AF40,AI40,AK40,AN40:AO40,AQ40,AT40:AW40,AZ40,AR40)+SUM(C44,D44,G44,L44:U44,X44:Y44,AB44:AD44,AF44,AI44,AK44,AN44:AO44,AQ44,AT44:AW44,AZ44,AR44) -> 4,124,142.08 | D67: =SUM(F12,H12,V12:W12,AA12,AE12,AH12,AM12,AS12,AX12,BB12,AY12)+SUM(F13,H13,V13:W13,AA13,AE13,AH13,AM13,AS13,AX13,BB13,AY13)+SUM(F28,H28,V28:W28,AA28,AE28,AH28,AM28,AS28,AX28,BB28,AY28)+SUM(F40,H40,V40:W40,AA40,AE40,AH40,AM40,AS40,AX40,BB40,AY40)+SUM(F44,H44,V44:W44,AA44,AE44,AH44,AM44,AS44,AX44,BB44,AY44) -> 13,405,125.57 | E67: =SUM(E12,I12,AG12,BA12)+SUM(E13,I13,AG13,BA13)+SUM(E28,I28,AG28,BA28)+SUM(E40,I40,AG40,BA40)+SUM(E44,I44,AG44,BA44) -> 8,552,873.91 | F67: =SUM(J12:K12,Z12,AL12,AP12)+SUM(J13:K13,Z13,AL13,AP13)+SUM(J28:K28,Z28,AL28,AP28)+SUM(J40:K40,Z40,AL40,AP40)+SUM(J44:K44,Z44,AL44,AP44) -> 9,896,664.29 | G67: =BC12+BC13+BC28+BC40+BC44 -> 13,460,520.08 | H67: =SUM(B67:G67) -> 51,495,774.56
A68: ROW | B68: =B57+AJ57 -> 294.63 | C68: =SUM(C57,D57,G57,L57:U57,X57:Y57,AB57:AD57,AF57,AI57,AK57,AN57:AO57,AQ57,AT57:AW57,AZ57,AR57) -> 13,662.67 | D68: =SUM(F57,H57,V57:W57,AA57,AE57,AH57,AM57,AS57,AX57,BB57,AY57) -> 67,446.78 | E68: =SUM(E57,I57,AG57,BA57) -> 7,094.82 | F68: =SUM(J57:K57,Z57,AL57,AP57) -> 290,602.14 | G68: =BC57 -> 0.00 | H68: =SUM(B68:G68) -> 379,101.03
A69: Total | B69: =B58+AJ58 -> 2,245,418.48 | C69: =SUM(C58,D58,G58,L58:U58,X58:Y58,AB58:AD58,AF58,AI58,AK58,AN58:AO58,AQ58,AT58:AW58,AZ58,AR58) -> 18,129,735.99 | D69: =SUM(F58,H58,V58:W58,AA58,AE58,AH58,AM58,AS58,AX58,BB58,AY58) -> 16,678,069.80 | E69: =SUM(E58,I58,AG58,BA58) -> 14,908,499.81 | F69: =SUM(J58:K58,Z58,AL58,AP58) -> 13,149,052.57 | G69: =BC58 -> 14,543,464.41 | H69: =SUM(B69:G69) -> 79,654,241.06

Sheet Data 3
A1: TFM of the global PV product trade total value in 2014
A2: Unit: $
A3: Country/Economy | B3: Australia | C3: Austria | D3: Belgium | E3: Brazil | F3: Brunei | G3: Bulgaria | H3: Cambodia | I3: Canada | J3: China | K3: Hong Kong | L3: Croatia | M3: Cyprus | N3: Czechia | O3: Denmark | P3: Estonia | Q3: Finland | R3: France | S3: Germany | T3: Greece | U3: Hungary | V3: India | W3: Indonesia | X3: Ireland | Y3: Italy | Z3: Japan | AA3: Lao PDR | AB3: Latvia | AC3: Lithuania | AD3: Luxembourg | AE3: Malaysia | AF3: Malta | AG3: Mexico | AH3: Myanmar | AI3: Netherlands | AJ3: New Zealand | AK3: Norway | AL3: Taiwan | AM3: Philippines | AN3: Poland | AO3: Portugal | AP3: Korea | AQ3: Romania | AR3: Russian Federation | AS3: Singapore | AT3: Slovakia | AU3: Slovenia | AV3: Spain | AW3: Sweden | AX3: Thailand | AY3: Turkey | AZ3: United Kingdom | BA3: USA | BB3: Vietnam | BC3: ROW | BD3: total
A4: Australia | B4: 0.00 | C4: 5,456.81 | D4: 141,350.07 | E4: 485,518.03 | F4: 14,675.22 | G4: 135.21 | H4: 0.34 | I4: 58,006.80 | J4: 21,492,455.66 | K4: 1,330,865.22 | L4: 0.00 | M4: 0.00 | N4: 168.86 | O4: 592,402.85 | P4: 0.08 | Q4: 17,241.82 | R4: 227,798.03 | S4: 606,518.18 | T4: 0.00 | U4: 60.19 | V4: 42,190.56 | W4: 128,806.18 | X4: 149.98 | Y4: 2,333.64 | Z4: 4,787,498.16 | AA4: 0.00 | AB4: 115.93 | AC4: 132.29 | AD4: 3.57 | AE4: 290,894.85 | AF4: 0.00 | AG4: 372,790.65 | AH4: 0.00 | AI4: 302,521.49 | AJ4: 3,077,512.17 | AK4: 45.59 | AL4: 79,073.31 | AM4: 31,694.93 | AN4: 118,756.71 | AO4: 9,611.12 | AP4: 70,929.51 | AQ4: 83.89 | AR4: 375.40 | AS4: 251,333.16 | AT4: 5.89 | AU4: 0.00 | AV4: 64,174.70 | AW4: 303.33 | AX4: 568,098.68 | AY4: 1,094.57 | AZ4: 127,346.64 | BA4: 3,885,952.91 | BB4: 1,743.13 | BC4: 4,037,606.21 | BD4: 43,225,832.56
A5: Austria | B5: 422,523.30 | C5: 0.00 | D5: 275,086.08 | E5: 193,789.75 | F5: 0.00 | G5: 60,867.94 | H5: 0.13 | I5: 22,719.75 | J5: 4,990,637.25 | K5: 366,388.19 | L5: 1,446,152.69 | M5: 198,645.83 | N5: 551,141.60 | O5: 197,982.00 | P5: 10,698.76 | Q5: 97,338.98 | R5: 1,404,098.54 | S5: 16,808,737.03 | T5: 95,173.65 | U5: 3,812,360.19 | V5: 47,628.89 | W5: 41,662.99 | X5: 6,404.29 | Y5: 10,087,850.58 | Z5: 767,987.23 | AA5: 0.00 | AB5: 14,641.69 | AC5: 18,591.33 | AD5: 23,428.34 | AE5: 2,270,613.85 | AF5: 0.00 | AG5: 99,587.57 | AH5: 0.00 | AI5: 1,067,799.12 | AJ5: 1,660.47 | AK5: 738,886.15 | AL5: 207,091.41 | AM5: 1,266.97 | AN5: 4,146,863.45 | AO5: 215,928.46 | AP5: 109,293.60 | AQ5: 25,973,323.25 | AR5: 380,592.94 | AS5: 334,100.86 | AT5: 687,475.62 | AU5: 15,381,279.09 | AV5: 20,042.35 | AW5: 1,529,692.18 | AX5: 5,044.12 | AY5: 829,284.02 | AZ5: 804,233.19 | BA5: 1,695,476.94 | BB5: 598.55 | BC5: 9,593,296.16 | BD5: 108,055,967.34
A6: Belgium | B6: 32,760.70 | C6: 305,886.20 | D6: 0.00 | E6: 12,813.13 | F6: 0.00 | G6: 785,070.75 | H6: 0.19 | I6: 286,797.53 | J6: 3,620,513.80 | K6: 39,395.59 | L6: 1,270.60 | M6: 4,562.04 | N6: 81,666.34 | O6: 2,516,223.23 | P6: 68,117.92 | Q6: 53,939.81 | R6: 87,273,699.95 | S6: 54,294,317.40 | T6: 17,368.22 | U6: 1,074,397.26 | V6: 19,925.54 | W6: 332.68 | X6: 39,457.18 | Y6: 990,697.98 | Z6: 8,222,358.44 | AA6: 0.00 | AB6: 1,624.32 | AC6: 6,833.39 | AD6: 2,934,358.19 | AE6: 136,553.85 | AF6: 1,626.56 | AG6: 3,997.46 | AH6: 0.00 | AI6: 21,594,482.41 | AJ6: 623.93 | AK6: 2,171.76 | AL6: 376,119.81 | AM6: 240,943.85 | AN6: 180,560.54 | AO6: 3,196,091.02 | AP6: 214,976.83 | AQ6: 659,368.78 | AR6: 70,503.08 | AS6: 133,876.61 | AT6: 19,492.61 | AU6: 123,992.87 | AV6: 468,631.69 | AW6: 340,173.18 | AX6: 924,601.73 | AY6: 6,623,651.67 | AZ6: 80,136,170.25 | BA6: 3,807,664.72 | BB6: 814,346.73 | BC6: 5,535,230.21 | BD6: 288,290,240.56
A7: Brazil | B7: 0.11 | C7: 0.02 | D7: 0.07 | E7: 0.00 | F7: 0.00 | G7: 0.00 | H7: 0.00 | I7: 32.20 | J7: 11,137.91 | K7: 0.31 | L7: 0.00 | M7: 0.00 | N7: 0.00 | O7: 0.00 | P7: 0.00 | Q7: 0.00 | R7: 12.21 | S7: 15,518.04 | T7: 0.00 | U7: 0.00 | V7: 2.86 | W7: 0.00 | X7: 0.00 | Y7: 0.04 | Z7: 5.45 | AA7: 0.00 | AB7: 0.00 | AC7: 0.00 | AD7: 0.00 | AE7: 0.09 | AF7: 0.00 | AG7: 2,116.23 | AH7: 0.00 | AI7: 0.21 | AJ7: 0.04 | AK7: 0.00 | AL7: 0.04 | AM7: 0.00 | AN7: 0.00 | AO7: 0.00 | AP7: 1.01 | AQ7: 0.00 | AR7: 0.00 | AS7: 0.08 | AT7: 0.01 | AU7: 0.00 | AV7: 3,189.06 | AW7: 0.11 | AX7: 0.00 | AY7: 0.00 | AZ7: 6.11 | BA7: 9,176.30 | BB7: 0.00 | BC7: 67,740.27 | BD7: 108,938.79
A8: Brunei | B8: 0.00 | C8: 0.00 | D8: 0.00 | E8: 0.00 | F8: 0.00 | G8: 0.00 | H8: 0.00 | I8: 0.00 | J8: 0.00 | K8: 0.00 | L8: 0.00 | M8: 0.00 | N8: 0.00 | O8: 0.00 | P8: 0.00 | Q8: 0.00 | R8: 0.00 | S8: 0.00 | T8: 0.00 | U8: 0.00 | V8: 0.00 | W8: 0.00 | X8: 0.00 | Y8: 0.00 | Z8: 0.00 | AA8: 0.00 | AB8: 0.00 | AC8: 0.00 | AD8: 0.00 | AE8: 0.00 | AF8: 0.00 | AG8: 0.00 | AH8: 0.00 | AI8: 0.00 | AJ8: 0.00 | AK8: 0.00 | AL8: 0.00 | AM8: 0.00 | AN8: 0.00 | AO8: 0.00 | AP8: 0.00 | AQ8: 0.00 | AR8: 0.00 | AS8: 0.00 | AT8: 0.00 | AU8: 0.00 | AV8: 0.00 | AW8: 0.00 | AX8: 0.00 | AY8: 0.00 | AZ8: 0.00 | BA8: 0.00 | BB8: 0.00 | BC8: 0.00 | BD8: 0.00
A9: Bulgaria | B9: 1.75 | C9: 7,757.59 | D9: 10,869.62 | E9: 2,597.30 | F9: 0.00 | G9: 0.00 | H9: 0.00 | I9: 489.42 | J9: 2,689.59 | K9: 6.77 | L9: 0.00 | M9: 41,845.67 | N9: 0.01 | O9: 288.24 | P9: 0.00 | Q9: 750.85 | R9: 7,461.24 | S9: 432,141.35 | T9: 1,838,941.22 | U9: 0.25 | V9: 1,084.02 | W9: 1,656.29 | X9: 3.72 | Y9: 6,032.33 | Z9: 7,200.71 | AA9: 0.00 | AB9: 0.00 | AC9: 0.00 | AD9: 0.00 | AE9: 1.70 | AF9: 0.00 | AG9: 380.61 | AH9: 0.00 | AI9: 3.72 | AJ9: 0.66 | AK9: 0.05 | AL9: 9.22 | AM9: 0.00 | AN9: 0.05 | AO9: 0.01 | AP9: 30,196.38 | AQ9: 1,175,173.05 | AR9: 0.75 | AS9: 1,891.64 | AT9: 0.22 | AU9: 0.01 | AV9: 30.87 | AW9: 18,755.31 | AX9: 954.24 | AY9: 0.22 | AZ9: 374.64 | BA9: 217,112.24 | BB9: 0.01 | BC9: 86,734.99 | BD9: 3,893,438.53
A10: Cambodia | B10: 0.00 | C10: 0.00 | D10: 0.00 | E10: 0.00 | F10: 0.00 | G10: 0.00 | H10: 0.00 | I10: 0.00 | J10: 0.00 | K10: 0.00 | L10: 0.00 | M10: 0.00 | N10: 0.00 | O10: 0.00 | P10: 0.00 | Q10: 0.00 | R10: 0.00 | S10: 0.00 | T10: 0.00 | U10: 0.00 | V10: 0.00 | W10: 0.00 | X10: 0.00 | Y10: 0.00 | Z10: 0.00 | AA10: 0.00 | AB10: 0.00 | AC10: 0.00 | AD10: 0.00 | AE10: 0.00 | AF10: 0.00 | AG10: 0.00 | AH10: 0.00 | AI10: 0.00 | AJ10: 0.00 | AK10: 0.00 | AL10: 0.00 | AM10: 0.00 | AN10: 0.00 | AO10: 0.00 | AP10: 0.00 | AQ10: 0.00 | AR10: 0.00 | AS10: 0.00 | AT10: 0.00 | AU10: 0.00 | AV10: 0.00 | AW10: 0.00 | AX10: 0.00 | AY10: 0.00 | AZ10: 0.00 | BA10: 0.00 | BB10: 0.00 | BC10: 0.00 | BD10: 0.00
A11: Canada | B11: 107,050.94 | C11: 859,867.98 | D11: 33,642.41 | E11: 2,120.96 | F11: 0.00 | G11: 0.00 | H11: 0.00 | I11: 0.00 | J11: 2,296,437.42 | K11: 2,865,251.10 | L11: 0.00 | M11: 0.00 | N11: 3,541.11 | O11: 21,305.99 | P11: 7,572.60 | Q11: 135,546.69 | R11: 540,838.90 | S11: 7,555,919.01 | T11: 2.78 | U11: 7,113.74 | V11: 23,198.91 | W11: 159,762.51 | X11: 14,175.57 | Y11: 829,560.89 | Z11: 1,078,613.17 | AA11: 0.00 | AB11: 0.00 | AC11: 159.44 | AD11: 0.00 | AE11: 21,239.25 | AF11: 0.00 | AG11: 19,881.21 | AH11: 0.00 | AI11: 726,949.32 | AJ11: 27,632.72 | AK11: 16,355.85 | AL11: 59,051.27 | AM11: 3,897,827.04 | AN11: 8,620.10 | AO11: 16,875.90 | AP11: 261,653.81 | AQ11: 55,824.41 | AR11: 22.25 | AS11: 904,145.77 | AT11: 0.00 | AU11: 0.00 | AV11: 63,786.35 | AW11: 1,111,430.55 | AX11: 12,295.63 | AY11: 561,407.01 | AZ11: 4,867,120.92 | BA11: 50,521,141.21 | BB11: 27,800.50 | BC11: 4,757,131.41 | BD11: 84,479,874.61
A12: China | B12: 393,432,334.63 | C12: 14,749,812.28 | D12: 150,211,905.39 | E12: 31,336,810.95 | F12: 77,972.48 | G12: 644,709.44 | H12: 703,995.32 | I12: 95,602,828.62 | J12: 0.00 | K12: 469,207,022.70 | L12: 3,350,498.33 | M12: 1,699,095.91 | N12: 2,390,263.24 | O12: 5,376,922.82 | P12: 590,839.79 | Q12: 3,642,347.10 | R12: 129,079,008.07 | S12: 318,494,103.72 | T12: 15,275,187.88 | U12: 14,490,170.84 | V12: 523,588,462.67 | W12: 7,475,690.38 | X12: 1,498,557.42 | Y12: 75,112,516.33 | Z12: 4,839,709,198.35 | AA12: 811.88 | AB12: 205,231.41 | AC12: 3,440,645.70 | AD12: 154,048.32 | AE12: 267,478,166.72 | AF12: 2,414,422.29 | AG12: 24,579,418.95 | AH12: 11,518,976.92 | AI12: 1,022,331,339.29 | AJ12: 9,945,837.96 | AK12: 601,373.05 | AL12: 1,634,183,405.21 | AM12: 463,292,959.53 | AN12: 7,365,681.00 | AO12: 4,712,250.12 | AP12: 720,728,344.95 | AQ12: 13,203,325.67 | AR12: 29,024,831.54 | AS12: 80,282,522.69 | AT12: 1,027,766.00 | AU12: 748,666.73 | AV12: 24,668,441.81 | AW12: 8,319,440.16 | AX12: 58,343,777.41 | AY12: 99,104,348.84 | AZ12: 856,194,397.83 | BA12: 2,190,420,322.13 | BB12: 247,918,696.91 | BC12: 1,418,436,752.04 | BD12: 16,298,386,457.69
A13: Hong Kong | B13: 0.00 | C13: 0.00 | D13: 0.00 | E13: 0.00 | F13: 0.00 | G13: 0.00 | H13: 0.00 | I13: 0.00 | J13: 254,414.57 | K13: 0.00 | L13: 0.00 | M13: 0.00 | N13: 0.00 | O13: 0.00 | P13: 0.00 | Q13: 0.00 | R13: 0.00 | S13: 0.00 | T13: 0.00 | U13: 0.00 | V13: 0.00 | W13: 0.00 | X13: 0.00 | Y13: 0.00 | Z13: 0.00 | AA13: 0.00 | AB13: 0.00 | AC13: 0.00 | AD13: 0.00 | AE13: 0.00 | AF13: 0.00 | AG13: 0.00 | AH13: 0.00 | AI13: 0.00 | AJ13: 0.00 | AK13: 0.00 | AL13: 0.00 | AM13: 0.00 | AN13: 0.00 | AO13: 0.00 | AP13: 0.00 | AQ13: 0.00 | AR13: 0.00 | AS13: 0.00 | AT13: 0.00 | AU13: 0.00 | AV13: 0.00 | AW13: 0.00 | AX13: 0.00 | AY13: 0.00 | AZ13: 0.00 | BA13: 837.28 | BB13: 0.00 | BC13: 0.00 | BD13: 255,251.85
A14: Croatia | B14: 0.04 | C14: 6,872.11 | D14: 74.17 | E14: 0.06 | F14: 0.00 | G14: 0.00 | H14: 0.00 | I14: 0.43 | J14: 484.52 | K14: 23.52 | L14: 0.00 | M14: 0.00 | N14: 5.64 | O14: 145,558.83 | P14: 0.00 | Q14: 16.08 | R14: 4,821,042.01 | S14: 4,723,540.52 | T14: 0.00 | U14: 74,078.13 | V14: 5,527.43 | W14: 0.02 | X14: 148.32 | Y14: 3,501,601.45 | Z14: 1.52 | AA14: 0.00 | AB14: 0.00 | AC14: 0.00 | AD14: 0.00 | AE14: 0.11 | AF14: 0.00 | AG14: 0.32 | AH14: 0.00 | AI14: 1,433,874.40 | AJ14: 0.00 | AK14: 294.17 | AL14: 28.72 | AM14: 0.08 | AN14: 4,198.93 | AO14: 73.71 | AP14: 0.46 | AQ14: 0.00 | AR14: 0.01 | AS14: 0.28 | AT14: 4,314.84 | AU14: 9,348.61 | AV14: 162,592.78 | AW14: 0.01 | AX14: 0.22 | AY14: 0.08 | AZ14: 1,485,900.29 | BA14: 108.80 | BB14: 0.03 | BC14: 168,386.55 | BD14: 16,548,098.21
A15: Cyprus | B15: 0.00 | C15: 0.00 | D15: 0.00 | E15: 0.00 | F15: 0.00 | G15: 0.00 | H15: 0.00 | I15: 0.00 | J15: 0.00 | K15: 0.00 | L15: 0.00 | M15: 0.00 | N15: 0.00 | O15: 0.00 | P15: 0.00 | Q15: 0.00 | R15: 0.00 | S15: 0.00 | T15: 3,982.28 | U15: 0.00 | V15: 0.00 | W15: 0.00 | X15: 0.00 | Y15: 0.00 | Z15: 0.00 | AA15: 0.00 | AB15: 0.00 | AC15: 0.00 | AD15: 0.00 | AE15: 0.00 | AF15: 0.00 | AG15: 0.00 | AH15: 0.00 | AI15: 3.96 | AJ15: 0.00 | AK15: 0.00 | AL15: 0.00 | AM15: 0.00 | AN15: 0.00 | AO15: 0.00 | AP15: 0.00 | AQ15: 0.00 | AR15: 0.00 | AS15: 0.00 | AT15: 0.00 | AU15: 0.00 | AV15: 0.00 | AW15: 0.00 | AX15: 0.00 | AY15: 0.00 | AZ15: 0.00 | BA15: 0.00 | BB15: 0.00 | BC15: 177.98 | BD15: 4,164.22
A16: Czechia | B16: 32,079.55 | C16: 1,706,515.86 | D16: 1,581,434.19 | E16: 470.30 | F16: 0.00 | G16: 215,083.50 | H16: 0.02 | I16: 21,758.42 | J16: 3,762,776.39 | K16: 13,309.10 | L16: 111,923.83 | M16: 67,901.58 | N16: 0.00 | O16: 1,157,856.48 | P16: 74,778.63 | Q16: 110,519.62 | R16: 26,185,255.44 | S16: 45,633,772.77 | T16: 11,164.58 | U16: 5,650,735.02 | V16: 22,663.27 | W16: 201.08 | X16: 737,841.32 | Y16: 13,833,428.53 | Z16: 29,533,863.83 | AA16: 0.00 | AB16: 85,793.47 | AC16: 83,432.03 | AD16: 64,763.61 | AE16: 29,932,912.40 | AF16: 2,177,115.88 | AG16: 5,890.14 | AH16: 0.00 | AI16: 3,785,131.56 | AJ16: 25.05 | AK16: 39,795.09 | AL16: 202,263.25 | AM16: 2,733.43 | AN16: 24,026,223.46 | AO16: 1,101,772.98 | AP16: 21,136.77 | AQ16: 1,316,874.01 | AR16: 567,994.02 | AS16: 507,238.60 | AT16: 36,288,864.68 | AU16: 201,255.41 | AV16: 83,677.72 | AW16: 116,236.87 | AX16: 16,805.70 | AY16: 3,995,858.52 | AZ16: 3,529,218.66 | BA16: 6,284,274.28 | BB16: 30.87 | BC16: 2,117,382.96 | BD16: 247,020,034.71
A17: Denmark | B17: 129,016.91 | C17: 837,381.44 | D17: 12,485.81 | E17: 11,713.91 | F17: 0.00 | G17: 318.36 | H17: 0.23 | I17: 39,670.10 | J17: 10,934,364.10 | K17: 814,824.39 | L17: 33.37 | M17: 0.00 | N17: 573,703.25 | O17: 0.00 | P17: 81,580.33 | Q17: 249,355.82 | R17: 240,700.86 | S17: 7,459,303.94 | T17: 3,177.73 | U17: 63,182.04 | V17: 19,277.23 | W17: 705.11 | X17: 5,392.87 | Y17: 407,175.70 | Z17: 324,360.50 | AA17: 0.00 | AB17: 10,245.85 | AC17: 37,704.01 | AD17: 43.22 | AE17: 8,826.60 | AF17: 97.64 | AG17: 15,040.85 | AH17: 0.00 | AI17: 1,550,622.55 | AJ17: 10,885.53 | AK17: 455,048.71 | AL17: 14,008.76 | AM17: 15,863.44 | AN17: 389,707.97 | AO17: 8,284.48 | AP17: 99,525.01 | AQ17: 61.62 | AR17: 964.02 | AS17: 32,161.31 | AT17: 4,170.68 | AU17: 77.59 | AV17: 344,779.20 | AW17: 601,457.42 | AX17: 125,679.64 | AY17: 21,960.71 | AZ17: 901,492.66 | BA17: 2,745,680.30 | BB17: 1,076.66 | BC17: 2,154,589.90 | BD17: 31,757,780.32
A18: Estonia | B18: 0.37 | C18: 53,700.06 | D18: 0.06 | E18: 852.00 | F18: 0.00 | G18: 0.00 | H18: 0.00 | I18: 82.20 | J18: 9,596.91 | K18: 0.23 | L18: 0.00 | M18: 0.00 | N18: 0.01 | O18: 1,014.75 | P18: 0.00 | Q18: 457,537.60 | R18: 3.74 | S18: 408,448.58 | T18: 0.00 | U18: 2,542.43 | V18: 250.95 | W18: 0.00 | X18: 0.00 | Y18: 2,064.18 | Z18: 12,312.01 | AA18: 0.00 | AB18: 199,471.49 | AC18: 23,645.72 | AD18: 0.01 | AE18: 212.64 | AF18: 88.99 | AG18: 5.60 | AH18: 0.00 | AI18: 19,719.83 | AJ18: 0.01 | AK18: 0.00 | AL18: 2.20 | AM18: 0.02 | AN18: 0.04 | AO18: 0.01 | AP18: 0.54 | AQ18: 0.00 | AR18: 186,587.54 | AS18: 0.02 | AT18: 12,063.26 | AU18: 0.00 | AV18: 0.46 | AW18: 100,429.16 | AX18: 0.00 | AY18: 0.00 | AZ18: 1.35 | BA18: 1,974.90 | BB18: 7,513.58 | BC18: 180,676.57 | BD18: 1,680,800.02
A19: Finland | B19: 17,104.77 | C19: 50,804.70 | D19: 6,409.83 | E19: 12,712.46 | F19: 0.00 | G19: 0.49 | H19: 1.85 | I19: 225,447.68 | J19: 170,734.18 | K19: 5,074.01 | L19: 28,981.49 | M19: 0.00 | N19: 8.13 | O19: 4,438.30 | P19: 297,112.61 | Q19: 0.00 | R19: 160,368.35 | S19: 163,401.10 | T19: 22.25 | U19: 282.03 | V19: 7,691.95 | W19: 138.84 | X19: 2.02 | Y19: 11,604.53 | Z19: 17,250.22 | AA19: 0.00 | AB19: 23,677.17 | AC19: 68,651.05 | AD19: 19.24 | AE19: 338.58 | AF19: 0.00 | AG19: 68,277.76 | AH19: 0.00 | AI19: 18,791.94 | AJ19: 1,719.08 | AK19: 49,727.11 | AL19: 6,691.75 | AM19: 2,820.52 | AN19: 34,548.21 | AO19: 10.34 | AP19: 24,919.30 | AQ19: 708.51 | AR19: 682,112.39 | AS19: 137,685.45 | AT19: 2,319.18 | AU19: 0.03 | AV19: 6,078.39 | AW19: 15,876.26 | AX19: 4,028.45 | AY19: 29,947.05 | AZ19: 12,738.50 | BA19: 408,686.72 | BB19: 7.14 | BC19: 1,086,314.05 | BD19: 3,866,285.97
A20: France | B20: 102,773.14 | C20: 2,806,333.55 | D20: 5,366,751.43 | E20: 586,529.55 | F20: 40,639.35 | G20: 9,448.84 | H20: 33.34 | I20: 4,567,378.58 | J20: 118,401,384.73 | K20: 3,209,107.84 | L20: 805,566.31 | M20: 1,080.26 | N20: 1,190,063.37 | O20: 1,723,804.31 | P20: 19,834.03 | Q20: 2,027,644.71 | R20: 0.00 | S20: 23,956,562.16 | T20: 63,031.99 | U20: 761,989.20 | V20: 3,664,160.29 | W20: 106,102.52 | X20: 22,731,906.77 | Y20: 27,909,355.17 | Z20: 22,843,157.37 | AA20: 0.00 | AB20: 14,774.39 | AC20: 25,313.38 | AD20: 2,036,990.99 | AE20: 909,294.96 | AF20: 91,866.19 | AG20: 183,150.00 | AH20: 0.00 | AI20: 81,827,221.80 | AJ20: 6,906.08 | AK20: 87,355.99 | AL20: 25,862,984.20 | AM20: 194,246.06 | AN20: 1,262,617.58 | AO20: 1,123,818.11 | AP20: 9,024,588.93 | AQ20: 653,273.67 | AR20: 22,870,245.60 | AS20: 27,451,763.14 | AT20: 124,379.26 | AU20: 18,529.16 | AV20: 1,671,672.24 | AW20: 12,952,590.87 | AX20: 117,754.29 | AY20: 4,349,987.49 | AZ20: 18,673,265.84 | BA20: 122,782,682.34 | BB20: 24,953.03 | BC20: 77,501,821.97 | BD20: 654,738,686.35
A21: Germany | B21: 17,497,935.95 | C21: 105,760,310.47 | D21: 29,222,910.73 | E21: 1,865,019.20 | F21: 206.41 | G21: 1,171,394.54 | H21: 6.96 | I21: 2,048,142.34 | J21: 910,215,777.75 | K21: 18,809,040.18 | L21: 2,223,786.86 | M21: 5,449,268.15 | N21: 41,455,146.60 | O21: 23,737,120.46 | P21: 3,066,774.33 | Q21: 15,200,202.36 | R21: 363,745,781.00 | S21: 0.00 | T21: 4,365,871.52 | U21: 28,659,169.11 | V21: 5,403,603.19 | W21: 682,398.87 | X21: 13,665,112.47 | Y21: 171,876,797.35 | Z21: 418,820,476.66 | AA21: 21,734.88 | AB21: 695,336.19 | AC21: 2,470,386.15 | AD21: 10,218,751.13 | AE21: 36,359,591.44 | AF21: 3,550,913.72 | AG21: 5,075,764.42 | AH21: 18,018.26 | AI21: 142,000,061.53 | AJ21: 604,740.41 | AK21: 31,381,052.53 | AL21: 363,743,577.27 | AM21: 7,429,604.05 | AN21: 147,297,468.49 | AO21: 11,063,609.12 | AP21: 159,810,548.63 | AQ21: 15,350,618.57 | AR21: 14,047,387.22 | AS21: 129,823,015.23 | AT21: 7,661,258.57 | AU21: 2,006,354.26 | AV21: 32,955,883.49 | AW21: 22,507,012.63 | AX21: 13,799,019.43 | AY21: 18,747,627.24 | AZ21: 452,471,312.45 | BA21: 354,485,524.86 | BB21: 219,698.75 | BC21: 169,099,609.40 | BD21: 4,339,857,733.80
A22: Greece | B22: 0.06 | C22: 13.50 | D22: 396,650.21 | E22: 0.93 | F22: 0.00 | G22: 5,287,918.32 | H22: 0.00 | I22: 16.21 | J22: 259,124.24 | K22: 13,640.36 | L22: 50,739.86 | M22: 4,518,483.70 | N22: 4,939.30 | O22: 296,052.95 | P22: 0.00 | Q22: 49,489.07 | R22: 47,463.58 | S22: 3,666,196.60 | T22: 0.00 | U22: 1,817,903.98 | V22: 4,101.84 | W22: 0.02 | X22: 63.52 | Y22: 264,990.83 | Z22: 1,515.87 | AA22: 0.00 | AB22: 0.00 | AC22: 0.00 | AD22: 0.00 | AE22: 970.07 | AF22: 608,954.92 | AG22: 10.22 | AH22: 0.00 | AI22: 1,151,631.13 | AJ22: 0.02 | AK22: 0.08 | AL22: 31,347.93 | AM22: 55.39 | AN22: 1,399,541.18 | AO22: 118,340.20 | AP22: 732,616.20 | AQ22: 15,768,884.07 | AR22: 0.18 | AS22: 46.43 | AT22: 39,833.49 | AU22: 0.41 | AV22: 253,979.76 | AW22: 27,028.01 | AX22: 11.57 | AY22: 23.34 | AZ22: 741,791.20 | BA22: 4,767.66 | BB22: 0.00 | BC22: 399,654.80 | BD22: 37,958,793.25
A23: Hungary | B23: 141.42 | C23: 120,496.85 | D23: 69,198.35 | E23: 110,102.46 | F23: 0.00 | G23: 29,052.74 | H23: 0.02 | I23: 6,268.18 | J23: 913,837.11 | K23: 45,971.82 | L23: 545.07 | M23: 0.00 | N23: 29,724.47 | O23: 3,372.44 | P23: 0.00 | Q23: 2,205.42 | R23: 655,477.66 | S23: 5,942,581.27 | T23: 14,991.32 | U23: 0.00 | V23: 15,455.25 | W23: 19.55 | X23: 876.94 | Y23: 139,508.88 | Z23: 16,364.67 | AA23: 0.00 | AB23: 139.36 | AC23: 1,439.45 | AD23: 0.17 | AE23: 19,933.20 | AF23: 40.79 | AG23: 37,653.85 | AH23: 0.00 | AI23: 272,226.88 | AJ23: 7.26 | AK23: 4,812.44 | AL23: 17,600.23 | AM23: 2,092.14 | AN23: 294,065.56 | AO23: 30,833.14 | AP23: 10,923.41 | AQ23: 323,391.45 | AR23: 15,298.10 | AS23: 4,856.76 | AT23: 651,112.82 | AU23: 45,278.06 | AV23: 172,570.42 | AW23: 53,320.81 | AX23: 7,546.05 | AY23: 66,867.00 | AZ23: 2,063,882.74 | BA23: 1,216,814.44 | BB23: 26.56 | BC23: 556,737.35 | BD23: 13,985,662.35
A24: India | B24: 210,121.28 | C24: 465.52 | D24: 7,444,907.33 | E24: 14,320.25 | F24: 0.00 | G24: 213,392.69 | H24: 4.74 | I24: 775,598.20 | J24: 27,147,516.95 | K24: 1,801,859.88 | L24: 454,226.29 | M24: 0.00 | N24: 333,970.92 | O24: 223,147.18 | P24: 1.07 | Q24: 1,980.58 | R24: 133,700.68 | S24: 7,200,433.39 | T24: 1,149,470.63 | U24: 18,622.81 | V24: 0.00 | W24: 242,594.73 | X24: 111,415.14 | Y24: 3,729,010.55 | Z24: 10,864,572.89 | AA24: 0.00 | AB24: 315.44 | AC24: 180.39 | AD24: 49.29 | AE24: 163,428.01 | AF24: 83,429.32 | AG24: 140,430.94 | AH24: 37,079.70 | AI24: 6,044,870.64 | AJ24: 411.93 | AK24: 62.77 | AL24: 150,709.51 | AM24: 24,884.48 | AN24: 561.67 | AO24: 33.85 | AP24: 129,640.70 | AQ24: 732,438.22 | AR24: 715.04 | AS24: 364,756.33 | AT24: 86.82 | AU24: 1,121,669.61 | AV24: 1,626,358.14 | AW24: 1,094.06 | AX24: 26,004.75 | AY24: 47,838.95 | AZ24: 42,961,293.09 | BA24: 56,442,727.41 | BB24: 30,189.19 | BC24: 9,613,912.57 | BD24: 181,816,506.53
A25: Indonesia | B25: 820,867.09 | C25: 804,660.22 | D25: 1,313.29 | E25: 68.30 | F25: 0.00 | G25: 0.00 | H25: 0.00 | I25: 10,613.47 | J25: 5,657,509.90 | K25: 25,495.43 | L25: 0.00 | M25: 0.00 | N25: 0.00 | O25: 0.00 | P25: 0.00 | Q25: 128.94 | R25: 83,638.28 | S25: 107,785.61 | T25: 0.00 | U25: 625.65 | V25: 291.49 | W25: 0.00 | X25: 109,989.48 | Y25: 3,774.73 | Z25: 8,205,862.88 | AA25: 0.00 | AB25: 0.00 | AC25: 0.00 | AD25: 0.00 | AE25: 3,050.42 | AF25: 0.00 | AG25: 1,567.27 | AH25: 0.00 | AI25: 36,507.29 | AJ25: 13.40 | AK25: 149.21 | AL25: 5,807,160.47 | AM25: 36.10 | AN25: 0.00 | AO25: 0.00 | AP25: 1,849,117.77 | AQ25: 56.92 | AR25: 1,987.88 | AS25: 8,135,382.93 | AT25: 13.99 | AU25: 0.00 | AV25: 105,276.69 | AW25: 147.93 | AX25: 153.94 | AY25: 0.00 | AZ25: 86,788.50 | BA25: 3,646,104.12 | BB25: 19.86 | BC25: 140,037.16 | BD25: 35,646,196.61
A26: Ireland | B26: 28,953.52 | C26: 553.78 | D26: 245.88 | E26: 3,564.34 | F26: 0.00 | G26: 17.05 | H26: 0.06 | I26: 19,822.59 | J26: 2,900,961.72 | K26: 167,199.90 | L26: 0.00 | M26: 0.00 | N26: 26.36 | O26: 60.69 | P26: 0.01 | Q26: 143.87 | R26: 14,607,791.14 | S26: 310,693.19 | T26: 0.00 | U26: 96.07 | V26: 2,703.09 | W26: 165.11 | X26: 0.00 | Y26: 3,121,676.73 | Z26: 57,907.74 | AA26: 0.00 | AB26: 15.12 | AC26: 16.68 | AD26: 0.59 | AE26: 15,523.23 | AF26: 0.00 | AG26: 11,612.88 | AH26: 0.00 | AI26: 4,394.81 | AJ26: 565.12 | AK26: 30.94 | AL26: 77,112.94 | AM26: 1,531.70 | AN26: 56.35 | AO26: 6.53 | AP26: 107,665.31 | AQ26: 18.40 | AR26: 134,746.38 | AS26: 6,397.66 | AT26: 6.82 | AU26: 7.34 | AV26: 801.16 | AW26: 84.17 | AX26: 1,566.77 | AY26: 289.58 | AZ26: 212,763.58 | BA26: 3,670,448.07 | BB26: 223.26 | BC26: 309,256.45 | BD26: 25,777,724.63
A27: Italy | B27: 312,669.60 | C27: 7,370,909.84 | D27: 2,488,283.76 | E27: 2,107,586.51 | F27: 0.00 | G27: 646,793.52 | H27: 0.00 | I27: 180,621.60 | J27: 11,603,515.71 | K27: 567,770.55 | L27: 2,471,926.67 | M27: 1,171,699.89 | N27: 711,984.80 | O27: 1,502,411.05 | P27: 1,035,544.48 | Q27: 164,504.73 | R27: 35,575,884.47 | S27: 27,681,720.39 | T27: 281,793.34 | U27: 1,471,895.86 | V27: 608,996.95 | W27: 33,620.21 | X27: 375,280.30 | Y27: 0.00 | Z27: 1,919,419.73 | AA27: 0.00 | AB27: 17,207.45 | AC27: 94,974.70 | AD27: 38,350.29 | AE27: 63,873,132.92 | AF27: 1,650,244.28 | AG27: 114,287.75 | AH27: 9,072.17 | AI27: 7,901,862.23 | AJ27: 64,891.94 | AK27: 137,370.00 | AL27: 5,893,661.50 | AM27: 176,645.35 | AN27: 2,973,206.32 | AO27: 940,824.17 | AP27: 12,359,402.27 | AQ27: 17,959,431.45 | AR27: 2,745,404.27 | AS27: 16,451,607.84 | AT27: 1,512,258.37 | AU27: 236,986.95 | AV27: 3,156,269.22 | AW27: 578,454.40 | AX27: 23,004,188.53 | AY27: 551,829.94 | AZ27: 8,134,945.52 | BA27: 10,794,609.12 | BB27: 0.00 | BC27: 50,278,799.05 | BD27: 331,934,751.95
A28: Japan | B28: 7,593,410.28 | C28: 21,667,637.62 | D28: 4,394,370.63 | E28: 79,475.14 | F28: 0.00 | G28: 761.94 | H28: 58,433.70 | I28: 1,529,182.56 | J28: 837,366,653.84 | K28: 20,762,444.46 | L28: 1,811.28 | M28: 0.00 | N28: 1,630,837.26 | O28: 57,026.64 | P28: 0.02 | Q28: 3,625,496.65 | R28: 59,952,352.98 | S28: 89,401,461.39 | T28: 0.00 | U28: 102,681.65 | V28: 433,856.18 | W28: 83,789,021.08 | X28: 8,144,714.16 | Y28: 19,406,829.90 | Z28: 0.00 | AA28: 0.00 | AB28: 585.62 | AC28: 1,850,005.25 | AD28: 40,304.28 | AE28: 157,076,238.70 | AF28: 13,648,620.38 | AG28: 1,218,895.61 | AH28: 0.00 | AI28: 3,339,092.04 | AJ28: 2,437.01 | AK28: 2,384,170.87 | AL28: 1,024,619,061.20 | AM28: 5,644,434.79 | AN28: 158,368.77 | AO28: 78,594.53 | AP28: 496,706,872.66 | AQ28: 12,477.21 | AR28: 301,185.68 | AS28: 218,869,280.11 | AT28: 6,761.13 | AU28: 0.01 | AV28: 173,351.11 | AW28: 152,516.67 | AX28: 104,359,712.55 | AY28: 278,743.63 | AZ28: 35,070,583.65 | BA28: 514,050,191.86 | BB28: 5,003,628.28 | BC28: 49,300,906.74 | BD28: 3,794,345,479.71
A29: Lao PDR | B29: 0.00 | C29: 0.00 | D29: 0.00 | E29: 0.00 | F29: 0.00 | G29: 0.00 | H29: 0.00 | I29: 0.00 | J29: 0.00 | K29: 0.00 | L29: 0.00 | M29: 0.00 | N29: 0.00 | O29: 0.00 | P29: 0.00 | Q29: 0.00 | R29: 0.00 | S29: 0.00 | T29: 0.00 | U29: 0.00 | V29: 0.00 | W29: 0.00 | X29: 0.00 | Y29: 0.00 | Z29: 0.00 | AA29: 0.00 | AB29: 0.00 | AC29: 0.00 | AD29: 0.00 | AE29: 0.00 | AF29: 0.00 | AG29: 0.00 | AH29: 0.00 | AI29: 0.00 | AJ29: 0.00 | AK29: 0.00 | AL29: 0.00 | AM29: 0.00 | AN29: 0.00 | AO29: 0.00 | AP29: 0.00 | AQ29: 0.00 | AR29: 0.00 | AS29: 0.00 | AT29: 0.00 | AU29: 0.00 | AV29: 0.00 | AW29: 0.00 | AX29: 0.00 | AY29: 0.00 | AZ29: 0.00 | BA29: 0.00 | BB29: 0.00 | BC29: 0.00 | BD29: 0.00
A30: Latvia | B30: 0.01 | C30: 0.00 | D30: 0.01 | E30: 1,839.30 | F30: 0.00 | G30: 17.30 | H30: 0.00 | I30: 2.60 | J30: 652.96 | K30: 77.84 | L30: 0.00 | M30: 0.00 | N30: 0.00 | O30: 0.00 | P30: 8,604.96 | Q30: 0.04 | R30: 4.24 | S30: 2.54 | T30: 0.00 | U30: 0.00 | V30: 0.75 | W30: 0.01 | X30: 0.00 | Y30: 0.71 | Z30: 1,181.68 | AA30: 0.00 | AB30: 0.00 | AC30: 21,254.08 | AD30: 0.00 | AE30: 7.08 | AF30: 0.00 | AG30: 1.64 | AH30: 0.00 | AI30: 8.29 | AJ30: 0.00 | AK30: 232.44 | AL30: 22,455.47 | AM30: 0.09 | AN30: 8.65 | AO30: 0.00 | AP30: 20.64 | AQ30: 0.00 | AR30: 115,524.44 | AS30: 13.66 | AT30: 1,797.13 | AU30: 0.00 | AV30: 0.17 | AW30: 1,797.30 | AX30: 0.00 | AY30: 20,380.24 | AZ30: 163.95 | BA30: 788.38 | BB30: 0.00 | BC30: 50,800.03 | BD30: 247,638.62
A31: Lithuania | B31: 362.50 | C31: 9.29 | D31: 183,497.19 | E31: 2,135.78 | F31: 0.00 | G31: 4.35 | H31: 0.53 | I31: 64,530.80 | J31: 577,224.59 | K31: 42,523.39 | L31: 0.00 | M31: 0.00 | N31: 9.16 | O31: 19.51 | P31: 7,568.09 | Q31: 2,827.02 | R31: 1,036.36 | S31: 3,152,131.61 | T31: 0.00 | U31: 2.69 | V31: 25,836.11 | W31: 39.15 | X31: 4.51 | Y31: 1,005,895.98 | Z31: 2,888.79 | AA31: 0.00 | AB31: 1,773.03 | AC31: 0.00 | AD31: 5.52 | AE31: 1,459,546.37 | AF31: 0.00 | AG31: 1,323.16 | AH31: 0.00 | AI31: 766.64 | AJ31: 3.94 | AK31: 103,536.78 | AL31: 4,017.22 | AM31: 55,780.87 | AN31: 186,774.09 | AO31: 4.96 | AP31: 948.21 | AQ31: 2.69 | AR31: 480,806.54 | AS31: 504.18 | AT31: 8.69 | AU31: 5,523.53 | AV31: 6,051.56 | AW31: 1,016.97 | AX31: 396.02 | AY31: 86,255.37 | AZ31: 875.43 | BA31: 58,265.96 | BB31: 56.33 | BC31: 1,877,589.65 | BD31: 9,400,381.10
A32: Luxembourg | B32: 2,695.69 | C32: 645,695.08 | D32: 13,391,332.52 | E32: 0.00 | F32: 0.00 | G32: 264,449.93 | H32: 0.00 | I32: 6,942.56 | J32: 4,789.46 | K32: 0.00 | L32: 0.00 | M32: 0.00 | N32: 3,749.99 | O32: 0.00 | P32: 0.00 | Q32: 0.00 | R32: 2,067,541.67 | S32: 3,765,475.10 | T32: 590.80 | U32: 336.19 | V32: 1,694.54 | W32: 301.58 | X32: 4,969.92 | Y32: 115,672.59 | Z32: 0.00 | AA32: 0.00 | AB32: 0.00 | AC32: 4,125.73 | AD32: 0.00 | AE32: 0.00 | AF32: 0.00 | AG32: 0.00 | AH32: 0.00 | AI32: 1,024,797.55 | AJ32: 0.00 | AK32: 0.00 | AL32: 0.00 | AM32: 0.00 | AN32: 537.66 | AO32: 4,465.63 | AP32: 0.00 | AQ32: 0.00 | AR32: 0.00 | AS32: 1,125.99 | AT32: 0.00 | AU32: 0.00 | AV32: 500.58 | AW32: 1,469.59 | AX32: 0.00 | AY32: 0.00 | AZ32: 25,315.55 | BA32: 0.00 | BB32: 0.00 | BC32: 177,317.58 | BD32: 21,515,893.48
A33: Malaysia | B33: 0.00 | C33: 0.00 | D33: 0.00 | E33: 0.00 | F33: 0.00 | G33: 0.00 | H33: 0.00 | I33: 0.00 | J33: 0.00 | K33: 0.00 | L33: 0.00 | M33: 0.00 | N33: 0.00 | O33: 0.00 | P33: 0.00 | Q33: 0.00 | R33: 0.00 | S33: 0.00 | T33: 0.00 | U33: 0.00 | V33: 0.00 | W33: 89,472.81 | X33: 0.00 | Y33: 0.00 | Z33: 0.00 | AA33: 0.00 | AB33: 0.00 | AC33: 0.00 | AD33: 0.00 | AE33: 0.00 | AF33: 0.00 | AG33: 0.00 | AH33: 0.00 | AI33: 0.00 | AJ33: 0.00 | AK33: 0.00 | AL33: 0.00 | AM33: 854,797.51 | AN33: 0.00 | AO33: 0.00 | AP33: 0.00 | AQ33: 0.00 | AR33: 0.00 | AS33: 40,805,162.33 | AT33: 0.00 | AU33: 0.00 | AV33: 0.00 | AW33: 0.00 | AX33: 547,429.73 | AY33: 0.00 | AZ33: 0.00 | BA33: 0.00 | BB33: 347,719.97 | BC33: 0.00 | BD33: 42,644,582.35
A34: Malta | B34: 119.85 | C34: 82.87 | D34: 0.16 | E34: 0.54 | F34: 0.00 | G34: 0.03 | H34: 0.00 | I34: 159.49 | J34: 4,840.11 | K34: 294.52 | L34: 0.00 | M34: 0.00 | N34: 0.04 | O34: 0.11 | P34: 0.00 | Q34: 0.40 | R34: 2.71 | S34: 2,163.00 | T34: 0.00 | U34: 0.01 | V34: 83.88 | W34: 0.26 | X34: 0.03 | Y34: 1,273.49 | Z34: 18.49 | AA34: 0.00 | AB34: 0.07 | AC34: 0.03 | AD34: 0.01 | AE34: 0.88 | AF34: 0.00 | AG34: 4.18 | AH34: 0.00 | AI34: 9.55 | AJ34: 0.03 | AK34: 0.01 | AL34: 8.28 | AM34: 1.05 | AN34: 343.73 | AO34: 0.01 | AP34: 31,977.89 | AQ34: 0.02 | AR34: 0.14 | AS34: 3.48 | AT34: 0.00 | AU34: 0.00 | AV34: 0.19 | AW34: 1,181.69 | AX34: 2.74 | AY34: 0.24 | AZ34: 5.29 | BA34: 265.03 | BB34: 0.39 | BC34: 3,930.18 | BD34: 46,775.09
A35: Mexico | B35: 421.71 | C35: 325.60 | D35: 332.11 | E35: 6,236.48 | F35: 0.00 | G35: 0.00 | H35: 0.05 | I35: 115,801.16 | J35: 1,254,448.86 | K35: 1,437.44 | L35: 0.00 | M35: 0.00 | N35: 0.45 | O35: 0.16 | P35: 0.01 | Q35: 15.81 | R35: 47,004.70 | S35: 880,693.33 | T35: 0.00 | U35: 43.01 | V35: 291.26 | W35: 10.78 | X35: 657.78 | Y35: 147,332.43 | Z35: 287,769.78 | AA35: 0.00 | AB35: 1.92 | AC35: 0.00 | AD35: 0.54 | AE35: 3,922.18 | AF35: 0.00 | AG35: 0.00 | AH35: 0.00 | AI35: 871.15 | AJ35: 148.36 | AK35: 8.91 | AL35: 1,216.18 | AM35: 364,253.83 | AN35: 392.87 | AO35: 0.58 | AP35: 4,027.99 | AQ35: 3.90 | AR35: 135.83 | AS35: 811.79 | AT35: 48.95 | AU35: 0.35 | AV35: 6,948.22 | AW35: 368.04 | AX35: 10.76 | AY35: 0.00 | AZ35: 23,700.53 | BA35: 31,245,515.75 | BB35: 1.39 | BC35: 345,921.47 | BD35: 34,741,134.40
A36: Myanmar | B36: 0.00 | C36: 0.00 | D36: 0.00 | E36: 0.00 | F36: 0.00 | G36: 0.00 | H36: 0.00 | I36: 0.00 | J36: 0.00 | K36: 0.00 | L36: 0.00 | M36: 0.00 | N36: 0.00 | O36: 0.00 | P36: 0.00 | Q36: 0.00 | R36: 0.00 | S36: 0.00 | T36: 0.00 | U36: 0.00 | V36: 0.00 | W36: 0.00 | X36: 0.00 | Y36: 0.00 | Z36: 0.00 | AA36: 0.00 | AB36: 0.00 | AC36: 0.00 | AD36: 0.00 | AE36: 0.00 | AF36: 0.00 | AG36: 0.00 | AH36: 0.00 | AI36: 0.00 | AJ36: 0.00 | AK36: 0.00 | AL36: 0.00 | AM36: 0.00 | AN36: 0.00 | AO36: 0.00 | AP36: 0.00 | AQ36: 0.00 | AR36: 0.00 | AS36: 0.00 | AT36: 0.00 | AU36: 0.00 | AV36: 0.00 | AW36: 0.00 | AX36: 0.00 | AY36: 0.00 | AZ36: 0.00 | BA36: 0.00 | BB36: 0.00 | BC36: 0.00 | BD36: 0.00
A37: Netherlands | B37: 269,340.90 | C37: 19,296,721.32 | D37: 42,585,736.43 | E37: 469,286.23 | F37: 2,694.46 | G37: 3,106,542.79 | H37: 19.73 | I37: 2,417,664.64 | J37: 32,326,239.07 | K37: 2,347,275.91 | L37: 221,079.04 | M37: 4,589,052.54 | N37: 3,916,161.64 | O37: 14,448,179.94 | P37: 929,758.08 | Q37: 812,402.35 | R37: 78,399,648.35 | S37: 642,823,353.83 | T37: 7,816,767.50 | U37: 8,741,919.12 | V37: 35,508.35 | W37: 506,153.05 | X37: 1,780,079.92 | Y37: 35,125,074.07 | Z37: 1,499,961.92 | AA37: 0.00 | AB37: 1,233,621.22 | AC37: 1,925,766.97 | AD37: 5,745,614.02 | AE37: 149,642.81 | AF37: 3,126,831.99 | AG37: 189,060.88 | AH37: 0.00 | AI37: 0.00 | AJ37: 3,726.22 | AK37: 350,010.35 | AL37: 1,493,722.17 | AM37: 39,441.83 | AN37: 7,898,898.71 | AO37: 2,623,676.01 | AP37: 477,153.68 | AQ37: 38,499,770.67 | AR37: 882,136.95 | AS37: 314,173.90 | AT37: 4,361,144.18 | AU37: 454,370.68 | AV37: 23,931,540.04 | AW37: 5,331,787.45 | AX37: 377,682.09 | AY37: 1,307,613.34 | AZ37: 309,607,784.00 | BA37: 7,297,344.71 | BB37: 22,539.14 | BC37: 24,207,717.13 | BD37: 1,346,319,392.33
A38: New Zealand | B38: 138,024.58 | C38: 0.00 | D38: 0.00 | E38: 0.00 | F38: 0.00 | G38: 0.00 | H38: 0.00 | I38: 3,269.76 | J38: 0.00 | K38: 1,203.56 | L38: 0.00 | M38: 0.00 | N38: 0.00 | O38: 0.00 | P38: 0.00 | Q38: 0.00 | R38: 0.00 | S38: 248.99 | T38: 0.00 | U38: 0.00 | V38: 0.00 | W38: 0.00 | X38: 356.24 | Y38: 0.00 | Z38: 2,726.58 | AA38: 544.70 | AB38: 0.00 | AC38: 0.00 | AD38: 0.00 | AE38: 662.68 | AF38: 0.00 | AG38: 4,577.50 | AH38: 0.00 | AI38: 2,795.53 | AJ38: 0.00 | AK38: 0.00 | AL38: 198.42 | AM38: 2,380.30 | AN38: 0.00 | AO38: 0.00 | AP38: 0.00 | AQ38: 59.76 | AR38: 0.00 | AS38: 8,300.03 | AT38: 0.00 | AU38: 0.00 | AV38: 1,187.47 | AW38: 0.00 | AX38: 19,827.68 | AY38: 0.00 | AZ38: 73.55 | BA38: 28,687.73 | BB38: 0.00 | BC38: 641,976.73 | BD38: 857,101.80
A39: Norway | B39: 4,158.35 | C39: 650.05 | D39: 37,050.09 | E39: 445.89 | F39: 0.00 | G39: 26.88 | H39: 0.00 | I39: 2,318.92 | J39: 69,377,544.92 | K39: 2,248,270.76 | L39: 0.00 | M39: 9,536.40 | N39: 4,837,143.21 | O39: 114,173.79 | P39: 14,630.88 | Q39: 825,664.73 | R39: 45,957.06 | S39: 2,415,751.38 | T39: 22.72 | U39: 846.43 | V39: 92,803.11 | W39: 410.90 | X39: 1,566.73 | Y39: 1,507.47 | Z39: 10,468,266.28 | AA39: 6,838.70 | AB39: 20.53 | AC39: 26.29 | AD39: 0.00 | AE39: 30,123,971.64 | AF39: 0.00 | AG39: 1,195.94 | AH39: 0.00 | AI39: 189,686.03 | AJ39: 22.69 | AK39: 0.00 | AL39: 22,029,499.04 | AM39: 19,783,387.25 | AN39: 28,130.04 | AO39: 0.00 | AP39: 880,544.87 | AQ39: 25.79 | AR39: 406.25 | AS39: 7,147,500.50 | AT39: 2.25 | AU39: 0.00 | AV39: 108.41 | AW39: 21,915.30 | AX39: 4,722.78 | AY39: 449,739.94 | AZ39: 122,794.68 | BA39: 644,649.39 | BB39: 349.59 | BC39: 1,421,589.34 | BD39: 173,355,874.20
A40: Taiwan | B40: 6,477,661.07 | C40: 26,768,528.59 | D40: 9,251,918.40 | E40: 468,700.82 | F40: 0.00 | G40: 180,817.82 | H40: 828,991.57 | I40: 125,376,699.49 | J40: 1,750,718,322.82 | K40: 45,790,603.99 | L40: 463,910.23 | M40: 344,743.94 | N40: 63,045,842.85 | O40: 92,223.62 | P40: 121,733.69 | Q40: 738,931.82 | R40: 58,825,353.33 | S40: 283,099,439.37 | T40: 59,414.36 | U40: 584,878.25 | V40: 37,785,649.06 | W40: 1,102,794.07 | X40: 331,505.47 | Y40: 39,860,763.28 | Z40: 969,789,830.60 | AA40: 0.00 | AB40: 0.00 | AC40: 879,369.80 | AD40: 2,067,974.40 | AE40: 470,905,815.98 | AF40: 138,980.06 | AG40: 47,929,330.40 | AH40: 237,657.44 | AI40: 118,717,213.42 | AJ40: 282,980.00 | AK40: 1,507,911.21 | AL40: 0.00 | AM40: 1,751,041.24 | AN40: 12,113,209.59 | AO40: 5,965,623.63 | AP40: 148,638,958.61 | AQ40: 1,417,830.12 | AR40: 314,390.10 | AS40: 149,950,863.81 | AT40: 528,754.60 | AU40: 3,383,438.28 | AV40: 9,455,289.40 | AW40: 177,744.31 | AX40: 1,785,861.98 | AY40: 53,583,624.90 | AZ40: 58,716,925.82 | BA40: 233,834,312.88 | BB40: 10,376,379.61 | BC40: 65,362,153.03 | BD40: 4,822,132,893.14
A41: Philippines | B41: 213,424.18 | C41: 548.18 | D41: 5,682.26 | E41: 42,426.07 | F41: 290.15 | G41: 50.97 | H41: 179,520.43 | I41: 727,180.88 | J41: 33,319,875.69 | K41: 504,174.35 | L41: 0.00 | M41: 0.00 | N41: 63.13 | O41: 180.97 | P41: 0.00 | Q41: 356.17 | R41: 9,529,290.76 | S41: 648,749.22 | T41: 0.00 | U41: 77.73 | V41: 827,397.93 | W41: 429.61 | X41: 47.55 | Y41: 1,480.98 | Z41: 948,988,056.57 | AA41: 0.00 | AB41: 38.93 | AC41: 49.87 | AD41: 0.00 | AE41: 539,301.40 | AF41: 0.00 | AG41: 1,222,001.29 | AH41: 0.00 | AI41: 54,596,111.04 | AJ41: 1,023.03 | AK41: 16.83 | AL41: 9,299.48 | AM41: 0.00 | AN41: 858,730.07 | AO41: 0.00 | AP41: 6,874,200.20 | AQ41: 31.57 | AR41: 19,600.10 | AS41: 78,965.58 | AT41: 320.44 | AU41: 0.00 | AV41: 46,572.25 | AW41: 2,496.29 | AX41: 4,621.09 | AY41: 266,186.95 | AZ41: 146,620.19 | BA41: 206,956,005.34 | BB41: 656.97 | BC41: 3,995,081.88 | BD41: 1,270,607,234.55
A42: Poland | B42: 89.59 | C42: 3,180,000.76 | D42: 28,482.87 | E42: 97.55 | F42: 0.00 | G42: 12,647.40 | H42: 0.00 | I42: 598,428.87 | J42: 7,858,799.43 | K42: 144,631.80 | L42: 48,819.13 | M42: 2,182.76 | N42: 30,642,728.75 | O42: 189,672.71 | P42: 29,679.83 | Q42: 6,411,788.54 | R42: 155,459.83 | S42: 339,492,321.71 | T42: 10,376.39 | U42: 123,239.39 | V42: 36,085.86 | W42: 236.42 | X42: 440,053.22 | Y42: 339,875.52 | Z42: 5,935,650.78 | AA42: 0.00 | AB42: 20,326.44 | AC42: 6,242.49 | AD42: 28.43 | AE42: 7,045.07 | AF42: 16.07 | AG42: 4,555.87 | AH42: 0.00 | AI42: 58,047.41 | AJ42: 15.97 | AK42: 363,432.40 | AL42: 6,520,441.50 | AM42: 322.87 | AN42: 0.00 | AO42: 2,632.09 | AP42: 344,758.10 | AQ42: 24,372.05 | AR42: 215,097.23 | AS42: 53,570.30 | AT42: 33,266,498.89 | AU42: 11,486.84 | AV42: 812,775.19 | AW42: 37,005.85 | AX42: 735.99 | AY42: 43,893.82 | AZ42: 1,344,462.64 | BA42: 4,760,272.97 | BB42: 3,311.33 | BC42: 12,071,616.99 | BD42: 455,654,313.93
A43: Portugal | B43: 61,049.41 | C43: 1.02 | D43: 425,272.90 | E43: 1,078,774.74 | F43: 0.00 | G43: 10,475.01 | H43: 0.00 | I43: 738.24 | J43: 4,163.64 | K43: 7.14 | L43: 0.00 | M43: 30,130.96 | N43: 428,994.09 | O43: 485,575.94 | P43: 0.00 | Q43: 0.00 | R43: 2,130,406.47 | S43: 1,828,025.16 | T43: 1,561,417.51 | U43: 529.27 | V43: 2,349.06 | W43: 0.00 | X43: 23,791.57 | Y43: 330,497.31 | Z43: 21,141.73 | AA43: 0.00 | AB43: 0.00 | AC43: 0.00 | AD43: 129,739.39 | AE43: 1.99 | AF43: 0.00 | AG43: 465.44 | AH43: 0.00 | AI43: 509,320.05 | AJ43: 1.00 | AK43: 0.00 | AL43: 0.95 | AM43: 0.00 | AN43: 2.59 | AO43: 0.00 | AP43: 23.26 | AQ43: 126,310.75 | AR43: 0.00 | AS43: 197.11 | AT43: 0.33 | AU43: 7,084.24 | AV43: 1,913,959.03 | AW43: 2.44 | AX43: 0.00 | AY43: 0.16 | AZ43: 4,741,902.78 | BA43: 210,409.27 | BB43: 0.00 | BC43: 2,761,554.49 | BD43: 18,824,316.44
A44: Korea | B44: 14,065,876.89 | C44: 3,969,448.93 | D44: 11,042,041.17 | E44: 482,918.51 | F44: 0.00 | G44: 10,253.96 | H44: 26,919.46 | I44: 5,277,624.59 | J44: 972,063,594.53 | K44: 32,296,167.34 | L44: 58,400.52 | M44: 266,046.83 | N44: 10,866.42 | O44: 631,725.13 | P44: 532,101.92 | Q44: 23,377.97 | R44: 11,081,653.26 | S44: 136,841,169.94 | T44: 1,420,786.47 | U44: 386,272.12 | V44: 15,775,405.39 | W44: 113,824.75 | X44: 20,536.93 | Y44: 9,585,583.43 | Z44: 403,498,309.43 | AA44: 0.00 | AB44: 2,810.06 | AC44: 4,650.25 | AD44: 381.28 | AE44: 147,017,471.15 | AF44: 1,663,951.41 | AG44: 25,921,604.45 | AH44: 926.99 | AI44: 82,126,544.12 | AJ44: 2,723,284.60 | AK44: 72,809.88 | AL44: 350,553,324.48 | AM44: 1,438,809.03 | AN44: 222,592.12 | AO44: 336,712.54 | AP44: 0.00 | AQ44: 71,701.94 | AR44: 50,993.87 | AS44: 17,754,813.52 | AT44: 3,140.04 | AU44: 11.59 | AV44: 200,472.76 | AW44: 65,600.49 | AX44: 13,789,589.62 | AY44: 3,209,288.24 | AZ44: 22,187,293.66 | BA44: 230,360,633.51 | BB44: 1,682,155.81 | BC44: 10,051,165.41 | BD44: 2,530,993,638.69
A45: Romania | B45: 178.56 | C45: 20.52 | D45: 93.68 | E45: 190.45 | F45: 0.00 | G45: 19,468.45 | H45: 0.00 | I45: 526.32 | J45: 1,487,941.93 | K45: 112,149.96 | L45: 0.00 | M45: 0.00 | N45: 15.35 | O45: 40.83 | P45: 0.00 | Q45: 80.57 | R45: 7,126.72 | S45: 224,238.13 | T45: 1,045.65 | U45: 675,548.18 | V45: 413.81 | W45: 96.92 | X45: 1,456.84 | Y45: 686,453.62 | Z45: 8,619.50 | AA45: 0.00 | AB45: 8.84 | AC45: 11.25 | AD45: 0.02 | AE45: 314.60 | AF45: 0.00 | AG45: 1,355.39 | AH45: 0.00 | AI45: 37,148.85 | AJ45: 8.89 | AK45: 3.80 | AL45: 1,411.44 | AM45: 387.35 | AN45: 1,344.01 | AO45: 1.37 | AP45: 2,342.94 | AQ45: 0.00 | AR45: 30.14 | AS45: 5,615.23 | AT45: 1,106.25 | AU45: 1.61 | AV45: 2,518.93 | AW45: 21.70 | AX45: 1,042.45 | AY45: 2,218.75 | AZ45: 2,670.31 | BA45: 28,757.04 | BB45: 148.20 | BC45: 32,213.16 | BD45: 3,346,388.48
A46: Russian Federation | B46: 26.16 | C46: 14,569.45 | D46: 65.75 | E46: 38.13 | F46: 0.00 | G46: 2,928.24 | H46: 0.00 | I46: 8,683.48 | J46: 36,479,852.94 | K46: 226,618.99 | L46: 0.00 | M46: 0.00 | N46: 35,293.63 | O46: 93.20 | P46: 1,085.04 | Q46: 2,406.03 | R46: 46,587.17 | S46: 913,634.07 | T46: 0.00 | U46: 44.53 | V46: 88,924.85 | W46: 9.32 | X46: 161,384.44 | Y46: 186.98 | Z46: 179,204.66 | AA46: 0.00 | AB46: 6,730.97 | AC46: 2,892.01 | AD46: 0.00 | AE46: 17,435.50 | AF46: 51.46 | AG46: 125.00 | AH46: 146.79 | AI46: 152,685.59 | AJ46: 161.25 | AK46: 121.26 | AL46: 168,284.70 | AM46: 921.71 | AN46: 58.49 | AO46: 961.09 | AP46: 288,975.83 | AQ46: 22.32 | AR46: 0.00 | AS46: 4,257.61 | AT46: 0.56 | AU46: 46.43 | AV46: 268.85 | AW46: 159.22 | AX46: 235.60 | AY46: 865.86 | AZ46: 4,460.38 | BA46: 181,607.96 | BB46: 12,789.86 | BC46: 835,875.03 | BD46: 39,841,778.39
A47: Singapore | B47: 53,499.04 | C47: 135,495.01 | D47: 21,024.45 | E47: 678,550.42 | F47: 30,060.25 | G47: 57.06 | H47: 10,062.16 | I47: 92,397.76 | J47: 93,097,233.97 | K47: 2,765,551.23 | L47: 0.00 | M47: 0.00 | N47: 70.68 | O47: 852.34 | P47: 0.00 | Q47: 1,917.99 | R47: 1,016,260.39 | S47: 26,693,227.96 | T47: 0.00 | U47: 5,542.39 | V47: 865,762.94 | W47: 5,293,267.88 | X47: 788,660.62 | Y47: 71,850.67 | Z47: 30,738,943.88 | AA47: 0.00 | AB47: 43.59 | AC47: 55.83 | AD47: 0.00 | AE47: 56,955,663.34 | AF47: 0.00 | AG47: 17,115.26 | AH47: 1,225.67 | AI47: 445,319.98 | AJ47: 158.86 | AK47: 2,590.62 | AL47: 147,917,394.31 | AM47: 3,290,534.59 | AN47: 3,181.17 | AO47: 0.00 | AP47: 181,922,447.80 | AQ47: 507.27 | AR47: 45,119.87 | AS47: 0.00 | AT47: 117.36 | AU47: 0.00 | AV47: 9,984.37 | AW47: 2,013.40 | AX47: 1,022,406.50 | AY47: 2,045.19 | AZ47: 1,520,961.81 | BA47: 31,528,006.58 | BB47: 115,309.54 | BC47: 2,684,518.86 | BD47: 589,847,010.87
A48: Slovakia | B48: 4.57 | C48: 31,493.01 | D48: 583.69 | E48: 1,748.22 | F48: 0.00 | G48: 367.11 | H48: 0.00 | I48: 1,918.99 | J48: 242,915.77 | K48: 326.74 | L48: 327.54 | M48: 19.78 | N48: 37,380,534.32 | O48: 0.07 | P48: 50,775.70 | Q48: 1.91 | R48: 4,614.02 | S48: 1,795,815.74 | T48: 0.05 | U48: 1,090,461.71 | V48: 223.69 | W48: 2.43 | X48: 140.81 | Y48: 530,193.08 | Z48: 228,275.39 | AA48: 0.00 | AB48: 42,822.12 | AC48: 9,335.45 | AD48: 0.00 | AE48: 22.10 | AF48: 3.71 | AG48: 599.73 | AH48: 0.00 | AI48: 5,253.39 | AJ48: 1.45 | AK48: 1.95 | AL48: 12,633.67 | AM48: 0.91 | AN48: 1,057,840.99 | AO48: 1.06 | AP48: 20,494.54 | AQ48: 6,465,754.51 | AR48: 123,234.62 | AS48: 313,978.57 | AT48: 0.00 | AU48: 385.64 | AV48: 4,152.56 | AW48: 714.16 | AX48: 4.07 | AY48: 3,905.71 | AZ48: 46,285.39 | BA48: 314,611.06 | BB48: 167.41 | BC48: 103,184.54 | BD48: 49,886,133.64
A49: Slovenia | B49: 10.03 | C49: 737,212.34 | D49: 5,044,156.23 | E49: 15.27 | F49: 0.00 | G49: 3,510.76 | H49: 0.00 | I49: 123.37 | J49: 365,594.65 | K49: 5,414.33 | L49: 1,372,828.82 | M49: 175,914.74 | N49: 6,513.32 | O49: 1,045.13 | P49: 30,591.99 | Q49: 3.87 | R49: 4,209,278.79 | S49: 1,344,243.52 | T49: 10,168.66 | U49: 326,400.47 | V49: 724.77 | W49: 4.66 | X49: 54.90 | Y49: 7,811,278.81 | Z49: 840.52 | AA49: 0.00 | AB49: 519.54 | AC49: 2,867,279.59 | AD49: 615,567.47 | AE49: 605,947.60 | AF49: 0.00 | AG49: 89.19 | AH49: 0.00 | AI49: 6,361,656.95 | AJ49: 1,174.76 | AK49: 120.11 | AL49: 9,588.42 | AM49: 18.62 | AN49: 2,925.99 | AO49: 233.08 | AP49: 96.35 | AQ49: 413.16 | AR49: 250,196.77 | AS49: 6,923.02 | AT49: 11,775.32 | AU49: 0.00 | AV49: 76,733.58 | AW49: 6,284.00 | AX49: 50.01 | AY49: 56,324.36 | AZ49: 689,566.07 | BA49: 31,932.88 | BB49: 7.11 | BC49: 2,660,402.85 | BD49: 35,701,756.74
A50: Spain | B50: 111.02 | C50: 9,875.98 | D50: 365,953.05 | E50: 562,974.92 | F50: 0.00 | G50: 5.63 | H50: 0.04 | I50: 5,478.30 | J50: 1,452,047.27 | K50: 55,407.36 | L50: 0.00 | M50: 2,882.33 | N50: 22,975.00 | O50: 13,561.62 | P50: 0.01 | Q50: 43,321.36 | R50: 5,300,370.47 | S50: 2,146,533.09 | T50: 5,172.07 | U50: 17.18 | V50: 988,636.23 | W50: 239.90 | X50: 185,586.65 | Y50: 1,199,469.21 | Z50: 1,074,682.25 | AA50: 0.00 | AB50: 5.76 | AC50: 5.51 | AD50: 0.41 | AE50: 5,781.44 | AF50: 123,707.76 | AG50: 557,865.54 | AH50: 0.00 | AI50: 756,575.27 | AJ50: 5.09 | AK50: 31,052.96 | AL50: 1,437.41 | AM50: 192.65 | AN50: 1,096.19 | AO50: 16,175,705.34 | AP50: 4,187.71 | AQ50: 4,205,238.15 | AR50: 751.68 | AS50: 881.76 | AT50: 0.28 | AU50: 172.15 | AV50: 0.00 | AW50: 9,923.62 | AX50: 494,752.10 | AY50: 2,604.71 | AZ50: 714,017.82 | BA50: 166,283.11 | BB50: 14,620.31 | BC50: 19,036,311.23 | BD50: 55,738,476.92
A51: Sweden | B51: 33,635.17 | C51: 437,987.19 | D51: 17,878.92 | E51: 134,694.71 | F51: 0.00 | G51: 577.95 | H51: 0.15 | I51: 31,970.51 | J51: 6,190,095.74 | K51: 287,491.78 | L51: 5,941.40 | M51: 2,167.93 | N51: 13,365.95 | O51: 302,324.58 | P51: 264,698.40 | Q51: 2,790,592.33 | R51: 1,614,577.85 | S51: 10,768,928.52 | T51: 5,253.18 | U51: 9,735.13 | V51: 89,990.49 | W51: 411.45 | X51: 9,592.81 | Y51: 4,018,114.03 | Z51: 1,260,279.89 | AA51: 0.00 | AB51: 14,314.73 | AC51: 595,783.09 | AD51: 250.03 | AE51: 18,945.51 | AF51: 105.06 | AG51: 1,413,183.69 | AH51: 3,490.44 | AI51: 808,064.98 | AJ51: 282.84 | AK51: 4,376,612.00 | AL51: 117,503.94 | AM51: 1,354.28 | AN51: 670,991.33 | AO51: 16,897.42 | AP51: 412,813.33 | AQ51: 2,690.25 | AR51: 1,719,752.43 | AS51: 148,027.21 | AT51: 1,074,917.21 | AU51: 3,341.68 | AV51: 31,698.65 | AW51: 0.00 | AX51: 2,819,528.73 | AY51: 28,163.17 | AZ51: 1,087,866.63 | BA51: 2,418,881.49 | BB51: 639.21 | BC51: 907,443.76 | BD51: 46,983,849.14
A52: Thailand | B52: 0.04 | C52: 2.15 | D52: 0.75 | E52: 0.04 | F52: 0.00 | G52: 0.00 | H52: 23,913.07 | I52: 7.93 | J52: 458.24 | K52: 3.14 | L52: 0.00 | M52: 0.00 | N52: 0.00 | O52: 0.00 | P52: 0.00 | Q52: 0.07 | R52: 57.20 | S52: 8.37 | T52: 21,398.46 | U52: 0.36 | V52: 0.06 | W52: 49,328.08 | X52: 5.51 | Y52: 1.89 | Z52: 12,865.23 | AA52: 0.00 | AB52: 0.00 | AC52: 0.00 | AD52: 0.00 | AE52: 26,640.03 | AF52: 0.00 | AG52: 0.90 | AH52: 4,307.61 | AI52: 19,511.53 | AJ52: 0.01 | AK52: 0.07 | AL52: 16.74 | AM52: 20,346.90 | AN52: 0.00 | AO52: 0.00 | AP52: 4.82 | AQ52: 0.03 | AR52: 1.12 | AS52: 487.27 | AT52: 0.01 | AU52: 0.00 | AV52: 0.01 | AW52: 0.06 | AX52: 0.00 | AY52: 0.00 | AZ52: 889.11 | BA52: 2,085.94 | BB52: 0.01 | BC52: 100.90 | BD52: 182,443.66
A53: Turkey | B53: 0.07 | C53: 0.38 | D53: 0.17 | E53: 1.10 | F53: 0.00 | G53: 0.00 | H53: 0.00 | I53: 20.17 | J53: 186.64 | K53: 0.72 | L53: 0.00 | M53: 0.00 | N53: 0.38 | O53: 0.00 | P53: 0.00 | Q53: 0.01 | R53: 144.46 | S53: 3,375,900.60 | T53: 256.78 | U53: 0.25 | V53: 0.06 | W53: 0.02 | X53: 0.95 | Y53: 239,056.55 | Z53: 10.84 | AA53: 0.00 | AB53: 0.00 | AC53: 0.00 | AD53: 0.00 | AE53: 0.15 | AF53: 0.00 | AG53: 12.21 | AH53: 0.00 | AI53: 1.78 | AJ53: 0.03 | AK53: 0.01 | AL53: 1.31 | AM53: 54,706.46 | AN53: 1.87 | AO53: 157.14 | AP53: 1.43 | AQ53: 3,910.06 | AR53: 0.19 | AS53: 1,968.33 | AT53: 0.01 | AU53: 0.56 | AV53: 3.05 | AW53: 0.07 | AX53: 0.02 | AY53: 0.00 | AZ53: 9.74 | BA53: 5,807.61 | BB53: 2,528.84 | BC53: 3,876,137.81 | BD53: 7,560,828.83
A54: United Kingdom | B54: 327,275.32 | C54: 7,609,798.52 | D54: 3,339,174.75 | E54: 303,486.09 | F54: 0.00 | G54: 25,283.33 | H54: 168,447.66 | I54: 1,904,599.40 | J54: 54,316,095.75 | K54: 3,124,368.50 | L54: 6,579.17 | M54: 295,124.73 | N54: 228,593.00 | O54: 198,586.37 | P54: 66,151.63 | Q54: 1,942,388.35 | R54: 38,000,473.24 | S54: 57,281,429.14 | T54: 24,513.38 | U54: 293,262.40 | V54: 1,380,833.09 | W54: 121,499.68 | X54: 3,509,586.45 | Y54: 15,978,880.18 | Z54: 70,747,675.47 | AA54: 0.00 | AB54: 29,453.66 | AC54: 205,707.74 | AD54: 3,463.35 | AE54: 7,262,255.73 | AF54: 802,164.87 | AG54: 245,459.25 | AH54: 0.00 | AI54: 9,522,127.83 | AJ54: 14,729.51 | AK54: 1,056,064.77 | AL54: 19,651,113.45 | AM54: 79,009.25 | AN54: 3,656,300.42 | AO54: 93,375.12 | AP54: 15,568,838.94 | AQ54: 157,107.82 | AR54: 1,074,181.43 | AS54: 20,205,689.84 | AT54: 273,496.38 | AU54: 71,485.72 | AV54: 1,221,970.55 | AW54: 7,035,929.57 | AX54: 480,250.89 | AY54: 837,792.76 | AZ54: 0.00 | BA54: 35,160,555.11 | BB54: 17,834.63 | BC54: 9,991,711.60 | BD54: 395,912,175.78
A55: USA | B55: 1,492,768.36 | C55: 16,320,159.67 | D55: 1,717,005.97 | E55: 1,558,575.55 | F55: 0.00 | G55: 1,175,561.74 | H55: 0.00 | I55: 18,764,161.31 | J55: 390,175,881.40 | K55: 34,552,626.85 | L55: 368,643.57 | M55: 0.00 | N55: 17,777,942.40 | O55: 5,023,651.93 | P55: 8,342.93 | Q55: 943,320.47 | R55: 27,563,525.71 | S55: 201,011,811.20 | T55: 153,827.90 | U55: 196,228.54 | V55: 8,572,470.96 | W55: 110,514.18 | X55: 1,220,865.72 | Y55: 47,173,900.40 | Z55: 842,164,758.25 | AA55: 0.00 | AB55: 7,119.30 | AC55: 11,680.10 | AD55: 156,170.41 | AE55: 82,153,772.50 | AF55: 0.00 | AG55: 15,384,683.40 | AH55: 0.00 | AI55: 7,746,216.65 | AJ55: 885,493.76 | AK55: 10,998,493.58 | AL55: 243,222,475.48 | AM55: 563,693.90 | AN55: 179,453.68 | AO55: 20,608.90 | AP55: 165,466,449.62 | AQ55: 88,939.36 | AR55: 1,006,127.92 | AS55: 57,779,336.21 | AT55: 0.00 | AU55: 6,706.79 | AV55: 446,409.89 | AW55: 614,164.00 | AX55: 1,629,919.67 | AY55: 777,702.15 | AZ55: 34,083,757.79 | BA55: 0.00 | BB55: 127,845.23 | BC55: 50,021,053.83 | BD55: 2,291,424,819.13
A56: Vietnam | B56: 146.43 | C56: 25.86 | D56: 206,352.29 | E56: 2,351.59 | F56: 0.00 | G56: 0.00 | H56: 17,242.06 | I56: 41,039.47 | J56: 40,751.38 | K56: 397.10 | L56: 0.00 | M56: 0.00 | N56: 0.06 | O56: 0.00 | P56: 0.00 | Q56: 0.00 | R56: 272,449.49 | S56: 2,031.42 | T56: 0.00 | U56: 0.03 | V56: 106.42 | W56: 0.00 | X56: 0.00 | Y56: 39,141.20 | Z56: 12,852.03 | AA56: 0.00 | AB56: 0.00 | AC56: 0.00 | AD56: 0.00 | AE56: 110.59 | AF56: 0.00 | AG56: 25,874.36 | AH56: 0.00 | AI56: 17,536,961.07 | AJ56: 55.63 | AK56: 0.00 | AL56: 52.86 | AM56: 0.00 | AN56: 0.31 | AO56: 0.08 | AP56: 1,292.99 | AQ56: 0.00 | AR56: 0.00 | AS56: 750.06 | AT56: 18.11 | AU56: 0.09 | AV56: 2,621.48 | AW56: 23,660.03 | AX56: 0.00 | AY56: 0.00 | AZ56: 33,046.75 | BA56: 11,696,814.62 | BB56: 0.00 | BC56: 132,807.27 | BD56: 30,088,953.14
A57: ROW | B57: 928,177.97 | C57: 809,308.10 | D57: 282,773.48 | E57: 70,770.87 | F57: 0.00 | G57: 222,584.37 | H57: 14.89 | I57: 1,843,567.68 | J57: 33,867,910.09 | K57: 1,593,025.27 | L57: 95,944.89 | M57: 119,702.43 | N57: 5,057,914.77 | O57: 32,427.89 | P57: 3.36 | Q57: 104,379.17 | R57: 7,966,999.04 | S57: 13,723,238.55 | T57: 4,012.56 | U57: 32,462.19 | V57: 6,789,089.77 | W57: 1,747.61 | X57: 77,219.73 | Y57: 14,893,255.47 | Z57: 7,176,959.68 | AA57: 0.00 | AB57: 46,537.12 | AC57: 274,752.94 | AD57: 6,493.58 | AE57: 88,865.32 | AF57: 62,480.69 | AG57: 42,521.90 | AH57: 38,320.35 | AI57: 7,769,773.05 | AJ57: 81,779.13 | AK57: 580,382.17 | AL57: 23,324,614.94 | AM57: 253,123.71 | AN57: 150,432.85 | AO57: 6,068.75 | AP57: 1,610,401.42 | AQ57: 86,709.18 | AR57: 662,302.37 | AS57: 4,481,384.20 | AT57: 24,787.30 | AU57: 9,161.93 | AV57: 1,190,698.88 | AW57: 190,747.52 | AX57: 6,704.04 | AY57: 2,000,020.27 | AZ57: 29,055,236.47 | BA57: 4,782,587.85 | BB57: 9,176.56 | BC57: 0.00 | BD57: 172,529,554.30
A58: total | B58: 444,808,802.85 | C58: 237,083,396.28 | D58: 289,604,298.59 | E58: 42,692,324.79 | F58: 166,538.31 | G58: 14,100,596.43 | H58: 2,017,608.70 | I58: 262,681,333.57 | J58: 5,447,239,986.08 | K58: 646,144,741.55 | L58: 13,589,936.97 | M58: 18,990,088.38 | N58: 212,365,969.87 | O58: 59,091,325.05 | P58: 7,318,581.17 | Q58: 40,480,167.70 | R58: 973,028,200.43 | S58: 2,349,093,721.11 | T58: 34,215,203.85 | U58: 70,475,754.03 | V58: 607,271,355.01 | W58: 100,053,673.69 | X58: 55,999,616.76 | Y58: 510,393,549.67 | Z58: 8,641,291,697.61 | AA58: 29,930.17 | AB58: 2,675,322.76 | AC58: 14,931,099.99 | AD58: 24,236,800.11 | AE58: 1,355,904,067.25 | AF58: 30,145,714.05 | AG58: 124,913,766.85 | AH58: 11,869,222.33 | AI58: 1,603,796,575.83 | AJ58: 17,740,927.83 | AK58: 55,342,104.48 | AL58: 3,876,391,672.04 | AM58: 509,514,146.05 | AN58: 216,694,293.81 | AO58: 47,864,082.61 | AP58: 1,924,843,315.23 | AQ58: 144,336,734.53 | AR58: 77,991,744.30 | AS58: 782,757,368.38 | AT58: 87,590,118.57 | AU58: 23,846,664.30 | AV58: 105,364,053.66 | AW58: 61,952,047.16 | AX58: 224,303,018.26 | AY58: 197,889,385.99 | AZ58: 1,972,632,313.90 | BA58: 4,128,807,360.78 | BB58: 266,784,790.48 | BC58: 2,018,672,929.54 | BD58: 40,990,020,039.69
A60: TFM of the global PV product trade total value by region groups in 2014
A61: Unit: $
A62: Region groups | B62: Oceania | C62: Europe | D62: S Asia | E62: America | F62: East Asia | G62: ROW | H62: Total
A63: Oceania | B63: =B4+AJ4+B38+AJ38 -> 3,215,536.75 | C63: =SUM(C4,D4,G4,L4:U4,X4:Y4,AB4:AD4,AF4,AI4,AK4,AN4:AO4,AQ4,AT4:AW4,AZ4,AR4)+SUM(C38,D38,G38,L38:U38,X38:Y38,AB38:AD38,AF38,AI38,AK38,AN38:AO38,AQ38,AT38:AW38,AZ38,AR38) -> 2,221,813.83 | D63: =SUM(F4,H4,V4:W4,AA4,AE4,AH4,AM4,AS4,AX4,BB4,AY4)+SUM(F38,H38,V38:W38,AA38,AE38,AH38,AM38,AS38,AX38,BB38,AY38) -> 1,362,247.02 | E63: =SUM(E4,I4,AG4,BA4)+SUM(E38,I38,AG38,BA38) -> 4,838,803.39 | F63: =SUM(J4:K4,Z4,AL4,AP4)+SUM(J38:K38,Z38,AL38,AP38) -> 27,764,950.43 | G63: =BC4+BC38 -> 4,679,582.94 | H63: =SUM(B63:G63) -> 44,082,934.36
A64: Europe | B64: =B69-SUM(B65:B68,B63) -> 19,987,177.38 | C64: =C69-SUM(C65:C68,C63) -> 4,723,449,651.69 | D64: 500,014,117.85 | E64: 587,348,175.30 | F64: 2,532,138,258.31 | G64: 395,207,925.95 | H64: 8,758,145,306.48
A65: S Asia | B65: =B8+AJ8+B10+AJ10+B24+AJ24+B25+AJ25+B29+AJ29+B33+AJ33+B36+AJ36+B41+AJ41+B47+AJ47+B52+AJ52+B53+AJ53+B56+AJ56 -> 1,299,721.02 | C65: =SUM(C8,D8,G8,L8:U8,X8:Y8,AB8:AD8,AF8,AI8,AK8,AN8:AO8,AQ8,AT8:AW8,AZ8,AR8)+SUM(C10,D10,G10,L10:U10,X10:Y10,AB10:AD10,AF10,AI10,AK10,AN10:AO10,AQ10,AT10:AW10,AZ10,AR10)+SUM(C24,D24,G24,L24:U24,X24:Y24,AB24:AD24,AF24,AI24,AK24,AN24:AO24,AQ24,AT24:AW24,AZ24,AR24)+SUM(C25,D25,G25,L25:U25,X25:Y25,AB25:AD25,AF25,AI25,AK25,AN25:AO25,AQ25,AT25:AW25,AZ25,AR25)+SUM(C29,D29,G29,L29:U29,X29:Y29,AB29:AD29,AF29,AI29,AK29,AN29:AO29,AQ29,AT29:AW29,AZ29,AR29)+SUM(C33,D33,G33,L33:U33,X33:Y33,AB33:AD33,AF33,AI33,AK33,AN33:AO33,AQ33,AT33:AW33,AZ33,AR33)+SUM(C36,D36,G36,L36:U36,X36:Y36,AB36:AD36,AF36,AI36,AK36,AN36:AO36,AQ36,AT36:AW36,AZ36,AR36)+SUM(C41,D41,G41,L41:U41,X41:Y41,AB41:AD41,AF41,AI41,AK41,AN41:AO41,AQ41,AT41:AW41,AZ41,AR41)+SUM(C47,D47,G47,L47:U47,X47:Y47,AB47:AD47,AF47,AI47,AK47,AN47:AO47,AQ47,AT47:AW47,AZ47,AR47)+SUM(C52,D52,G52,L52:U52,X52:Y52,AB52:AD52,AF52,AI52,AK52,AN52:AO52,AQ52,AT52:AW52,AZ52,AR52)+SUM(C53,D53,G53,L53:U53,X53:Y53,AB53:AD53,AF53,AI53,AK53,AN53:AO53,AQ53,AT53:AW53,AZ53,AR53)+SUM(C56,D56,G56,L56:U56,X56:Y56,AB56:AD56,AF56,AI56,AK56,AN56:AO56,AQ56,AT56:AW56,AZ56,AR56) -> 193,330,348.06 | D65: =SUM(F8,H8,V8:W8,AA8,AE8,AH8,AM8,AS8,AX8,BB8,AY8)+SUM(F10,H10,V10:W10,AA10,AE10,AH10,AM10,AS10,AX10,BB10,AY10)+SUM(F24,H24,V24:W24,AA24,AE24,AH24,AM24,AS24,AX24,BB24,AY24)+SUM(F25,H25,V25:W25,AA25,AE25,AH25,AM25,AS25,AX25,BB25,AY25)+SUM(F29,H29,V29:W29,AA29,AE29,AH29,AM29,AS29,AX29,BB29,AY29)+SUM(F33,H33,V33:W33,AA33,AE33,AH33,AM33,AS33,AX33,BB33,AY33)+SUM(F36,H36,V36:W36,AA36,AE36,AH36,AM36,AS36,AX36,BB36,AY36)+SUM(F41,H41,V41:W41,AA41,AE41,AH41,AM41,AS41,AX41,BB41,AY41)+SUM(F47,H47,V47:W47,AA47,AE47,AH47,AM47,AS47,AX47,BB47,AY47)+SUM(F52,H52,V52:W52,AA52,AE52,AH52,AM52,AS52,AX52,BB52,AY52)+SUM(F53,H53,V53:W53,AA53,AE53,AH53,AM53,AS53,AX53,BB53,AY53)+SUM(F56,H56,V56:W56,AA56,AE56,AH56,AM56,AS56,AX56,BB56,AY56) -> 121,406,442.17 | E65: =SUM(E8,I8,AG8,BA8)+SUM(E10,I10,AG10,BA10)+SUM(E24,I24,AG24,BA24)+SUM(E25,I25,AG25,BA25)+SUM(E29,I29,AG29,BA29)+SUM(E33,I33,AG33,BA33)+SUM(E36,I36,AG36,BA36)+SUM(E41,I41,AG41,BA41)+SUM(E47,I47,AG47,BA47)+SUM(E52,I52,AG52,BA52)+SUM(E53,I53,AG53,BA53)+SUM(E56,I56,AG56,BA56) -> 314,069,129.52 | F65: =SUM(J8:K8,Z8,AL8,AP8)+SUM(J10:K10,Z10,AL10,AP10)+SUM(J24:K24,Z24,AL24,AP24)+SUM(J25:K25,Z25,AL25,AP25)+SUM(J29:K29,Z29,AL29,AP29)+SUM(J33:K33,Z33,AL33,AP33)+SUM(J36:K36,Z36,AL36,AP36)+SUM(J41:K41,Z41,AL41,AP41)+SUM(J47:K47,Z47,AL47,AP47)+SUM(J52:K52,Z52,AL52,AP52)+SUM(J53:K53,Z53,AL53,AP53)+SUM(J56:K56,Z56,AL56,AP56) -> 1,507,845,519.31 | G65: =BC8+BC10+BC24+BC25+BC29+BC33+BC36+BC41+BC47+BC52+BC53+BC56 -> 20,442,596.45 | H65: =SUM(B65:G65) -> 2,158,393,756.53
A66: America | B66: =B7+AJ7+B11+AJ11+B35+AJ35+B55+AJ55 -> 2,513,516.00 | C66: =SUM(C7,D7,G7,L7:U7,X7:Y7,AB7:AD7,AF7,AI7,AK7,AN7:AO7,AQ7,AT7:AW7,AZ7,AR7)+SUM(C11,D11,G11,L11:U11,X11:Y11,AB11:AD11,AF11,AI11,AK11,AN11:AO11,AQ11,AT11:AW11,AZ11,AR11)+SUM(C35,D35,G35,L35:U35,X35:Y35,AB35:AD35,AF35,AI35,AK35,AN35:AO35,AQ35,AT35:AW35,AZ35,AR35)+SUM(C55,D55,G55,L55:U55,X55:Y55,AB55:AD55,AF55,AI55,AK55,AN55:AO55,AQ55,AT55:AW55,AZ55,AR55) -> 394,024,482.38 | D66: =SUM(F7,H7,V7:W7,AA7,AE7,AH7,AM7,AS7,AX7,BB7,AY7)+SUM(F11,H11,V11:W11,AA11,AE11,AH11,AM11,AS11,AX11,BB11,AY11)+SUM(F35,H35,V35:W35,AA35,AE35,AH35,AM35,AS35,AX35,BB35,AY35)+SUM(F55,H55,V55:W55,AA55,AE55,AH55,AM55,AS55,AX55,BB55,AY55) -> 157,692,236.50 | E66: =SUM(E7,I7,AG7,BA7)+SUM(E11,I11,AG11,BA11)+SUM(E35,I35,AG35,BA35)+SUM(E55,I55,AG55,BA55) -> 117,629,441.75 | F66: =SUM(J7:K7,Z7,AL7,AP7)+SUM(J11:K11,Z11,AL11,AP11)+SUM(J35:K35,Z35,AL35,AP35)+SUM(J55:K55,Z55,AL55,AP55) -> 1,683,703,243.33 | G66: =BC7+BC11+BC35+BC55 -> 55,191,846.97 | H66: =SUM(B66:G66) -> 2,410,754,766.93
A67: East Asia | B67: =B12+AJ12+B13+AJ13+B28+AJ28+B40+AJ40+B44+AJ44 -> 434,523,822.43 | C67: =SUM(C12,D12,G12,L12:U12,X12:Y12,AB12:AD12,AF12,AI12,AK12,AN12:AO12,AQ12,AT12:AW12,AZ12,AR12)+SUM(C13,D13,G13,L13:U13,X13:Y13,AB13:AD13,AF13,AI13,AK13,AN13:AO13,AQ13,AT13:AW13,AZ13,AR13)+SUM(C28,D28,G28,L28:U28,X28:Y28,AB28:AD28,AF28,AI28,AK28,AN28:AO28,AQ28,AT28:AW28,AZ28,AR28)+SUM(C40,D40,G40,L40:U40,X40:Y40,AB40:AD40,AF40,AI40,AK40,AN40:AO40,AQ40,AT40:AW40,AZ40,AR40)+SUM(C44,D44,G44,L44:U44,X44:Y44,AB44:AD44,AF44,AI44,AK44,AN44:AO44,AQ44,AT44:AW44,AZ44,AR44) -> 3,958,664,989.59 | D67: =SUM(F12,H12,V12:W12,AA12,AE12,AH12,AM12,AS12,AX12,BB12,AY12)+SUM(F13,H13,V13:W13,AA13,AE13,AH13,AM13,AS13,AX13,BB13,AY13)+SUM(F28,H28,V28:W28,AA28,AE28,AH28,AM28,AS28,AX28,BB28,AY28)+SUM(F40,H40,V40:W40,AA40,AE40,AH40,AM40,AS40,AX40,BB40,AY40)+SUM(F44,H44,V44:W44,AA44,AE44,AH44,AM44,AS44,AX44,BB44,AY44) -> 3,264,417,614.37 | E67: =SUM(E12,I12,AG12,BA12)+SUM(E13,I13,AG13,BA13)+SUM(E28,I28,AG28,BA28)+SUM(E40,I40,AG40,BA40)+SUM(E44,I44,AG44,BA44) -> 3,528,469,787.75 | F67: =SUM(J12:K12,Z12,AL12,AP12)+SUM(J13:K13,Z13,AL13,AP13)+SUM(J28:K28,Z28,AL28,AP28)+SUM(J40:K40,Z40,AL40,AP40)+SUM(J44:K44,Z44,AL44,AP44) -> 14,716,886,529.73 | G67: =BC12+BC13+BC28+BC40+BC44 -> 1,543,150,977.22 | H67: =SUM(B67:G67) -> 27,446,113,721.09
A68: ROW | B68: =B57+AJ57 -> 1,009,957.11 | C68: =SUM(C57,D57,G57,L57:U57,X57:Y57,AB57:AD57,AF57,AI57,AK57,AN57:AO57,AQ57,AT57:AW57,AZ57,AR57) -> 83,538,790.80 | D68: =SUM(F57,H57,V57:W57,AA57,AE57,AH57,AM57,AS57,AX57,BB57,AY57) -> 13,668,446.71 | E68: =SUM(E57,I57,AG57,BA57) -> 6,739,448.29 | F68: =SUM(J57:K57,Z57,AL57,AP57) -> 67,572,911.39 | G68: =BC57 -> 0.00 | H68: =SUM(B68:G68) -> 172,529,554.30
A69: Total | B69: =B58+AJ58 -> 462,549,730.68 | C69: =SUM(C58,D58,G58,L58:U58,X58:Y58,AB58:AD58,AF58,AI58,AK58,AN58:AO58,AQ58,AT58:AW58,AZ58,AR58) -> 9,355,230,076.35 | D69: =SUM(F58,H58,V58:W58,AA58,AE58,AH58,AM58,AS58,AX58,BB58,AY58) -> 4,058,561,104.62 | E69: =SUM(E58,I58,AG58,BA58) -> 4,559,094,785.99 | F69: =SUM(J58:K58,Z58,AL58,AP58) -> 20,535,911,412.51 | G69: =BC58 -> 2,018,672,929.54 | H69: =SUM(B69:G69) -> 40,990,020,039.69

Sheet Data 4
A1: TFM of the global PV product trade total value in 2017
A2: Unit: $
A3: Country/Economy | B3: Australia | C3: Austria | D3: Belgium | E3: Brazil | F3: Brunei | G3: Bulgaria | H3: Cambodia | I3: Canada | J3: China | K3: Hong Kong | L3: Croatia | M3: Cyprus | N3: Czechia | O3: Denmark | P3: Estonia | Q3: Finland | R3: France | S3: Germany | T3: Greece | U3: Hungary | V3: India | W3: Indonesia | X3: Ireland | Y3: Italy | Z3: Japan | AA3: Lao PDR | AB3: Latvia | AC3: Lithuania | AD3: Luxembourg | AE3: Malaysia | AF3: Malta | AG3: Mexico | AH3: Myanmar | AI3: Netherlands | AJ3: New Zealand | AK3: Norway | AL3: Taiwan | AM3: Philippines | AN3: Poland | AO3: Portugal | AP3: Korea | AQ3: Romania | AR3: Russian Federation | AS3: Singapore | AT3: Slovakia | AU3: Slovenia | AV3: Spain | AW3: Sweden | AX3: Thailand | AY3: Turkey | AZ3: United Kingdom | BA3: USA | BB3: Vietnam | BC3: ROW | BD3: total
A4: Australia | B4: 0.00 | C4: 3,065.66 | D4: 35,122.59 | E4: 3,255.22 | F4: 0.00 | G4: 283.84 | H4: 225,190.15 | I4: 176,064.31 | J4: 4,697,052.96 | K4: 487,856.06 | L4: 0.00 | M4: 0.00 | N4: 2,121.29 | O4: 2,321.02 | P4: 7.45 | Q4: 31,778.53 | R4: 42,680.03 | S4: 261,566.22 | T4: 14.16 | U4: 459.52 | V4: 199,635.84 | W4: 297,536.59 | X4: 102,088.67 | Y4: 111,134.57 | Z4: 188,542.30 | AA4: 6,370.38 | AB4: 13.51 | AC4: 294.49 | AD4: 0.00 | AE4: 125,634.02 | AF4: 0.00 | AG4: 27,352.34 | AH4: 0.06 | AI4: 56,207.70 | AJ4: 2,826,782.42 | AK4: 3,669.20 | AL4: 89,331.79 | AM4: 159,811.72 | AN4: 717,797.15 | AO4: 11,472.07 | AP4: 134,728.98 | AQ4: 18.75 | AR4: 77,047.68 | AS4: 519,497.72 | AT4: 0.05 | AU4: 0.01 | AV4: 223,725.69 | AW4: 32,211.17 | AX4: 1,068,491.71 | AY4: 12,322.71 | AZ4: 207,146.59 | BA4: 4,181,024.95 | BB4: 16,344.23 | BC4: 5,719,411.44 | BD4: 23,084,485.52
A5: Austria | B5: 15,482.49 | C5: 0.00 | D5: 21,834.30 | E5: 1,439.30 | F5: 0.00 | G5: 16,068.75 | H5: 0.00 | I5: 24,755.63 | J5: 652,573.11 | K5: 1,125.57 | L5: 144,200.46 | M5: 98,909.78 | N5: 4,643,921.19 | O5: 279,848.93 | P5: 354.14 | Q5: 245.81 | R5: 314,073.76 | S5: 13,348,125.73 | T5: 51,649.83 | U5: 6,551,336.42 | V5: 50,454.87 | W5: 3,338.49 | X5: 5,439.02 | Y5: 6,030,217.93 | Z5: 798,937.42 | AA5: 0.00 | AB5: 0.22 | AC5: 1,555.63 | AD5: 119,975.82 | AE5: 1,781,217.55 | AF5: 30.01 | AG5: 4,676.31 | AH5: 0.01 | AI5: 1,216,639.20 | AJ5: 3,916.91 | AK5: 70,887.55 | AL5: 349,845.97 | AM5: 1,328,227.52 | AN5: 4,017,969.34 | AO5: 624,987.86 | AP5: 70,733.02 | AQ5: 341,424.45 | AR5: 30,787.58 | AS5: 2,058,706.03 | AT5: 194,768.40 | AU5: 20,677,689.56 | AV5: 79,229.07 | AW5: 463,769.51 | AX5: 178,658.94 | AY5: 5,913,945.55 | AZ5: 537,285.12 | BA5: 429,914.12 | BB5: 26.90 | BC5: 16,285,354.49 | BD5: 89,836,555.58
A6: Belgium | B6: 15,376.52 | C6: 56,728.47 | D6: 0.00 | E6: 18,068.98 | F6: 0.00 | G6: 5,121.77 | H6: 0.00 | I6: 188,685.47 | J6: 3,912,000.29 | K6: 1,004,586.74 | L6: 445.17 | M6: 273.10 | N6: 81,498.16 | O6: 85,214.12 | P6: 10,108.49 | Q6: 642,270.76 | R6: 24,379,354.68 | S6: 22,975,869.21 | T6: 105,408.06 | U6: 400,789.11 | V6: 23,447.53 | W6: 755.69 | X6: 210,930.65 | Y6: 566,333.85 | Z6: 2,093,293.02 | AA6: 0.00 | AB6: 9,908.97 | AC6: 2,235.85 | AD6: 5,715,035.78 | AE6: 643,369.85 | AF6: 114.04 | AG6: 9,607.94 | AH6: 530.38 | AI6: 12,089,713.91 | AJ6: 86.17 | AK6: 6,426.63 | AL6: 1,532,712.40 | AM6: 26,002.63 | AN6: 456,432.31 | AO6: 4,754,790.19 | AP6: 464,574.78 | AQ6: 151,038.40 | AR6: 269,350.42 | AS6: 625,818.62 | AT6: 11,543.43 | AU6: 18,108.92 | AV6: 9,708,417.81 | AW6: 84,704.58 | AX6: 38,169.65 | AY6: 41,241.31 | AZ6: 811,807.41 | BA6: 12,453,774.95 | BB6: 10,140.39 | BC6: 3,809,375.87 | BD6: 110,521,593.45
A7: Brazil | B7: 121.14 | C7: 0.02 | D7: 0.12 | E7: 0.00 | F7: 0.00 | G7: 0.00 | H7: 0.00 | I7: 19.28 | J7: 833,920.25 | K7: 0.11 | L7: 0.00 | M7: 0.00 | N7: 0.00 | O7: 0.02 | P7: 0.00 | Q7: 0.00 | R7: 0.28 | S7: 65.40 | T7: 11,308.21 | U7: 0.00 | V7: 0.20 | W7: 0.00 | X7: 0.00 | Y7: 356.16 | Z7: 633.26 | AA7: 0.00 | AB7: 0.00 | AC7: 0.03 | AD7: 0.00 | AE7: 0.18 | AF7: 0.00 | AG7: 99,668.31 | AH7: 0.00 | AI7: 216.62 | AJ7: 0.02 | AK7: 0.02 | AL7: 186,343.75 | AM7: 0.00 | AN7: 0.00 | AO7: 0.00 | AP7: 0.02 | AQ7: 0.00 | AR7: 0.00 | AS7: 0.02 | AT7: 172.73 | AU7: 0.00 | AV7: 61,569.69 | AW7: 1,078.20 | AX7: 0.09 | AY7: 0.01 | AZ7: 0.19 | BA7: 4,993.92 | BB7: 0.00 | BC7: 64,639.68 | BD7: 1,265,107.90
A8: Brunei | B8: 0.00 | C8: 0.00 | D8: 0.00 | E8: 0.00 | F8: 0.00 | G8: 0.00 | H8: 0.00 | I8: 0.00 | J8: 0.00 | K8: 0.00 | L8: 0.00 | M8: 0.00 | N8: 0.00 | O8: 0.00 | P8: 0.00 | Q8: 0.00 | R8: 0.00 | S8: 0.00 | T8: 0.00 | U8: 0.00 | V8: 0.00 | W8: 0.00 | X8: 0.00 | Y8: 0.00 | Z8: 0.00 | AA8: 0.00 | AB8: 0.00 | AC8: 0.00 | AD8: 0.00 | AE8: 0.00 | AF8: 0.00 | AG8: 0.00 | AH8: 0.00 | AI8: 0.00 | AJ8: 0.00 | AK8: 0.00 | AL8: 0.00 | AM8: 0.00 | AN8: 0.00 | AO8: 0.00 | AP8: 0.00 | AQ8: 0.00 | AR8: 0.00 | AS8: 0.00 | AT8: 0.00 | AU8: 0.00 | AV8: 0.00 | AW8: 0.00 | AX8: 0.00 | AY8: 0.00 | AZ8: 0.00 | BA8: 0.00 | BB8: 0.00 | BC8: 0.00 | BD8: 0.00
A9: Bulgaria | B9: 77.17 | C9: 93.25 | D9: 981.67 | E9: 130.70 | F9: 0.00 | G9: 0.00 | H9: 0.00 | I9: 394.78 | J9: 94,358.97 | K9: 19,864.66 | L9: 0.00 | M9: 0.00 | N9: 15.37 | O9: 25.17 | P9: 0.00 | Q9: 10.25 | R9: 696.12 | S9: 9,051.59 | T9: 329,103.27 | U9: 18.66 | V9: 7,944.63 | W9: 2,369.17 | X9: 0.00 | Y9: 120,234.97 | Z9: 11,341.77 | AA9: 0.00 | AB9: 366.63 | AC9: 11.64 | AD9: 3,898.49 | AE9: 301.62 | AF9: 0.00 | AG9: 415.15 | AH9: 0.00 | AI9: 116.40 | AJ9: 11.63 | AK9: 0.39 | AL9: 9,241.52 | AM9: 3,213.09 | AN9: 947.13 | AO9: 0.00 | AP9: 64,654.58 | AQ9: 13,306.85 | AR9: 53,957.79 | AS9: 3,760.36 | AT9: 0.00 | AU9: 0.00 | AV9: 488.46 | AW9: 7.40 | AX9: 3,539.74 | AY9: 1,110.11 | AZ9: 3,257.78 | BA9: 153,366.06 | BB9: 484.17 | BC9: 65,178.51 | BD9: 978,347.67
A10: Cambodia | B10: 0.00 | C10: 0.00 | D10: 0.00 | E10: 0.00 | F10: 0.00 | G10: 0.00 | H10: 0.00 | I10: 0.00 | J10: 0.00 | K10: 0.00 | L10: 0.00 | M10: 0.00 | N10: 0.00 | O10: 0.00 | P10: 0.00 | Q10: 0.00 | R10: 0.00 | S10: 0.00 | T10: 0.00 | U10: 0.00 | V10: 0.00 | W10: 0.00 | X10: 0.00 | Y10: 0.00 | Z10: 0.00 | AA10: 0.00 | AB10: 0.00 | AC10: 0.00 | AD10: 0.00 | AE10: 0.00 | AF10: 0.00 | AG10: 0.00 | AH10: 0.00 | AI10: 0.00 | AJ10: 0.00 | AK10: 0.00 | AL10: 0.00 | AM10: 0.00 | AN10: 0.00 | AO10: 0.00 | AP10: 0.00 | AQ10: 0.00 | AR10: 0.00 | AS10: 0.00 | AT10: 0.00 | AU10: 0.00 | AV10: 0.00 | AW10: 0.00 | AX10: 0.00 | AY10: 0.00 | AZ10: 0.00 | BA10: 0.00 | BB10: 0.00 | BC10: 0.00 | BD10: 0.00
A11: Canada | B11: 227,884.32 | C11: 520,983.37 | D11: 24,008.02 | E11: 326.75 | F11: 0.00 | G11: 0.00 | H11: 0.00 | I11: 0.00 | J11: 1,524,691.31 | K11: 2,923,188.50 | L11: 0.00 | M11: 0.00 | N11: 4,253.15 | O11: 15,789.29 | P11: 0.00 | Q11: 435,179.52 | R11: 402,683.89 | S11: 7,244,245.61 | T11: 10,315.48 | U11: 294.70 | V11: 42,581.40 | W11: 161,144.43 | X11: 25,667.61 | Y11: 530,121.82 | Z11: 1,108,008.61 | AA11: 0.00 | AB11: 354.36 | AC11: 31,244.70 | AD11: 0.00 | AE11: 901,674.08 | AF11: 0.00 | AG11: 13,717.47 | AH11: 0.00 | AI11: 1,235,791.10 | AJ11: 21,147.36 | AK11: 6,421.13 | AL11: 920,036.46 | AM11: 2,561,352.52 | AN11: 8,818.82 | AO11: 5,220.95 | AP11: 4,461,205.54 | AQ11: 6,190.53 | AR11: 43,205.53 | AS11: 946,863.29 | AT11: 0.00 | AU11: 0.00 | AV11: 27,407.34 | AW11: 551,416.09 | AX11: 717,936.39 | AY11: 7,761,549.21 | AZ11: 3,599,419.58 | BA11: 157,069,455.34 | BB11: 3,820.45 | BC11: 9,048,267.76 | BD11: 205,143,883.80
A12: China | B12: 554,547,249.70 | C12: 17,441,356.51 | D12: 24,770,441.63 | E12: 377,823,230.09 | F12: 1,932.04 | G12: 59,611.20 | H12: 5,434,235.03 | I12: 74,369,374.32 | J12: 0.00 | K12: 53,023,681.10 | L12: 834,785.50 | M12: 243,986.12 | N12: 1,156,444.89 | O12: 711,983.18 | P12: 932,318.19 | Q12: 1,645,459.63 | R12: 38,783,121.66 | S12: 126,193,083.77 | T12: 358,708.59 | U12: 116,545.85 | V12: 2,718,724,442.82 | W12: 21,509,846.17 | X12: 1,109,635.18 | Y12: 45,003,713.20 | Z12: 1,020,814,463.29 | AA12: 2,142,720.86 | AB12: 2,324.61 | AC12: 3,911,822.01 | AD12: 4,003,059.69 | AE12: 645,862,393.58 | AF12: 84,385.54 | AG12: 476,102,361.70 | AH12: 22,829,377.35 | AI12: 216,292,500.87 | AJ12: 5,606,154.28 | AK12: 1,358,099.38 | AL12: 770,235,237.55 | AM12: 89,869,428.16 | AN12: 1,438,186.08 | AO12: 69,870.40 | AP12: 802,583,491.43 | AQ12: 367,488.85 | AR12: 66,257,953.31 | AS12: 24,175,172.68 | AT12: 5,024.76 | AU12: 32,046,125.74 | AV12: 8,720,730.65 | AW12: 4,372,977.57 | AX12: 431,479,339.99 | AY12: 90,359,949.33 | AZ12: 33,117,631.00 | BA12: 583,069,114.90 | BB12: 345,113,016.99 | BC12: 4,292,556,032.18 | BD12: 14,039,641,621.09
A13: Hong Kong | B13: 0.00 | C13: 0.00 | D13: 0.00 | E13: 0.00 | F13: 0.00 | G13: 0.00 | H13: 0.00 | I13: 0.00 | J13: 377,508.75 | K13: 0.00 | L13: 0.00 | M13: 0.00 | N13: 0.00 | O13: 0.00 | P13: 0.00 | Q13: 0.00 | R13: 0.00 | S13: 0.00 | T13: 0.00 | U13: 0.00 | V13: 0.00 | W13: 0.00 | X13: 0.00 | Y13: 0.00 | Z13: 0.00 | AA13: 0.00 | AB13: 0.00 | AC13: 0.00 | AD13: 0.00 | AE13: 0.00 | AF13: 0.00 | AG13: 0.00 | AH13: 0.00 | AI13: 0.00 | AJ13: 0.00 | AK13: 0.00 | AL13: 0.00 | AM13: 0.00 | AN13: 0.00 | AO13: 0.00 | AP13: 0.00 | AQ13: 0.00 | AR13: 0.00 | AS13: 0.00 | AT13: 0.00 | AU13: 0.00 | AV13: 0.00 | AW13: 0.00 | AX13: 0.00 | AY13: 0.00 | AZ13: 0.00 | BA13: 0.00 | BB13: 0.00 | BC13: 0.00 | BD13: 377,508.75
A14: Croatia | B14: 66,245.54 | C14: 1,054,131.67 | D14: 0.00 | E14: 0.00 | F14: 0.00 | G14: 220.61 | H14: 0.00 | I14: 0.00 | J14: 1,227.68 | K14: 0.04 | L14: 0.00 | M14: 0.00 | N14: 87.06 | O14: 349,914.52 | P14: 11,853.39 | Q14: 0.00 | R14: 7,638,893.27 | S14: 9,197,425.73 | T14: 186,611.32 | U14: 1,854,460.61 | V14: 629.17 | W14: 0.63 | X14: 0.00 | Y14: 3,804,543.74 | Z14: 2,151.06 | AA14: 0.00 | AB14: 92.00 | AC14: 0.00 | AD14: 1,818.27 | AE14: 0.00 | AF14: 0.00 | AG14: 0.00 | AH14: 0.00 | AI14: 2,898,782.99 | AJ14: 3,459.47 | AK14: 391,639.81 | AL14: 0.00 | AM14: 0.00 | AN14: 1,814.32 | AO14: 194.89 | AP14: 0.00 | AQ14: 2,140.77 | AR14: 477.82 | AS14: 0.00 | AT14: 164,822.72 | AU14: 386,233.47 | AV14: 16,233.87 | AW14: 139.49 | AX14: 155.31 | AY14: 49,230,483.68 | AZ14: 283.92 | BA14: 0.20 | BB14: 0.00 | BC14: 336,509.93 | BD14: 77,603,678.95
A15: Cyprus | B15: 0.00 | C15: 0.00 | D15: 0.00 | E15: 0.00 | F15: 0.00 | G15: 0.00 | H15: 0.00 | I15: 0.00 | J15: 0.00 | K15: 0.00 | L15: 0.00 | M15: 0.00 | N15: 0.00 | O15: 0.00 | P15: 0.00 | Q15: 0.00 | R15: 1,889.44 | S15: 0.00 | T15: 53,342.91 | U15: 0.00 | V15: 0.00 | W15: 0.00 | X15: 0.00 | Y15: 0.00 | Z15: 0.00 | AA15: 0.00 | AB15: 0.00 | AC15: 0.00 | AD15: 0.00 | AE15: 0.00 | AF15: 0.00 | AG15: 0.00 | AH15: 0.00 | AI15: 0.00 | AJ15: 0.00 | AK15: 0.00 | AL15: 0.00 | AM15: 0.00 | AN15: 0.00 | AO15: 0.00 | AP15: 0.00 | AQ15: 0.00 | AR15: 0.00 | AS15: 0.00 | AT15: 0.00 | AU15: 0.00 | AV15: 0.00 | AW15: 0.00 | AX15: 0.00 | AY15: 0.00 | AZ15: 0.00 | BA15: 0.00 | BB15: 0.00 | BC15: 124,927.71 | BD15: 180,160.07
A16: Czechia | B16: 81,360.36 | C16: 3,171,702.05 | D16: 1,895,628.20 | E16: 3,819.37 | F16: 0.00 | G16: 129,452.91 | H16: 0.00 | I16: 81,420.18 | J16: 377,255.64 | K16: 24,317.84 | L16: 29,635.32 | M16: 214,782.03 | N16: 0.00 | O16: 1,217,983.62 | P16: 5,506.30 | Q16: 49,390.75 | R16: 32,820,986.29 | S16: 36,599,485.69 | T16: 4,289.76 | U16: 6,293,536.10 | V16: 7,998.33 | W16: 408.86 | X16: 627,321.36 | Y16: 6,113,953.76 | Z16: 7,885,037.27 | AA16: 0.00 | AB16: 58,502.92 | AC16: 23,671.55 | AD16: 2,968,885.93 | AE16: 26,280,368.62 | AF16: 199,030.02 | AG16: 37,004.86 | AH16: 1.59 | AI16: 7,038,910.51 | AJ16: 242.69 | AK16: 26,380.58 | AL16: 990,762.47 | AM16: 15,454.74 | AN16: 3,285,103.90 | AO16: 65,871.31 | AP16: 262,467.58 | AQ16: 154,355.79 | AR16: 308,871.98 | AS16: 97,491.41 | AT16: 5,169,440.40 | AU16: 61,925.65 | AV16: 726,989.43 | AW16: 260,206.13 | AX16: 431.37 | AY16: 93,725.77 | AZ16: 1,021,865.22 | BA16: 8,225,603.44 | BB16: 527.70 | BC16: 4,184,233.82 | BD16: 159,193,599.39
A17: Denmark | B17: 108,379.77 | C17: 1,016,947.90 | D17: 220,504.48 | E17: 7,544.77 | F17: 0.00 | G17: 17,408.66 | H17: 0.00 | I17: 204,883.07 | J17: 2,285,062.23 | K17: 471,094.94 | L17: 1,579.60 | M17: 304.12 | N17: 628,886.56 | O17: 0.00 | P17: 236.16 | Q17: 774,185.32 | R17: 111,814.26 | S17: 7,199,241.50 | T17: 7,893.45 | U17: 749.79 | V17: 46,230.20 | W17: 7,618.97 | X17: 5,023.54 | Y17: 394,916.02 | Z17: 221,369.02 | AA17: 0.00 | AB17: 11,766.36 | AC17: 323.91 | AD17: 0.00 | AE17: 63,881.06 | AF17: 380.15 | AG17: 15,315.83 | AH17: 0.01 | AI17: 1,433,343.99 | AJ17: 21,184.71 | AK17: 442,816.76 | AL17: 36,355.22 | AM17: 77,545.39 | AN17: 422,875.90 | AO17: 66,867.69 | AP17: 111,885.52 | AQ17: 30,212.63 | AR17: 2,737.54 | AS17: 198,212.59 | AT17: 14,501.55 | AU17: 485.19 | AV17: 317,675.95 | AW17: 2,219,196.74 | AX17: 39,049.63 | AY17: 86,358.06 | AZ17: 760,671.89 | BA17: 5,525,683.80 | BB17: 14,884.53 | BC17: 4,581,474.48 | BD17: 30,227,561.38
A18: Estonia | B18: 0.00 | C18: 0.05 | D18: 0.01 | E18: 0.00 | F18: 0.00 | G18: 0.00 | H18: 0.00 | I18: 1.16 | J18: 12.01 | K18: 0.01 | L18: 0.00 | M18: 0.00 | N18: 0.00 | O18: 0.00 | P18: 0.00 | Q18: 2,553,223.17 | R18: 0.04 | S18: 0.02 | T18: 0.00 | U18: 0.00 | V18: 0.01 | W18: 0.00 | X18: 0.00 | Y18: 803.31 | Z18: 0.46 | AA18: 0.00 | AB18: 18,366.01 | AC18: 27.01 | AD18: 0.00 | AE18: 0.01 | AF18: 0.00 | AG18: 0.27 | AH18: 0.00 | AI18: 0.02 | AJ18: 0.00 | AK18: 525.20 | AL18: 0.00 | AM18: 0.00 | AN18: 0.00 | AO18: 0.00 | AP18: 0.00 | AQ18: 0.00 | AR18: 110,468.19 | AS18: 0.00 | AT18: 0.00 | AU18: 0.00 | AV18: 0.00 | AW18: 496.19 | AX18: 0.01 | AY18: 0.00 | AZ18: 1,333.52 | BA18: 300.11 | BB18: 0.00 | BC18: 18,200.01 | BD18: 2,703,756.82
A19: Finland | B19: 8,888.25 | C19: 101,533.01 | D19: 17,624.60 | E19: 7,409.22 | F19: 0.00 | G19: 24.06 | H19: 0.00 | I19: 312,956.48 | J19: 436,787.64 | K19: 17,075.95 | L19: 18,380.02 | M19: 0.00 | N19: 134.26 | O19: 13,298.60 | P19: 267,676.99 | Q19: 0.00 | R19: 141,114.93 | S19: 835,872.90 | T19: 1,006.89 | U19: 719.84 | V19: 12,938.84 | W19: 29.47 | X19: 2,822.31 | Y19: 61,078.52 | Z19: 83,227.21 | AA19: 0.00 | AB19: 37,097.42 | AC19: 115,605.65 | AD19: 0.00 | AE19: 1,843.12 | AF19: 0.00 | AG19: 9,489.57 | AH19: 0.12 | AI19: 52,578.98 | AJ19: 19.16 | AK19: 49,405.70 | AL19: 106,299.86 | AM19: 9,059.23 | AN19: 21,208.65 | AO19: 11,563.48 | AP19: 14,642.45 | AQ19: 36,900.76 | AR19: 820,111.58 | AS19: 17,511.90 | AT19: 721.37 | AU19: 0.03 | AV19: 18,940.30 | AW19: 43,493.41 | AX19: 8,830.06 | AY19: 9,240.48 | AZ19: 350,444.57 | BA19: 750,371.43 | BB19: 410.21 | BC19: 4,456,500.07 | BD19: 9,282,889.56
A20: France | B20: 2,025,132.85 | C20: 2,097,569.63 | D20: 10,315,410.27 | E20: 524,927.12 | F20: 110.04 | G20: 43,763.10 | H20: 0.00 | I20: 5,518,285.88 | J20: 48,701,754.00 | K20: 1,211,203.93 | L20: 3,515,825.82 | M20: 46,949.93 | N20: 1,024,945.77 | O20: 247,327.14 | P20: 19,846.05 | Q20: 2,717,257.18 | R20: 0.00 | S20: 51,169,544.44 | T20: 709,555.69 | U20: 463,579.22 | V20: 6,524,633.19 | W20: 399,112.87 | X20: 6,537,329.63 | Y20: 34,494,790.05 | Z20: 26,231,149.60 | AA20: 0.00 | AB20: 12,161.47 | AC20: 10,985,773.24 | AD20: 579,753.43 | AE20: 932,156.34 | AF20: 335,953.31 | AG20: 517,186.46 | AH20: 45.18 | AI20: 50,616,399.65 | AJ20: 9,483.68 | AK20: 10,611.47 | AL20: 51,919,370.65 | AM20: 160,835.59 | AN20: 2,503,632.23 | AO20: 405,251.70 | AP20: 9,071,713.33 | AQ20: 1,231,165.89 | AR20: 4,030,933.70 | AS20: 64,286,589.39 | AT20: 68,294.57 | AU20: 24,023.61 | AV20: 3,769,034.64 | AW20: 9,363,323.68 | AX20: 476,519.44 | AY20: 11,756,320.18 | AZ20: 17,514,530.70 | BA20: 95,301,084.23 | BB20: 174,408.19 | BC20: 61,540,223.98 | BD20: 602,136,783.31
A21: Germany | B21: 5,687,287.78 | C21: 123,931,922.05 | D21: 35,328,321.17 | E21: 1,569,674.70 | F21: 311,446.95 | G21: 3,000,365.49 | H21: 1,278.49 | I21: 4,664,526.10 | J21: 823,412,194.93 | K21: 28,415,363.43 | L21: 851,673.28 | M21: 1,726,690.49 | N21: 14,924,336.52 | O21: 20,538,656.57 | P21: 2,635,789.19 | Q21: 8,671,572.25 | R21: 120,950,598.56 | S21: 0.00 | T21: 3,762,736.86 | U21: 46,347,358.21 | V21: 5,842,118.20 | W21: 820,723.82 | X21: 41,286,943.02 | Y21: 143,586,850.65 | Z21: 140,967,530.34 | AA21: 3,232.23 | AB21: 567,338.66 | AC21: 3,616,503.10 | AD21: 5,768,136.06 | AE21: 50,350,490.46 | AF21: 2,991,037.39 | AG21: 2,763,685.60 | AH21: 7,440.06 | AI21: 187,977,564.33 | AJ21: 192,876.68 | AK21: 23,173,184.79 | AL21: 288,920,615.58 | AM21: 4,726,515.39 | AN21: 86,919,733.46 | AO21: 6,095,676.74 | AP21: 83,671,789.31 | AQ21: 20,411,318.60 | AR21: 18,516,845.08 | AS21: 125,203,228.95 | AT21: 6,642,071.79 | AU21: 2,719,266.86 | AV21: 20,489,976.87 | AW21: 19,820,866.53 | AX21: 17,325,449.10 | AY21: 97,019,767.60 | AZ21: 65,988,324.43 | BA21: 208,223,032.54 | BB21: 1,938,182.02 | BC21: 129,262,562.35 | BD21: 3,060,542,671.59
A22: Greece | B22: 0.02 | C22: 0.26 | D22: 0.05 | E22: 0.01 | F22: 0.00 | G22: 412,255.46 | H22: 0.00 | I22: 7.89 | J22: 715.34 | K22: 0.04 | L22: 0.00 | M22: 270,989.50 | N22: 0.00 | O22: 0.01 | P22: 0.00 | Q22: 0.00 | R22: 2,742.94 | S22: 45,095.39 | T22: 0.00 | U22: 0.00 | V22: 0.08 | W22: 0.00 | X22: 0.00 | Y22: 4,276.64 | Z22: 1,313.93 | AA22: 0.00 | AB22: 0.00 | AC22: 0.01 | AD22: 0.00 | AE22: 0.07 | AF22: 159,953.09 | AG22: 1.86 | AH22: 0.00 | AI22: 116.15 | AJ22: 0.01 | AK22: 0.01 | AL22: 0.01 | AM22: 0.00 | AN22: 0.00 | AO22: 0.00 | AP22: 0.01 | AQ22: 0.00 | AR22: 0.00 | AS22: 0.01 | AT22: 0.00 | AU22: 6,985.67 | AV22: 3,843.47 | AW22: 0.00 | AX22: 0.04 | AY22: 0.00 | AZ22: 3,449.40 | BA22: 2,043.78 | BB22: 0.00 | BC22: 227,724.62 | BD22: 1,141,515.76
A23: Hungary | B23: 447,541.70 | C23: 175,637.20 | D23: 143,162.71 | E23: 248.26 | F23: 0.00 | G23: 50,040.66 | H23: 0.00 | I23: 2,560.55 | J23: 481,254.93 | K23: 57,927.47 | L23: 615.23 | M23: 20.01 | N23: 49,735.15 | O23: 348.86 | P23: 17,124.59 | Q23: 626.27 | R23: 512,768.87 | S23: 5,971,592.23 | T23: 26,102.20 | U23: 0.00 | V23: 26,418.43 | W23: 41.28 | X23: 5,214.43 | Y23: 178,313.60 | Z23: 25,619.74 | AA23: 0.00 | AB23: 477.09 | AC23: 8,784.04 | AD23: 0.00 | AE23: 75,071.26 | AF23: 12.00 | AG23: 95,703.45 | AH23: 13.47 | AI23: 705,973.88 | AJ23: 21.65 | AK23: 1,136.60 | AL23: 8,604.25 | AM23: 5,859.81 | AN23: 320,064.79 | AO23: 45,806.77 | AP23: 19,993.25 | AQ23: 498,264.70 | AR23: 32,215.74 | AS23: 15,896.32 | AT23: 6,813,750.42 | AU23: 65,765.12 | AV23: 374,395.10 | AW23: 31,053.36 | AX23: 10,408.40 | AY23: 456,255.98 | AZ23: 2,694,258.81 | BA23: 347,911.32 | BB23: 4,432.23 | BC23: 729,971.35 | BD23: 21,535,015.57
A24: India | B24: 36,744.09 | C24: 514.87 | D24: 9,557,275.82 | E24: 36,350.86 | F24: 0.00 | G24: 52.84 | H24: 0.00 | I24: 510,912.06 | J24: 2,129,186.41 | K24: 98,994.94 | L24: 2,234,753.53 | M24: 0.00 | N24: 35,674.11 | O24: 12,402,641.32 | P24: 133,568.80 | Q24: 115,794.62 | R24: 218,007.99 | S24: 9,009,455.73 | T24: 480,785.45 | U24: 61.89 | V24: 0.00 | W24: 80.54 | X24: 240,396.92 | Y24: 3,107,525.71 | Z24: 1,806,834.41 | AA24: 0.00 | AB24: 4.96 | AC24: 240,604.97 | AD24: 0.00 | AE24: 11,550.49 | AF24: 0.00 | AG24: 33,923.72 | AH24: 311,641.23 | AI24: 100,785.61 | AJ24: 205.15 | AK24: 166.13 | AL24: 158,389.68 | AM24: 27,962.48 | AN24: 124,731.98 | AO24: 311,627.53 | AP24: 87,142.65 | AQ24: 2.42 | AR24: 562.96 | AS24: 12,208.97 | AT24: 8,903.52 | AU24: 284,908.85 | AV24: 1,006,135.32 | AW24: 17,866.84 | AX24: 1,605.74 | AY24: 26,051,679.34 | AZ24: 635,213.44 | BA24: 35,518,236.76 | BB24: 135,070.22 | BC24: 20,107,832.44 | BD24: 127,344,576.35
A25: Indonesia | B25: 196,067.53 | C25: 587,286.46 | D25: 1,068.81 | E25: 2,180.86 | F25: 0.00 | G25: 324.17 | H25: 0.00 | I25: 6,887,225.64 | J25: 5,911,799.81 | K25: 12,867.87 | L25: 0.00 | M25: 0.00 | N25: 240.43 | O25: 368.06 | P25: 325.20 | Q25: 119,277.34 | R25: 85,786.86 | S25: 2,476,760.88 | T25: 0.52 | U25: 68.09 | V25: 58,700.50 | W25: 0.00 | X25: 53,622.17 | Y25: 337,908.65 | Z25: 8,450,827.82 | AA25: 0.00 | AB25: 62.66 | AC25: 39.61 | AD25: 0.00 | AE25: 53,870.66 | AF25: 0.00 | AG25: 84,676.19 | AH25: 2.63 | AI25: 238,840.31 | AJ25: 63,170.18 | AK25: 392.92 | AL25: 4,192,015.56 | AM25: 2,378.81 | AN25: 237.54 | AO25: 82,641.63 | AP25: 47,417.83 | AQ25: 0.72 | AR25: 9,345.44 | AS25: 5,870,609.17 | AT25: 2.17 | AU25: 0.64 | AV25: 415.64 | AW25: 41,500.25 | AX25: 467.54 | AY25: 2,373,727.38 | AZ25: 83,454.99 | BA25: 9,320,238.69 | BB25: 101,391.57 | BC25: 1,476,124.49 | BD25: 49,225,732.87
A26: Ireland | B26: 63,556.74 | C26: 6,960.47 | D26: 14,260.58 | E26: 1,326.72 | F26: 0.00 | G26: 1,203,738.56 | H26: 0.00 | I26: 74,693.74 | J26: 1,408,002.93 | K26: 47,696.52 | L26: 0.00 | M26: 0.00 | N26: 11,233.08 | O26: 2,102.35 | P26: 1,162.33 | Q26: 20,116.29 | R26: 4,599,206.68 | S26: 739,399.19 | T26: 3,572.75 | U26: 4,133.81 | V26: 32,145.85 | W26: 70.30 | X26: 0.00 | Y26: 117,761.20 | Z26: 1,905,378.52 | AA26: 0.00 | AB26: 1.73 | AC26: 26,157.58 | AD26: 0.00 | AE26: 12,100.31 | AF26: 0.00 | AG26: 19,507.68 | AH26: 0.02 | AI26: 185,648.67 | AJ26: 40.65 | AK26: 4,190.19 | AL26: 2,104,394.24 | AM26: 13,073.27 | AN26: 24,651.30 | AO26: 903.46 | AP26: 165,274.92 | AQ26: 9,577.49 | AR26: 20,875.45 | AS26: 10,043.97 | AT26: 1,748.69 | AU26: 220.09 | AV26: 371,898.90 | AW26: 22,417.18 | AX26: 5,786.20 | AY26: 209.56 | AZ26: 674,469.31 | BA26: 3,129,955.19 | BB26: 1,159.97 | BC26: 271,936.42 | BD26: 17,332,761.07
A27: Italy | B27: 137,712.41 | C27: 7,724,215.52 | D27: 2,541,108.93 | E27: 932,716.95 | F27: 0.00 | G27: 518,162.25 | H27: 0.00 | I27: 1,044,423.35 | J27: 12,184,054.54 | K27: 657,779.86 | L27: 387,581.03 | M27: 389,149.63 | N27: 718,015.06 | O27: 1,184,400.52 | P27: 14,259.93 | Q27: 104,744.72 | R27: 36,161,523.49 | S27: 36,096,764.97 | T27: 236,918.67 | U27: 1,349,871.67 | V27: 2,231,122.09 | W27: 64,691.04 | X27: 1,096,032.14 | Y27: 0.00 | Z27: 2,098,854.01 | AA27: 1,692.65 | AB27: 21,549.86 | AC27: 39,382.31 | AD27: 12,244.68 | AE27: 37,526,628.55 | AF27: 1,523,967.06 | AG27: 258,632.82 | AH27: 0.01 | AI27: 5,735,201.17 | AJ27: 4,108.43 | AK27: 132,974.98 | AL27: 12,294,361.04 | AM27: 253,503.81 | AN27: 2,161,772.52 | AO27: 504,731.15 | AP27: 10,210,524.20 | AQ27: 1,992,371.45 | AR27: 2,492,732.06 | AS27: 5,873,885.00 | AT27: 1,456,222.19 | AU27: 469,386.28 | AV27: 1,826,656.72 | AW27: 2,611,054.52 | AX27: 228,911.07 | AY27: 1,405,225.80 | AZ27: 6,501,877.75 | BA27: 225,390,485.87 | BB27: 83,499.03 | BC27: 18,589,267.77 | BD27: 447,476,953.49
A28: Japan | B28: 7,104,701.65 | C28: 21,313,913.90 | D28: 3,347,556.02 | E28: 376,591.25 | F28: 0.00 | G28: 18,336.31 | H28: 0.00 | I28: 4,746,474.01 | J28: 723,839,525.03 | K28: 37,688,687.41 | L28: 0.00 | M28: 0.00 | N28: 1,155,865.01 | O28: 227,387.13 | P28: 1.01 | Q28: 4,573,575.36 | R28: 74,520,135.34 | S28: 89,947,017.30 | T28: 938.72 | U28: 30,521.85 | V28: 2,005,654.53 | W28: 34,123,749.62 | X28: 31,064,588.11 | Y28: 20,018,136.17 | Z28: 0.00 | AA28: 0.00 | AB28: 800.87 | AC28: 1,069,068.83 | AD28: 0.00 | AE28: 112,507,347.17 | AF28: 7,310,892.77 | AG28: 786,642.61 | AH28: 728.27 | AI28: 5,635,649.32 | AJ28: 18,252.15 | AK28: 1,694,738.01 | AL28: 1,088,580,315.37 | AM28: 12,379,936.73 | AN28: 343,878.67 | AO28: 195,913.01 | AP28: 549,511,810.08 | AQ28: 23,197.36 | AR28: 527,633.23 | AS28: 201,550,513.14 | AT28: 3,476.60 | AU28: 0.00 | AV28: 214,673.56 | AW28: 91,518.86 | AX28: 64,043,102.45 | AY28: 140,578.76 | AZ28: 42,744,942.55 | BA28: 501,476,737.27 | BB28: 9,210,501.82 | BC28: 31,697,272.28 | BD28: 3,687,863,477.45
A29: Lao PDR | B29: 0.00 | C29: 0.00 | D29: 0.00 | E29: 0.00 | F29: 0.00 | G29: 0.00 | H29: 0.00 | I29: 0.00 | J29: 0.00 | K29: 0.00 | L29: 0.00 | M29: 0.00 | N29: 0.00 | O29: 0.00 | P29: 0.00 | Q29: 0.00 | R29: 0.00 | S29: 0.00 | T29: 0.00 | U29: 0.00 | V29: 0.00 | W29: 0.00 | X29: 0.00 | Y29: 0.00 | Z29: 0.00 | AA29: 0.00 | AB29: 0.00 | AC29: 0.00 | AD29: 0.00 | AE29: 0.00 | AF29: 0.00 | AG29: 0.00 | AH29: 0.00 | AI29: 0.00 | AJ29: 0.00 | AK29: 0.00 | AL29: 0.00 | AM29: 0.00 | AN29: 0.00 | AO29: 0.00 | AP29: 0.00 | AQ29: 0.00 | AR29: 0.00 | AS29: 0.00 | AT29: 0.00 | AU29: 0.00 | AV29: 0.00 | AW29: 0.00 | AX29: 0.00 | AY29: 0.00 | AZ29: 0.00 | BA29: 0.00 | BB29: 0.00 | BC29: 0.00 | BD29: 0.00
A30: Latvia | B30: 132.97 | C30: 4.42 | D30: 50.36 | E30: 6.69 | F30: 0.00 | G30: 0.58 | H30: 0.00 | I30: 1.54 | J30: 4,530.81 | K30: 1,021.39 | L30: 0.00 | M30: 0.00 | N30: 162.85 | O30: 1.28 | P30: 2,172.83 | Q30: 0.10 | R30: 35.03 | S30: 411.58 | T30: 0.03 | U30: 0.96 | V30: 3,159.04 | W30: 1.09 | X30: 0.00 | Y30: 0.97 | Z30: 610.65 | AA30: 0.00 | AB30: 0.00 | AC30: 182.64 | AD30: 0.00 | AE30: 15.33 | AF30: 0.00 | AG30: 15.23 | AH30: 0.00 | AI30: 5.73 | AJ30: 0.58 | AK30: 0.00 | AL30: 36.98 | AM30: 165.23 | AN30: 1.21 | AO30: 0.00 | AP30: 166.96 | AQ30: 0.04 | AR30: 589,312.94 | AS30: 193.35 | AT30: 0.00 | AU30: 0.00 | AV30: 0.48 | AW30: 0.38 | AX30: 15.32 | AY30: 4,673.13 | AZ30: 17,084.80 | BA30: 293.61 | BB30: 24.90 | BC30: 17,807.67 | BD30: 642,301.66
A31: Lithuania | B31: 2,264.37 | C31: 183,841.66 | D31: 75,891.00 | E31: 3,263.37 | F31: 0.00 | G31: 289.00 | H31: 0.00 | I31: 264,436.24 | J31: 2,440,743.62 | K31: 488,573.12 | L31: 46,862.90 | M31: 0.00 | N31: 11,378.53 | O31: 131,140.81 | P31: 29,437.52 | Q31: 485,681.80 | R31: 19,376.84 | S31: 5,693,171.27 | T31: 14.19 | U31: 76,087.00 | V31: 33,085.45 | W31: 532.47 | X31: 45.12 | Y31: 465,572.63 | Z31: 244,997.23 | AA31: 0.00 | AB31: 43,074.90 | AC31: 0.00 | AD31: 199,981.38 | AE31: 7,400.66 | AF31: 0.00 | AG31: 857,196.81 | AH31: 0.10 | AI31: 309,792.34 | AJ31: 287.14 | AK31: 330,500.22 | AL31: 17,862.24 | AM31: 79,041.13 | AN31: 195,096.61 | AO31: 1,760.55 | AP31: 186,029.11 | AQ31: 18.78 | AR31: 720,343.15 | AS31: 92,914.99 | AT31: 98,497.70 | AU31: 0.02 | AV31: 217,553.26 | AW31: 1,445,357.92 | AX31: 7,358.61 | AY31: 2,314,114.39 | AZ31: 137,285.30 | BA31: 1,609,154.80 | BB31: 11,904.05 | BC31: 660,102.58 | BD31: 20,239,314.88
A32: Luxembourg | B32: 5.91 | C32: 2,702,594.48 | D32: 23,321,768.61 | E32: 0.90 | F32: 0.00 | G32: 0.19 | H32: 0.00 | I32: 4,042.12 | J32: 644.63 | K32: 3.13 | L32: 0.00 | M32: 498.19 | N32: 11,172.40 | O32: 4,509.74 | P32: 110.23 | Q32: 12,009.06 | R32: 7,608,851.08 | S32: 12,167,535.14 | T32: 4.54 | U32: 95,698.59 | V32: 6,445.93 | W32: 1,292.64 | X32: 0.05 | Y32: 34,124.20 | Z32: 48.39 | AA32: 0.00 | AB32: 0.04 | AC32: 0.03 | AD32: 0.00 | AE32: 0.46 | AF32: 0.00 | AG32: 1,348.96 | AH32: 0.00 | AI32: 17,657,304.79 | AJ32: 0.11 | AK32: 31,553.29 | AL32: 2.71 | AM32: 0.67 | AN32: 2,568.09 | AO32: 274,273.85 | AP32: 0.70 | AQ32: 9,137.49 | AR32: 3,869.60 | AS32: 2.45 | AT32: 0.00 | AU32: 0.00 | AV32: 1,126.67 | AW32: 40,552.88 | AX32: 0.26 | AY32: 15,825.06 | AZ32: 6,795.66 | BA32: 6,188.74 | BB32: 0.00 | BC32: 161,257.70 | BD32: 64,183,170.34
A33: Malaysia | B33: 7,892,063.68 | C33: 612,621.49 | D33: 667,323.32 | E33: 13,903.20 | F33: 0.00 | G33: 136.39 | H33: 0.00 | I33: 2,918,008.47 | J33: 179,807,275.42 | K33: 824,923.99 | L33: 0.00 | M33: 0.00 | N33: 698,908.17 | O33: 3,453.51 | P33: 56.23 | Q33: 7,315.76 | R33: 3,918,819.82 | S33: 50,372,527.63 | T33: 4.20 | U33: 144.88 | V33: 6,448,698.66 | W33: 1,593,874.96 | X33: 814,828.84 | Y33: 1,638,445.30 | Z33: 113,156,180.05 | AA33: 0.00 | AB33: 14.34 | AC33: 1,671.64 | AD33: 0.00 | AE33: 0.00 | AF33: 0.00 | AG33: 519,546.91 | AH33: 417.77 | AI33: 14,923,910.29 | AJ33: 8,284.19 | AK33: 1,369.15 | AL33: 52,772,116.53 | AM33: 3,469,753.15 | AN33: 900.07 | AO33: 281.80 | AP33: 38,893,471.78 | AQ33: 5.57 | AR33: 71,864.50 | AS33: 49,694,061.42 | AT33: 0.38 | AU33: 0.11 | AV33: 3,680.70 | AW33: 2,056.57 | AX33: 22,164,038.22 | AY33: 40,517,796.66 | AZ33: 2,732,333.93 | BA33: 370,799,178.57 | BB33: 3,108,522.49 | BC33: 15,566,854.82 | BD33: 986,641,645.50
A34: Malta | B34: 0.00 | C34: 0.01 | D34: 0.00 | E34: 0.00 | F34: 0.00 | G34: 0.00 | H34: 0.00 | I34: 0.00 | J34: 0.00 | K34: 0.00 | L34: 0.00 | M34: 0.00 | N34: 0.00 | O34: 0.00 | P34: 0.00 | Q34: 0.00 | R34: 0.00 | S34: 0.00 | T34: 0.00 | U34: 0.00 | V34: 0.00 | W34: 0.00 | X34: 0.00 | Y34: 112.04 | Z34: 0.06 | AA34: 0.00 | AB34: 0.00 | AC34: 0.00 | AD34: 0.00 | AE34: 0.00 | AF34: 0.00 | AG34: 0.00 | AH34: 0.00 | AI34: 0.00 | AJ34: 0.00 | AK34: 0.00 | AL34: 0.00 | AM34: 0.00 | AN34: 0.00 | AO34: 0.00 | AP34: 0.00 | AQ34: 0.00 | AR34: 0.00 | AS34: 0.00 | AT34: 0.00 | AU34: 0.00 | AV34: 0.00 | AW34: 0.00 | AX34: 0.00 | AY34: 0.00 | AZ34: 0.00 | BA34: 0.00 | BB34: 0.00 | BC34: 2,465.94 | BD34: 2,578.06
A35: Mexico | B35: 69.57 | C35: 155.60 | D35: 107.81 | E35: 50.67 | F35: 0.00 | G35: 2.08 | H35: 0.00 | I35: 36,799.79 | J35: 5,957.16 | K35: 1,192.10 | L35: 0.00 | M35: 0.00 | N35: 2.33 | O35: 8.09 | P35: 1.46 | Q35: 26.75 | R35: 7,894,199.01 | S35: 2,574.78 | T35: 0.03 | U35: 1.34 | V35: 119.96 | W35: 9.92 | X35: 2,368.93 | Y35: 169.47 | Z35: 179,028.96 | AA35: 0.00 | AB35: 0.31 | AC35: 6.76 | AD35: 0.00 | AE35: 18,109.77 | AF35: 0.00 | AG35: 0.00 | AH35: 0.01 | AI35: 125.24 | AJ35: 6.82 | AK35: 6.65 | AL35: 4,264.95 | AM35: 1,885.38 | AN35: 2,970.02 | AO35: 1.46 | AP35: 610.06 | AQ35: 0.05 | AR35: 136.51 | AS35: 378.27 | AT35: 0.01 | AU35: 0.00 | AV35: 2,027.44 | AW35: 6.51 | AX35: 39.15 | AY35: 7.95 | AZ35: 3,573.44 | BA35: 1,385,015.85 | BB35: 27.80 | BC35: 72,961.65 | BD35: 9,615,007.89
A36: Myanmar | B36: 0.00 | C36: 0.00 | D36: 0.00 | E36: 0.00 | F36: 0.00 | G36: 0.00 | H36: 0.00 | I36: 0.00 | J36: 0.00 | K36: 0.00 | L36: 0.00 | M36: 0.00 | N36: 0.00 | O36: 0.00 | P36: 0.00 | Q36: 0.00 | R36: 0.00 | S36: 0.00 | T36: 0.00 | U36: 0.00 | V36: 0.00 | W36: 0.00 | X36: 0.00 | Y36: 0.00 | Z36: 0.00 | AA36: 0.00 | AB36: 0.00 | AC36: 0.00 | AD36: 0.00 | AE36: 0.00 | AF36: 0.00 | AG36: 0.00 | AH36: 0.00 | AI36: 0.00 | AJ36: 0.00 | AK36: 0.00 | AL36: 0.00 | AM36: 0.00 | AN36: 0.00 | AO36: 0.00 | AP36: 0.00 | AQ36: 0.00 | AR36: 0.00 | AS36: 0.00 | AT36: 0.00 | AU36: 0.00 | AV36: 0.00 | AW36: 0.00 | AX36: 0.00 | AY36: 0.00 | AZ36: 0.00 | BA36: 0.00 | BB36: 0.00 | BC36: 0.00 | BD36: 0.00
A37: Netherlands | B37: 88,686.81 | C37: 29,500,484.07 | D37: 96,491,806.43 | E37: 96,072.51 | F37: 0.00 | G37: 544,876.86 | H37: 0.00 | I37: 849,352.19 | J37: 9,772,614.10 | K37: 1,447,305.03 | L37: 1,645,168.35 | M37: 3,904,360.22 | N37: 10,456,316.91 | O37: 4,221,520.30 | P37: 2,710,541.59 | Q37: 3,912,437.02 | R37: 250,776,087.63 | S37: 640,518,919.22 | T37: 1,880,697.58 | U37: 23,887,022.52 | V37: 204,562.63 | W37: 423,595.08 | X37: 2,039,397.03 | Y37: 71,904,144.68 | Z37: 3,026,178.19 | AA37: 0.00 | AB37: 199,412.01 | AC37: 940,465.23 | AD37: 33,971,695.02 | AE37: 64,343.69 | AF37: 2,051,377.50 | AG37: 51,982.73 | AH37: 13.36 | AI37: 0.00 | AJ37: 5,622.26 | AK37: 5,980,564.37 | AL37: 2,268,782.50 | AM37: 267,478.04 | AN37: 11,990,383.75 | AO37: 12,991,037.21 | AP37: 650,273.43 | AQ37: 1,662,789.89 | AR37: 931,660.18 | AS37: 723,577.22 | AT37: 2,086,759.27 | AU37: 2,212.92 | AV37: 30,491,248.50 | AW37: 18,157,260.68 | AX37: 1,707,057.05 | AY37: 39,553,795.02 | AZ37: 204,544,460.73 | BA37: 5,290,619.39 | BB37: 251,232.23 | BC37: 22,706,746.48 | BD37: 1,559,844,997.58
A38: New Zealand | B38: 306,637.53 | C38: 0.00 | D38: 0.00 | E38: 0.00 | F38: 0.00 | G38: 0.00 | H38: 0.00 | I38: 0.00 | J38: 0.00 | K38: 25.26 | L38: 0.00 | M38: 0.00 | N38: 0.00 | O38: 0.00 | P38: 0.00 | Q38: 0.00 | R38: 0.00 | S38: 0.00 | T38: 0.00 | U38: 0.00 | V38: 0.00 | W38: 3,110.51 | X38: 0.00 | Y38: 0.00 | Z38: 0.00 | AA38: 176.17 | AB38: 0.00 | AC38: 0.00 | AD38: 0.00 | AE38: 0.00 | AF38: 0.00 | AG38: 0.00 | AH38: 0.00 | AI38: 0.00 | AJ38: 0.00 | AK38: 0.00 | AL38: 0.00 | AM38: 0.00 | AN38: 0.00 | AO38: 0.00 | AP38: 0.00 | AQ38: 0.00 | AR38: 0.00 | AS38: 0.00 | AT38: 0.00 | AU38: 0.00 | AV38: 70,916.53 | AW38: 0.00 | AX38: 5,145.66 | AY38: 0.00 | AZ38: 1,969.48 | BA38: 8,462.02 | BB38: 4,940.44 | BC38: 207,196.02 | BD38: 608,579.63
A39: Norway | B39: 11.52 | C39: 2,565.87 | D39: 29.13 | E39: 36.75 | F39: 0.00 | G39: 0.00 | H39: 0.00 | I39: 317,066.93 | J39: 5,156,578.03 | K39: 2,392,070.81 | L39: 0.00 | M39: 0.00 | N39: 470,486.73 | O39: 476,582.41 | P39: 24,973.98 | Q39: 2,622.37 | R39: 943,765.06 | S39: 5,168,137.55 | T39: 27,560.71 | U39: 615.52 | V39: 156,092.39 | W39: 9.87 | X39: 3,088.08 | Y39: 2,217.58 | Z39: 9,172,374.52 | AA39: 0.00 | AB39: 3,200.81 | AC39: 5,024.38 | AD39: 0.00 | AE39: 23,287,321.59 | AF39: 0.00 | AG39: 239.83 | AH39: 480.42 | AI39: 357,205.75 | AJ39: 0.04 | AK39: 0.00 | AL39: 13,864,664.32 | AM39: 12,102,356.95 | AN39: 45,297.99 | AO39: 1.00 | AP39: 170,726.96 | AQ39: 0.00 | AR39: 8,949,282.38 | AS39: 92,047,614.30 | AT39: 0.00 | AU39: 0.00 | AV39: 2,800.84 | AW39: 123,384.57 | AX39: 1,012.90 | AY39: 14,643.42 | AZ39: 5,637,252.01 | BA39: 308,227.87 | BB39: 93,231.48 | BC39: 1,102,266.60 | BD39: 182,433,122.25
A40: Taiwan | B40: 8,185,766.38 | C40: 32,755,372.23 | D40: 5,382,875.89 | E40: 513,865.96 | F40: 0.00 | G40: 14,423.63 | H40: 438.98 | I40: 11,068,907.97 | J40: 1,366,877,884.04 | K40: 43,105,067.81 | L40: 2,378,805.54 | M40: 0.00 | N40: 51,794,839.80 | O40: 501,461.18 | P40: 420,652.85 | Q40: 1,072,420.22 | R40: 28,198,746.52 | S40: 165,904,147.61 | T40: 57,518.28 | U40: 636,674.62 | V40: 96,905,722.50 | W40: 8,767,144.55 | X40: 2,415,112.73 | Y40: 31,893,032.98 | Z40: 294,062,201.95 | AA40: 0.00 | AB40: 702.95 | AC40: 3,099,700.81 | AD40: 6,100,130.21 | AE40: 112,688,376.68 | AF40: 226,572.42 | AG40: 5,737,695.09 | AH40: 10,141.01 | AI40: 79,496,489.28 | AJ40: 73,302.35 | AK40: 1,183,666.81 | AL40: 0.00 | AM40: 28,049,201.05 | AN40: 13,313,556.84 | AO40: 6,878,553.35 | AP40: 78,828,405.03 | AQ40: 1,159,151.27 | AR40: 596,383.96 | AS40: 92,737,667.39 | AT40: 3.27 | AU40: 3,029,024.27 | AV40: 1,574,079.13 | AW40: 275,669.76 | AX40: 80,831,334.10 | AY40: 194,255,353.90 | AZ40: 7,566,699.47 | BA40: 107,868,733.75 | BB40: 345,933,755.34 | BC40: 27,630,327.47 | BD40: 3,352,057,761.17
A41: Philippines | B41: 457,139.90 | C41: 15,022.44 | D41: 900,355.14 | E41: 18,603.28 | F41: 0.00 | G41: 1,634.03 | H41: 0.00 | I41: 1,084,829.00 | J41: 13,959,346.55 | K41: 2,796,930.52 | L41: 0.00 | M41: 0.00 | N41: 2,197.41 | O41: 3,534.64 | P41: 49.40 | Q41: 1,808.84 | R41: 1,996,819.34 | S41: 1,225,306.99 | T41: 81.22 | U41: 2,636.06 | V41: 159,568.80 | W41: 3,032.25 | X41: 45,659.02 | Y41: 647,966.31 | Z41: 274,064,626.32 | AA41: 0.00 | AB41: 78.72 | AC41: 1,628.62 | AD41: 0.00 | AE41: 97,578.45 | AF41: 0.00 | AG41: 31,203,774.10 | AH41: 0.40 | AI41: 110,704.48 | AJ41: 1,647.57 | AK41: 101.89 | AL41: 154,108.92 | AM41: 0.00 | AN41: 17,373.22 | AO41: 23.64 | AP41: 641,558.11 | AQ41: 107.50 | AR41: 35,326.08 | AS41: 629,105.67 | AT41: 0.33 | AU41: 0.10 | AV41: 909,511.08 | AW41: 8,829.25 | AX41: 766,896.15 | AY41: 64,789.50 | AZ41: 2,323,951.48 | BA41: 11,937,549.31 | BB41: 68,442.00 | BC41: 1,198,376.78 | BD41: 347,558,610.82
A42: Poland | B42: 14,711.92 | C42: 392,179.50 | D42: 475,813.28 | E42: 14,408.59 | F42: 0.00 | G42: 141,034.56 | H42: 0.00 | I42: 547,934.67 | J42: 5,445,911.65 | K42: 169,599.55 | L42: 8,065.08 | M42: 4,333,588.15 | N42: 1,220,305.62 | O42: 2,696,452.16 | P42: 619,252.58 | Q42: 557,331.30 | R42: 816,921.41 | S42: 12,725,235.57 | T42: 189,460.62 | U42: 742,482.11 | V42: 115,861.40 | W42: 238.13 | X42: 899,958.73 | Y42: 1,249,019.22 | Z42: 3,890,781.68 | AA42: 0.00 | AB42: 13,513.03 | AC42: 13,410.44 | AD42: 84,748.37 | AE42: 36,803.70 | AF42: 49.02 | AG42: 4,382.69 | AH42: 83.59 | AI42: 3,712,690.93 | AJ42: 85.83 | AK42: 258,682.50 | AL42: 3,655,904.30 | AM42: 5,661.50 | AN42: 0.00 | AO42: 62,075.10 | AP42: 105,594.60 | AQ42: 40,409.76 | AR42: 193,324.88 | AS42: 14,570.27 | AT42: 44,367.95 | AU42: 34,568.20 | AV42: 880,599.31 | AW42: 965,958.60 | AX42: 1,015.25 | AY42: 6,763,578.92 | AZ42: 3,374,498.36 | BA42: 5,773,281.10 | BB42: 3,686.19 | BC42: 7,529,806.00 | BD42: 70,839,897.90
A43: Portugal | B43: 2,357.06 | C43: 192,605.56 | D43: 4,724,085.55 | E43: 84,911.54 | F43: 0.00 | G43: 347.41 | H43: 0.00 | I43: 3,086.35 | J43: 2,767,237.36 | K43: 612,654.03 | L43: 0.00 | M43: 0.00 | N43: 474.03 | O43: 96,085.29 | P43: 0.00 | Q43: 61.23 | R43: 509,752.24 | S43: 2,384,156.30 | T43: 62,482.64 | U43: 217,244.34 | V43: 31,120.80 | W43: 656.04 | X43: 15,167.35 | Y43: 3,001.63 | Z43: 210,868.09 | AA43: 0.00 | AB43: 15.17 | AC43: 347.16 | AD43: 148,169.59 | AE43: 9,217.64 | AF43: 0.00 | AG43: 15,475.59 | AH43: 0.00 | AI43: 3,034,309.65 | AJ43: 347.76 | AK43: 2.25 | AL43: 22,183.65 | AM43: 99,104.70 | AN43: 727.85 | AO43: 0.00 | AP43: 100,147.10 | AQ43: 57,743.59 | AR43: 1,116.47 | AS43: 115,975.37 | AT43: 0.00 | AU43: 432.17 | AV43: 566,423.39 | AW43: 339,797.94 | AX43: 9,197.12 | AY43: 2,608.74 | AZ43: 178,514.37 | BA43: 723,412.36 | BB43: 14,933.84 | BC43: 1,291,464.77 | BD43: 18,650,023.09
A44: Korea | B44: 37,754,038.23 | C44: 87,428.13 | D44: 16,643,535.55 | E44: 25,116.60 | F44: 0.00 | G44: 590,464.63 | H44: 0.00 | I44: 35,460,122.49 | J44: 987,255,544.12 | K44: 12,468,571.28 | L44: 0.00 | M44: 60,543.12 | N44: 1,676.09 | O44: 6,218.50 | P44: 120,816.78 | Q44: 3,920.87 | R44: 156,286.91 | S44: 74,673,169.87 | T44: 2,641,324.85 | U44: 17,474.42 | V44: 462,691.85 | W44: 11,104.23 | X44: 1,052.91 | Y44: 4,044,040.01 | Z44: 244,265,168.11 | AA44: 0.00 | AB44: 310.54 | AC44: 5,307.62 | AD44: 0.00 | AE44: 11,682,875.72 | AF44: 150,467.47 | AG44: 1,096,491.77 | AH44: 30.98 | AI44: 161,480,839.42 | AJ44: 837,081.99 | AK44: 1,143,766.69 | AL44: 175,693,570.02 | AM44: 645,859.87 | AN44: 387,415.68 | AO44: 28,324.03 | AP44: 0.00 | AQ44: 33.38 | AR44: 1,750,743.19 | AS44: 436,623.34 | AT44: 10.08 | AU44: 516,400.19 | AV44: 4,027.17 | AW44: 3,432.54 | AX44: 15,391,066.11 | AY44: 14,254,979.80 | AZ44: 350,244.34 | BA44: 962,746,748.53 | BB44: 45,126,178.01 | BC44: 44,996,629.74 | BD44: 2,855,479,767.77
A45: Romania | B45: 18.15 | C45: 9,563.50 | D45: 477.27 | E45: 30.77 | F45: 0.00 | G45: 18,112.57 | H45: 0.00 | I45: 82.31 | J45: 39,365.66 | K45: 4,679.21 | L45: 0.00 | M45: 0.00 | N45: 3,387.91 | O45: 5.92 | P45: 0.00 | Q45: 0.47 | R45: 2,116,516.69 | S45: 103,258.76 | T45: 16.14 | U45: 785,814.53 | V45: 238.27 | W45: 5.01 | X45: 440.17 | Y45: 391,747.15 | Z45: 8,459.49 | AA45: 0.00 | AB45: 0.12 | AC45: 2.73 | AD45: 0.00 | AE45: 70.95 | AF45: 0.00 | AG45: 1,088.87 | AH45: 0.00 | AI45: 79,667.69 | AJ45: 2.73 | AK45: 7,085.79 | AL45: 169.48 | AM45: 943.94 | AN45: 663.81 | AO45: 2,003.77 | AP45: 764.88 | AQ45: 0.00 | AR45: 8.53 | AS45: 885.77 | AT45: 896.34 | AU45: 0.00 | AV45: 2.19 | AW45: 11,962.31 | AX45: 70.50 | AY45: 4,150,373.12 | AZ45: 1,919.73 | BA45: 20,835.40 | BB45: 114.05 | BC45: 599,609.53 | BD45: 8,361,362.14
A46: Russian Federation | B46: 230.50 | C46: 14,163.55 | D46: 2,426.03 | E46: 9.48 | F46: 0.00 | G46: 1,093.26 | H46: 0.00 | I46: 10,593.65 | J46: 33,513,764.30 | K46: 972.59 | L46: 0.00 | M46: 0.00 | N46: 18,394.93 | O46: 2.20 | P46: 316.07 | Q46: 1.44 | R46: 22,800.24 | S46: 35,929.88 | T46: 0.03 | U46: 268.10 | V46: 1,242,104.36 | W46: 1.50 | X46: 361.01 | Y46: 6,494.23 | Z46: 10,839.29 | AA46: 0.00 | AB46: 17,335.03 | AC46: 28,513.04 | AD46: 0.00 | AE46: 156,388.49 | AF46: 0.00 | AG46: 459.85 | AH46: 0.00 | AI46: 147,201.23 | AJ46: 448.98 | AK46: 1.01 | AL46: 738,069.86 | AM46: 156.47 | AN46: 50,737.32 | AO46: 0.04 | AP46: 114,330.10 | AQ46: 0.04 | AR46: 0.00 | AS46: 3,533.07 | AT46: 0.00 | AU46: 0.00 | AV46: 221.01 | AW46: 592.86 | AX46: 182,147.76 | AY46: 537.12 | AZ46: 335.34 | BA46: 260,259.00 | BB46: 224.43 | BC46: 1,869,847.91 | BD46: 38,452,106.59
A47: Singapore | B47: 34,984,101.93 | C47: 5,935,835.58 | D47: 249,144.57 | E47: 24,983.11 | F47: 21,295.98 | G47: 1,727.33 | H47: 103,864.86 | I47: 3,046,342.00 | J47: 159,290,423.93 | K47: 16,903,322.49 | L47: 0.00 | M47: 0.00 | N47: 3,047.55 | O47: 25,450.10 | P47: 103.12 | Q47: 51,346.59 | R47: 5,691,848.68 | S47: 74,454,360.84 | T47: 83.34 | U47: 3,689.62 | V47: 35,456,290.16 | W47: 6,027,570.19 | X47: 2,488,817.36 | Y47: 10,965,346.49 | Z47: 71,286,775.41 | AA47: 0.00 | AB47: 90.81 | AC47: 10,782.70 | AD47: 0.00 | AE47: 66,694,188.57 | AF47: 0.00 | AG47: 207,969.71 | AH47: 129,024.30 | AI47: 138,567,576.74 | AJ47: 325,964.32 | AK47: 1,348,245.80 | AL47: 231,398,558.29 | AM47: 5,330,626.74 | AN47: 6,974.25 | AO47: 1,380,880.34 | AP47: 207,699,219.29 | AQ47: 110.31 | AR47: 7,900,027.67 | AS47: 0.00 | AT47: 169,246.40 | AU47: 0.20 | AV47: 1,546.68 | AW47: 117,603.88 | AX47: 9,615,247.49 | AY47: 19,846,607.47 | AZ47: 3,302,367.71 | BA47: 176,782,270.57 | BB47: 24,211,906.63 | BC47: 11,132,996.06 | BD47: 1,333,195,804.12
A48: Slovakia | B48: 52,828.17 | C48: 91,145.80 | D48: 184.00 | E48: 5,292.10 | F48: 0.00 | G48: 23.25 | H48: 0.00 | I48: 476,409.85 | J48: 146,814.64 | K48: 2,843.03 | L48: 493.19 | M48: 0.00 | N48: 198,524.10 | O48: 18.35 | P48: 22.23 | Q48: 3,809.03 | R48: 5,048.27 | S48: 3,060,424.92 | T48: 0.09 | U48: 6,495,693.40 | V48: 19,840.88 | W48: 20.61 | X48: 1,261.08 | Y48: 925.28 | Z48: 776,346.53 | AA48: 0.00 | AB48: 40,840.93 | AC48: 64,818.62 | AD48: 0.00 | AE48: 270.59 | AF48: 0.00 | AG48: 37,501.18 | AH48: 0.18 | AI48: 3,205.85 | AJ48: 21.80 | AK48: 35.14 | AL48: 2,261.07 | AM48: 472.73 | AN48: 11,914.53 | AO48: 10.72 | AP48: 1,102.54 | AQ48: 10,407.10 | AR48: 74,894.74 | AS48: 653,890.52 | AT48: 0.00 | AU48: 283.15 | AV48: 3,637.00 | AW48: 132.72 | AX48: 163.44 | AY48: 14.82 | AZ48: 20,184.47 | BA48: 2,419,340.43 | BB48: 59.52 | BC48: 314,884.60 | BD48: 14,998,317.19
A49: Slovenia | B49: 795.43 | C49: 753,772.19 | D49: 8,458,362.20 | E49: 2,986.87 | F49: 0.00 | G49: 74,765.27 | H49: 0.00 | I49: 1,493.59 | J49: 244,921.23 | K49: 33,030.84 | L49: 50,465,224.50 | M49: 54,266.73 | N49: 2,159.37 | O49: 228,705.95 | P49: 721,462.55 | Q49: 518.50 | R49: 5,027,545.27 | S49: 497,657.06 | T49: 782,487.64 | U49: 725,861.25 | V49: 1,690.98 | W49: 35.80 | X49: 10,141.87 | Y49: 9,926,006.16 | Z49: 19,100.02 | AA49: 0.00 | AB49: 0.82 | AC49: 53,214.75 | AD49: 767,833.26 | AE49: 509.39 | AF49: 87,146.28 | AG49: 1,414.50 | AH49: 0.00 | AI49: 4,397,666.65 | AJ49: 2,426.24 | AK49: 1,238.01 | AL49: 455,718.93 | AM49: 5,341.94 | AN49: 463,770.35 | AO49: 0.00 | AP49: 5,399.24 | AQ49: 137,025.60 | AR49: 60,352.20 | AS49: 11,194.54 | AT49: 6,227.38 | AU49: 0.00 | AV49: 47,756.66 | AW49: 238,974.57 | AX49: 5,612.62 | AY49: 300.30 | AZ49: 940,101.55 | BA49: 383,389.56 | BB49: 1,355.17 | BC49: 2,758,370.11 | BD49: 88,865,331.88
A50: Spain | B50: 185,737.50 | C50: 419.09 | D50: 22,328.09 | E50: 139,242.33 | F50: 0.00 | G50: 11,896.24 | H50: 0.00 | I50: 7,767.35 | J50: 27,057.94 | K50: 6,500.47 | L50: 0.00 | M50: 591.23 | N50: 172,731.06 | O50: 6,640.43 | P50: 0.03 | Q50: 1,311.41 | R50: 502,609.48 | S50: 807,904.34 | T50: 4,121.14 | U50: 486.26 | V50: 371,250.65 | W50: 143,644.93 | X50: 33,489.27 | Y50: 213,877.96 | Z50: 27,124.62 | AA50: 0.00 | AB50: 4,025.70 | AC50: 12.58 | AD50: 38.01 | AE50: 4,076.63 | AF50: 5,115.95 | AG50: 361,127.39 | AH50: 0.00 | AI50: 197,857.86 | AJ50: 32.84 | AK50: 144,489.57 | AL50: 2,286.26 | AM50: 7,263.65 | AN50: 129,268.32 | AO50: 9,464,506.97 | AP50: 2,382.84 | AQ50: 1,292.74 | AR50: 205.74 | AS50: 49,591.47 | AT50: 4,652.78 | AU50: 662.25 | AV50: 0.00 | AW50: 1,692.63 | AX50: 200,116.04 | AY50: 9,443,963.84 | AZ50: 2,870,339.09 | BA50: 1,813,388.80 | BB50: 12,131.05 | BC50: 11,623,514.08 | BD50: 39,030,766.92
A51: Sweden | B51: 21,121.66 | C51: 54,991.21 | D51: 24,838.51 | E51: 107,446.84 | F51: 0.00 | G51: 5,797.27 | H51: 0.00 | I51: 21,372.54 | J51: 3,807,131.86 | K51: 92,280.66 | L51: 3,467.32 | M51: 3,067.17 | N51: 6,398.29 | O51: 159,079.38 | P51: 120,604.84 | Q51: 637,672.88 | R51: 1,330,966.24 | S51: 453,938.69 | T51: 9,882.36 | U51: 15,679.78 | V51: 73,435.07 | W51: 115.93 | X51: 12,024.81 | Y51: 119,116.98 | Z51: 754,924.46 | AA51: 0.00 | AB51: 14,573.00 | AC51: 733,773.86 | AD51: 285.11 | AE51: 7,897.04 | AF51: 0.00 | AG51: 278,506.37 | AH51: 0.01 | AI51: 777,789.01 | AJ51: 469.08 | AK51: 2,493,430.65 | AL51: 60,910.50 | AM51: 16,054.35 | AN51: 458,300.17 | AO51: 11,371.38 | AP51: 283,072.17 | AQ51: 457,369.23 | AR51: 11,779.76 | AS51: 36,420.77 | AT51: 1,630.63 | AU51: 4,407.68 | AV51: 48,438.58 | AW51: 0.00 | AX51: 372,764.01 | AY51: 120,766.25 | AZ51: 410,391.55 | BA51: 770,794.11 | BB51: 2,248.85 | BC51: 1,379,952.63 | BD51: 16,588,751.50
A52: Thailand | B52: 1,409.43 | C52: 149,532.00 | D52: 4,308.90 | E52: 5,955.55 | F52: 0.00 | G52: 82.79 | H52: 0.00 | I52: 734,646.31 | J52: 16,397,187.27 | K52: 102,490.13 | L52: 0.00 | M52: 0.00 | N52: 95.00 | O52: 115.87 | P52: 34.54 | Q52: 96.65 | R52: 3,570.51 | S52: 11,518,565.80 | T52: 2.53 | U52: 87.35 | V52: 7,724,910.18 | W52: 48,999.88 | X52: 257.20 | Y52: 182,351.93 | Z52: 36,202.47 | AA52: 0.00 | AB52: 8.77 | AC52: 60.44 | AD52: 0.07 | AE52: 4,456,558.23 | AF52: 0.00 | AG52: 45,913,526.61 | AH52: 18,513.52 | AI52: 59,385.24 | AJ52: 73.51 | AK52: 48.54 | AL52: 2,219,836.39 | AM52: 20,803.37 | AN52: 6,308,955.35 | AO52: 41,915.15 | AP52: 1,332,764.76 | AQ52: 3.35 | AR52: 940.87 | AS52: 100,450.45 | AT52: 0.23 | AU52: 50,749.34 | AV52: 83.06 | AW52: 104.26 | AX52: 0.00 | AY52: 3,811,036.98 | AZ52: 15,296.17 | BA52: 2,302,665.11 | BB52: 158,831,900.09 | BC52: 5,953,225.83 | BD52: 268,349,808.01
A53: Turkey | B53: 0.00 | C53: 6.94 | D53: 0.00 | E53: 0.00 | F53: 0.00 | G53: 81,120.66 | H53: 0.00 | I53: 0.00 | J53: 192,552.95 | K53: 0.00 | L53: 0.00 | M53: 0.00 | N53: 0.00 | O53: 0.00 | P53: 0.00 | Q53: 0.00 | R53: 13,958.08 | S53: 21,760.80 | T53: 821.78 | U53: 0.00 | V53: 0.00 | W53: 0.00 | X53: 0.00 | Y53: 115,266.98 | Z53: 125,569.29 | AA53: 0.00 | AB53: 0.00 | AC53: 0.00 | AD53: 0.00 | AE53: 0.00 | AF53: 0.00 | AG53: 21,368.16 | AH53: 0.00 | AI53: 3,840.04 | AJ53: 0.00 | AK53: 0.00 | AL53: 9,407.33 | AM53: 0.00 | AN53: 0.00 | AO53: 0.00 | AP53: 0.00 | AQ53: 4,131.18 | AR53: 0.00 | AS53: 0.00 | AT53: 0.00 | AU53: 0.00 | AV53: 0.00 | AW53: 0.00 | AX53: 806,797.67 | AY53: 0.00 | AZ53: 691.79 | BA53: 0.00 | BB53: 0.00 | BC53: 2,585,078.31 | BD53: 3,982,371.97
A54: United Kingdom | B54: 458,160.82 | C54: 7,363,892.29 | D54: 1,244,082.98 | E54: 101,720.52 | F54: 0.00 | G54: 121,788.06 | H54: 0.00 | I54: 1,203,895.87 | J54: 37,740,193.07 | K54: 8,268,577.44 | L54: 907,074.44 | M54: 5,004.91 | N54: 231,503.00 | O54: 201,130.39 | P54: 1,780,973.24 | Q54: 2,740,374.50 | R54: 46,717,783.11 | S54: 61,403,693.05 | T54: 28,783.37 | U54: 329,788.70 | V54: 2,141,636.55 | W54: 11,223.13 | X54: 3,560,460.51 | Y54: 13,583,919.96 | Z54: 4,939,447.14 | AA54: 1,607.61 | AB54: 12,613.63 | AC54: 44,020.65 | AD54: 272,688.15 | AE54: 9,309,610.04 | AF54: 21,055.04 | AG54: 1,211,343.57 | AH54: 2,289.62 | AI54: 6,701,565.29 | AJ54: 7,460.65 | AK54: 666,779.07 | AL54: 22,625,856.09 | AM54: 1,128,081.99 | AN54: 2,875,167.49 | AO54: 63,610.05 | AP54: 3,521,317.51 | AQ54: 345,267.13 | AR54: 1,208,541.27 | AS54: 10,143,243.36 | AT54: 261,411.08 | AU54: 51,668.80 | AV54: 6,052,038.16 | AW54: 5,757,107.92 | AX54: 483,939.79 | AY54: 857,714.57 | AZ54: 0.00 | BA54: 41,834,608.40 | BB54: 258,986.22 | BC54: 9,992,064.35 | BD54: 320,796,764.57
A55: USA | B55: 1,341,887.59 | C55: 28,405,653.90 | D55: 2,546,402.82 | E55: 183,601.47 | F55: 5,158.63 | G55: 6,944.65 | H55: 2,825.94 | I55: 10,944,958.29 | J55: 155,790,393.71 | K55: 27,863,465.30 | L55: 0.00 | M55: 0.00 | N55: 16,276,053.66 | O55: 2,440,293.88 | P55: 0.00 | Q55: 175,201.12 | R55: 62,239,776.99 | S55: 110,846,197.88 | T55: 5,196.02 | U55: 4,006.53 | V55: 1,198,733.37 | W55: 17,628.73 | X55: 2,669,789.71 | Y55: 57,658,221.52 | Z55: 876,961,172.30 | AA55: 0.00 | AB55: 3,077.91 | AC55: 101,755.18 | AD55: 0.00 | AE55: 73,810,515.24 | AF55: 0.00 | AG55: 9,960,405.12 | AH55: 0.00 | AI55: 11,403,677.51 | AJ55: 68,997.79 | AK55: 4,784,443.49 | AL55: 350,838,374.20 | AM55: 54,370,205.50 | AN55: 363,893.55 | AO55: 31,981.01 | AP55: 228,385,132.68 | AQ55: 38,612.27 | AR55: 1,211,690.49 | AS55: 97,191,187.81 | AT55: 7,514.47 | AU55: 5,662.56 | AV55: 116,945.28 | AW55: 679,170.98 | AX55: 917,033.34 | AY55: 502,621.89 | AZ55: 28,617,362.52 | BA55: 0.00 | BB55: 343,305.33 | BC55: 26,393,689.27 | BD55: 2,247,730,819.39
A56: Vietnam | B56: 1,030,073.30 | C56: 40,183.37 | D56: 12,893,727.36 | E56: 4,718,100.04 | F56: 0.00 | G56: 471,341.17 | H56: 20,773.77 | I56: 6,489,143.55 | J56: 47,481,604.31 | K56: 2,838,977.26 | L56: 0.00 | M56: 0.00 | N56: 1,877.97 | O56: 5,464.75 | P56: 173.47 | Q56: 174,104.91 | R56: 212,247.20 | S56: 80,501,524.01 | T56: 372,808.74 | U56: 2,169.35 | V56: 22,790,939.01 | W56: 68,446.55 | X56: 251,256.48 | Y56: 3,920,319.46 | Z56: 27,245,254.99 | AA56: 13,703.76 | AB56: 89.59 | AC56: 4,965.95 | AD56: 445.17 | AE56: 12,099,830.40 | AF56: 100,964.56 | AG56: 2,229,816.82 | AH56: 11,114.46 | AI56: 659,848,032.84 | AJ56: 4,722.51 | AK56: 3,221.90 | AL56: 7,106,497.48 | AM56: 369,558.67 | AN56: 297,654.53 | AO56: 1,929,150.82 | AP56: 4,899,443.55 | AQ56: 132,934.31 | AR56: 8,789.93 | AS56: 20,703,834.81 | AT56: 1.16 | AU56: 2,394,430.16 | AV56: 2,442,041.18 | AW56: 1,831,672.57 | AX56: 8,735,270.98 | AY56: 172,881,160.61 | AZ56: 24,727,365.43 | BA56: 736,591,669.33 | BB56: 0.00 | BC56: 12,426,327.03 | BD56: 1,883,325,221.51
A57: ROW | B57: 71,082.86 | C57: 46,326.90 | D57: 80,612.25 | E57: 13,140.40 | F57: 0.00 | G57: 20,160.57 | H57: 0.00 | I57: 513,656.35 | J57: 130,033,057.91 | K57: 360,688.76 | L57: 15,180.29 | M57: 5,371.08 | N57: 49,800.48 | O57: 2,535.07 | P57: 302.96 | Q57: 5,056.61 | R57: 945,936.62 | S57: 1,294,181.06 | T57: 661.52 | U57: 88,562.90 | V57: 151,029.98 | W57: 1,190.58 | X57: 4,960.09 | Y57: 85,858.38 | Z57: 819,235.39 | AA57: 0.00 | AB57: 486.47 | AC57: 1,890.82 | AD57: 187.10 | AE57: 26,473.69 | AF57: 5,289.69 | AG57: 44,963.42 | AH57: 118.67 | AI57: 1,104,416.77 | AJ57: 16,483.00 | AK57: 76,156.90 | AL57: 1,347,306.18 | AM57: 251,327.37 | AN57: 116,978.06 | AO57: 477.19 | AP57: 251,715.22 | AQ57: 11,488.21 | AR57: 265,487.37 | AS57: 383,715.17 | AT57: 7,224.40 | AU57: 14,792.97 | AV57: 226,085.64 | AW57: 5,545.71 | AX57: 15,333.10 | AY57: 19,292,864.70 | AZ57: 436,744.15 | BA57: 1,744,087.06 | BB57: 28,476.63 | BC57: 0.00 | BD57: 160,284,704.67
A58: total | B58: 663,621,143.20 | C58: 288,514,924.12 | D58: 262,444,847.03 | E58: 387,381,990.69 | F58: 339,943.65 | G58: 7,583,293.09 | H58: 5,788,607.21 | I58: 174,812,613.35 | J58: 4,791,459,675.04 | K58: 246,949,079.20 | L58: 63,489,816.60 | M58: 11,359,345.51 | N58: 106,069,301.23 | O58: 48,490,020.64 | P58: 10,602,196.73 | Q58: 32,299,837.21 | R58: 769,358,347.60 | S58: 1,735,154,354.08 | T58: 12,404,276.38 | U58: 97,542,695.46 | V58: 2,911,536,325.57 | W58: 74,515,002.52 | X58: 97,642,993.11 | Y58: 473,634,270.04 | Z58: 3,139,978,028.65 | AA58: 2,169,503.67 | AB58: 1,094,655.89 | AC58: 25,184,662.86 | AD58: 60,719,009.60 | AE58: 1,191,588,331.93 | AF58: 15,253,793.32 | AG58: 580,637,211.46 | AH58: 23,322,008.78 | AI58: 1,597,886,242.01 | AJ58: 10,124,933.47 | AK58: 45,829,057.12 | AL58: 3,087,892,982.54 | AM58: 217,841,505.25 | AN58: 139,810,425.17 | AO58: 46,415,630.26 | AP58: 2,027,027,678.13 | AQ58: 29,337,015.16 | AR58: 118,192,195.48 | AS58: 797,236,641.35 | AT58: 23,243,909.19 | AU58: 62,866,420.81 | AV58: 91,621,228.39 | AW58: 70,036,165.73 | AX58: 657,845,525.46 | AY58: 821,383,818.98 | AZ58: 465,469,431.04 | BA58: 4,283,953,502.50 | BB58: 935,115,887.37 | BC58: 4,815,326,845.58 | BD58: 38,657,399,146.39
A60: TFM of the global PV product trade total value by region groups in 2017
A61: Unit: $
A62: Region groups | B62: Oceania | C62: Europe | D62: S Asia | E62: America | F62: East Asia | G62: ROW | H62: Total
A63: Oceania | B63: =B4+AJ4+B38+AJ38 -> 3,133,419.95 | C63: =SUM(C4,D4,G4,L4:U4,X4:Y4,AB4:AD4,AF4,AI4,AK4,AN4:AO4,AQ4,AT4:AW4,AZ4,AR4)+SUM(C38,D38,G38,L38:U38,X38:Y38,AB38:AD38,AF38,AI38,AK38,AN38:AO38,AQ38,AT38:AW38,AZ38,AR38) -> 1,995,133.64 | D63: =SUM(F4,H4,V4:W4,AA4,AE4,AH4,AM4,AS4,AX4,BB4,AY4)+SUM(F38,H38,V38:W38,AA38,AE38,AH38,AM38,AS38,AX38,BB38,AY38) -> 2,644,207.91 | E63: =SUM(E4,I4,AG4,BA4)+SUM(E38,I38,AG38,BA38) -> 4,396,158.84 | F63: =SUM(J4:K4,Z4,AL4,AP4)+SUM(J38:K38,Z38,AL38,AP38) -> 5,597,537.35 | G63: =BC4+BC38 -> 5,926,607.46 | H63: =SUM(B63:G63) -> 23,693,065.15
A64: Europe | B64: =B69-SUM(B65:B68,B63) -> 9,736,762.24 | C64: =C69-SUM(C65:C68,C63) -> 3,606,070,355.15 | D64: 748,006,385.26 | E64: 647,148,496.86 | F64: 1,757,167,048.38 | G64: 306,493,602.33 | H64: 7,074,622,650.22
A65: S Asia | B65: =B8+AJ8+B10+AJ10+B24+AJ24+B25+AJ25+B29+AJ29+B33+AJ33+B36+AJ36+B41+AJ41+B47+AJ47+B52+AJ52+B53+AJ53+B56+AJ56 -> 45,001,667.29 | C65: =SUM(C8,D8,G8,L8:U8,X8:Y8,AB8:AD8,AF8,AI8,AK8,AN8:AO8,AQ8,AT8:AW8,AZ8,AR8)+SUM(C10,D10,G10,L10:U10,X10:Y10,AB10:AD10,AF10,AI10,AK10,AN10:AO10,AQ10,AT10:AW10,AZ10,AR10)+SUM(C24,D24,G24,L24:U24,X24:Y24,AB24:AD24,AF24,AI24,AK24,AN24:AO24,AQ24,AT24:AW24,AZ24,AR24)+SUM(C25,D25,G25,L25:U25,X25:Y25,AB25:AD25,AF25,AI25,AK25,AN25:AO25,AQ25,AT25:AW25,AZ25,AR25)+SUM(C29,D29,G29,L29:U29,X29:Y29,AB29:AD29,AF29,AI29,AK29,AN29:AO29,AQ29,AT29:AW29,AZ29,AR29)+SUM(C33,D33,G33,L33:U33,X33:Y33,AB33:AD33,AF33,AI33,AK33,AN33:AO33,AQ33,AT33:AW33,AZ33,AR33)+SUM(C36,D36,G36,L36:U36,X36:Y36,AB36:AD36,AF36,AI36,AK36,AN36:AO36,AQ36,AT36:AW36,AZ36,AR36)+SUM(C41,D41,G41,L41:U41,X41:Y41,AB41:AD41,AF41,AI41,AK41,AN41:AO41,AQ41,AT41:AW41,AZ41,AR41)+SUM(C47,D47,G47,L47:U47,X47:Y47,AB47:AD47,AF47,AI47,AK47,AN47:AO47,AQ47,AT47:AW47,AZ47,AR47)+SUM(C52,D52,G52,L52:U52,X52:Y52,AB52:AD52,AF52,AI52,AK52,AN52:AO52,AQ52,AT52:AW52,AZ52,AR52)+SUM(C53,D53,G53,L53:U53,X53:Y53,AB53:AD53,AF53,AI53,AK53,AN53:AO53,AQ53,AT53:AW53,AZ53,AR53)+SUM(C56,D56,G56,L56:U56,X56:Y56,AB56:AD56,AF56,AI56,AK56,AN56:AO56,AQ56,AT56:AW56,AZ56,AR56) -> 1,192,934,841.27 | D65: =SUM(F8,H8,V8:W8,AA8,AE8,AH8,AM8,AS8,AX8,BB8,AY8)+SUM(F10,H10,V10:W10,AA10,AE10,AH10,AM10,AS10,AX10,BB10,AY10)+SUM(F24,H24,V24:W24,AA24,AE24,AH24,AM24,AS24,AX24,BB24,AY24)+SUM(F25,H25,V25:W25,AA25,AE25,AH25,AM25,AS25,AX25,BB25,AY25)+SUM(F29,H29,V29:W29,AA29,AE29,AH29,AM29,AS29,AX29,BB29,AY29)+SUM(F33,H33,V33:W33,AA33,AE33,AH33,AM33,AS33,AX33,BB33,AY33)+SUM(F36,H36,V36:W36,AA36,AE36,AH36,AM36,AS36,AX36,BB36,AY36)+SUM(F41,H41,V41:W41,AA41,AE41,AH41,AM41,AS41,AX41,BB41,AY41)+SUM(F47,H47,V47:W47,AA47,AE47,AH47,AM47,AS47,AX47,BB47,AY47)+SUM(F52,H52,V52:W52,AA52,AE52,AH52,AM52,AS52,AX52,BB52,AY52)+SUM(F53,H53,V53:W53,AA53,AE53,AH53,AM53,AS53,AX53,BB53,AY53)+SUM(F56,H56,V56:W56,AA56,AE56,AH56,AM56,AS56,AX56,BB56,AY56) -> 744,750,749.58 | E65: =SUM(E8,I8,AG8,BA8)+SUM(E10,I10,AG10,BA10)+SUM(E24,I24,AG24,BA24)+SUM(E25,I25,AG25,BA25)+SUM(E29,I29,AG29,BA29)+SUM(E33,I33,AG33,BA33)+SUM(E36,I36,AG36,BA36)+SUM(E41,I41,AG41,BA41)+SUM(E47,I47,AG47,BA47)+SUM(E52,I52,AG52,BA52)+SUM(E53,I53,AG53,BA53)+SUM(E56,I56,AG56,BA56) -> 1,449,957,594.49 | F65: =SUM(J8:K8,Z8,AL8,AP8)+SUM(J10:K10,Z10,AL10,AP10)+SUM(J24:K24,Z24,AL24,AP24)+SUM(J25:K25,Z25,AL25,AP25)+SUM(J29:K29,Z29,AL29,AP29)+SUM(J33:K33,Z33,AL33,AP33)+SUM(J36:K36,Z36,AL36,AP36)+SUM(J41:K41,Z41,AL41,AP41)+SUM(J47:K47,Z47,AL47,AP47)+SUM(J52:K52,Z52,AL52,AP52)+SUM(J53:K53,Z53,AL53,AP53)+SUM(J56:K56,Z56,AL56,AP56) -> 1,496,532,102.77 | G65: =BC8+BC10+BC24+BC25+BC29+BC33+BC36+BC41+BC47+BC52+BC53+BC56 -> 70,446,815.75 | H65: =SUM(B65:G65) -> 4,999,623,771.15
A66: America | B66: =B7+AJ7+B11+AJ11+B35+AJ35+B55+AJ55 -> 1,660,114.60 | C66: =SUM(C7,D7,G7,L7:U7,X7:Y7,AB7:AD7,AF7,AI7,AK7,AN7:AO7,AQ7,AT7:AW7,AZ7,AR7)+SUM(C11,D11,G11,L11:U11,X11:Y11,AB11:AD11,AF11,AI11,AK11,AN11:AO11,AQ11,AT11:AW11,AZ11,AR11)+SUM(C35,D35,G35,L35:U35,X35:Y35,AB35:AD35,AF35,AI35,AK35,AN35:AO35,AQ35,AT35:AW35,AZ35,AR35)+SUM(C55,D55,G55,L55:U55,X55:Y55,AB55:AD55,AF55,AI55,AK55,AN55:AO55,AQ55,AT55:AW55,AZ55,AR55) -> 353,351,798.28 | D66: =SUM(F7,H7,V7:W7,AA7,AE7,AH7,AM7,AS7,AX7,BB7,AY7)+SUM(F11,H11,V11:W11,AA11,AE11,AH11,AM11,AS11,AX11,BB11,AY11)+SUM(F35,H35,V35:W35,AA35,AE35,AH35,AM35,AS35,AX35,BB35,AY35)+SUM(F55,H55,V55:W55,AA55,AE55,AH55,AM55,AS55,AX55,BB55,AY55) -> 241,476,716.24 | E66: =SUM(E7,I7,AG7,BA7)+SUM(E11,I11,AG11,BA11)+SUM(E35,I35,AG35,BA35)+SUM(E55,I55,AG55,BA55) -> 179,699,012.27 | F66: =SUM(J7:K7,Z7,AL7,AP7)+SUM(J11:K11,Z11,AL11,AP11)+SUM(J35:K35,Z35,AL35,AP35)+SUM(J55:K55,Z55,AL55,AP55) -> 1,651,987,619.21 | G66: =BC7+BC11+BC35+BC55 -> 35,579,558.37 | H66: =SUM(B66:G66) -> 2,463,754,818.98
A67: East Asia | B67: =B12+AJ12+B13+AJ13+B28+AJ28+B40+AJ40+B44+AJ44 -> 614,126,546.72 | C67: =SUM(C12,D12,G12,L12:U12,X12:Y12,AB12:AD12,AF12,AI12,AK12,AN12:AO12,AQ12,AT12:AW12,AZ12,AR12)+SUM(C13,D13,G13,L13:U13,X13:Y13,AB13:AD13,AF13,AI13,AK13,AN13:AO13,AQ13,AT13:AW13,AZ13,AR13)+SUM(C28,D28,G28,L28:U28,X28:Y28,AB28:AD28,AF28,AI28,AK28,AN28:AO28,AQ28,AT28:AW28,AZ28,AR28)+SUM(C40,D40,G40,L40:U40,X40:Y40,AB40:AD40,AF40,AI40,AK40,AN40:AO40,AQ40,AT40:AW40,AZ40,AR40)+SUM(C44,D44,G44,L44:U44,X44:Y44,AB44:AD44,AF44,AI44,AK44,AN44:AO44,AQ44,AT44:AW44,AZ44,AR44) -> 1,650,279,474.27 | D67: =SUM(F12,H12,V12:W12,AA12,AE12,AH12,AM12,AS12,AX12,BB12,AY12)+SUM(F13,H13,V13:W13,AA13,AE13,AH13,AM13,AS13,AX13,BB13,AY13)+SUM(F28,H28,V28:W28,AA28,AE28,AH28,AM28,AS28,AX28,BB28,AY28)+SUM(F40,H40,V40:W40,AA40,AE40,AH40,AM40,AS40,AX40,BB40,AY40)+SUM(F44,H44,V44:W44,AA44,AE44,AH44,AM44,AS44,AX44,BB44,AY44) -> 5,881,654,512.86 | E67: =SUM(E12,I12,AG12,BA12)+SUM(E13,I13,AG13,BA13)+SUM(E28,I28,AG28,BA28)+SUM(E40,I40,AG40,BA40)+SUM(E44,I44,AG44,BA44) -> 3,143,268,208.31 | F67: =SUM(J12:K12,Z12,AL12,AP12)+SUM(J13:K13,Z13,AL13,AP13)+SUM(J28:K28,Z28,AL28,AP28)+SUM(J40:K40,Z40,AL40,AP40)+SUM(J44:K44,Z44,AL44,AP44) -> 8,249,211,132.39 | G67: =BC12+BC13+BC28+BC40+BC44 -> 4,396,880,261.68 | H67: =SUM(B67:G67) -> 23,935,420,136.23
A68: ROW | B68: =B57+AJ57 -> 87,565.86 | C68: =SUM(C57,D57,G57,L57:U57,X57:Y57,AB57:AD57,AF57,AI57,AK57,AN57:AO57,AQ57,AT57:AW57,AZ57,AR57) -> 4,918,758.25 | D68: =SUM(F57,H57,V57:W57,AA57,AE57,AH57,AM57,AS57,AX57,BB57,AY57) -> 20,150,529.88 | E68: =SUM(E57,I57,AG57,BA57) -> 2,315,847.22 | F68: =SUM(J57:K57,Z57,AL57,AP57) -> 132,812,003.46 | G68: =BC57 -> 0.00 | H68: =SUM(B68:G68) -> 160,284,704.67
A69: Total | B69: =B58+AJ58 -> 673,746,076.66 | C69: =SUM(C58,D58,G58,L58:U58,X58:Y58,AB58:AD58,AF58,AI58,AK58,AN58:AO58,AQ58,AT58:AW58,AZ58,AR58) -> 6,809,550,360.85 | D69: =SUM(F58,H58,V58:W58,AA58,AE58,AH58,AM58,AS58,AX58,BB58,AY58) -> 7,638,683,101.74 | E69: =SUM(E58,I58,AG58,BA58) -> 5,426,785,317.99 | F69: =SUM(J58:K58,Z58,AL58,AP58) -> 13,293,307,443.56 | G69: =BC58 -> 4,815,326,845.58 | H69: =SUM(B69:G69) -> 38,657,399,146.39

Sheet Data 5
A1: TFM of the global PV silicon trade in 2014
A2: Unit: $
A3: Country/Economy | B3: Australia | C3: Austria | D3: Belgium | E3: Brazil | F3: Brunei | G3: Bulgaria | H3: Cambodia | I3: Canada | J3: China | K3: Hong Kong | L3: Croatia | M3: Cyprus | N3: Czechia | O3: Denmark | P3: Estonia | Q3: Finland | R3: France | S3: Germany | T3: Greece | U3: Hungary | V3: India | W3: Indonesia | X3: Ireland | Y3: Italy | Z3: Japan | AA3: Lao PDR | AB3: Latvia | AC3: Lithuania | AD3: Luxembourg | AE3: Malaysia | AF3: Malta | AG3: Mexico | AH3: Myanmar | AI3: Netherlands | AJ3: New Zealand | AK3: Norway | AL3: Taiwan | AM3: Philippines | AN3: Poland | AO3: Portugal | AP3: Korea | AQ3: Romania | AR3: Russian Federation | AS3: Singapore | AT3: Slovakia | AU3: Slovenia | AV3: Spain | AW3: Sweden | AX3: Thailand | AY3: Turkey | AZ3: United Kingdom | BA3: USA | BB3: Vietnam | BC3: ROW | BD3: total
A4: Australia | B4: 0.00 | C4: 0.00 | D4: 101,089.45 | E4: 690.61 | F4: 0.00 | G4: 0.00 | H4: 0.00 | I4: 0.00 | J4: 689,099.33 | K4: 16.11 | L4: 0.00 | M4: 0.00 | N4: 0.00 | O4: 591,921.75 | P4: 0.00 | Q4: 8,946.40 | R4: 0.00 | S4: 0.17 | T4: 0.00 | U4: 0.00 | V4: 0.00 | W4: 0.01 | X4: 0.00 | Y4: 0.11 | Z4: 29.57 | AA4: 0.00 | AB4: 0.00 | AC4: 0.00 | AD4: 0.00 | AE4: 6,706.79 | AF4: 0.00 | AG4: 0.00 | AH4: 0.00 | AI4: 153,253.17 | AJ4: 508,579.56 | AK4: 0.37 | AL4: 1,672.29 | AM4: 5,435.88 | AN4: 118,508.77 | AO4: 0.00 | AP4: 70.39 | AQ4: 0.00 | AR4: 0.00 | AS4: 12.65 | AT4: 0.00 | AU4: 0.00 | AV4: 0.00 | AW4: 0.00 | AX4: 12,009.19 | AY4: 0.00 | AZ4: 0.00 | BA4: 3.14 | BB4: 0.00 | BC4: 49,303.99 | BD4: 2,247,349.71
A5: Austria | B5: 0.00 | C5: 0.00 | D5: 0.00 | E5: 0.00 | F5: 0.00 | G5: 0.00 | H5: 0.00 | I5: 0.00 | J5: 0.00 | K5: 0.00 | L5: 0.00 | M5: 0.00 | N5: 0.00 | O5: 0.00 | P5: 0.00 | Q5: 0.00 | R5: 3,010.87 | S5: 485,486.95 | T5: 0.00 | U5: 0.00 | V5: 0.00 | W5: 0.00 | X5: 0.00 | Y5: 0.00 | Z5: 0.00 | AA5: 0.00 | AB5: 0.00 | AC5: 15,511.67 | AD5: 0.00 | AE5: 0.00 | AF5: 0.00 | AG5: 0.00 | AH5: 0.00 | AI5: 27,506.96 | AJ5: 0.00 | AK5: 0.00 | AL5: 0.00 | AM5: 0.00 | AN5: 0.00 | AO5: 0.00 | AP5: 0.00 | AQ5: 10,038.71 | AR5: 0.00 | AS5: 0.00 | AT5: 5,073.74 | AU5: 0.00 | AV5: 0.00 | AW5: 0.00 | AX5: 0.00 | AY5: 0.00 | AZ5: 0.00 | BA5: 0.00 | BB5: 0.00 | BC5: 0.00 | BD5: 546,628.90
A6: Belgium | B6: 0.00 | C6: 0.00 | D6: 0.00 | E6: 0.00 | F6: 0.00 | G6: 0.00 | H6: 0.00 | I6: 0.00 | J6: 2,763,691.97 | K6: 0.00 | L6: 0.00 | M6: 0.00 | N6: 0.00 | O6: 0.00 | P6: 0.00 | Q6: 0.00 | R6: 18,485.47 | S6: 0.00 | T6: 0.00 | U6: 0.00 | V6: 0.00 | W6: 0.00 | X6: 0.00 | Y6: 0.00 | Z6: 4,281,754.55 | AA6: 0.00 | AB6: 0.00 | AC6: 0.00 | AD6: 0.00 | AE6: 0.00 | AF6: 0.00 | AG6: 0.00 | AH6: 0.00 | AI6: 0.00 | AJ6: 0.00 | AK6: 0.00 | AL6: 0.00 | AM6: 0.00 | AN6: 0.00 | AO6: 0.00 | AP6: 0.00 | AQ6: 4,217.20 | AR6: 0.00 | AS6: 0.00 | AT6: 0.00 | AU6: 0.00 | AV6: 0.00 | AW6: 0.00 | AX6: 0.00 | AY6: 0.00 | AZ6: 0.00 | BA6: 0.00 | BB6: 0.00 | BC6: 5,611.39 | BD6: 7,073,760.58
A7: Brazil | B7: 0.00 | C7: 0.00 | D7: 0.00 | E7: 0.00 | F7: 0.00 | G7: 0.00 | H7: 0.00 | I7: 0.00 | J7: 0.00 | K7: 0.00 | L7: 0.00 | M7: 0.00 | N7: 0.00 | O7: 0.00 | P7: 0.00 | Q7: 0.00 | R7: 0.00 | S7: 0.00 | T7: 0.00 | U7: 0.00 | V7: 0.00 | W7: 0.00 | X7: 0.00 | Y7: 0.00 | Z7: 0.00 | AA7: 0.00 | AB7: 0.00 | AC7: 0.00 | AD7: 0.00 | AE7: 0.00 | AF7: 0.00 | AG7: 0.00 | AH7: 0.00 | AI7: 0.00 | AJ7: 0.00 | AK7: 0.00 | AL7: 0.00 | AM7: 0.00 | AN7: 0.00 | AO7: 0.00 | AP7: 0.00 | AQ7: 0.00 | AR7: 0.00 | AS7: 0.00 | AT7: 0.00 | AU7: 0.00 | AV7: 0.00 | AW7: 0.00 | AX7: 0.00 | AY7: 0.00 | AZ7: 0.00 | BA7: 0.00 | BB7: 0.00 | BC7: 0.00 | BD7: 0.00
A8: Brunei | B8: 0.00 | C8: 0.00 | D8: 0.00 | E8: 0.00 | F8: 0.00 | G8: 0.00 | H8: 0.00 | I8: 0.00 | J8: 0.00 | K8: 0.00 | L8: 0.00 | M8: 0.00 | N8: 0.00 | O8: 0.00 | P8: 0.00 | Q8: 0.00 | R8: 0.00 | S8: 0.00 | T8: 0.00 | U8: 0.00 | V8: 0.00 | W8: 0.00 | X8: 0.00 | Y8: 0.00 | Z8: 0.00 | AA8: 0.00 | AB8: 0.00 | AC8: 0.00 | AD8: 0.00 | AE8: 0.00 | AF8: 0.00 | AG8: 0.00 | AH8: 0.00 | AI8: 0.00 | AJ8: 0.00 | AK8: 0.00 | AL8: 0.00 | AM8: 0.00 | AN8: 0.00 | AO8: 0.00 | AP8: 0.00 | AQ8: 0.00 | AR8: 0.00 | AS8: 0.00 | AT8: 0.00 | AU8: 0.00 | AV8: 0.00 | AW8: 0.00 | AX8: 0.00 | AY8: 0.00 | AZ8: 0.00 | BA8: 0.00 | BB8: 0.00 | BC8: 0.00 | BD8: 0.00
A9: Bulgaria | B9: 0.00 | C9: 0.00 | D9: 0.00 | E9: 0.00 | F9: 0.00 | G9: 0.00 | H9: 0.00 | I9: 2.81 | J9: 10.21 | K9: 0.00 | L9: 0.00 | M9: 0.00 | N9: 0.00 | O9: 288.24 | P9: 0.00 | Q9: 131.58 | R9: 0.00 | S9: 47.76 | T9: 0.00 | U9: 0.00 | V9: 0.00 | W9: 0.00 | X9: 0.00 | Y9: 0.00 | Z9: 7,089.26 | AA9: 0.00 | AB9: 0.00 | AC9: 0.00 | AD9: 0.00 | AE9: 0.00 | AF9: 0.00 | AG9: 75.79 | AH9: 0.00 | AI9: 0.00 | AJ9: 0.00 | AK9: 0.00 | AL9: 3.55 | AM9: 0.00 | AN9: 0.00 | AO9: 0.00 | AP9: 30,177.93 | AQ9: 0.00 | AR9: 0.00 | AS9: 3.25 | AT9: 0.00 | AU9: 0.00 | AV9: 0.00 | AW9: 0.00 | AX9: 0.00 | AY9: 0.00 | AZ9: 0.00 | BA9: 78,183.78 | BB9: 0.00 | BC9: 3.76 | BD9: 116,017.91
A10: Cambodia | B10: 0.00 | C10: 0.00 | D10: 0.00 | E10: 0.00 | F10: 0.00 | G10: 0.00 | H10: 0.00 | I10: 0.00 | J10: 0.00 | K10: 0.00 | L10: 0.00 | M10: 0.00 | N10: 0.00 | O10: 0.00 | P10: 0.00 | Q10: 0.00 | R10: 0.00 | S10: 0.00 | T10: 0.00 | U10: 0.00 | V10: 0.00 | W10: 0.00 | X10: 0.00 | Y10: 0.00 | Z10: 0.00 | AA10: 0.00 | AB10: 0.00 | AC10: 0.00 | AD10: 0.00 | AE10: 0.00 | AF10: 0.00 | AG10: 0.00 | AH10: 0.00 | AI10: 0.00 | AJ10: 0.00 | AK10: 0.00 | AL10: 0.00 | AM10: 0.00 | AN10: 0.00 | AO10: 0.00 | AP10: 0.00 | AQ10: 0.00 | AR10: 0.00 | AS10: 0.00 | AT10: 0.00 | AU10: 0.00 | AV10: 0.00 | AW10: 0.00 | AX10: 0.00 | AY10: 0.00 | AZ10: 0.00 | BA10: 0.00 | BB10: 0.00 | BC10: 0.00 | BD10: 0.00
A11: Canada | B11: 0.00 | C11: 0.00 | D11: 0.00 | E11: 0.00 | F11: 0.00 | G11: 0.00 | H11: 0.00 | I11: 0.00 | J11: 2,013.43 | K11: 6,061.60 | L11: 0.00 | M11: 0.00 | N11: 0.00 | O11: 0.00 | P11: 0.00 | Q11: 0.00 | R11: 0.00 | S11: 1,847.50 | T11: 0.00 | U11: 0.00 | V11: 0.00 | W11: 0.00 | X11: 0.00 | Y11: 0.00 | Z11: 0.00 | AA11: 0.00 | AB11: 0.00 | AC11: 0.00 | AD11: 0.00 | AE11: 0.00 | AF11: 0.00 | AG11: 0.00 | AH11: 0.00 | AI11: 0.00 | AJ11: 0.00 | AK11: 0.00 | AL11: 0.00 | AM11: 0.00 | AN11: 0.00 | AO11: 0.00 | AP11: 0.00 | AQ11: 0.00 | AR11: 0.00 | AS11: 0.00 | AT11: 0.00 | AU11: 0.00 | AV11: 0.00 | AW11: 2,358.27 | AX11: 0.00 | AY11: 0.00 | AZ11: 110.31 | BA11: 9,722.30 | BB11: 0.00 | BC11: 1,058.63 | BD11: 23,172.03
A12: China | B12: 1,749,382.11 | C12: 37,770.31 | D12: 2,313,544.14 | E12: 0.00 | F12: 0.00 | G12: 0.00 | H12: 0.00 | I12: 3,549.73 | J12: 0.00 | K12: 6,808,622.32 | L12: 0.00 | M12: 0.00 | N12: 591,005.88 | O12: 4,405.17 | P12: 0.00 | Q12: 2,010.92 | R12: 11,000.28 | S12: 16,802,775.13 | T12: 0.00 | U12: 0.00 | V12: 283,012.64 | W12: 421,008.43 | X12: 0.00 | Y12: 311,933.23 | Z12: 75,811,337.12 | AA12: 0.00 | AB12: 0.00 | AC12: 287,436.25 | AD12: 0.00 | AE12: 3,013,342.78 | AF12: 0.00 | AG12: 1,395.42 | AH12: 0.00 | AI12: 19,544.26 | AJ12: 0.00 | AK12: 24,493.08 | AL12: 18,016,786.16 | AM12: 603.73 | AN12: 36,081.50 | AO12: 0.00 | AP12: 12,011,983.18 | AQ12: 0.00 | AR12: 1,989,819.86 | AS12: 446,471.55 | AT12: 0.00 | AU12: 0.00 | AV12: 1,977.27 | AW12: 1,668.59 | AX12: 0.00 | AY12: 4,851.88 | AZ12: 34,929.07 | BA12: 1,350,858.38 | BB12: 0.00 | BC12: 1,482,153.33 | BD12: 143,875,753.70
A13: Hong Kong | B13: 0.00 | C13: 0.00 | D13: 0.00 | E13: 0.00 | F13: 0.00 | G13: 0.00 | H13: 0.00 | I13: 0.00 | J13: 0.00 | K13: 0.00 | L13: 0.00 | M13: 0.00 | N13: 0.00 | O13: 0.00 | P13: 0.00 | Q13: 0.00 | R13: 0.00 | S13: 0.00 | T13: 0.00 | U13: 0.00 | V13: 0.00 | W13: 0.00 | X13: 0.00 | Y13: 0.00 | Z13: 0.00 | AA13: 0.00 | AB13: 0.00 | AC13: 0.00 | AD13: 0.00 | AE13: 0.00 | AF13: 0.00 | AG13: 0.00 | AH13: 0.00 | AI13: 0.00 | AJ13: 0.00 | AK13: 0.00 | AL13: 0.00 | AM13: 0.00 | AN13: 0.00 | AO13: 0.00 | AP13: 0.00 | AQ13: 0.00 | AR13: 0.00 | AS13: 0.00 | AT13: 0.00 | AU13: 0.00 | AV13: 0.00 | AW13: 0.00 | AX13: 0.00 | AY13: 0.00 | AZ13: 0.00 | BA13: 0.00 | BB13: 0.00 | BC13: 0.00 | BD13: 0.00
A14: Croatia | B14: 0.00 | C14: 0.00 | D14: 0.00 | E14: 0.00 | F14: 0.00 | G14: 0.00 | H14: 0.00 | I14: 0.00 | J14: 0.00 | K14: 0.00 | L14: 0.00 | M14: 0.00 | N14: 0.00 | O14: 0.00 | P14: 0.00 | Q14: 0.00 | R14: 0.00 | S14: 0.00 | T14: 0.00 | U14: 0.00 | V14: 0.00 | W14: 0.00 | X14: 0.00 | Y14: 0.00 | Z14: 0.00 | AA14: 0.00 | AB14: 0.00 | AC14: 0.00 | AD14: 0.00 | AE14: 0.00 | AF14: 0.00 | AG14: 0.00 | AH14: 0.00 | AI14: 0.00 | AJ14: 0.00 | AK14: 0.00 | AL14: 0.00 | AM14: 0.00 | AN14: 0.00 | AO14: 0.00 | AP14: 0.00 | AQ14: 0.00 | AR14: 0.00 | AS14: 0.00 | AT14: 0.00 | AU14: 0.00 | AV14: 0.00 | AW14: 0.00 | AX14: 0.00 | AY14: 0.00 | AZ14: 0.00 | BA14: 0.00 | BB14: 0.00 | BC14: 0.00 | BD14: 0.00
A15: Cyprus | B15: 0.00 | C15: 0.00 | D15: 0.00 | E15: 0.00 | F15: 0.00 | G15: 0.00 | H15: 0.00 | I15: 0.00 | J15: 0.00 | K15: 0.00 | L15: 0.00 | M15: 0.00 | N15: 0.00 | O15: 0.00 | P15: 0.00 | Q15: 0.00 | R15: 0.00 | S15: 0.00 | T15: 0.00 | U15: 0.00 | V15: 0.00 | W15: 0.00 | X15: 0.00 | Y15: 0.00 | Z15: 0.00 | AA15: 0.00 | AB15: 0.00 | AC15: 0.00 | AD15: 0.00 | AE15: 0.00 | AF15: 0.00 | AG15: 0.00 | AH15: 0.00 | AI15: 0.00 | AJ15: 0.00 | AK15: 0.00 | AL15: 0.00 | AM15: 0.00 | AN15: 0.00 | AO15: 0.00 | AP15: 0.00 | AQ15: 0.00 | AR15: 0.00 | AS15: 0.00 | AT15: 0.00 | AU15: 0.00 | AV15: 0.00 | AW15: 0.00 | AX15: 0.00 | AY15: 0.00 | AZ15: 0.00 | BA15: 0.00 | BB15: 0.00 | BC15: 177.98 | BD15: 177.98
A16: Czechia | B16: 0.00 | C16: 0.00 | D16: 0.00 | E16: 0.00 | F16: 0.00 | G16: 0.00 | H16: 0.00 | I16: 0.00 | J16: 283,889.60 | K16: 3,694.37 | L16: 0.00 | M16: 0.00 | N16: 0.00 | O16: 0.00 | P16: 0.00 | Q16: 0.00 | R16: 0.67 | S16: 0.00 | T16: 0.00 | U16: 745,466.30 | V16: 0.00 | W16: 0.00 | X16: 0.00 | Y16: 0.00 | Z16: 992.50 | AA16: 0.00 | AB16: 67,556.74 | AC16: 59,311.45 | AD16: 0.00 | AE16: 0.00 | AF16: 0.00 | AG16: 0.00 | AH16: 0.00 | AI16: 0.00 | AJ16: 0.00 | AK16: 0.00 | AL16: 304.79 | AM16: 0.17 | AN16: 133,899.73 | AO16: 0.00 | AP16: 0.00 | AQ16: 0.00 | AR16: 375,408.45 | AS16: 0.00 | AT16: 0.00 | AU16: 0.00 | AV16: 0.00 | AW16: 0.00 | AX16: 0.00 | AY16: 0.00 | AZ16: 78,853.68 | BA16: 1.79 | BB16: 0.00 | BC16: 13,100.38 | BD16: 1,762,480.63
A17: Denmark | B17: 0.00 | C17: 0.00 | D17: 0.00 | E17: 0.00 | F17: 0.00 | G17: 0.00 | H17: 0.00 | I17: 0.00 | J17: 0.00 | K17: 0.00 | L17: 0.00 | M17: 0.00 | N17: 0.00 | O17: 0.00 | P17: 0.00 | Q17: 0.00 | R17: 0.00 | S17: 0.00 | T17: 0.00 | U17: 0.00 | V17: 0.00 | W17: 0.00 | X17: 0.00 | Y17: 0.00 | Z17: 0.00 | AA17: 0.00 | AB17: 0.00 | AC17: 0.00 | AD17: 0.00 | AE17: 0.00 | AF17: 0.00 | AG17: 0.00 | AH17: 0.00 | AI17: 0.00 | AJ17: 0.00 | AK17: 0.00 | AL17: 0.00 | AM17: 0.00 | AN17: 0.00 | AO17: 0.00 | AP17: 0.00 | AQ17: 0.00 | AR17: 0.00 | AS17: 0.00 | AT17: 0.00 | AU17: 0.00 | AV17: 0.00 | AW17: 0.00 | AX17: 0.00 | AY17: 0.00 | AZ17: 0.00 | BA17: 0.00 | BB17: 0.00 | BC17: 0.00 | BD17: 0.00
A18: Estonia | B18: 0.00 | C18: 0.00 | D18: 0.00 | E18: 0.00 | F18: 0.00 | G18: 0.00 | H18: 0.00 | I18: 0.00 | J18: 0.00 | K18: 0.00 | L18: 0.00 | M18: 0.00 | N18: 0.00 | O18: 0.00 | P18: 0.00 | Q18: 0.00 | R18: 0.00 | S18: 0.00 | T18: 0.00 | U18: 0.00 | V18: 0.00 | W18: 0.00 | X18: 0.00 | Y18: 0.00 | Z18: 0.00 | AA18: 0.00 | AB18: 0.00 | AC18: 0.00 | AD18: 0.00 | AE18: 0.00 | AF18: 0.00 | AG18: 0.00 | AH18: 0.00 | AI18: 0.00 | AJ18: 0.00 | AK18: 0.00 | AL18: 0.00 | AM18: 0.00 | AN18: 0.00 | AO18: 0.00 | AP18: 0.00 | AQ18: 0.00 | AR18: 0.00 | AS18: 0.00 | AT18: 0.00 | AU18: 0.00 | AV18: 0.00 | AW18: 0.00 | AX18: 0.00 | AY18: 0.00 | AZ18: 0.00 | BA18: 0.00 | BB18: 0.00 | BC18: 0.00 | BD18: 0.00
A19: Finland | B19: 0.00 | C19: 0.00 | D19: 0.00 | E19: 0.00 | F19: 0.00 | G19: 0.00 | H19: 0.00 | I19: 0.00 | J19: 0.00 | K19: 0.00 | L19: 0.00 | M19: 0.00 | N19: 0.00 | O19: 0.00 | P19: 0.00 | Q19: 0.00 | R19: 0.00 | S19: 0.00 | T19: 0.00 | U19: 0.00 | V19: 0.00 | W19: 0.00 | X19: 0.00 | Y19: 0.00 | Z19: 0.00 | AA19: 0.00 | AB19: 0.00 | AC19: 0.00 | AD19: 0.00 | AE19: 0.00 | AF19: 0.00 | AG19: 0.00 | AH19: 0.00 | AI19: 0.00 | AJ19: 0.00 | AK19: 0.00 | AL19: 0.00 | AM19: 0.00 | AN19: 0.00 | AO19: 0.00 | AP19: 0.00 | AQ19: 0.00 | AR19: 0.00 | AS19: 0.00 | AT19: 0.00 | AU19: 0.00 | AV19: 0.00 | AW19: 0.00 | AX19: 0.00 | AY19: 0.00 | AZ19: 0.00 | BA19: 0.00 | BB19: 0.00 | BC19: 0.00 | BD19: 0.00
A20: France | B20: 18,858.73 | C20: 23,188.41 | D20: 0.00 | E20: 0.00 | F20: 0.00 | G20: 0.00 | H20: 0.00 | I20: 279.24 | J20: 67,614.98 | K20: 54.99 | L20: 0.00 | M20: 0.00 | N20: 0.00 | O20: 117.26 | P20: 0.00 | Q20: 53.53 | R20: 0.00 | S20: 48,228.56 | T20: 0.00 | U20: 3,206.16 | V20: 24,452.82 | W20: 0.05 | X20: 0.00 | Y20: 80,015.88 | Z20: 10,598.73 | AA20: 0.00 | AB20: 0.00 | AC20: 0.00 | AD20: 0.00 | AE20: 0.00 | AF20: 0.00 | AG20: 2,646.45 | AH20: 0.00 | AI20: 5,543.26 | AJ20: 0.00 | AK20: 1.28 | AL20: 5,710.48 | AM20: 0.00 | AN20: 1,959.20 | AO20: 0.00 | AP20: 240.30 | AQ20: 0.00 | AR20: 224.80 | AS20: 4,804.31 | AT20: 0.00 | AU20: 0.00 | AV20: 18,972.45 | AW20: 0.00 | AX20: 11,955.73 | AY20: 12,461.25 | AZ20: 924,495.73 | BA20: 41,331.49 | BB20: 1,598.13 | BC20: 42,895.98 | BD20: 1,351,510.18
A21: Germany | B21: 13,620.61 | C21: 7,409.76 | D21: 11,186.94 | E21: 8,810.14 | F21: 0.00 | G21: 10,461.42 | H21: 0.00 | I21: 1,908.68 | J21: 703,247,025.79 | K21: 9,849,268.94 | L21: 0.00 | M21: 3,732.69 | N21: 20,746,936.01 | O21: 4,705,734.78 | P21: 0.00 | Q21: 9,714,344.73 | R21: 279,562.80 | S21: 0.00 | T21: 521.59 | U21: 1,090.14 | V21: 153,369.04 | W21: 1,048.84 | X21: 0.00 | Y21: 313,418.66 | Z21: 187,360,048.58 | AA21: 0.00 | AB21: 17,272.96 | AC21: 0.00 | AD21: 0.00 | AE21: 3,879,247.02 | AF21: 181,927.83 | AG21: 51,517.05 | AH21: 0.00 | AI21: 447,137.89 | AJ21: 0.00 | AK21: 29,103,151.73 | AL21: 121,252,047.27 | AM21: 401.80 | AN21: 124,222.93 | AO21: 262.03 | AP21: 114,441,037.07 | AQ21: 0.00 | AR21: 2,262,281.77 | AS21: 90,692,466.24 | AT21: 123.60 | AU21: 0.00 | AV21: 4,643.61 | AW21: 120,043.05 | AX21: 98,279.74 | AY21: 2,965.14 | AZ21: 74,167,864.66 | BA21: 53,372,593.11 | BB21: 0.00 | BC21: 5,492,181.12 | BD21: 1,432,141,167.74
A22: Greece | B22: 0.00 | C22: 0.00 | D22: 0.00 | E22: 0.00 | F22: 0.00 | G22: 0.00 | H22: 0.00 | I22: 0.00 | J22: 0.00 | K22: 0.00 | L22: 0.00 | M22: 0.00 | N22: 0.00 | O22: 0.00 | P22: 0.00 | Q22: 0.00 | R22: 0.00 | S22: 34,192.42 | T22: 0.00 | U22: 0.00 | V22: 0.00 | W22: 0.00 | X22: 0.00 | Y22: 0.00 | Z22: 0.00 | AA22: 0.00 | AB22: 0.00 | AC22: 0.00 | AD22: 0.00 | AE22: 0.00 | AF22: 0.00 | AG22: 0.00 | AH22: 0.00 | AI22: 0.00 | AJ22: 0.00 | AK22: 0.00 | AL22: 0.00 | AM22: 0.00 | AN22: 0.00 | AO22: 0.00 | AP22: 0.00 | AQ22: 0.00 | AR22: 0.00 | AS22: 0.00 | AT22: 0.00 | AU22: 0.00 | AV22: 0.00 | AW22: 0.00 | AX22: 0.00 | AY22: 0.00 | AZ22: 0.00 | BA22: 0.00 | BB22: 0.00 | BC22: 0.00 | BD22: 34,192.42
A23: Hungary | B23: 0.00 | C23: 0.00 | D23: 0.00 | E23: 0.00 | F23: 0.00 | G23: 0.00 | H23: 0.00 | I23: 0.25 | J23: 10,974.15 | K23: 26.36 | L23: 0.00 | M23: 0.00 | N23: 1,418.92 | O23: 25.51 | P23: 0.00 | Q23: 11.64 | R23: 4,587.99 | S23: 8,628.01 | T23: 0.00 | U23: 0.00 | V23: 0.00 | W23: 0.02 | X23: 0.00 | Y23: 6,622.61 | Z23: 8,715.89 | AA23: 0.00 | AB23: 0.00 | AC23: 0.00 | AD23: 0.00 | AE23: 5,103.40 | AF23: 0.00 | AG23: 6.71 | AH23: 0.00 | AI23: 1,488.13 | AJ23: 0.00 | AK23: 0.61 | AL23: 2,736.80 | AM23: 0.00 | AN23: 1.85 | AO23: 0.00 | AP23: 196.75 | AQ23: 0.00 | AR23: 0.00 | AS23: 1,145.74 | AT23: 0.00 | AU23: 0.00 | AV23: 0.00 | AW23: 0.00 | AX23: 0.00 | AY23: 0.00 | AZ23: 0.00 | BA23: 6,924.21 | BB23: 0.00 | BC23: 0.40 | BD23: 58,615.95
A24: India | B24: 0.00 | C24: 0.00 | D24: 0.00 | E24: 0.00 | F24: 0.00 | G24: 0.00 | H24: 0.00 | I24: 0.00 | J24: 0.00 | K24: 0.00 | L24: 0.00 | M24: 0.00 | N24: 0.00 | O24: 0.00 | P24: 0.00 | Q24: 0.00 | R24: 0.00 | S24: 0.00 | T24: 0.00 | U24: 0.00 | V24: 0.00 | W24: 0.00 | X24: 0.00 | Y24: 0.00 | Z24: 0.00 | AA24: 0.00 | AB24: 0.00 | AC24: 0.00 | AD24: 0.00 | AE24: 0.00 | AF24: 0.00 | AG24: 0.00 | AH24: 0.00 | AI24: 0.00 | AJ24: 0.00 | AK24: 0.00 | AL24: 0.00 | AM24: 0.00 | AN24: 0.00 | AO24: 0.00 | AP24: 0.00 | AQ24: 0.00 | AR24: 0.00 | AS24: 0.00 | AT24: 0.00 | AU24: 0.00 | AV24: 0.00 | AW24: 0.00 | AX24: 0.00 | AY24: 0.00 | AZ24: 0.00 | BA24: 0.00 | BB24: 0.00 | BC24: 0.00 | BD24: 0.00
A25: Indonesia | B25: 0.00 | C25: 0.00 | D25: 0.00 | E25: 0.00 | F25: 0.00 | G25: 0.00 | H25: 0.00 | I25: 0.00 | J25: 0.00 | K25: 0.00 | L25: 0.00 | M25: 0.00 | N25: 0.00 | O25: 0.00 | P25: 0.00 | Q25: 0.00 | R25: 0.00 | S25: 0.00 | T25: 0.00 | U25: 0.00 | V25: 0.00 | W25: 0.00 | X25: 0.00 | Y25: 0.00 | Z25: 0.00 | AA25: 0.00 | AB25: 0.00 | AC25: 0.00 | AD25: 0.00 | AE25: 0.00 | AF25: 0.00 | AG25: 0.00 | AH25: 0.00 | AI25: 0.00 | AJ25: 0.00 | AK25: 0.00 | AL25: 0.00 | AM25: 0.00 | AN25: 0.00 | AO25: 0.00 | AP25: 0.00 | AQ25: 0.00 | AR25: 0.00 | AS25: 0.00 | AT25: 0.00 | AU25: 0.00 | AV25: 0.00 | AW25: 0.00 | AX25: 0.00 | AY25: 0.00 | AZ25: 0.00 | BA25: 0.00 | BB25: 0.00 | BC25: 0.00 | BD25: 0.00
A26: Ireland | B26: 0.00 | C26: 0.00 | D26: 0.00 | E26: 0.00 | F26: 0.00 | G26: 0.00 | H26: 0.00 | I26: 0.00 | J26: 0.00 | K26: 0.00 | L26: 0.00 | M26: 0.00 | N26: 0.00 | O26: 0.00 | P26: 0.00 | Q26: 0.00 | R26: 0.00 | S26: 0.00 | T26: 0.00 | U26: 0.00 | V26: 0.00 | W26: 0.00 | X26: 0.00 | Y26: 0.00 | Z26: 0.00 | AA26: 0.00 | AB26: 0.00 | AC26: 0.00 | AD26: 0.00 | AE26: 0.00 | AF26: 0.00 | AG26: 0.00 | AH26: 0.00 | AI26: 0.00 | AJ26: 0.00 | AK26: 0.00 | AL26: 0.00 | AM26: 0.00 | AN26: 0.00 | AO26: 0.00 | AP26: 0.00 | AQ26: 0.00 | AR26: 0.00 | AS26: 0.00 | AT26: 0.00 | AU26: 0.00 | AV26: 0.00 | AW26: 0.00 | AX26: 0.00 | AY26: 0.00 | AZ26: 0.00 | BA26: 0.00 | BB26: 0.00 | BC26: 0.00 | BD26: 0.00
A27: Italy | B27: 0.00 | C27: 14,928.29 | D27: 0.00 | E27: 0.00 | F27: 0.00 | G27: 0.00 | H27: 0.00 | I27: 13.81 | J27: 553,192.45 | K27: 185,363.92 | L27: 0.00 | M27: 0.00 | N27: 0.00 | O27: 1,417.49 | P27: 795,027.02 | Q27: 647.07 | R27: 412.81 | S27: 555.01 | T27: 0.00 | U27: 0.00 | V27: 0.00 | W27: 19.82 | X27: 0.00 | Y27: 0.00 | Z27: 75,143.57 | AA27: 0.00 | AB27: 0.00 | AC27: 0.00 | AD27: 0.00 | AE27: 37,877,936.57 | AF27: 2,073.99 | AG27: 372.74 | AH27: 0.00 | AI27: 0.00 | AJ27: 0.00 | AK27: 510.07 | AL27: 2,291,207.00 | AM27: 7.56 | AN27: 68,202.54 | AO27: 0.00 | AP27: 2,790,483.36 | AQ27: 0.00 | AR27: 0.00 | AS27: 261,823.48 | AT27: 237,755.02 | AU27: 0.00 | AV27: 60,374.40 | AW27: 0.00 | AX27: 0.00 | AY27: 0.00 | AZ27: 0.00 | BA27: 388,847.17 | BB27: 0.00 | BC27: 610,308.11 | BD27: 46,216,623.27
A28: Japan | B28: 7,474,731.80 | C28: 188,557.30 | D28: 2,603,891.46 | E28: 40,749.52 | F28: 0.00 | G28: 0.00 | H28: 0.00 | I28: 432.46 | J28: 120,110,655.05 | K28: 9,371,496.36 | L28: 0.00 | M28: 0.00 | N28: 966,534.42 | O28: 44,389.61 | P28: 0.00 | Q28: 2,060,626.84 | R28: 455,429.13 | S28: 6,459,914.61 | T28: 0.00 | U28: 0.00 | V28: 112,824.62 | W28: 14,669,312.80 | X28: 0.00 | Y28: 8,599,550.33 | Z28: 0.00 | AA28: 0.00 | AB28: 0.00 | AC28: 0.00 | AD28: 0.00 | AE28: 38,756,394.99 | AF28: 0.00 | AG28: 37,476.66 | AH28: 0.00 | AI28: 771,143.25 | AJ28: 0.00 | AK28: 2,346,644.46 | AL28: 212,145,849.42 | AM28: 8,826.83 | AN28: 143,317.43 | AO28: 0.00 | AP28: 70,345,056.97 | AQ28: 0.00 | AR28: 2,703.80 | AS28: 16,433,733.46 | AT28: 0.00 | AU28: 0.00 | AV28: 0.00 | AW28: 0.00 | AX28: 135,925.06 | AY28: 4,935.09 | AZ28: 14,892,368.77 | BA28: 12,441,129.12 | BB28: 11,917.72 | BC28: 1,976,085.79 | BD28: 543,612,605.12
A29: Lao PDR | B29: 0.00 | C29: 0.00 | D29: 0.00 | E29: 0.00 | F29: 0.00 | G29: 0.00 | H29: 0.00 | I29: 0.00 | J29: 0.00 | K29: 0.00 | L29: 0.00 | M29: 0.00 | N29: 0.00 | O29: 0.00 | P29: 0.00 | Q29: 0.00 | R29: 0.00 | S29: 0.00 | T29: 0.00 | U29: 0.00 | V29: 0.00 | W29: 0.00 | X29: 0.00 | Y29: 0.00 | Z29: 0.00 | AA29: 0.00 | AB29: 0.00 | AC29: 0.00 | AD29: 0.00 | AE29: 0.00 | AF29: 0.00 | AG29: 0.00 | AH29: 0.00 | AI29: 0.00 | AJ29: 0.00 | AK29: 0.00 | AL29: 0.00 | AM29: 0.00 | AN29: 0.00 | AO29: 0.00 | AP29: 0.00 | AQ29: 0.00 | AR29: 0.00 | AS29: 0.00 | AT29: 0.00 | AU29: 0.00 | AV29: 0.00 | AW29: 0.00 | AX29: 0.00 | AY29: 0.00 | AZ29: 0.00 | BA29: 0.00 | BB29: 0.00 | BC29: 0.00 | BD29: 0.00
A30: Latvia | B30: 0.00 | C30: 0.00 | D30: 0.00 | E30: 0.00 | F30: 0.00 | G30: 0.00 | H30: 0.00 | I30: 0.00 | J30: 0.00 | K30: 0.00 | L30: 0.00 | M30: 0.00 | N30: 0.00 | O30: 0.00 | P30: 0.00 | Q30: 0.00 | R30: 0.00 | S30: 0.00 | T30: 0.00 | U30: 0.00 | V30: 0.00 | W30: 0.00 | X30: 0.00 | Y30: 0.00 | Z30: 0.00 | AA30: 0.00 | AB30: 0.00 | AC30: 0.00 | AD30: 0.00 | AE30: 0.00 | AF30: 0.00 | AG30: 0.00 | AH30: 0.00 | AI30: 0.00 | AJ30: 0.00 | AK30: 0.00 | AL30: 0.00 | AM30: 0.00 | AN30: 0.00 | AO30: 0.00 | AP30: 0.00 | AQ30: 0.00 | AR30: 10,121.52 | AS30: 0.00 | AT30: 0.00 | AU30: 0.00 | AV30: 0.00 | AW30: 0.00 | AX30: 0.00 | AY30: 0.00 | AZ30: 0.00 | BA30: 0.00 | BB30: 0.00 | BC30: 3,682.01 | BD30: 13,803.54
A31: Lithuania | B31: 0.00 | C31: 0.00 | D31: 0.00 | E31: 0.00 | F31: 0.00 | G31: 0.00 | H31: 0.00 | I31: 0.00 | J31: 0.00 | K31: 0.00 | L31: 0.00 | M31: 0.00 | N31: 0.00 | O31: 0.00 | P31: 0.00 | Q31: 0.00 | R31: 0.00 | S31: 0.00 | T31: 0.00 | U31: 0.00 | V31: 0.00 | W31: 0.00 | X31: 0.00 | Y31: 0.00 | Z31: 0.00 | AA31: 0.00 | AB31: 0.00 | AC31: 0.00 | AD31: 0.00 | AE31: 0.00 | AF31: 0.00 | AG31: 0.00 | AH31: 0.00 | AI31: 0.00 | AJ31: 0.00 | AK31: 0.00 | AL31: 0.00 | AM31: 0.00 | AN31: 0.00 | AO31: 0.00 | AP31: 0.00 | AQ31: 0.00 | AR31: 276,976.69 | AS31: 0.00 | AT31: 0.00 | AU31: 0.00 | AV31: 0.00 | AW31: 0.00 | AX31: 0.00 | AY31: 0.00 | AZ31: 0.00 | BA31: 0.00 | BB31: 0.00 | BC31: 0.00 | BD31: 276,976.69
A32: Luxembourg | B32: 0.00 | C32: 0.00 | D32: 0.00 | E32: 0.00 | F32: 0.00 | G32: 0.00 | H32: 0.00 | I32: 0.00 | J32: 0.00 | K32: 0.00 | L32: 0.00 | M32: 0.00 | N32: 0.00 | O32: 0.00 | P32: 0.00 | Q32: 0.00 | R32: 0.00 | S32: 0.00 | T32: 0.00 | U32: 0.00 | V32: 0.00 | W32: 0.00 | X32: 0.00 | Y32: 0.00 | Z32: 0.00 | AA32: 0.00 | AB32: 0.00 | AC32: 0.00 | AD32: 0.00 | AE32: 0.00 | AF32: 0.00 | AG32: 0.00 | AH32: 0.00 | AI32: 0.00 | AJ32: 0.00 | AK32: 0.00 | AL32: 0.00 | AM32: 0.00 | AN32: 0.00 | AO32: 0.00 | AP32: 0.00 | AQ32: 0.00 | AR32: 0.00 | AS32: 0.00 | AT32: 0.00 | AU32: 0.00 | AV32: 0.00 | AW32: 0.00 | AX32: 0.00 | AY32: 0.00 | AZ32: 0.00 | BA32: 0.00 | BB32: 0.00 | BC32: 0.00 | BD32: 0.00
A33: Malaysia | B33: 0.00 | C33: 0.00 | D33: 0.00 | E33: 0.00 | F33: 0.00 | G33: 0.00 | H33: 0.00 | I33: 0.00 | J33: 0.00 | K33: 0.00 | L33: 0.00 | M33: 0.00 | N33: 0.00 | O33: 0.00 | P33: 0.00 | Q33: 0.00 | R33: 0.00 | S33: 0.00 | T33: 0.00 | U33: 0.00 | V33: 0.00 | W33: 0.00 | X33: 0.00 | Y33: 0.00 | Z33: 0.00 | AA33: 0.00 | AB33: 0.00 | AC33: 0.00 | AD33: 0.00 | AE33: 0.00 | AF33: 0.00 | AG33: 0.00 | AH33: 0.00 | AI33: 0.00 | AJ33: 0.00 | AK33: 0.00 | AL33: 0.00 | AM33: 0.00 | AN33: 0.00 | AO33: 0.00 | AP33: 0.00 | AQ33: 0.00 | AR33: 0.00 | AS33: 0.00 | AT33: 0.00 | AU33: 0.00 | AV33: 0.00 | AW33: 0.00 | AX33: 0.00 | AY33: 0.00 | AZ33: 0.00 | BA33: 0.00 | BB33: 0.00 | BC33: 0.00 | BD33: 0.00
A34: Malta | B34: 0.00 | C34: 0.00 | D34: 0.00 | E34: 0.00 | F34: 0.00 | G34: 0.00 | H34: 0.00 | I34: 0.00 | J34: 0.00 | K34: 0.00 | L34: 0.00 | M34: 0.00 | N34: 0.00 | O34: 0.00 | P34: 0.00 | Q34: 0.00 | R34: 0.00 | S34: 0.00 | T34: 0.00 | U34: 0.00 | V34: 0.00 | W34: 0.00 | X34: 0.00 | Y34: 0.00 | Z34: 0.00 | AA34: 0.00 | AB34: 0.00 | AC34: 0.00 | AD34: 0.00 | AE34: 0.00 | AF34: 0.00 | AG34: 0.00 | AH34: 0.00 | AI34: 0.00 | AJ34: 0.00 | AK34: 0.00 | AL34: 0.00 | AM34: 0.00 | AN34: 0.00 | AO34: 0.00 | AP34: 0.00 | AQ34: 0.00 | AR34: 0.00 | AS34: 0.00 | AT34: 0.00 | AU34: 0.00 | AV34: 0.00 | AW34: 0.00 | AX34: 0.00 | AY34: 0.00 | AZ34: 0.00 | BA34: 0.00 | BB34: 0.00 | BC34: 0.00 | BD34: 0.00
A35: Mexico | B35: 0.00 | C35: 0.00 | D35: 0.00 | E35: 0.00 | F35: 0.00 | G35: 0.00 | H35: 0.00 | I35: 0.00 | J35: 0.00 | K35: 0.00 | L35: 0.00 | M35: 0.00 | N35: 0.00 | O35: 0.00 | P35: 0.00 | Q35: 0.00 | R35: 0.00 | S35: 0.00 | T35: 0.00 | U35: 0.00 | V35: 0.00 | W35: 0.00 | X35: 0.00 | Y35: 0.00 | Z35: 0.00 | AA35: 0.00 | AB35: 0.00 | AC35: 0.00 | AD35: 0.00 | AE35: 0.00 | AF35: 0.00 | AG35: 0.00 | AH35: 0.00 | AI35: 0.00 | AJ35: 0.00 | AK35: 0.00 | AL35: 0.00 | AM35: 0.00 | AN35: 0.00 | AO35: 0.00 | AP35: 0.00 | AQ35: 0.00 | AR35: 0.00 | AS35: 0.00 | AT35: 0.00 | AU35: 0.00 | AV35: 0.00 | AW35: 0.00 | AX35: 0.00 | AY35: 0.00 | AZ35: 0.00 | BA35: 0.00 | BB35: 0.00 | BC35: 0.00 | BD35: 0.00
A36: Myanmar | B36: 0.00 | C36: 0.00 | D36: 0.00 | E36: 0.00 | F36: 0.00 | G36: 0.00 | H36: 0.00 | I36: 0.00 | J36: 0.00 | K36: 0.00 | L36: 0.00 | M36: 0.00 | N36: 0.00 | O36: 0.00 | P36: 0.00 | Q36: 0.00 | R36: 0.00 | S36: 0.00 | T36: 0.00 | U36: 0.00 | V36: 0.00 | W36: 0.00 | X36: 0.00 | Y36: 0.00 | Z36: 0.00 | AA36: 0.00 | AB36: 0.00 | AC36: 0.00 | AD36: 0.00 | AE36: 0.00 | AF36: 0.00 | AG36: 0.00 | AH36: 0.00 | AI36: 0.00 | AJ36: 0.00 | AK36: 0.00 | AL36: 0.00 | AM36: 0.00 | AN36: 0.00 | AO36: 0.00 | AP36: 0.00 | AQ36: 0.00 | AR36: 0.00 | AS36: 0.00 | AT36: 0.00 | AU36: 0.00 | AV36: 0.00 | AW36: 0.00 | AX36: 0.00 | AY36: 0.00 | AZ36: 0.00 | BA36: 0.00 | BB36: 0.00 | BC36: 0.00 | BD36: 0.00
A37: Netherlands | B37: 1,928.14 | C37: 0.00 | D37: 0.00 | E37: 0.00 | F37: 0.00 | G37: 0.00 | H37: 0.00 | I37: 0.00 | J37: 76,488.58 | K37: 198,627.29 | L37: 0.00 | M37: 0.00 | N37: 21.01 | O37: 0.00 | P37: 0.00 | Q37: 89,090.15 | R37: 36.04 | S37: 40.79 | T37: 0.00 | U37: 0.00 | V37: 2,900.87 | W37: 0.00 | X37: 11,504.59 | Y37: 16,237.20 | Z37: 733,155.84 | AA37: 0.00 | AB37: 0.00 | AC37: 0.00 | AD37: 0.00 | AE37: 0.00 | AF37: 0.00 | AG37: 0.00 | AH37: 0.00 | AI37: 0.00 | AJ37: 0.00 | AK37: 0.00 | AL37: 16,386.82 | AM37: 9.19 | AN37: 23.48 | AO37: 0.00 | AP37: 0.00 | AQ37: 0.00 | AR37: 0.00 | AS37: 0.00 | AT37: 0.00 | AU37: 0.00 | AV37: 21.01 | AW37: 21.01 | AX37: 0.00 | AY37: 0.00 | AZ37: 0.00 | BA37: 96.10 | BB37: 0.00 | BC37: 5,287.75 | BD37: 1,151,875.86
A38: New Zealand | B38: 1,254.89 | C38: 0.00 | D38: 0.00 | E38: 0.00 | F38: 0.00 | G38: 0.00 | H38: 0.00 | I38: 0.00 | J38: 0.00 | K38: 0.00 | L38: 0.00 | M38: 0.00 | N38: 0.00 | O38: 0.00 | P38: 0.00 | Q38: 0.00 | R38: 0.00 | S38: 0.00 | T38: 0.00 | U38: 0.00 | V38: 0.00 | W38: 0.00 | X38: 0.00 | Y38: 0.00 | Z38: 0.00 | AA38: 0.00 | AB38: 0.00 | AC38: 0.00 | AD38: 0.00 | AE38: 0.00 | AF38: 0.00 | AG38: 4,577.50 | AH38: 0.00 | AI38: 0.00 | AJ38: 0.00 | AK38: 0.00 | AL38: 0.00 | AM38: 0.00 | AN38: 0.00 | AO38: 0.00 | AP38: 0.00 | AQ38: 0.00 | AR38: 0.00 | AS38: 0.00 | AT38: 0.00 | AU38: 0.00 | AV38: 0.00 | AW38: 0.00 | AX38: 0.00 | AY38: 0.00 | AZ38: 0.00 | BA38: 6,996.11 | BB38: 0.00 | BC38: 14,491.73 | BD38: 27,320.23
A39: Norway | B39: 0.00 | C39: 0.00 | D39: 0.00 | E39: 0.00 | F39: 0.00 | G39: 0.00 | H39: 0.00 | I39: 0.07 | J39: 36,424,346.94 | K39: 594,197.42 | L39: 0.00 | M39: 0.00 | N39: 4,837,109.92 | O39: 114,078.36 | P39: 0.00 | Q39: 769,561.61 | R39: 76.15 | S39: 1,924,466.97 | T39: 0.00 | U39: 0.00 | V39: 0.00 | W39: 157.62 | X39: 0.00 | Y39: 1,151.85 | Z39: 1,545,831.73 | AA39: 0.00 | AB39: 0.00 | AC39: 0.00 | AD39: 0.00 | AE39: 20,309.67 | AF39: 0.00 | AG39: 1.79 | AH39: 0.00 | AI39: 0.00 | AJ39: 0.00 | AK39: 0.00 | AL39: 18,148,883.73 | AM39: 3,195,086.87 | AN39: 12,272.32 | AO39: 0.00 | AP39: 762,436.56 | AQ39: 0.00 | AR39: 0.00 | AS39: 7,114,720.06 | AT39: 0.00 | AU39: 0.00 | AV39: 0.00 | AW39: 5,935.99 | AX39: 0.00 | AY39: 390,605.77 | AZ39: 29,586.80 | BA39: 36,036.22 | BB39: 0.00 | BC39: 12,783.07 | BD39: 75,939,637.48
A40: Taiwan | B40: 0.00 | C40: 0.00 | D40: 0.00 | E40: 0.00 | F40: 0.00 | G40: 3,797.89 | H40: 2,541.81 | I40: 183.54 | J40: 226,617,851.49 | K40: 3,191,306.78 | L40: 0.00 | M40: 0.00 | N40: 0.00 | O40: 0.00 | P40: 0.00 | Q40: 0.00 | R40: 0.00 | S40: 62,668.40 | T40: 0.00 | U40: 0.00 | V40: 339,683.40 | W40: 2,909.83 | X40: 0.00 | Y40: 118,292.58 | Z40: 63,906,415.04 | AA40: 0.00 | AB40: 0.00 | AC40: 0.00 | AD40: 0.00 | AE40: 46,765,707.63 | AF40: 0.00 | AG40: 0.00 | AH40: 0.00 | AI40: 275.32 | AJ40: 0.00 | AK40: 1,494,513.88 | AL40: 0.00 | AM40: 131,860.97 | AN40: 0.00 | AO40: 0.00 | AP40: 726,199.38 | AQ40: 0.00 | AR40: 0.00 | AS40: 25,751,079.38 | AT40: 0.00 | AU40: 0.00 | AV40: 0.00 | AW40: 0.00 | AX40: 107,112.12 | AY40: 0.00 | AZ40: 0.00 | BA40: 2,012,921.42 | BB40: 181,909.29 | BC40: 66,161.30 | BD40: 371,483,391.44
A41: Philippines | B41: 0.00 | C41: 0.00 | D41: 0.00 | E41: 0.00 | F41: 0.00 | G41: 0.00 | H41: 0.00 | I41: 0.00 | J41: 0.00 | K41: 0.00 | L41: 0.00 | M41: 0.00 | N41: 0.00 | O41: 0.00 | P41: 0.00 | Q41: 0.00 | R41: 0.00 | S41: 0.00 | T41: 0.00 | U41: 0.00 | V41: 0.00 | W41: 0.00 | X41: 0.00 | Y41: 0.00 | Z41: 86.21 | AA41: 0.00 | AB41: 0.00 | AC41: 0.00 | AD41: 0.00 | AE41: 0.00 | AF41: 0.00 | AG41: 0.00 | AH41: 0.00 | AI41: 0.00 | AJ41: 0.00 | AK41: 0.00 | AL41: 0.00 | AM41: 0.00 | AN41: 0.00 | AO41: 0.00 | AP41: 0.00 | AQ41: 0.00 | AR41: 0.00 | AS41: 0.00 | AT41: 0.00 | AU41: 0.00 | AV41: 0.00 | AW41: 0.00 | AX41: 0.00 | AY41: 0.00 | AZ41: 0.00 | BA41: 0.00 | BB41: 0.00 | BC41: 0.00 | BD41: 86.21
A42: Poland | B42: 0.00 | C42: 0.00 | D42: 0.00 | E42: 0.00 | F42: 0.00 | G42: 0.00 | H42: 0.00 | I42: 0.14 | J42: 1,765,542.81 | K42: 61,563.65 | L42: 0.00 | M42: 0.00 | N42: 900,945.18 | O42: 45,175.40 | P42: 0.00 | Q42: 6.76 | R42: 0.00 | S42: 682.97 | T42: 0.00 | U42: 90,318.73 | V42: 0.00 | W42: 55.62 | X42: 0.00 | Y42: 406.43 | Z42: 255,812.03 | AA42: 0.00 | AB42: 0.00 | AC42: 428.89 | AD42: 0.00 | AE42: 0.00 | AF42: 0.00 | AG42: 3.89 | AH42: 0.00 | AI42: 0.00 | AJ42: 0.00 | AK42: 1,431.33 | AL42: 6,391,578.38 | AM42: 0.00 | AN42: 0.00 | AO42: 0.00 | AP42: 269,024.17 | AQ42: 0.00 | AR42: 0.00 | AS42: 48,353.06 | AT42: 0.00 | AU42: 0.00 | AV42: 0.00 | AW42: 0.00 | AX42: 0.00 | AY42: 0.00 | AZ42: 0.00 | BA42: 16,007.66 | BB42: 0.00 | BC42: 148.92 | BD42: 9,847,486.02
A43: Portugal | B43: 0.00 | C43: 0.00 | D43: 0.00 | E43: 0.00 | F43: 0.00 | G43: 0.00 | H43: 0.00 | I43: 0.00 | J43: 0.00 | K43: 0.00 | L43: 0.00 | M43: 0.00 | N43: 0.00 | O43: 0.00 | P43: 0.00 | Q43: 0.00 | R43: 0.00 | S43: 0.00 | T43: 0.00 | U43: 0.00 | V43: 0.00 | W43: 0.00 | X43: 0.00 | Y43: 0.00 | Z43: 0.00 | AA43: 0.00 | AB43: 0.00 | AC43: 0.00 | AD43: 0.00 | AE43: 0.00 | AF43: 0.00 | AG43: 0.00 | AH43: 0.00 | AI43: 0.00 | AJ43: 0.00 | AK43: 0.00 | AL43: 0.00 | AM43: 0.00 | AN43: 0.00 | AO43: 0.00 | AP43: 0.00 | AQ43: 0.00 | AR43: 0.00 | AS43: 0.00 | AT43: 0.00 | AU43: 0.00 | AV43: 0.00 | AW43: 0.00 | AX43: 0.00 | AY43: 0.00 | AZ43: 0.00 | BA43: 0.00 | BB43: 0.00 | BC43: 0.00 | BD43: 0.00
A44: Korea | B44: 3,707.97 | C44: 0.00 | D44: 0.00 | E44: 0.00 | F44: 0.00 | G44: 0.00 | H44: 0.00 | I44: 36.49 | J44: 686,980,408.58 | K44: 13,100,556.12 | L44: 0.00 | M44: 0.00 | N44: 0.00 | O44: 623,903.51 | P44: 0.00 | Q44: 1,709.82 | R44: 1,815.54 | S44: 90,373,436.54 | T44: 0.00 | U44: 0.00 | V44: 0.00 | W44: 2,794.87 | X44: 0.00 | Y44: 4,634,064.92 | Z44: 39,197,610.74 | AA44: 0.00 | AB44: 0.00 | AC44: 0.00 | AD44: 0.00 | AE44: 127,287,184.58 | AF44: 0.00 | AG44: 984.91 | AH44: 0.00 | AI44: 0.00 | AJ44: 0.00 | AK44: 71,926.87 | AL44: 322,012,735.57 | AM44: 563,147.19 | AN44: 217,602.61 | AO44: 0.00 | AP44: 0.00 | AQ44: 0.00 | AR44: 24,101.80 | AS44: 14,209,146.08 | AT44: 0.00 | AU44: 0.00 | AV44: 0.00 | AW44: 0.00 | AX44: 0.00 | AY44: 0.00 | AZ44: 0.00 | BA44: 1,623,501.19 | BB44: 0.00 | BC44: 1,780,899.08 | BD44: 1,302,711,275.02
A45: Romania | B45: 0.00 | C45: 0.00 | D45: 0.00 | E45: 0.00 | F45: 0.00 | G45: 0.00 | H45: 0.00 | I45: 0.00 | J45: 0.00 | K45: 0.00 | L45: 0.00 | M45: 0.00 | N45: 0.00 | O45: 0.00 | P45: 0.00 | Q45: 0.00 | R45: 0.00 | S45: 0.00 | T45: 0.00 | U45: 0.00 | V45: 0.00 | W45: 0.00 | X45: 0.00 | Y45: 0.00 | Z45: 0.00 | AA45: 0.00 | AB45: 0.00 | AC45: 0.00 | AD45: 0.00 | AE45: 0.00 | AF45: 0.00 | AG45: 0.00 | AH45: 0.00 | AI45: 0.00 | AJ45: 0.00 | AK45: 0.00 | AL45: 0.00 | AM45: 0.00 | AN45: 0.00 | AO45: 0.00 | AP45: 0.00 | AQ45: 0.00 | AR45: 0.00 | AS45: 0.00 | AT45: 0.00 | AU45: 0.00 | AV45: 0.00 | AW45: 0.00 | AX45: 0.00 | AY45: 0.00 | AZ45: 0.00 | BA45: 0.00 | BB45: 0.00 | BC45: 0.00 | BD45: 0.00
A46: Russian Federation | B46: 0.00 | C46: 0.00 | D46: 0.00 | E46: 0.00 | F46: 0.00 | G46: 0.00 | H46: 0.00 | I46: 0.65 | J46: 446,900.05 | K46: 152.66 | L46: 0.00 | M46: 0.00 | N46: 34,723.28 | O46: 66.46 | P46: 0.00 | Q46: 30.34 | R46: 8,230.77 | S46: 538,081.68 | T46: 0.00 | U46: 0.00 | V46: 0.00 | W46: 0.14 | X46: 0.00 | Y46: 1.01 | Z46: 124,174.90 | AA46: 0.00 | AB46: 0.00 | AC46: 0.00 | AD46: 0.00 | AE46: 0.00 | AF46: 0.00 | AG46: 17.48 | AH46: 0.00 | AI46: 0.00 | AJ46: 0.00 | AK46: 3.55 | AL46: 15,849.61 | AM46: 0.00 | AN46: 10.74 | AO46: 0.00 | AP46: 667.08 | AQ46: 0.00 | AR46: 0.00 | AS46: 120.65 | AT46: 0.00 | AU46: 0.00 | AV46: 0.00 | AW46: 0.00 | AX46: 0.00 | AY46: 0.00 | AZ46: 0.00 | BA46: 18,056.03 | BB46: 0.00 | BC46: 110,788.88 | BD46: 1,297,875.93
A47: Singapore | B47: 0.00 | C47: 0.00 | D47: 0.00 | E47: 0.00 | F47: 100.53 | G47: 0.00 | H47: 0.00 | I47: 6.33 | J47: 1,096,039.38 | K47: 212,019.00 | L47: 0.00 | M47: 0.00 | N47: 0.00 | O47: 649.73 | P47: 0.00 | Q47: 296.59 | R47: 30.51 | S47: 91,904.96 | T47: 0.00 | U47: 0.00 | V47: 12,086.69 | W47: 11,594.88 | X47: 0.00 | Y47: 592.79 | Z47: 286,329.93 | AA47: 0.00 | AB47: 0.00 | AC47: 0.00 | AD47: 0.00 | AE47: 293,301.27 | AF47: 0.00 | AG47: 170.85 | AH47: 0.00 | AI47: 0.00 | AJ47: 0.00 | AK47: 1,019.11 | AL47: 4,564,665.07 | AM47: 7,667.02 | AN47: 3,083.13 | AO47: 0.00 | AP47: 347,084.10 | AQ47: 0.00 | AR47: 0.00 | AS47: 0.00 | AT47: 0.00 | AU47: 0.00 | AV47: 0.00 | AW47: 0.00 | AX47: 0.00 | AY47: 0.00 | AZ47: 0.00 | BA47: 184,858.18 | BB47: 16,024.16 | BC47: 603.49 | BD47: 7,130,127.70
A48: Slovakia | B48: 0.00 | C48: 0.00 | D48: 0.00 | E48: 0.00 | F48: 0.00 | G48: 0.00 | H48: 0.00 | I48: 0.00 | J48: 0.00 | K48: 0.00 | L48: 0.00 | M48: 0.00 | N48: 0.00 | O48: 0.00 | P48: 0.00 | Q48: 0.00 | R48: 0.00 | S48: 0.00 | T48: 0.00 | U48: 3,195.03 | V48: 0.00 | W48: 0.00 | X48: 0.00 | Y48: 0.00 | Z48: 0.00 | AA48: 0.00 | AB48: 0.00 | AC48: 0.00 | AD48: 0.00 | AE48: 0.00 | AF48: 0.00 | AG48: 0.00 | AH48: 0.00 | AI48: 0.00 | AJ48: 0.00 | AK48: 0.00 | AL48: 0.00 | AM48: 0.00 | AN48: 0.00 | AO48: 0.00 | AP48: 0.00 | AQ48: 0.00 | AR48: 0.00 | AS48: 0.00 | AT48: 0.00 | AU48: 0.00 | AV48: 0.00 | AW48: 0.00 | AX48: 0.00 | AY48: 0.00 | AZ48: 0.00 | BA48: 0.00 | BB48: 0.00 | BC48: 0.00 | BD48: 3,195.03
A49: Slovenia | B49: 0.00 | C49: 0.00 | D49: 0.00 | E49: 0.00 | F49: 0.00 | G49: 0.00 | H49: 0.00 | I49: 0.00 | J49: 0.00 | K49: 0.00 | L49: 0.00 | M49: 0.00 | N49: 0.00 | O49: 0.00 | P49: 0.00 | Q49: 0.00 | R49: 0.00 | S49: 0.00 | T49: 0.00 | U49: 0.00 | V49: 0.00 | W49: 0.00 | X49: 0.00 | Y49: 0.00 | Z49: 0.00 | AA49: 0.00 | AB49: 0.00 | AC49: 0.00 | AD49: 0.00 | AE49: 0.00 | AF49: 0.00 | AG49: 0.00 | AH49: 0.00 | AI49: 0.00 | AJ49: 0.00 | AK49: 0.00 | AL49: 0.00 | AM49: 0.00 | AN49: 0.00 | AO49: 0.00 | AP49: 0.00 | AQ49: 0.00 | AR49: 0.00 | AS49: 0.00 | AT49: 0.00 | AU49: 0.00 | AV49: 0.00 | AW49: 0.00 | AX49: 0.00 | AY49: 0.00 | AZ49: 0.00 | BA49: 0.00 | BB49: 0.00 | BC49: 49.44 | BD49: 49.44
A50: Spain | B50: 0.00 | C50: 0.00 | D50: 0.00 | E50: 0.00 | F50: 0.00 | G50: 0.00 | H50: 0.00 | I50: 0.00 | J50: 477,465.37 | K50: 0.00 | L50: 0.00 | M50: 0.00 | N50: 0.00 | O50: 0.00 | P50: 0.00 | Q50: 0.00 | R50: 0.00 | S50: 262.03 | T50: 0.00 | U50: 0.00 | V50: 0.00 | W50: 0.00 | X50: 0.00 | Y50: 254.61 | Z50: 0.00 | AA50: 0.00 | AB50: 0.00 | AC50: 0.00 | AD50: 0.00 | AE50: 0.00 | AF50: 0.00 | AG50: 0.00 | AH50: 0.00 | AI50: 0.00 | AJ50: 0.00 | AK50: 0.00 | AL50: 0.00 | AM50: 0.00 | AN50: 0.00 | AO50: 44.50 | AP50: 0.00 | AQ50: 0.00 | AR50: 0.00 | AS50: 0.00 | AT50: 0.00 | AU50: 0.00 | AV50: 0.00 | AW50: 0.00 | AX50: 0.00 | AY50: 0.00 | AZ50: 0.00 | BA50: 0.00 | BB50: 0.00 | BC50: 0.00 | BD50: 478,026.51
A51: Sweden | B51: 0.00 | C51: 0.00 | D51: 0.00 | E51: 0.00 | F51: 0.00 | G51: 0.00 | H51: 0.00 | I51: 0.00 | J51: 0.00 | K51: 0.00 | L51: 0.00 | M51: 0.00 | N51: 0.00 | O51: 0.00 | P51: 0.00 | Q51: 0.00 | R51: 0.00 | S51: 0.00 | T51: 0.00 | U51: 0.00 | V51: 0.00 | W51: 0.00 | X51: 0.00 | Y51: 0.00 | Z51: 0.00 | AA51: 0.00 | AB51: 0.00 | AC51: 0.00 | AD51: 0.00 | AE51: 0.00 | AF51: 0.00 | AG51: 0.00 | AH51: 0.00 | AI51: 0.00 | AJ51: 0.00 | AK51: 0.00 | AL51: 0.00 | AM51: 0.00 | AN51: 0.00 | AO51: 0.00 | AP51: 0.00 | AQ51: 0.00 | AR51: 0.00 | AS51: 0.00 | AT51: 0.00 | AU51: 0.00 | AV51: 0.00 | AW51: 0.00 | AX51: 0.00 | AY51: 0.00 | AZ51: 0.00 | BA51: 0.00 | BB51: 0.00 | BC51: 0.00 | BD51: 0.00
A52: Thailand | B52: 0.00 | C52: 0.00 | D52: 0.00 | E52: 0.00 | F52: 0.00 | G52: 0.00 | H52: 0.00 | I52: 0.00 | J52: 0.00 | K52: 0.00 | L52: 0.00 | M52: 0.00 | N52: 0.00 | O52: 0.00 | P52: 0.00 | Q52: 0.00 | R52: 0.00 | S52: 0.00 | T52: 0.00 | U52: 0.00 | V52: 0.00 | W52: 0.00 | X52: 0.00 | Y52: 0.00 | Z52: 0.00 | AA52: 0.00 | AB52: 0.00 | AC52: 0.00 | AD52: 0.00 | AE52: 0.00 | AF52: 0.00 | AG52: 0.00 | AH52: 4,307.61 | AI52: 0.00 | AJ52: 0.00 | AK52: 0.00 | AL52: 0.00 | AM52: 0.00 | AN52: 0.00 | AO52: 0.00 | AP52: 0.00 | AQ52: 0.00 | AR52: 0.00 | AS52: 0.00 | AT52: 0.00 | AU52: 0.00 | AV52: 0.00 | AW52: 0.00 | AX52: 0.00 | AY52: 0.00 | AZ52: 0.00 | BA52: 0.00 | BB52: 0.00 | BC52: 0.00 | BD52: 4,307.61
A53: Turkey | B53: 0.00 | C53: 0.00 | D53: 0.00 | E53: 0.00 | F53: 0.00 | G53: 0.00 | H53: 0.00 | I53: 0.00 | J53: 0.00 | K53: 0.00 | L53: 0.00 | M53: 0.00 | N53: 0.00 | O53: 0.00 | P53: 0.00 | Q53: 0.00 | R53: 0.00 | S53: 0.00 | T53: 0.00 | U53: 0.00 | V53: 0.00 | W53: 0.00 | X53: 0.00 | Y53: 0.00 | Z53: 0.00 | AA53: 0.00 | AB53: 0.00 | AC53: 0.00 | AD53: 0.00 | AE53: 0.00 | AF53: 0.00 | AG53: 0.00 | AH53: 0.00 | AI53: 0.00 | AJ53: 0.00 | AK53: 0.00 | AL53: 0.00 | AM53: 0.00 | AN53: 0.00 | AO53: 0.00 | AP53: 0.00 | AQ53: 0.00 | AR53: 0.00 | AS53: 0.00 | AT53: 0.00 | AU53: 0.00 | AV53: 0.00 | AW53: 0.00 | AX53: 0.00 | AY53: 0.00 | AZ53: 0.00 | BA53: 0.00 | BB53: 0.00 | BC53: 139,812.71 | BD53: 139,812.71
A54: United Kingdom | B54: 9,871.85 | C54: 0.00 | D54: 355.97 | E54: 0.00 | F54: 0.00 | G54: 0.00 | H54: 0.00 | I54: 2,074.13 | J54: 4,058,372.14 | K54: 46,422.97 | L54: 0.00 | M54: 0.00 | N54: 6,066.24 | O54: 2,158.79 | P54: 0.00 | Q54: 938.46 | R54: 6,538,883.48 | S54: 10,927,989.77 | T54: 60.56 | U54: 0.00 | V54: 19,930.34 | W54: 54,073.24 | X54: 9,842.19 | Y54: 18,568.22 | Z54: 11,442,224.88 | AA54: 0.00 | AB54: 0.00 | AC54: 0.00 | AD54: 0.00 | AE54: 5,329.59 | AF54: 0.00 | AG54: 114,186.19 | AH54: 0.00 | AI54: 73,438.18 | AJ54: 1,427.57 | AK54: 875,024.30 | AL54: 4,819,684.35 | AM54: 0.00 | AN54: 292,465.92 | AO54: 655.07 | AP54: 14,096,898.52 | AQ54: 960.36 | AR54: 3,334.83 | AS54: 64,765.76 | AT54: 2,202.53 | AU54: 0.00 | AV54: 1,327.45 | AW54: 4,113.37 | AX54: 58,762.67 | AY54: 0.00 | AZ54: 0.00 | BA54: 565,066.00 | BB54: 0.00 | BC54: 29,408.84 | BD54: 54,146,884.73
A55: USA | B55: 53,149.11 | C55: 0.00 | D55: 51,231.16 | E55: 38,250.49 | F55: 0.00 | G55: 5,098.46 | H55: 0.00 | I55: 157,140.98 | J55: 290,531,179.11 | K55: 26,158,023.50 | L55: 0.00 | M55: 0.00 | N55: 4,795,884.33 | O55: 4,663,382.81 | P55: 0.00 | Q55: 602,225.27 | R55: 494,001.68 | S55: 133,290,683.27 | T55: 0.00 | U55: 0.00 | V55: 55,536.12 | W55: 0.00 | X55: 0.00 | Y55: 15,482,062.10 | Z55: 687,207,127.73 | AA55: 0.00 | AB55: 0.00 | AC55: 0.00 | AD55: 0.00 | AE55: 46,828,101.63 | AF55: 0.00 | AG55: 372,663.01 | AH55: 0.00 | AI55: 47,276.61 | AJ55: 0.00 | AK55: 10,747,540.97 | AL55: 164,993,344.20 | AM55: 205,861.84 | AN55: 18,027.22 | AO55: 0.00 | AP55: 121,537,827.35 | AQ55: 0.00 | AR55: 10,623.33 | AS55: 17,069,305.82 | AT55: 0.00 | AU55: 0.00 | AV55: 0.00 | AW55: 0.00 | AX55: 1,246,650.94 | AY55: 64,993.29 | AZ55: 10,739,708.81 | BA55: 0.00 | BB55: 0.00 | BC55: 1,669,315.92 | BD55: 1,539,136,217.06
A56: Vietnam | B56: 0.00 | C56: 0.00 | D56: 0.00 | E56: 0.00 | F56: 0.00 | G56: 0.00 | H56: 0.00 | I56: 0.00 | J56: 0.00 | K56: 0.00 | L56: 0.00 | M56: 0.00 | N56: 0.00 | O56: 0.00 | P56: 0.00 | Q56: 0.00 | R56: 0.00 | S56: 0.00 | T56: 0.00 | U56: 0.00 | V56: 0.00 | W56: 0.00 | X56: 0.00 | Y56: 0.00 | Z56: 0.00 | AA56: 0.00 | AB56: 0.00 | AC56: 0.00 | AD56: 0.00 | AE56: 0.00 | AF56: 0.00 | AG56: 0.00 | AH56: 0.00 | AI56: 0.00 | AJ56: 0.00 | AK56: 0.00 | AL56: 0.00 | AM56: 0.00 | AN56: 0.00 | AO56: 0.00 | AP56: 0.00 | AQ56: 0.00 | AR56: 0.00 | AS56: 0.00 | AT56: 0.00 | AU56: 0.00 | AV56: 0.00 | AW56: 0.00 | AX56: 0.00 | AY56: 0.00 | AZ56: 0.00 | BA56: 0.00 | BB56: 0.00 | BC56: 0.00 | BD56: 0.00
A57: ROW | B57: 0.00 | C57: 1,541.90 | D57: 670.09 | E57: 0.00 | F57: 0.00 | G57: 0.00 | H57: 0.00 | I57: 0.77 | J57: 1,393,280.53 | K57: 5,363.51 | L57: 3,342.39 | M57: 0.00 | N57: 1,368.61 | O57: 78.57 | P57: 0.00 | Q57: 35.86 | R57: 5,380.48 | S57: 9,364,392.83 | T57: 0.00 | U57: 0.00 | V57: 274,673.85 | W57: 139.95 | X57: 0.00 | Y57: 35.41 | Z57: 615,743.66 | AA57: 0.00 | AB57: 0.00 | AC57: 0.00 | AD57: 0.00 | AE57: 0.00 | AF57: 0.00 | AG57: 20.66 | AH57: 38,320.35 | AI57: 8.19 | AJ57: 0.00 | AK57: 124.70 | AL57: 556,843.91 | AM57: 0.00 | AN57: 48,589.89 | AO57: 0.00 | AP57: 23,772.72 | AQ57: 0.00 | AR57: 0.00 | AS57: 4,213.45 | AT57: 0.00 | AU57: 0.00 | AV57: 0.00 | AW57: 0.00 | AX57: 0.00 | AY57: 41.54 | AZ57: 0.00 | BA57: 22,355.87 | BB57: 0.00 | BC57: 0.00 | BD57: 12,360,339.65
A58: total | B58: 9,326,505.21 | C58: 273,395.95 | D58: 5,081,969.21 | E58: 88,500.75 | F58: 100.53 | G58: 19,357.76 | H58: 2,541.81 | I58: 165,630.06 | J58: 2,077,596,041.95 | K58: 69,792,837.85 | L58: 3,342.39 | M58: 3,732.69 | N58: 32,882,013.79 | O58: 10,797,793.43 | P58: 795,027.02 | Q58: 13,250,667.59 | R58: 7,820,944.66 | S58: 270,416,286.32 | T58: 582.15 | U58: 843,276.36 | V58: 1,278,470.39 | W58: 15,163,116.13 | X58: 21,346.78 | Y58: 29,583,207.93 | Z58: 1,072,870,222.47 | AA58: 0.00 | AB58: 84,829.70 | AC58: 362,688.26 | AD58: 0.00 | AE58: 304,738,665.90 | AF58: 184,001.82 | AG58: 586,117.10 | AH58: 42,627.97 | AI58: 1,546,615.21 | AJ58: 510,007.13 | AK58: 44,666,386.31 | AL58: 875,236,289.40 | AM58: 4,118,909.05 | AN58: 1,218,269.27 | AO58: 961.60 | AP58: 337,383,155.82 | AQ58: 15,216.27 | AR58: 4,955,596.85 | AS58: 172,102,164.94 | AT58: 245,154.89 | AU58: 0.00 | AV58: 87,316.20 | AW58: 134,140.28 | AX58: 1,670,695.44 | AY58: 480,853.96 | AZ58: 100,867,917.84 | BA58: 72,175,489.27 | BB58: 211,449.31 | BC58: 13,506,313.99 | BD58: 5,555,208,744.98
A60: TFM of the global silicon trade by region groups in 2014
A61: Unit: $
A62: Region groups | B62: Oceania | C62: Europe | D62: S Asia | E62: America | F62: East Asia | G62: ROW | H62: Total
A63: Oceania | B63: =B4+AJ4+B38+AJ38 -> 509,834.45 | C63: =SUM(C4,D4,G4,L4:U4,X4:Y4,AB4:AD4,AF4,AI4,AK4,AN4:AO4,AQ4,AT4:AW4,AZ4,AR4)+SUM(C38,D38,G38,L38:U38,X38:Y38,AB38:AD38,AF38,AI38,AK38,AN38:AO38,AQ38,AT38:AW38,AZ38,AR38) -> 973,720.20 | D63: =SUM(F4,H4,V4:W4,AA4,AE4,AH4,AM4,AS4,AX4,BB4,AY4)+SUM(F38,H38,V38:W38,AA38,AE38,AH38,AM38,AS38,AX38,BB38,AY38) -> 24,164.53 | E63: =SUM(E4,I4,AG4,BA4)+SUM(E38,I38,AG38,BA38) -> 12,267.36 | F63: =SUM(J4:K4,Z4,AL4,AP4)+SUM(J38:K38,Z38,AL38,AP38) -> 690,887.69 | G63: =BC4+BC38 -> 63,795.71 | H63: =SUM(B63:G63) -> 2,274,669.94
A64: Europe | B64: =B69-SUM(B65:B68,B63) -> 45,706.91 | C64: =C69-SUM(C65:C68,C63) -> 175,079,534.49 | D64: 144,004,271.23 | E64: 54,705,061.55 | F64: 1,252,295,984.58 | G64: 6,326,428.04 | H64: 1,632,456,986.80
A65: S Asia | B65: =B8+AJ8+B10+AJ10+B24+AJ24+B25+AJ25+B29+AJ29+B33+AJ33+B36+AJ36+B41+AJ41+B47+AJ47+B52+AJ52+B53+AJ53+B56+AJ56 -> 0.00 | C65: =SUM(C8,D8,G8,L8:U8,X8:Y8,AB8:AD8,AF8,AI8,AK8,AN8:AO8,AQ8,AT8:AW8,AZ8,AR8)+SUM(C10,D10,G10,L10:U10,X10:Y10,AB10:AD10,AF10,AI10,AK10,AN10:AO10,AQ10,AT10:AW10,AZ10,AR10)+SUM(C24,D24,G24,L24:U24,X24:Y24,AB24:AD24,AF24,AI24,AK24,AN24:AO24,AQ24,AT24:AW24,AZ24,AR24)+SUM(C25,D25,G25,L25:U25,X25:Y25,AB25:AD25,AF25,AI25,AK25,AN25:AO25,AQ25,AT25:AW25,AZ25,AR25)+SUM(C29,D29,G29,L29:U29,X29:Y29,AB29:AD29,AF29,AI29,AK29,AN29:AO29,AQ29,AT29:AW29,AZ29,AR29)+SUM(C33,D33,G33,L33:U33,X33:Y33,AB33:AD33,AF33,AI33,AK33,AN33:AO33,AQ33,AT33:AW33,AZ33,AR33)+SUM(C36,D36,G36,L36:U36,X36:Y36,AB36:AD36,AF36,AI36,AK36,AN36:AO36,AQ36,AT36:AW36,AZ36,AR36)+SUM(C41,D41,G41,L41:U41,X41:Y41,AB41:AD41,AF41,AI41,AK41,AN41:AO41,AQ41,AT41:AW41,AZ41,AR41)+SUM(C47,D47,G47,L47:U47,X47:Y47,AB47:AD47,AF47,AI47,AK47,AN47:AO47,AQ47,AT47:AW47,AZ47,AR47)+SUM(C52,D52,G52,L52:U52,X52:Y52,AB52:AD52,AF52,AI52,AK52,AN52:AO52,AQ52,AT52:AW52,AZ52,AR52)+SUM(C53,D53,G53,L53:U53,X53:Y53,AB53:AD53,AF53,AI53,AK53,AN53:AO53,AQ53,AT53:AW53,AZ53,AR53)+SUM(C56,D56,G56,L56:U56,X56:Y56,AB56:AD56,AF56,AI56,AK56,AN56:AO56,AQ56,AT56:AW56,AZ56,AR56) -> 97,576.82 | D65: =SUM(F8,H8,V8:W8,AA8,AE8,AH8,AM8,AS8,AX8,BB8,AY8)+SUM(F10,H10,V10:W10,AA10,AE10,AH10,AM10,AS10,AX10,BB10,AY10)+SUM(F24,H24,V24:W24,AA24,AE24,AH24,AM24,AS24,AX24,BB24,AY24)+SUM(F25,H25,V25:W25,AA25,AE25,AH25,AM25,AS25,AX25,BB25,AY25)+SUM(F29,H29,V29:W29,AA29,AE29,AH29,AM29,AS29,AX29,BB29,AY29)+SUM(F33,H33,V33:W33,AA33,AE33,AH33,AM33,AS33,AX33,BB33,AY33)+SUM(F36,H36,V36:W36,AA36,AE36,AH36,AM36,AS36,AX36,BB36,AY36)+SUM(F41,H41,V41:W41,AA41,AE41,AH41,AM41,AS41,AX41,BB41,AY41)+SUM(F47,H47,V47:W47,AA47,AE47,AH47,AM47,AS47,AX47,BB47,AY47)+SUM(F52,H52,V52:W52,AA52,AE52,AH52,AM52,AS52,AX52,BB52,AY52)+SUM(F53,H53,V53:W53,AA53,AE53,AH53,AM53,AS53,AX53,BB53,AY53)+SUM(F56,H56,V56:W56,AA56,AE56,AH56,AM56,AS56,AX56,BB56,AY56) -> 345,082.17 | E65: =SUM(E8,I8,AG8,BA8)+SUM(E10,I10,AG10,BA10)+SUM(E24,I24,AG24,BA24)+SUM(E25,I25,AG25,BA25)+SUM(E29,I29,AG29,BA29)+SUM(E33,I33,AG33,BA33)+SUM(E36,I36,AG36,BA36)+SUM(E41,I41,AG41,BA41)+SUM(E47,I47,AG47,BA47)+SUM(E52,I52,AG52,BA52)+SUM(E53,I53,AG53,BA53)+SUM(E56,I56,AG56,BA56) -> 185,035.36 | F65: =SUM(J8:K8,Z8,AL8,AP8)+SUM(J10:K10,Z10,AL10,AP10)+SUM(J24:K24,Z24,AL24,AP24)+SUM(J25:K25,Z25,AL25,AP25)+SUM(J29:K29,Z29,AL29,AP29)+SUM(J33:K33,Z33,AL33,AP33)+SUM(J36:K36,Z36,AL36,AP36)+SUM(J41:K41,Z41,AL41,AP41)+SUM(J47:K47,Z47,AL47,AP47)+SUM(J52:K52,Z52,AL52,AP52)+SUM(J53:K53,Z53,AL53,AP53)+SUM(J56:K56,Z56,AL56,AP56) -> 6,506,223.69 | G65: =BC8+BC10+BC24+BC25+BC29+BC33+BC36+BC41+BC47+BC52+BC53+BC56 -> 140,416.19 | H65: =SUM(B65:G65) -> 7,274,334.23
A66: America | B66: =B7+AJ7+B11+AJ11+B35+AJ35+B55+AJ55 -> 53,149.11 | C66: =SUM(C7,D7,G7,L7:U7,X7:Y7,AB7:AD7,AF7,AI7,AK7,AN7:AO7,AQ7,AT7:AW7,AZ7,AR7)+SUM(C11,D11,G11,L11:U11,X11:Y11,AB11:AD11,AF11,AI11,AK11,AN11:AO11,AQ11,AT11:AW11,AZ11,AR11)+SUM(C35,D35,G35,L35:U35,X35:Y35,AB35:AD35,AF35,AI35,AK35,AN35:AO35,AQ35,AT35:AW35,AZ35,AR35)+SUM(C55,D55,G55,L55:U55,X55:Y55,AB55:AD55,AF55,AI55,AK55,AN55:AO55,AQ55,AT55:AW55,AZ55,AR55) -> 180,952,062.10 | D66: =SUM(F7,H7,V7:W7,AA7,AE7,AH7,AM7,AS7,AX7,BB7,AY7)+SUM(F11,H11,V11:W11,AA11,AE11,AH11,AM11,AS11,AX11,BB11,AY11)+SUM(F35,H35,V35:W35,AA35,AE35,AH35,AM35,AS35,AX35,BB35,AY35)+SUM(F55,H55,V55:W55,AA55,AE55,AH55,AM55,AS55,AX55,BB55,AY55) -> 65,470,449.64 | E66: =SUM(E7,I7,AG7,BA7)+SUM(E11,I11,AG11,BA11)+SUM(E35,I35,AG35,BA35)+SUM(E55,I55,AG55,BA55) -> 577,776.77 | F66: =SUM(J7:K7,Z7,AL7,AP7)+SUM(J11:K11,Z11,AL11,AP11)+SUM(J35:K35,Z35,AL35,AP35)+SUM(J55:K55,Z55,AL55,AP55) -> 1,290,435,576.92 | G66: =BC7+BC11+BC35+BC55 -> 1,670,374.54 | H66: =SUM(B66:G66) -> 1,539,159,389.09
A67: East Asia | B67: =B12+AJ12+B13+AJ13+B28+AJ28+B40+AJ40+B44+AJ44 -> 9,227,821.87 | C67: =SUM(C12,D12,G12,L12:U12,X12:Y12,AB12:AD12,AF12,AI12,AK12,AN12:AO12,AQ12,AT12:AW12,AZ12,AR12)+SUM(C13,D13,G13,L13:U13,X13:Y13,AB13:AD13,AF13,AI13,AK13,AN13:AO13,AQ13,AT13:AW13,AZ13,AR13)+SUM(C28,D28,G28,L28:U28,X28:Y28,AB28:AD28,AF28,AI28,AK28,AN28:AO28,AQ28,AT28:AW28,AZ28,AR28)+SUM(C40,D40,G40,L40:U40,X40:Y40,AB40:AD40,AF40,AI40,AK40,AN40:AO40,AQ40,AT40:AW40,AZ40,AR40)+SUM(C44,D44,G44,L44:U44,X44:Y44,AB44:AD44,AF44,AI44,AK44,AN44:AO44,AQ44,AT44:AW44,AZ44,AR44) -> 159,633,576.03 | D67: =SUM(F12,H12,V12:W12,AA12,AE12,AH12,AM12,AS12,AX12,BB12,AY12)+SUM(F13,H13,V13:W13,AA13,AE13,AH13,AM13,AS13,AX13,BB13,AY13)+SUM(F28,H28,V28:W28,AA28,AE28,AH28,AM28,AS28,AX28,BB28,AY28)+SUM(F40,H40,V40:W40,AA40,AE40,AH40,AM40,AS40,AX40,BB40,AY40)+SUM(F44,H44,V44:W44,AA44,AE44,AH44,AM44,AS44,AX44,BB44,AY44) -> 289,648,238.72 | E67: =SUM(E12,I12,AG12,BA12)+SUM(E13,I13,AG13,BA13)+SUM(E28,I28,AG28,BA28)+SUM(E40,I40,AG40,BA40)+SUM(E44,I44,AG44,BA44) -> 17,513,218.85 | F67: =SUM(J12:K12,Z12,AL12,AP12)+SUM(J13:K13,Z13,AL13,AP13)+SUM(J28:K28,Z28,AL28,AP28)+SUM(J40:K40,Z40,AL40,AP40)+SUM(J44:K44,Z44,AL44,AP44) -> 1,880,354,870.29 | G67: =BC12+BC13+BC28+BC40+BC44 -> 5,305,299.50 | H67: =SUM(B67:G67) -> 2,361,683,025.27
A68: ROW | B68: =B57+AJ57 -> 0.00 | C68: =SUM(C57,D57,G57,L57:U57,X57:Y57,AB57:AD57,AF57,AI57,AK57,AN57:AO57,AQ57,AT57:AW57,AZ57,AR57) -> 9,425,568.90 | D68: =SUM(F57,H57,V57:W57,AA57,AE57,AH57,AM57,AS57,AX57,BB57,AY57) -> 317,389.14 | E68: =SUM(E57,I57,AG57,BA57) -> 22,377.29 | F68: =SUM(J57:K57,Z57,AL57,AP57) -> 2,595,004.32 | G68: =BC57 -> 0.00 | H68: =SUM(B68:G68) -> 12,360,339.65
A69: Total | B69: =B58+AJ58 -> 9,836,512.34 | C69: =SUM(C58,D58,G58,L58:U58,X58:Y58,AB58:AD58,AF58,AI58,AK58,AN58:AO58,AQ58,AT58:AW58,AZ58,AR58) -> 526,162,038.55 | D69: =SUM(F58,H58,V58:W58,AA58,AE58,AH58,AM58,AS58,AX58,BB58,AY58) -> 499,809,595.43 | E69: =SUM(E58,I58,AG58,BA58) -> 73,015,737.18 | F69: =SUM(J58:K58,Z58,AL58,AP58) -> 4,432,878,547.49 | G69: =BC58 -> 13,506,313.99 | H69: =SUM(B69:G69) -> 5,555,208,744.98

Sheet Data 6
A1: TFM of the global silicon trade in 2017
A2: Unit: $
A3: Country/Economy | B3: Australia | C3: Austria | D3: Belgium | E3: Brazil | F3: Brunei | G3: Bulgaria | H3: Cambodia | I3: Canada | J3: China | K3: Hong Kong | L3: Croatia | M3: Cyprus | N3: Czechia | O3: Denmark | P3: Estonia | Q3: Finland | R3: France | S3: Germany | T3: Greece | U3: Hungary | V3: India | W3: Indonesia | X3: Ireland | Y3: Italy | Z3: Japan | AA3: Lao PDR | AB3: Latvia | AC3: Lithuania | AD3: Luxembourg | AE3: Malaysia | AF3: Malta | AG3: Mexico | AH3: Myanmar | AI3: Netherlands | AJ3: New Zealand | AK3: Norway | AL3: Taiwan | AM3: Philippines | AN3: Poland | AO3: Portugal | AP3: Korea | AQ3: Romania | AR3: Russian Federation | AS3: Singapore | AT3: Slovakia | AU3: Slovenia | AV3: Spain | AW3: Sweden | AX3: Thailand | AY3: Turkey | AZ3: United Kingdom | BA3: USA | BB3: Vietnam | BC3: ROW | BD3: total
A4: Australia | B4: 0.00 | C4: 0.00 | D4: 0.00 | E4: 0.00 | F4: 0.00 | G4: 0.00 | H4: 0.00 | I4: 0.00 | J4: 580,792.86 | K4: 0.00 | L4: 0.00 | M4: 0.00 | N4: 0.00 | O4: 0.00 | P4: 0.00 | Q4: 31,710.35 | R4: 0.00 | S4: 60,446.08 | T4: 0.00 | U4: 0.00 | V4: 0.00 | W4: 0.00 | X4: 0.00 | Y4: 0.00 | Z4: 0.00 | AA4: 0.00 | AB4: 0.00 | AC4: 0.00 | AD4: 0.00 | AE4: 0.00 | AF4: 0.00 | AG4: 0.00 | AH4: 0.00 | AI4: 0.00 | AJ4: 24,828.91 | AK4: 0.00 | AL4: 9,109.96 | AM4: 0.00 | AN4: 717,213.43 | AO4: 0.00 | AP4: 0.00 | AQ4: 0.00 | AR4: 0.00 | AS4: 0.00 | AT4: 0.00 | AU4: 0.00 | AV4: 0.00 | AW4: 0.00 | AX4: 0.00 | AY4: 0.00 | AZ4: 0.00 | BA4: 0.00 | BB4: 0.00 | BC4: 1.78 | BD4: 1,424,103.37
A5: Austria | B5: 0.00 | C5: 0.00 | D5: 0.00 | E5: 0.00 | F5: 0.00 | G5: 0.00 | H5: 0.00 | I5: 0.00 | J5: 0.00 | K5: 0.00 | L5: 0.00 | M5: 0.00 | N5: 0.00 | O5: 0.00 | P5: 0.00 | Q5: 0.00 | R5: 4,873.86 | S5: 0.00 | T5: 0.00 | U5: 0.00 | V5: 0.00 | W5: 0.00 | X5: 0.00 | Y5: 0.00 | Z5: 0.00 | AA5: 0.00 | AB5: 0.00 | AC5: 0.00 | AD5: 0.00 | AE5: 0.00 | AF5: 0.00 | AG5: 0.00 | AH5: 0.00 | AI5: 0.00 | AJ5: 0.00 | AK5: 0.00 | AL5: 0.00 | AM5: 0.00 | AN5: 0.00 | AO5: 0.00 | AP5: 0.00 | AQ5: 0.00 | AR5: 0.00 | AS5: 0.00 | AT5: 128.05 | AU5: 0.00 | AV5: 0.00 | AW5: 0.00 | AX5: 0.00 | AY5: 0.00 | AZ5: 0.00 | BA5: 0.00 | BB5: 0.00 | BC5: 0.00 | BD5: 5,001.91
A6: Belgium | B6: 0.00 | C6: 0.00 | D6: 0.00 | E6: 0.00 | F6: 0.00 | G6: 0.00 | H6: 0.00 | I6: 0.00 | J6: 234,200.82 | K6: 0.00 | L6: 0.00 | M6: 0.00 | N6: 0.00 | O6: 0.00 | P6: 0.00 | Q6: 4.30 | R6: 4,215.64 | S6: 605.73 | T6: 0.00 | U6: 0.00 | V6: 0.00 | W6: 0.00 | X6: 0.00 | Y6: 1.97 | Z6: 46,109.02 | AA6: 0.00 | AB6: 0.00 | AC6: 0.00 | AD6: 0.00 | AE6: 0.00 | AF6: 0.00 | AG6: 17.21 | AH6: 0.00 | AI6: 0.00 | AJ6: 0.00 | AK6: 0.00 | AL6: 4.03 | AM6: 0.00 | AN6: 480.67 | AO6: 0.00 | AP6: 0.00 | AQ6: 39,034.91 | AR6: 0.00 | AS6: 0.00 | AT6: 0.00 | AU6: 0.00 | AV6: 0.00 | AW6: 0.00 | AX6: 0.00 | AY6: 0.00 | AZ6: 0.00 | BA6: 27,672.57 | BB6: 0.00 | BC6: 356,729.34 | BD6: 709,076.22
A7: Brazil | B7: 0.00 | C7: 0.00 | D7: 0.00 | E7: 0.00 | F7: 0.00 | G7: 0.00 | H7: 0.00 | I7: 0.00 | J7: 0.00 | K7: 0.00 | L7: 0.00 | M7: 0.00 | N7: 0.00 | O7: 0.00 | P7: 0.00 | Q7: 0.00 | R7: 0.00 | S7: 0.00 | T7: 0.00 | U7: 0.00 | V7: 0.00 | W7: 0.00 | X7: 0.00 | Y7: 0.00 | Z7: 0.00 | AA7: 0.00 | AB7: 0.00 | AC7: 0.00 | AD7: 0.00 | AE7: 0.00 | AF7: 0.00 | AG7: 0.00 | AH7: 0.00 | AI7: 0.00 | AJ7: 0.00 | AK7: 0.00 | AL7: 0.00 | AM7: 0.00 | AN7: 0.00 | AO7: 0.00 | AP7: 0.00 | AQ7: 0.00 | AR7: 0.00 | AS7: 0.00 | AT7: 0.00 | AU7: 0.00 | AV7: 0.00 | AW7: 0.00 | AX7: 0.00 | AY7: 0.00 | AZ7: 0.00 | BA7: 0.00 | BB7: 0.00 | BC7: 0.00 | BD7: 0.00
A8: Brunei | B8: 0.00 | C8: 0.00 | D8: 0.00 | E8: 0.00 | F8: 0.00 | G8: 0.00 | H8: 0.00 | I8: 0.00 | J8: 0.00 | K8: 0.00 | L8: 0.00 | M8: 0.00 | N8: 0.00 | O8: 0.00 | P8: 0.00 | Q8: 0.00 | R8: 0.00 | S8: 0.00 | T8: 0.00 | U8: 0.00 | V8: 0.00 | W8: 0.00 | X8: 0.00 | Y8: 0.00 | Z8: 0.00 | AA8: 0.00 | AB8: 0.00 | AC8: 0.00 | AD8: 0.00 | AE8: 0.00 | AF8: 0.00 | AG8: 0.00 | AH8: 0.00 | AI8: 0.00 | AJ8: 0.00 | AK8: 0.00 | AL8: 0.00 | AM8: 0.00 | AN8: 0.00 | AO8: 0.00 | AP8: 0.00 | AQ8: 0.00 | AR8: 0.00 | AS8: 0.00 | AT8: 0.00 | AU8: 0.00 | AV8: 0.00 | AW8: 0.00 | AX8: 0.00 | AY8: 0.00 | AZ8: 0.00 | BA8: 0.00 | BB8: 0.00 | BC8: 0.00 | BD8: 0.00
A9: Bulgaria | B9: 0.00 | C9: 0.00 | D9: 0.00 | E9: 0.00 | F9: 0.00 | G9: 0.00 | H9: 0.00 | I9: 0.00 | J9: 102.59 | K9: 0.00 | L9: 0.00 | M9: 0.00 | N9: 0.00 | O9: 0.00 | P9: 0.00 | Q9: 8.27 | R9: 5.82 | S9: 1,163.81 | T9: 0.00 | U9: 0.00 | V9: 6,184.36 | W9: 0.00 | X9: 0.00 | Y9: 3.79 | Z9: 4,436.92 | AA9: 0.00 | AB9: 0.00 | AC9: 0.00 | AD9: 0.00 | AE9: 0.00 | AF9: 0.00 | AG9: 33.08 | AH9: 0.00 | AI9: 0.00 | AJ9: 0.00 | AK9: 0.00 | AL9: 7.75 | AM9: 0.00 | AN9: 923.53 | AO9: 0.00 | AP9: 61,407.45 | AQ9: 0.00 | AR9: 0.00 | AS9: 0.00 | AT9: 0.00 | AU9: 0.00 | AV9: 0.00 | AW9: 0.00 | AX9: 0.00 | AY9: 0.00 | AZ9: 0.00 | BA9: 53,168.31 | BB9: 0.00 | BC9: 18,002.50 | BD9: 145,448.18
A10: Cambodia | B10: 0.00 | C10: 0.00 | D10: 0.00 | E10: 0.00 | F10: 0.00 | G10: 0.00 | H10: 0.00 | I10: 0.00 | J10: 0.00 | K10: 0.00 | L10: 0.00 | M10: 0.00 | N10: 0.00 | O10: 0.00 | P10: 0.00 | Q10: 0.00 | R10: 0.00 | S10: 0.00 | T10: 0.00 | U10: 0.00 | V10: 0.00 | W10: 0.00 | X10: 0.00 | Y10: 0.00 | Z10: 0.00 | AA10: 0.00 | AB10: 0.00 | AC10: 0.00 | AD10: 0.00 | AE10: 0.00 | AF10: 0.00 | AG10: 0.00 | AH10: 0.00 | AI10: 0.00 | AJ10: 0.00 | AK10: 0.00 | AL10: 0.00 | AM10: 0.00 | AN10: 0.00 | AO10: 0.00 | AP10: 0.00 | AQ10: 0.00 | AR10: 0.00 | AS10: 0.00 | AT10: 0.00 | AU10: 0.00 | AV10: 0.00 | AW10: 0.00 | AX10: 0.00 | AY10: 0.00 | AZ10: 0.00 | BA10: 0.00 | BB10: 0.00 | BC10: 0.00 | BD10: 0.00
A11: Canada | B11: 0.00 | C11: 0.00 | D11: 0.00 | E11: 0.00 | F11: 0.00 | G11: 0.00 | H11: 0.00 | I11: 0.00 | J11: 0.00 | K11: 0.00 | L11: 0.00 | M11: 0.00 | N11: 0.00 | O11: 0.00 | P11: 0.00 | Q11: 0.00 | R11: 1,573.23 | S11: 0.00 | T11: 0.00 | U11: 0.00 | V11: 0.00 | W11: 0.00 | X11: 0.00 | Y11: 0.00 | Z11: 0.00 | AA11: 0.00 | AB11: 0.00 | AC11: 0.00 | AD11: 0.00 | AE11: 0.00 | AF11: 0.00 | AG11: 0.00 | AH11: 0.00 | AI11: 0.00 | AJ11: 0.00 | AK11: 0.00 | AL11: 0.00 | AM11: 0.00 | AN11: 0.00 | AO11: 0.00 | AP11: 0.00 | AQ11: 0.00 | AR11: 0.00 | AS11: 0.00 | AT11: 0.00 | AU11: 0.00 | AV11: 0.00 | AW11: 0.00 | AX11: 0.00 | AY11: 0.00 | AZ11: 0.00 | BA11: 0.00 | BB11: 0.00 | BC11: 2,350.50 | BD11: 3,923.73
A12: China | B12: 188.75 | C12: 0.00 | D12: 0.00 | E12: 0.00 | F12: 0.00 | G12: 0.00 | H12: 0.00 | I12: 952.66 | J12: 0.00 | K12: 18,319.64 | L12: 0.00 | M12: 0.00 | N12: 0.00 | O12: 0.00 | P12: 0.00 | Q12: 22.89 | R12: 41,882.01 | S12: 48,046.12 | T12: 0.00 | U12: 0.63 | V12: 214.10 | W12: 0.00 | X12: 0.00 | Y12: 10.49 | Z12: 210,598.62 | AA12: 0.00 | AB12: 0.00 | AC12: 0.00 | AD12: 0.00 | AE12: 299,739.91 | AF12: 0.00 | AG12: 586.59 | AH12: 0.00 | AI12: 59,064.88 | AJ12: 0.00 | AK12: 76,748.20 | AL12: 569,377.97 | AM12: 1.36 | AN12: 2,557.70 | AO12: 0.00 | AP12: 3,040,161.42 | AQ12: 0.00 | AR12: 179,887.87 | AS12: 1.82 | AT12: 0.00 | AU12: 0.00 | AV12: 0.00 | AW12: 0.00 | AX12: 0.00 | AY12: 1.20 | AZ12: 2,126.13 | BA12: 148,716.26 | BB12: 1,117.79 | BC12: 71,995,505.78 | BD12: 76,695,830.82
A13: Hong Kong | B13: 0.00 | C13: 0.00 | D13: 0.00 | E13: 0.00 | F13: 0.00 | G13: 0.00 | H13: 0.00 | I13: 0.00 | J13: 0.00 | K13: 0.00 | L13: 0.00 | M13: 0.00 | N13: 0.00 | O13: 0.00 | P13: 0.00 | Q13: 0.00 | R13: 0.00 | S13: 0.00 | T13: 0.00 | U13: 0.00 | V13: 0.00 | W13: 0.00 | X13: 0.00 | Y13: 0.00 | Z13: 0.00 | AA13: 0.00 | AB13: 0.00 | AC13: 0.00 | AD13: 0.00 | AE13: 0.00 | AF13: 0.00 | AG13: 0.00 | AH13: 0.00 | AI13: 0.00 | AJ13: 0.00 | AK13: 0.00 | AL13: 0.00 | AM13: 0.00 | AN13: 0.00 | AO13: 0.00 | AP13: 0.00 | AQ13: 0.00 | AR13: 0.00 | AS13: 0.00 | AT13: 0.00 | AU13: 0.00 | AV13: 0.00 | AW13: 0.00 | AX13: 0.00 | AY13: 0.00 | AZ13: 0.00 | BA13: 0.00 | BB13: 0.00 | BC13: 0.00 | BD13: 0.00
A14: Croatia | B14: 0.00 | C14: 0.00 | D14: 0.00 | E14: 0.00 | F14: 0.00 | G14: 0.00 | H14: 0.00 | I14: 0.00 | J14: 0.00 | K14: 0.00 | L14: 0.00 | M14: 0.00 | N14: 0.00 | O14: 0.00 | P14: 0.00 | Q14: 0.00 | R14: 0.00 | S14: 0.00 | T14: 0.00 | U14: 0.00 | V14: 0.00 | W14: 0.00 | X14: 0.00 | Y14: 0.00 | Z14: 0.00 | AA14: 0.00 | AB14: 0.00 | AC14: 0.00 | AD14: 0.00 | AE14: 0.00 | AF14: 0.00 | AG14: 0.00 | AH14: 0.00 | AI14: 0.00 | AJ14: 0.00 | AK14: 0.00 | AL14: 0.00 | AM14: 0.00 | AN14: 0.00 | AO14: 0.00 | AP14: 0.00 | AQ14: 0.00 | AR14: 0.00 | AS14: 0.00 | AT14: 0.00 | AU14: 0.00 | AV14: 0.00 | AW14: 0.00 | AX14: 0.00 | AY14: 0.00 | AZ14: 0.00 | BA14: 0.00 | BB14: 0.00 | BC14: 0.00 | BD14: 0.00
A15: Cyprus | B15: 0.00 | C15: 0.00 | D15: 0.00 | E15: 0.00 | F15: 0.00 | G15: 0.00 | H15: 0.00 | I15: 0.00 | J15: 0.00 | K15: 0.00 | L15: 0.00 | M15: 0.00 | N15: 0.00 | O15: 0.00 | P15: 0.00 | Q15: 0.00 | R15: 0.00 | S15: 0.00 | T15: 0.00 | U15: 0.00 | V15: 0.00 | W15: 0.00 | X15: 0.00 | Y15: 0.00 | Z15: 0.00 | AA15: 0.00 | AB15: 0.00 | AC15: 0.00 | AD15: 0.00 | AE15: 0.00 | AF15: 0.00 | AG15: 0.00 | AH15: 0.00 | AI15: 0.00 | AJ15: 0.00 | AK15: 0.00 | AL15: 0.00 | AM15: 0.00 | AN15: 0.00 | AO15: 0.00 | AP15: 0.00 | AQ15: 0.00 | AR15: 0.00 | AS15: 0.00 | AT15: 0.00 | AU15: 0.00 | AV15: 0.00 | AW15: 0.00 | AX15: 0.00 | AY15: 0.00 | AZ15: 0.00 | BA15: 0.00 | BB15: 0.00 | BC15: 55.02 | BD15: 55.02
A16: Czechia | B16: 0.00 | C16: 0.00 | D16: 0.00 | E16: 0.00 | F16: 0.00 | G16: 0.00 | H16: 0.00 | I16: 0.00 | J16: 94.04 | K16: 0.00 | L16: 0.00 | M16: 0.00 | N16: 0.00 | O16: 0.00 | P16: 0.00 | Q16: 0.00 | R16: 0.00 | S16: 57,320.89 | T16: 0.00 | U16: 8,736.34 | V16: 0.00 | W16: 0.00 | X16: 0.00 | Y16: 0.00 | Z16: 0.00 | AA16: 0.00 | AB16: 0.00 | AC16: 0.00 | AD16: 0.00 | AE16: 0.00 | AF16: 0.00 | AG16: 0.00 | AH16: 0.00 | AI16: 0.00 | AJ16: 0.00 | AK16: 0.00 | AL16: 1,094.42 | AM16: 0.00 | AN16: 0.00 | AO16: 0.00 | AP16: 0.00 | AQ16: 0.00 | AR16: 86,035.86 | AS16: 0.00 | AT16: 63,783.36 | AU16: 0.00 | AV16: 0.00 | AW16: 0.00 | AX16: 0.00 | AY16: 0.00 | AZ16: 0.00 | BA16: 0.00 | BB16: 0.00 | BC16: 88,968.98 | BD16: 306,033.89
A17: Denmark | B17: 0.00 | C17: 0.00 | D17: 0.00 | E17: 0.00 | F17: 0.00 | G17: 0.00 | H17: 0.00 | I17: 0.00 | J17: 0.00 | K17: 0.00 | L17: 0.00 | M17: 0.00 | N17: 0.00 | O17: 0.00 | P17: 0.00 | Q17: 0.00 | R17: 0.00 | S17: 0.00 | T17: 0.00 | U17: 0.00 | V17: 0.00 | W17: 0.00 | X17: 0.00 | Y17: 0.00 | Z17: 0.00 | AA17: 0.00 | AB17: 0.00 | AC17: 0.00 | AD17: 0.00 | AE17: 0.00 | AF17: 0.00 | AG17: 0.00 | AH17: 0.00 | AI17: 0.00 | AJ17: 0.00 | AK17: 0.00 | AL17: 0.00 | AM17: 0.00 | AN17: 0.00 | AO17: 0.00 | AP17: 0.00 | AQ17: 0.00 | AR17: 0.00 | AS17: 0.00 | AT17: 0.00 | AU17: 0.00 | AV17: 0.00 | AW17: 0.00 | AX17: 0.00 | AY17: 0.00 | AZ17: 0.00 | BA17: 0.00 | BB17: 0.00 | BC17: 0.00 | BD17: 0.00
A18: Estonia | B18: 0.00 | C18: 0.00 | D18: 0.00 | E18: 0.00 | F18: 0.00 | G18: 0.00 | H18: 0.00 | I18: 0.00 | J18: 0.00 | K18: 0.00 | L18: 0.00 | M18: 0.00 | N18: 0.00 | O18: 0.00 | P18: 0.00 | Q18: 0.00 | R18: 0.00 | S18: 0.00 | T18: 0.00 | U18: 0.00 | V18: 0.00 | W18: 0.00 | X18: 0.00 | Y18: 0.00 | Z18: 0.00 | AA18: 0.00 | AB18: 0.00 | AC18: 0.00 | AD18: 0.00 | AE18: 0.00 | AF18: 0.00 | AG18: 0.00 | AH18: 0.00 | AI18: 0.00 | AJ18: 0.00 | AK18: 0.00 | AL18: 0.00 | AM18: 0.00 | AN18: 0.00 | AO18: 0.00 | AP18: 0.00 | AQ18: 0.00 | AR18: 0.00 | AS18: 0.00 | AT18: 0.00 | AU18: 0.00 | AV18: 0.00 | AW18: 0.00 | AX18: 0.00 | AY18: 0.00 | AZ18: 0.00 | BA18: 0.00 | BB18: 0.00 | BC18: 0.00 | BD18: 0.00
A19: Finland | B19: 0.00 | C19: 0.00 | D19: 0.00 | E19: 0.00 | F19: 0.00 | G19: 0.00 | H19: 0.00 | I19: 0.00 | J19: 0.00 | K19: 0.00 | L19: 0.00 | M19: 0.00 | N19: 0.00 | O19: 0.00 | P19: 0.00 | Q19: 0.00 | R19: 0.00 | S19: 0.00 | T19: 0.00 | U19: 0.00 | V19: 0.00 | W19: 0.00 | X19: 0.00 | Y19: 0.00 | Z19: 0.00 | AA19: 0.00 | AB19: 0.00 | AC19: 0.00 | AD19: 0.00 | AE19: 0.00 | AF19: 0.00 | AG19: 0.00 | AH19: 0.00 | AI19: 0.00 | AJ19: 0.00 | AK19: 0.00 | AL19: 0.00 | AM19: 0.00 | AN19: 0.00 | AO19: 0.00 | AP19: 0.00 | AQ19: 0.00 | AR19: 0.00 | AS19: 0.00 | AT19: 0.00 | AU19: 0.00 | AV19: 0.00 | AW19: 0.00 | AX19: 0.00 | AY19: 0.00 | AZ19: 0.00 | BA19: 0.00 | BB19: 0.00 | BC19: 0.00 | BD19: 0.00
A20: France | B20: 2,603.99 | C20: 25,355.68 | D20: 687.26 | E20: 2,261.86 | F20: 0.00 | G20: 0.00 | H20: 0.00 | I20: 4,357.66 | J20: 80,569.84 | K20: 163,269.36 | L20: 0.00 | M20: 0.00 | N20: 0.00 | O20: 0.00 | P20: 0.00 | Q20: 2.10 | R20: 0.00 | S20: 13,909.52 | T20: 0.00 | U20: 7,364.41 | V20: 6,876.03 | W20: 0.00 | X20: 0.00 | Y20: 0.96 | Z20: 65,099.85 | AA20: 0.00 | AB20: 0.00 | AC20: 0.00 | AD20: 0.00 | AE20: 4,124.50 | AF20: 0.00 | AG20: 562.10 | AH20: 0.00 | AI20: 19,366.56 | AJ20: 7,437.84 | AK20: 2.00 | AL20: 19,377.34 | AM20: 12.14 | AN20: 234.53 | AO20: 0.00 | AP20: 1,634.99 | AQ20: 2,059.79 | AR20: 1,392.53 | AS20: 12,692.17 | AT20: 0.00 | AU20: 0.00 | AV20: 1,046.40 | AW20: 0.00 | AX20: 0.00 | AY20: 781.03 | AZ20: 8,713.33 | BA20: 20,220.54 | BB20: 9,414.51 | BC20: 450,343.97 | BD20: 931,774.80
A21: Germany | B21: 272,296.00 | C21: 597,320.14 | D21: 10,805.13 | E21: 0.00 | F21: 0.00 | G21: 0.00 | H21: 0.00 | I21: 0.00 | J21: 643,826,120.79 | K21: 17,375,832.46 | L21: 0.00 | M21: 3,450.32 | N21: 1,516,741.30 | O21: 810,007.37 | P21: 0.00 | Q21: 478,795.67 | R21: 1,215,111.27 | S21: 0.00 | T21: 0.00 | U21: 9,419.56 | V21: 43,141.21 | W21: 0.00 | X21: 0.00 | Y21: 11,557,365.74 | Z21: 65,498,563.92 | AA21: 0.00 | AB21: 0.00 | AC21: 0.00 | AD21: 0.00 | AE21: 782,665.41 | AF21: 0.00 | AG21: 24,357.62 | AH21: 0.00 | AI21: 1,782,432.74 | AJ21: 0.00 | AK21: 19,951,026.02 | AL21: 49,116,685.15 | AM21: 1,097,073.27 | AN21: 681,408.95 | AO21: 1,633.62 | AP21: 37,078,385.04 | AQ21: 2,015.77 | AR21: 6,401,500.97 | AS21: 91,159,656.18 | AT21: 0.00 | AU21: 0.00 | AV21: 20,682.90 | AW21: 2,287.87 | AX21: 153,743.72 | AY21: 2,462.21 | AZ21: 1,032,025.17 | BA21: 39,154,738.25 | BB21: 1,001,932.93 | BC21: 5,738,510.56 | BD21: 998,400,195.24
A22: Greece | B22: 0.00 | C22: 0.00 | D22: 0.00 | E22: 0.00 | F22: 0.00 | G22: 0.00 | H22: 0.00 | I22: 0.00 | J22: 0.00 | K22: 0.00 | L22: 0.00 | M22: 0.00 | N22: 0.00 | O22: 0.00 | P22: 0.00 | Q22: 0.00 | R22: 0.00 | S22: 0.00 | T22: 0.00 | U22: 0.00 | V22: 0.00 | W22: 0.00 | X22: 0.00 | Y22: 0.00 | Z22: 0.00 | AA22: 0.00 | AB22: 0.00 | AC22: 0.00 | AD22: 0.00 | AE22: 0.00 | AF22: 0.00 | AG22: 0.00 | AH22: 0.00 | AI22: 0.00 | AJ22: 0.00 | AK22: 0.00 | AL22: 0.00 | AM22: 0.00 | AN22: 0.00 | AO22: 0.00 | AP22: 0.00 | AQ22: 0.00 | AR22: 0.00 | AS22: 0.00 | AT22: 0.00 | AU22: 0.00 | AV22: 0.00 | AW22: 0.00 | AX22: 0.00 | AY22: 0.00 | AZ22: 0.00 | BA22: 0.00 | BB22: 0.00 | BC22: 0.00 | BD22: 0.00
A23: Hungary | B23: 0.00 | C23: 0.00 | D23: 7,618.91 | E23: 0.00 | F23: 0.00 | G23: 0.00 | H23: 0.00 | I23: 0.00 | J23: 14,373.48 | K23: 0.00 | L23: 0.00 | M23: 0.00 | N23: 20,078.67 | O23: 0.00 | P23: 0.00 | Q23: 2.18 | R23: 3,864.01 | S23: 5,399.25 | T23: 0.00 | U23: 0.00 | V23: 0.00 | W23: 0.00 | X23: 0.00 | Y23: 4,822.84 | Z23: 7,506.17 | AA23: 0.00 | AB23: 0.00 | AC23: 0.00 | AD23: 0.00 | AE23: 0.00 | AF23: 0.00 | AG23: 8.71 | AH23: 0.00 | AI23: 0.00 | AJ23: 0.00 | AK23: 1,135.43 | AL23: 3,286.29 | AM23: 0.00 | AN23: 243.06 | AO23: 0.00 | AP23: 2,847.09 | AQ23: 0.00 | AR23: 1,314.50 | AS23: 5,290.02 | AT23: 0.00 | AU23: 0.00 | AV23: 0.00 | AW23: 0.00 | AX23: 0.00 | AY23: 0.00 | AZ23: 1,050.40 | BA23: 13,993.34 | BB23: 0.00 | BC23: 3.59 | BD23: 92,837.94
A24: India | B24: 0.00 | C24: 0.00 | D24: 0.00 | E24: 0.00 | F24: 0.00 | G24: 0.00 | H24: 0.00 | I24: 0.00 | J24: 320,522.42 | K24: 0.00 | L24: 0.00 | M24: 0.00 | N24: 0.00 | O24: 0.00 | P24: 0.00 | Q24: 0.00 | R24: 0.00 | S24: 0.00 | T24: 0.00 | U24: 0.00 | V24: 0.00 | W24: 0.00 | X24: 0.00 | Y24: 0.00 | Z24: 0.00 | AA24: 0.00 | AB24: 0.00 | AC24: 0.00 | AD24: 0.00 | AE24: 0.00 | AF24: 0.00 | AG24: 0.00 | AH24: 0.00 | AI24: 0.00 | AJ24: 0.00 | AK24: 0.00 | AL24: 0.00 | AM24: 0.00 | AN24: 0.00 | AO24: 0.00 | AP24: 0.00 | AQ24: 0.00 | AR24: 0.00 | AS24: 0.00 | AT24: 0.00 | AU24: 0.00 | AV24: 0.00 | AW24: 0.00 | AX24: 0.00 | AY24: 0.00 | AZ24: 0.00 | BA24: 0.00 | BB24: 0.00 | BC24: 0.00 | BD24: 320,522.42
A25: Indonesia | B25: 0.00 | C25: 0.00 | D25: 0.00 | E25: 0.00 | F25: 0.00 | G25: 0.00 | H25: 0.00 | I25: 0.00 | J25: 0.00 | K25: 0.00 | L25: 0.00 | M25: 0.00 | N25: 0.00 | O25: 0.00 | P25: 0.00 | Q25: 0.00 | R25: 0.00 | S25: 0.00 | T25: 0.00 | U25: 0.00 | V25: 0.00 | W25: 0.00 | X25: 0.00 | Y25: 0.00 | Z25: 3,320.97 | AA25: 0.00 | AB25: 0.00 | AC25: 0.00 | AD25: 0.00 | AE25: 0.00 | AF25: 0.00 | AG25: 0.00 | AH25: 0.00 | AI25: 0.00 | AJ25: 0.00 | AK25: 0.00 | AL25: 0.00 | AM25: 0.00 | AN25: 0.00 | AO25: 0.00 | AP25: 0.00 | AQ25: 0.00 | AR25: 0.00 | AS25: 596.53 | AT25: 0.00 | AU25: 0.00 | AV25: 0.00 | AW25: 0.00 | AX25: 0.00 | AY25: 0.00 | AZ25: 0.00 | BA25: 0.00 | BB25: 0.00 | BC25: 0.00 | BD25: 3,917.50
A26: Ireland | B26: 0.00 | C26: 0.00 | D26: 0.00 | E26: 0.00 | F26: 0.00 | G26: 0.00 | H26: 0.00 | I26: 0.00 | J26: 0.08 | K26: 0.00 | L26: 0.00 | M26: 0.00 | N26: 0.00 | O26: 0.00 | P26: 0.00 | Q26: 0.01 | R26: 0.00 | S26: 0.92 | T26: 0.00 | U26: 0.00 | V26: 0.00 | W26: 0.00 | X26: 0.00 | Y26: 0.00 | Z26: 3.51 | AA26: 0.00 | AB26: 0.00 | AC26: 0.00 | AD26: 0.00 | AE26: 0.00 | AF26: 0.00 | AG26: 0.03 | AH26: 0.00 | AI26: 0.00 | AJ26: 0.00 | AK26: 0.00 | AL26: 0.01 | AM26: 0.00 | AN26: 0.73 | AO26: 0.00 | AP26: 0.00 | AQ26: 0.00 | AR26: 0.00 | AS26: 0.00 | AT26: 0.00 | AU26: 0.00 | AV26: 0.00 | AW26: 0.00 | AX26: 0.00 | AY26: 0.00 | AZ26: 0.00 | BA26: 42.02 | BB26: 0.00 | BC26: 0.01 | BD26: 47.31
A27: Italy | B27: 0.00 | C27: 0.00 | D27: 0.00 | E27: 0.00 | F27: 0.00 | G27: 0.00 | H27: 0.00 | I27: 0.00 | J27: 12,091.92 | K27: 275,638.28 | L27: 0.00 | M27: 0.00 | N27: 0.00 | O27: 0.00 | P27: 0.00 | Q27: 0.00 | R27: 2,274.06 | S27: 15,159.40 | T27: 0.00 | U27: 9.46 | V27: 73.30 | W27: 0.00 | X27: 0.00 | Y27: 0.00 | Z27: 507.76 | AA27: 0.00 | AB27: 0.00 | AC27: 0.00 | AD27: 0.00 | AE27: 22,883,140.40 | AF27: 0.00 | AG27: 0.00 | AH27: 0.00 | AI27: 3,009.88 | AJ27: 0.00 | AK27: 0.00 | AL27: 4,871,423.85 | AM27: 20.49 | AN27: 9.00 | AO27: 0.00 | AP27: 1,751,990.36 | AQ27: 0.00 | AR27: 0.00 | AS27: 0.00 | AT27: 0.00 | AU27: 0.00 | AV27: 0.00 | AW27: 0.00 | AX27: 0.00 | AY27: 18.13 | AZ27: 0.00 | BA27: 7.88 | BB27: 66,003.11 | BC27: 24,773.48 | BD27: 29,906,150.76
A28: Japan | B28: 6,848,756.56 | C28: 0.00 | D28: 150,609.03 | E28: 3,476.78 | F28: 0.00 | G28: 0.00 | H28: 0.00 | I28: 0.00 | J28: 43,342,640.60 | K28: 4,173,038.07 | L28: 0.00 | M28: 0.00 | N28: 536,988.13 | O28: 0.00 | P28: 0.00 | Q28: 1,446,649.71 | R28: 21,607.33 | S28: 3,281,902.85 | T28: 0.00 | U28: 143.18 | V28: 2,713.18 | W28: 12,334,996.35 | X28: 0.00 | Y28: 6,930,385.33 | Z28: 0.00 | AA28: 0.00 | AB28: 0.00 | AC28: 0.00 | AD28: 0.00 | AE28: 41,991,877.26 | AF28: 0.00 | AG28: 7,354.46 | AH28: 0.00 | AI28: 45,568.22 | AJ28: 0.00 | AK28: 1,470,081.42 | AL28: 212,828,492.99 | AM28: 310.23 | AN28: 205,350.13 | AO28: 0.00 | AP28: 79,198,722.48 | AQ28: 0.00 | AR28: 0.00 | AS28: 2,680,004.58 | AT28: 0.00 | AU28: 0.00 | AV28: 0.00 | AW28: 0.00 | AX28: 194,788.60 | AY28: 274.44 | AZ28: 18,362,281.55 | BA28: 11,822,229.05 | BB28: 297,096.49 | BC28: 1,196,465.21 | BD28: 449,374,804.23
A29: Lao PDR | B29: 0.00 | C29: 0.00 | D29: 0.00 | E29: 0.00 | F29: 0.00 | G29: 0.00 | H29: 0.00 | I29: 0.00 | J29: 0.00 | K29: 0.00 | L29: 0.00 | M29: 0.00 | N29: 0.00 | O29: 0.00 | P29: 0.00 | Q29: 0.00 | R29: 0.00 | S29: 0.00 | T29: 0.00 | U29: 0.00 | V29: 0.00 | W29: 0.00 | X29: 0.00 | Y29: 0.00 | Z29: 0.00 | AA29: 0.00 | AB29: 0.00 | AC29: 0.00 | AD29: 0.00 | AE29: 0.00 | AF29: 0.00 | AG29: 0.00 | AH29: 0.00 | AI29: 0.00 | AJ29: 0.00 | AK29: 0.00 | AL29: 0.00 | AM29: 0.00 | AN29: 0.00 | AO29: 0.00 | AP29: 0.00 | AQ29: 0.00 | AR29: 0.00 | AS29: 0.00 | AT29: 0.00 | AU29: 0.00 | AV29: 0.00 | AW29: 0.00 | AX29: 0.00 | AY29: 0.00 | AZ29: 0.00 | BA29: 0.00 | BB29: 0.00 | BC29: 0.00 | BD29: 0.00
A30: Latvia | B30: 0.00 | C30: 0.00 | D30: 0.00 | E30: 0.00 | F30: 0.00 | G30: 0.00 | H30: 0.00 | I30: 0.00 | J30: 0.00 | K30: 0.00 | L30: 0.00 | M30: 0.00 | N30: 0.00 | O30: 0.00 | P30: 0.00 | Q30: 0.00 | R30: 0.00 | S30: 0.00 | T30: 0.00 | U30: 0.00 | V30: 0.00 | W30: 0.00 | X30: 0.00 | Y30: 0.00 | Z30: 0.00 | AA30: 0.00 | AB30: 0.00 | AC30: 0.00 | AD30: 0.00 | AE30: 0.00 | AF30: 0.00 | AG30: 0.00 | AH30: 0.00 | AI30: 0.00 | AJ30: 0.00 | AK30: 0.00 | AL30: 0.00 | AM30: 0.00 | AN30: 0.00 | AO30: 0.00 | AP30: 0.00 | AQ30: 0.00 | AR30: 196,186.93 | AS30: 0.00 | AT30: 0.00 | AU30: 0.00 | AV30: 0.00 | AW30: 0.00 | AX30: 0.00 | AY30: 0.00 | AZ30: 0.00 | BA30: 0.00 | BB30: 0.00 | BC30: 4,105.57 | BD30: 200,292.50
A31: Lithuania | B31: 0.00 | C31: 0.00 | D31: 0.00 | E31: 0.00 | F31: 0.00 | G31: 0.00 | H31: 0.00 | I31: 0.00 | J31: 0.00 | K31: 0.00 | L31: 0.00 | M31: 0.00 | N31: 0.00 | O31: 0.00 | P31: 0.00 | Q31: 0.00 | R31: 0.00 | S31: 0.00 | T31: 0.00 | U31: 0.00 | V31: 0.00 | W31: 0.00 | X31: 0.00 | Y31: 0.00 | Z31: 0.00 | AA31: 0.00 | AB31: 0.00 | AC31: 0.00 | AD31: 0.00 | AE31: 0.00 | AF31: 0.00 | AG31: 0.00 | AH31: 0.00 | AI31: 0.00 | AJ31: 0.00 | AK31: 0.00 | AL31: 0.00 | AM31: 0.00 | AN31: 0.00 | AO31: 0.00 | AP31: 0.00 | AQ31: 0.00 | AR31: 208,582.67 | AS31: 0.00 | AT31: 0.00 | AU31: 0.00 | AV31: 0.00 | AW31: 0.00 | AX31: 0.00 | AY31: 0.00 | AZ31: 0.00 | BA31: 0.00 | BB31: 0.00 | BC31: 0.00 | BD31: 208,582.67
A32: Luxembourg | B32: 0.00 | C32: 0.00 | D32: 0.00 | E32: 0.00 | F32: 0.00 | G32: 0.00 | H32: 0.00 | I32: 0.00 | J32: 0.00 | K32: 0.00 | L32: 0.00 | M32: 0.00 | N32: 0.00 | O32: 0.00 | P32: 0.00 | Q32: 0.00 | R32: 0.00 | S32: 0.00 | T32: 0.00 | U32: 0.00 | V32: 0.00 | W32: 0.00 | X32: 0.00 | Y32: 0.00 | Z32: 0.00 | AA32: 0.00 | AB32: 0.00 | AC32: 0.00 | AD32: 0.00 | AE32: 0.00 | AF32: 0.00 | AG32: 0.00 | AH32: 0.00 | AI32: 0.00 | AJ32: 0.00 | AK32: 0.00 | AL32: 0.00 | AM32: 0.00 | AN32: 0.00 | AO32: 0.00 | AP32: 0.00 | AQ32: 0.00 | AR32: 0.00 | AS32: 0.00 | AT32: 0.00 | AU32: 0.00 | AV32: 0.00 | AW32: 0.00 | AX32: 0.00 | AY32: 0.00 | AZ32: 0.00 | BA32: 0.00 | BB32: 0.00 | BC32: 0.00 | BD32: 0.00
A33: Malaysia | B33: 0.00 | C33: 0.00 | D33: 0.00 | E33: 0.00 | F33: 0.00 | G33: 0.00 | H33: 0.00 | I33: 0.00 | J33: 145,994,882.55 | K33: 0.00 | L33: 0.00 | M33: 0.00 | N33: 0.00 | O33: 0.00 | P33: 0.00 | Q33: 1.02 | R33: 0.72 | S33: 1,086.13 | T33: 0.00 | U33: 0.00 | V33: 0.00 | W33: 0.00 | X33: 0.00 | Y33: 0.47 | Z33: 548.89 | AA33: 0.00 | AB33: 0.00 | AC33: 0.00 | AD33: 0.00 | AE33: 0.00 | AF33: 0.00 | AG33: 4.09 | AH33: 0.00 | AI33: 0.00 | AJ33: 0.00 | AK33: 0.00 | AL33: 389,830.66 | AM33: 0.00 | AN33: 114.25 | AO33: 0.00 | AP33: 0.00 | AQ33: 0.00 | AR33: 0.00 | AS33: 1,622.14 | AT33: 0.00 | AU33: 0.00 | AV33: 0.00 | AW33: 0.00 | AX33: 0.00 | AY33: 0.00 | AZ33: 0.00 | BA33: 6,577.39 | BB33: 0.00 | BC33: 1.69 | BD33: 146,394,669.98
A34: Malta | B34: 0.00 | C34: 0.00 | D34: 0.00 | E34: 0.00 | F34: 0.00 | G34: 0.00 | H34: 0.00 | I34: 0.00 | J34: 0.00 | K34: 0.00 | L34: 0.00 | M34: 0.00 | N34: 0.00 | O34: 0.00 | P34: 0.00 | Q34: 0.00 | R34: 0.00 | S34: 0.00 | T34: 0.00 | U34: 0.00 | V34: 0.00 | W34: 0.00 | X34: 0.00 | Y34: 0.00 | Z34: 0.00 | AA34: 0.00 | AB34: 0.00 | AC34: 0.00 | AD34: 0.00 | AE34: 0.00 | AF34: 0.00 | AG34: 0.00 | AH34: 0.00 | AI34: 0.00 | AJ34: 0.00 | AK34: 0.00 | AL34: 0.00 | AM34: 0.00 | AN34: 0.00 | AO34: 0.00 | AP34: 0.00 | AQ34: 0.00 | AR34: 0.00 | AS34: 0.00 | AT34: 0.00 | AU34: 0.00 | AV34: 0.00 | AW34: 0.00 | AX34: 0.00 | AY34: 0.00 | AZ34: 0.00 | BA34: 0.00 | BB34: 0.00 | BC34: 0.00 | BD34: 0.00
A35: Mexico | B35: 0.00 | C35: 0.00 | D35: 0.00 | E35: 0.00 | F35: 0.00 | G35: 0.00 | H35: 0.00 | I35: 0.00 | J35: 18.04 | K35: 0.00 | L35: 0.00 | M35: 0.00 | N35: 0.00 | O35: 0.00 | P35: 0.00 | Q35: 1.45 | R35: 1.02 | S35: 204.63 | T35: 0.00 | U35: 0.00 | V35: 0.00 | W35: 0.00 | X35: 0.00 | Y35: 0.67 | Z35: 780.14 | AA35: 0.00 | AB35: 0.00 | AC35: 0.00 | AD35: 0.00 | AE35: 0.00 | AF35: 0.00 | AG35: 0.00 | AH35: 0.00 | AI35: 0.00 | AJ35: 0.00 | AK35: 0.00 | AL35: 1.36 | AM35: 0.00 | AN35: 162.38 | AO35: 0.00 | AP35: 0.00 | AQ35: 0.00 | AR35: 0.00 | AS35: 0.00 | AT35: 0.00 | AU35: 0.00 | AV35: 0.00 | AW35: 0.00 | AX35: 0.00 | AY35: 0.00 | AZ35: 0.00 | BA35: 9,348.57 | BB35: 0.00 | BC35: 2.40 | BD35: 10,520.67
A36: Myanmar | B36: 0.00 | C36: 0.00 | D36: 0.00 | E36: 0.00 | F36: 0.00 | G36: 0.00 | H36: 0.00 | I36: 0.00 | J36: 0.00 | K36: 0.00 | L36: 0.00 | M36: 0.00 | N36: 0.00 | O36: 0.00 | P36: 0.00 | Q36: 0.00 | R36: 0.00 | S36: 0.00 | T36: 0.00 | U36: 0.00 | V36: 0.00 | W36: 0.00 | X36: 0.00 | Y36: 0.00 | Z36: 0.00 | AA36: 0.00 | AB36: 0.00 | AC36: 0.00 | AD36: 0.00 | AE36: 0.00 | AF36: 0.00 | AG36: 0.00 | AH36: 0.00 | AI36: 0.00 | AJ36: 0.00 | AK36: 0.00 | AL36: 0.00 | AM36: 0.00 | AN36: 0.00 | AO36: 0.00 | AP36: 0.00 | AQ36: 0.00 | AR36: 0.00 | AS36: 0.00 | AT36: 0.00 | AU36: 0.00 | AV36: 0.00 | AW36: 0.00 | AX36: 0.00 | AY36: 0.00 | AZ36: 0.00 | BA36: 0.00 | BB36: 0.00 | BC36: 0.00 | BD36: 0.00
A37: Netherlands | B37: 0.00 | C37: 0.00 | D37: 0.00 | E37: 0.00 | F37: 0.00 | G37: 1.00 | H37: 0.00 | I37: 0.00 | J37: 221,733.91 | K37: 0.00 | L37: 9.00 | M37: 71.03 | N37: 0.00 | O37: 0.00 | P37: 0.00 | Q37: 49.67 | R37: 40,750.54 | S37: 194,341.80 | T37: 0.00 | U37: 0.00 | V37: 0.00 | W37: 0.00 | X37: 51,076.51 | Y37: 117.79 | Z37: 27,296.45 | AA37: 0.00 | AB37: 49.02 | AC37: 2.00 | AD37: 104.04 | AE37: 974.37 | AF37: 0.00 | AG37: 198.75 | AH37: 0.00 | AI37: 0.00 | AJ37: 0.00 | AK37: 5,191,983.01 | AL37: 36,348.41 | AM37: 0.00 | AN37: 49,217.14 | AO37: 0.00 | AP37: 0.00 | AQ37: 5.00 | AR37: 8,653.31 | AS37: 0.00 | AT37: 0.00 | AU37: 12.00 | AV37: 127,352.64 | AW37: 20.01 | AX37: 0.00 | AY37: 0.00 | AZ37: 0.00 | BA37: 319,485.02 | BB37: 0.00 | BC37: 16,822.30 | BD37: 6,286,674.71
A38: New Zealand | B38: 0.00 | C38: 0.00 | D38: 0.00 | E38: 0.00 | F38: 0.00 | G38: 0.00 | H38: 0.00 | I38: 0.00 | J38: 0.00 | K38: 0.00 | L38: 0.00 | M38: 0.00 | N38: 0.00 | O38: 0.00 | P38: 0.00 | Q38: 0.00 | R38: 0.00 | S38: 0.00 | T38: 0.00 | U38: 0.00 | V38: 0.00 | W38: 0.00 | X38: 0.00 | Y38: 0.00 | Z38: 0.00 | AA38: 0.00 | AB38: 0.00 | AC38: 0.00 | AD38: 0.00 | AE38: 0.00 | AF38: 0.00 | AG38: 0.00 | AH38: 0.00 | AI38: 0.00 | AJ38: 0.00 | AK38: 0.00 | AL38: 0.00 | AM38: 0.00 | AN38: 0.00 | AO38: 0.00 | AP38: 0.00 | AQ38: 0.00 | AR38: 0.00 | AS38: 0.00 | AT38: 0.00 | AU38: 0.00 | AV38: 0.00 | AW38: 0.00 | AX38: 0.00 | AY38: 0.00 | AZ38: 466.64 | BA38: 0.00 | BB38: 0.00 | BC38: 0.00 | BD38: 466.64
A39: Norway | B39: 0.00 | C39: 0.00 | D39: 0.00 | E39: 0.00 | F39: 0.00 | G39: 0.00 | H39: 0.00 | I39: 0.00 | J39: 1,970,770.81 | K39: 1,616,849.25 | L39: 0.00 | M39: 0.00 | N39: 467,396.66 | O39: 15,499.13 | P39: 0.00 | Q39: 0.00 | R39: 910,376.98 | S39: 4,753,580.72 | T39: 0.00 | U39: 615.52 | V39: 429.94 | W39: 0.00 | X39: 0.00 | Y39: 0.00 | Z39: 8,325,294.08 | AA39: 0.00 | AB39: 0.00 | AC39: 1,159.49 | AD39: 0.00 | AE39: 40,844.74 | AF39: 0.00 | AG39: 0.00 | AH39: 0.00 | AI39: 270,047.39 | AJ39: 0.00 | AK39: 0.00 | AL39: 11,834,825.72 | AM39: 120.20 | AN39: 0.00 | AO39: 0.00 | AP39: 16,191.25 | AQ39: 0.00 | AR39: 0.00 | AS39: 92,000,415.33 | AT39: 0.00 | AU39: 0.00 | AV39: 0.00 | AW39: 14,446.87 | AX39: 0.00 | AY39: 10,528.80 | AZ39: 5,629,451.99 | BA39: 46.23 | BB39: 93,231.48 | BC39: 26,562.15 | BD39: 127,998,684.72
A40: Taiwan | B40: 0.00 | C40: 0.00 | D40: 0.00 | E40: 0.00 | F40: 0.00 | G40: 0.00 | H40: 438.98 | I40: 0.00 | J40: 298,718,214.64 | K40: 2,389,048.41 | L40: 0.00 | M40: 0.00 | N40: 0.00 | O40: 32,689.41 | P40: 0.00 | Q40: 2,293.65 | R40: 1,773.44 | S40: 382,390.01 | T40: 0.00 | U40: 81.97 | V40: 635.28 | W40: 2,107.11 | X40: 0.00 | Y40: 352,176.56 | Z40: 95,274,054.95 | AA40: 0.00 | AB40: 0.00 | AC40: 0.00 | AD40: 0.00 | AE40: 43,366,880.81 | AF40: 0.00 | AG40: 9,646.28 | AH40: 146.33 | AI40: 26,087.63 | AJ40: 0.00 | AK40: 97,395.12 | AL40: 0.00 | AM40: 5,123.45 | AN40: 263,232.83 | AO40: 0.00 | AP40: 162,378.53 | AQ40: 0.00 | AR40: 0.00 | AS40: 13,432.80 | AT40: 0.00 | AU40: 0.00 | AV40: 0.00 | AW40: 0.00 | AX40: 6,196,266.92 | AY40: 157.11 | AZ40: 0.00 | BA40: 14,753,526.55 | BB40: 899,623.49 | BC40: 69,216.14 | BD40: 463,019,018.40
A41: Philippines | B41: 0.00 | C41: 0.00 | D41: 0.00 | E41: 0.00 | F41: 0.00 | G41: 0.00 | H41: 0.00 | I41: 0.00 | J41: 0.00 | K41: 0.00 | L41: 0.00 | M41: 0.00 | N41: 0.00 | O41: 0.00 | P41: 0.00 | Q41: 0.00 | R41: 0.00 | S41: 0.00 | T41: 0.00 | U41: 0.00 | V41: 0.00 | W41: 0.00 | X41: 0.00 | Y41: 0.00 | Z41: 71.23 | AA41: 0.00 | AB41: 0.00 | AC41: 0.00 | AD41: 0.00 | AE41: 0.00 | AF41: 0.00 | AG41: 0.00 | AH41: 0.00 | AI41: 0.00 | AJ41: 0.00 | AK41: 0.00 | AL41: 0.00 | AM41: 0.00 | AN41: 0.00 | AO41: 0.00 | AP41: 0.00 | AQ41: 0.00 | AR41: 0.00 | AS41: 0.00 | AT41: 0.00 | AU41: 0.00 | AV41: 0.00 | AW41: 0.00 | AX41: 0.00 | AY41: 0.00 | AZ41: 0.00 | BA41: 0.00 | BB41: 0.00 | BC41: 0.00 | BD41: 71.23
A42: Poland | B42: 0.00 | C42: 0.00 | D42: 0.00 | E42: 0.00 | F42: 0.00 | G42: 0.00 | H42: 0.00 | I42: 0.00 | J42: 803,653.07 | K42: 0.00 | L42: 0.00 | M42: 0.00 | N42: 736,720.38 | O42: 2,483,832.67 | P42: 0.00 | Q42: 43,287.27 | R42: 0.52 | S42: 103.62 | T42: 0.00 | U42: 7,123.72 | V42: 0.00 | W42: 0.00 | X42: 0.00 | Y42: 4,707.13 | Z42: 282,364.73 | AA42: 0.00 | AB42: 1,558.60 | AC42: 0.00 | AD42: 0.00 | AE42: 0.00 | AF42: 0.00 | AG42: 2.94 | AH42: 0.00 | AI42: 0.00 | AJ42: 0.00 | AK42: 0.00 | AL42: 3,210,742.99 | AM42: 0.00 | AN42: 0.00 | AO42: 0.00 | AP42: 0.00 | AQ42: 0.00 | AR42: 0.00 | AS42: 0.00 | AT42: 0.00 | AU42: 0.00 | AV42: 0.00 | AW42: 0.00 | AX42: 0.00 | AY42: 0.00 | AZ42: 0.00 | BA42: 4,733.81 | BB42: 0.00 | BC42: 42,045.27 | BD42: 7,620,876.72
A43: Portugal | B43: 0.00 | C43: 0.00 | D43: 0.00 | E43: 0.00 | F43: 0.00 | G43: 0.00 | H43: 0.00 | I43: 0.00 | J43: 0.00 | K43: 0.00 | L43: 0.00 | M43: 0.00 | N43: 0.00 | O43: 0.00 | P43: 0.00 | Q43: 0.00 | R43: 0.00 | S43: 0.00 | T43: 0.00 | U43: 0.00 | V43: 0.00 | W43: 0.00 | X43: 0.00 | Y43: 0.00 | Z43: 0.00 | AA43: 0.00 | AB43: 0.00 | AC43: 0.00 | AD43: 0.00 | AE43: 0.00 | AF43: 0.00 | AG43: 0.00 | AH43: 0.00 | AI43: 0.00 | AJ43: 0.00 | AK43: 0.00 | AL43: 0.00 | AM43: 0.00 | AN43: 0.00 | AO43: 0.00 | AP43: 0.00 | AQ43: 0.00 | AR43: 0.00 | AS43: 0.00 | AT43: 0.00 | AU43: 0.00 | AV43: 0.00 | AW43: 0.00 | AX43: 0.00 | AY43: 0.00 | AZ43: 0.00 | BA43: 0.00 | BB43: 0.00 | BC43: 0.00 | BD43: 0.00
A44: Korea | B44: 64.10 | C44: 82,205.10 | D44: 0.00 | E44: 0.00 | F44: 0.00 | G44: 0.00 | H44: 0.00 | I44: 0.00 | J44: 959,844,331.20 | K44: 11,576,184.46 | L44: 0.00 | M44: 0.00 | N44: 0.00 | O44: 0.00 | P44: 0.00 | Q44: 80.13 | R44: 17,451.53 | S44: 103,089.67 | T44: 0.00 | U44: 397.20 | V44: 3,388.12 | W44: 0.00 | X44: 0.00 | Y44: 4,003,518.42 | Z44: 5,543,462.46 | AA44: 0.00 | AB44: 0.00 | AC44: 0.00 | AD44: 0.00 | AE44: 2,643,243.49 | AF44: 0.00 | AG44: 320.64 | AH44: 0.00 | AI44: 645,868.17 | AJ44: 0.00 | AK44: 1,138,095.87 | AL44: 120,808,846.12 | AM44: 860.60 | AN44: 8,952.94 | AO44: 0.00 | AP44: 0.00 | AQ44: 0.00 | AR44: 1,712,180.01 | AS44: 200,124.40 | AT44: 0.00 | AU44: 0.00 | AV44: 0.00 | AW44: 0.00 | AX44: 0.00 | AY44: 761.30 | AZ44: 1,558.10 | BA44: 515,755.98 | BB44: 829,643.77 | BC44: 35,915.87 | BD44: 1,109,716,299.64
